Workbook

Sheet Due date
B1: FY24_Rolling Forecast Due Date
B3: Subsidiaries | E3: Forecast Period
B4: Due date | C4: BKJ/BKK/ BCHUS/BEAU | E4: 2024 | F4: 2024 | G4: 2024 | H4: 2024 | I4: 2024 | J4: 2024 | K4: 2024 | L4: 2024 | M4: 2024 | N4: 2025 | O4: 2025 | P4: 2025 | R4: "PL" | S4: "FP" | U4: Unit | W4: Ana plan
E5: Apr | F5: May | G5: Jun | H5: Jul | I5: Aug | J5: Sep | K5: Oct | L5: Nov | M5: Dec | N5: Jan | O5: Feb | P5: Mar | R5: sheet | S5: sheet | U5: another file | W5: upload
B6: 2023-06-04 | C6: 2023-06-10 | D6: → | F6: FCT* | G6: FCT | R6: ○ | W6: ○
B7: 2-Jul | C7: 2023-07-09 | D7: → | G7: FCT* | H7: FCT | I7: FCT | J7: FCT | K7: FCT | L7: FCT | M7: FCT | N7: FCT | O7: FCT | P7: FCT | R7: ○ | S7: ○ | U7: ○ | W7: ○
B8: 2023-08-02 | C8: 2023-08-09 | D8: → | H8: FCT* | I8: FCT | J8: FCT | R8: ○ | W8: ○
B9: 3-Sep (US: 4-Sep) | C9: 2023-09-09 | D9: → | I9: FCT* | J9: FCT | K9: FCT | L9: FCT | M9: FCT | N9: FCT | O9: FCT | P9: FCT | R9: ○ | W9: ○
B10: 2-Oct | C10: 2023-10-09 | D10: → | J10: FCT* | K10: FCT | L10: FCT | M10: FCT | N10: FCT | O10: FCT | P10: FCT | R10: ○ | S10: ○ | U10: ○ | W10: ○
B11: 4-Nov (JP: 5-Nov) | C11: 2023-11-11 | D11: → | K11: FCT* | L11: FCT | M11: FCT | N11: FCT | O11: FCT | P11: FCT | R11: ○ | W11: ○
B12: 2023-12-03 | C12: 2023-12-10 | D12: → | L12: FCT* | M12: FCT | N12: FCT | O12: FCT | P12: FCT | R12: ○ | W12: ○
B13: 2024-01-07 | C13: 2024-01-15 | D13: → | M13: FCT* | N13: FCT | O13: FCT | P13: FCT | R13: ○ | S13: ○ | U13: ○ | W13: ○
B14: 2024-02-04 | C14: 2024-02-10 | D14: → | N14: FCT* | O14: FCT | P14: FCT | R14: ○ | W14: ○
B15: 2024-03-04 | C15: 2024-03-10 | D15: → | O15: FCT* | P15: FCT | R15: ○ | W15: ○
E16: *BKJ/BKK/BEAU/BCHUS need to input the actual or flash values for the first month
B18: [BBR Only] FY24 Rolling Forecast Due Date
B20: Subsidiaries | E20: Forecast Period
B21: Due date | E21: =E4 -> 2024 | F21: 2024 | G21: 2024 | H21: 2024 | I21: 2024 | J21: 2024 | K21: 2024 | L21: 2024 | M21: 2024 | N21: =M21 -> 2024 | O21: =N21 -> 2024 | P21: 2024 | R21: "PL" | S21: "FP" | U21: Unit | W21: Ana plan
E22: Jan | F22: Feb | G22: Mar | H22: Apr | I22: May | J22: Jun | K22: Jul | L22: Aug | M22: Sep | N22: Oct | O22: Nov | P22: Dec | R22: sheet | S22: sheet | U22: another file | W22: upload
B23: 2023-06-02 | D23: → | F23: FCT* | G23: FCT | R23: ○ | W23: ○
B24: 2023-07-04 | D24: → | G24: FCT* | H24: FCT | I24: FCT | J24: FCT | K24: FCT | L24: FCT | M24: FCT | N24: FCT | O24: FCT | P24: FCT | R24: ○ | S24: ○ | U24: ○ | W24: ○
B25: 2023-08-02 | D25: → | H25: FCT* | I25: FCT | J25: FCT | R25: ○ | W25: ○
B26: 2023-09-04 | D26: → | I26: FCT* | J26: FCT | K26: FCT | L26: FCT | M26: FCT | N26: FCT | O26: FCT | P26: FCT | R26: ○ | W26: ○
B27: 2023-10-02 | D27: → | J27: FCT* | K27: FCT | L27: FCT | M27: FCT | N27: FCT | O27: FCT | P27: FCT | R27: ○ | S27: ○ | U27: ○ | W27: ○
B28: 2023-11-02 | D28: → | K28: FCT* | L28: FCT | M28: FCT | N28: FCT | O28: FCT | P28: FCT | R28: ○ | W28: ○
B29: 2023-12-04 | D29: → | L29: FCT* | M29: FCT | N29: FCT | O29: FCT | P29: FCT | R29: ○ | W29: ○
B30: 2024-01-05 | D30: → | M30: FCT* | N30: FCT | O30: FCT | P30: FCT | R30: ○ | S30: ○ | U30: ○ | W30: ○
B31: 2024-02-02 | D31: → | N31: FCT* | O31: FCT | P31: FCT | R31: ○ | W31: ○
B32: 2024-03-04 | D32: → | O32: FCT* | P32: FCT | R32: ○ | W32: ○

Sheet Instruction
A1: Instruction for FY24 BT Package
A3: 1. Contents | H3: Plan | I3: Actual | J3: Forecast
B4: "PL" sheet
C5: 1. P/L (1) - Overview | H5: Y | I5: Y | J5: Y
C6: 2. P/L (2) - Overview by BU | H6: Y | I6: Y | J6: Y
C7: ・・・ | H7: Y | I7: Y | J7: Y
C8: 2-3. Sales/GP Details by BU | H8: Y | I8: Y | J8: N
C9: 3. Headcount | H9: Y | I9: Y | J9: Y
C10: 4. Inventories | H10: Y | I10: Y | J10: Y
C11: 5. One Rate | H11: Y | I11: Y | J11: Y
C12: 6. Purchase | H12: Y | I12: Y | J12: Y
C13: 7. CX2 | H13: Y | I13: Y | J13: N
C14: 8. Rolling forecast only | H14: N | I14: N | J14: Y
C15: ・・・ | H15: N | I15: N | J15: Y
C16: 9. Other segments: IIS, Others | H16: Y | I16: Y | J16: Y
B17: "FP" sheet
C18: 1. Investment | H18: Y | I18: N | J18: Y
C19: 2. Financial position | H19: Y | I19: N | J19: N
C20: 3. FP related information | H20: Y | I20: N | J20: N
C21: 4. Cash Flow (Automatic Calculation) | H21: Y | I21: N | J21: N
A24: 2. Submission
B25: Uploading to Anaplan will change from FY22. The simple guide is as follows, but please refer to the separate manual for the detailed operation.
B26: ** If #1 & #2 below are unsuccessful, skip #1 & #2 and proceed to #3 **
B28: 1. Upload to Anaplan from Excel | H28: Command in "Anaplan" tab in Excel file
C29: 1-1 | D29: Open BT-Package file | H29: -
D30: Sign In to Anaplan | H30: Sign In
D31: Select your company and refresh data | H31: Refresh
C32: 1-1 | D32: Input data | H32: - | K32: Formulas are possible, but please do not refer to formulas from other excel files
C33: 1-2 | D33: Upload by Excel sheet | H33: Send and Refresh -> Submit
E34: PL sheet | F34: FP sheet
D35: Actual | E35: Upload | F35: - | G35: Once
D36: Forecast | E36: Upload | F36: Upload | G36: Twice | K36: Please note that Rolling forecast requires to upload "PL" sheet & "FP" sheet respectively!!
B38: 2. Change status in Anaplan(Web) | H38: Command in Anaplan(Web)
C39: 2-0 | D39: Logon to Anaplan | H39: URL for SSO User: [E-mail address domain is “@konicaminolta.com”]
I40: https://sdp.anaplan.com/frontdoor/saml/konicasaml | O40: *If the jump from the URL fails, enter it directly in your browser
H41: URL for Password User: [E-mail address domain other than “@konicaminolta.com”]
I42: https://us1a.app.anaplan.com/frontdoor
D44: Open the menu | H44: refer to below
E45: Anaplan menu
D46: Actual | E46: Model "BT Globan Management" ->"AC1 - Sales Company Actual Top" ->
D47: Forecast | E47: Model "BT Globan Management" ->"RF1 - Sales Company RF Top" ->
C48: 2-1 | D48: Import data from Excel Add-in | H48: Import data for Actual from Excel Add-in
C49: 2-2 | D49: Check the value in "Summary Report" | H49: -
C50: 2-3 | D50: Change status to "2. Submitted" | H50: "Status Management" Tab
D51: "0. No Entered" | F51: Before processing
D52: "1. During Input" | F52: Uploading is possible
D53: "2. Submitted" | F53: Uploading is not possible. If Changes are needed, change the status to "1. During Input"
B55: 3. Send e-mail
C56: TO: | D56: Members at your organization | H56: XXXX
D57: KMI BT Sales Company Division | H57: BT_Sales_Planning01@gcp.konicaminolta.com
D58: Persons concerned in KMI | H58: XXXX
C59: Attached file: BT-package file | K59: *Excel files are used as a backup in case of system failure. If the system operates stably and the operation is stable, they may not be attached in the future.

Sheet PL
AU1: 'OP'! | AX1: 'Previous'! | BC1: =AU1 -> 'OP'! | BF1: =AX1 -> 'Previous'! | BK1: =AU1 -> 'OP'! | BN1: =AX1 -> 'Previous'!
AT2: =VLOOKUP($AT$7,Work1!$F$6:$I$17,2,0) -> AB | AU2: =VLOOKUP($AT$7,Work1!$F$6:$I$17,3,0) -> AB | AX2: =VLOOKUP($AT$7,Work1!$F$6:$I$17,4,0) -> U | BB2: =VLOOKUP($AT$7,Work1!$K$6:$Q$17,2,0) -> Z | BC2: =VLOOKUP($AT$7,Work1!$K$6:$Q$17,3,0) -> Z | BF2: =VLOOKUP($AT$7,Work1!$K$6:$Q$17,4,0) -> S | BJ2: =VLOOKUP($AT$7,Work1!$K$6:$Q$17,5,0) -> Z | BK2: =VLOOKUP($AT$7,Work1!$K$6:$Q$17,6,0) -> Z | BN2: =VLOOKUP($AT$7,Work1!$K$6:$Q$17,7,0) -> S
AT3: =AT2 -> AB | AU3: =AU2 -> AB | AX3: =AX2 -> U | BB3: =VLOOKUP($AT$7,Work1!$K$22:$Q$33,2,0) -> AB | BC3: =VLOOKUP($AT$7,Work1!$K$22:$Q$33,3,0) -> AB | BF3: =VLOOKUP($AT$7,Work1!$K$22:$Q$33,4,0) -> U | BJ3: =VLOOKUP($AT$7,Work1!$K$22:$Q$33,5,0) -> AB | BK3: =VLOOKUP($AT$7,Work1!$K$22:$Q$33,6,0) -> AB | BN3: =VLOOKUP($AT$7,Work1!$K$22:$Q$33,7,0) -> U
A4: FY24 OP | C4: FY23 | N4: FY24 Rolling Forecast ver1.0 | W4: Company: | X4: BIN | Y4: Last Refresh: 2024/04/24 22:41:47 | Z4: (Unit:1000LC) | AT4: vs OP / vs FY23 | AX4: Please copy&paste "OP" sheet and "Previous" sheet as they are
Y5: BT Global Management
L6: MTP | M6: RF | Q6: =VLOOKUP(X4,Work1!C6:D33,2,0) -> K_INR | T6: (Unit:1000LC) | X6: Input fields | Y6: data - Forecast Pkg : Monthly | Z6: =Y4 -> Last Refresh: 2024/04/24 22:41:47 | AT6: Select period (1-12)
L7: MTP | X7: Input fields, but not affect PL | Y7: for PL FY24 Excel Input | Z7: =IF(Z12="","","Last Send and Refresh:"&TEXT(Z12," YYYY/MM/DD HH:MM:SS")) ->  | AT7: 3 | AU7: ex. Apr ->1, Feb ->2 ,,,Mar ->12 *BBR: Jan ->1, Feb ->2 ,,,Dec ->12
L8: MTP | O8: 1. P/L (1) - Overview | Y8: Sales Company - KMJ
L9: MTP | P9: 1-1. P/L Statement | Y9: Scenario : 01-1 - Mar-RF (BT-Pkg) | AT9: single month | BB9: Quarter (QTD) | BJ9: Annual Year (YTD)
Z10: =CHOOSE(2, "5453820030", "Apr 24") -> Apr 24 | AA10: =CHOOSE(2, "5454120031", "May 24") -> May 24 | AB10: =CHOOSE(2, "5454430030", "Jun 24") -> Jun 24 | AC10: =CHOOSE(2, "5454730031", "Jul 24") -> Jul 24 | AD10: =CHOOSE(2, "5455040031", "Aug 24") -> Aug 24 | AE10: =CHOOSE(2, "5455350030", "Sep 24") -> Sep 24 | AF10: =CHOOSE(2, "5455650031", "Oct 24") -> Oct 24 | AG10: =CHOOSE(2, "5455960030", "Nov 24") -> Nov 24 | AH10: =CHOOSE(2, "5456260031", "Dec 24") -> Dec 24 | AI10: =CHOOSE(2, "5456570031", "Jan 25") -> Jan 25 | AJ10: =CHOOSE(2, "5456880028", "Feb 25") -> Feb 25 | AK10: =CHOOSE(2, "5457160031", "Mar 25") -> Mar 25
L11: RF | M11: RF | Y11: =CHOOSE(2, "6773000004355", "1. P/L (1) - Overview") -> 1. P/L (1) - Overview | Z11: =NOW() -> 2024-10-03T19:37:41.150
L12: RF | M12: RF | Y12: =CHOOSE(2, "6773000004354", "1-1. P/L Statement") -> 1-1. P/L Statement
E13: 1 | F13: 1 | G13: 1 | H13: 1 | I13: 1 | J13: 1 | K13: 1 | L13: MTP | M13: RF | Y13: =CHOOSE(2, "6773000004353", "▷ Blank 0") -> ▷ Blank 0 | Z13: =IF($X$4="BBR",Work1!D2, Work1!D3) -> 2023-04-01 | AA13: =DATE(YEAR(Z13),MONTH(Z13)+1,DAY(Z13)) -> 2023-05-01 | AB13: =DATE(YEAR(AA13),MONTH(AA13)+1,DAY(AA13)) -> 2023-06-01 | AC13: 2023-07-01 | AD13: 2023-08-01 | AE13: 2023-09-01 | AF13: 2023-10-01 | AG13: 2023-11-01 | AH13: =DATE(YEAR(AG13),MONTH(AG13)+1,DAY(AG13)) -> 2023-12-01 | AI13: 2024-01-01 | AJ13: 2024-02-01 | AK13: =DATE(YEAR(AJ13),MONTH(AJ13)+1,DAY(AJ13)) -> 2024-03-01 | AL13: Q1 | AM13: Q2 | AN13: Q3 | AO13: Q4 | AP13: 1st H | AQ13: 2nd H | AR13: Year | AT13: Result | AU13: OP | AV13: vs OP | AW13: % | AX13: FY23 | AY13: vs FY23 | AZ13: % | BB13: Result | BC13: OP | BD13: vs OP | BE13: % | BF13: FY23 | BG13: vs FY23 | BH13: % | BJ13: Result | BK13: OP | BL13: vs OP | BM13: % | BN13: FY23 | BO13: vs FY23 | BP13: %
A14: 14 | B14: 1 | C14: 14 | D14: 1 | E14: 1 | F14: 1 | G14: 1 | H14: 1 | I14: 1 | J14: 1 | K14: 1 | L14: MTP | M14: RF | Q14: Net Sales | Y14: =CHOOSE(2, "6773000004352", "PL Statement Net Sales") -> PL Statement Net Sales | Z14: =Z80+Z393+Z161+Z219+Z328 -> 1136727.611 | AA14: =AA80+AA393+AA161+AA219+AA328 -> 966087.2323 | AB14: 949522.4064 | AC14: =AC80+AC393+AC161+AC219+AC328 -> 962618.8965 | AD14: =AD80+AD393+AD161+AD219+AD328 -> 993102.7139 | AE14: 1205164.63 | AF14: 966915.5028 | AG14: 952166.802 | AH14: 1062536.703 | AI14: 1045400.808 | AJ14: 1050174.952 | AK14: 1066039.461 | AL14: =SUM(Z14,AA14,AB14) -> 3052337.249 | AM14: =SUM(AC14,AD14,AE14) -> 3160886.24 | AN14: =SUM(AF14,AG14,AH14) -> 2981619.008 | AO14: =SUM(AI14,AJ14,AK14) -> 3161615.221 | AP14: =AL14+AM14 -> 6213223.49 | AQ14: =AO14+AN14 -> 6143234.229 | AR14: =AP14+AQ14 -> 12356457.72 | AT14: =SUM((INDIRECT(AT$2&(ROW())):INDIRECT(AT$3&(ROW())))) -> 949522.4064 | AU14: =SUM(INDIRECT(AU$1&AU$2&$A14):INDIRECT(AU$1&AU$3&$A14)) -> 1080671.543 | AV14: =AT14-AU14 -> -131149.1363 | AW14: =IFERROR(AT14/AU14,0) -> 0.8786410754 | AX14: =SUM(INDIRECT(AX$1&AX$2&$C14):INDIRECT(AX$1&AX$3&$C14))+SUM(INDIRECT(AX$1&AX$2&$D14):INDIRECT(AX$1&AX$3&$D14)) -> 906113.294 | AY14: =AT14-AX14 -> 43409.11245 | AZ14: =IFERROR(AT14/AX14,0) -> 1.047906937 | BB14: =SUM((INDIRECT(BB$2&(ROW())):INDIRECT(BB$3&(ROW())))) -> 3052337.249 | BC14: =SUM(INDIRECT(BC$1&BC$2&$A14):INDIRECT(BC$1&BC$3&$A14)) -> 3237706.97 | BD14: =BB14-BC14 -> -185369.7207 | BE14: =IFERROR(BB14/BC14,0) -> 0.9427466036 | BF14: =SUM(INDIRECT(BF$1&BF$2&$C14):INDIRECT(BF$1&BF$3&$C14))+SUM(INDIRECT(BF$1&BF$2&$D14):INDIRECT(BF$1&BF$3&$D14)) -> 3011914.756 | BG14: =BB14-BF14 -> 40422.49312 | BH14: =IFERROR(BB14/BF14,0) -> 1.013420862 | BJ14: =SUM((INDIRECT(BJ$2&(ROW())):INDIRECT(BJ$3&(ROW())))) -> 3052337.249 | BK14: =SUM(INDIRECT(BK$1&BK$2&$A14):INDIRECT(BK$1&BK$3&$A14)) -> 3237706.97 | BL14: =BJ14-BK14 -> -185369.7207 | BM14: =IFERROR(BJ14/BK14,0) -> 0.9427466036 | BN14: =SUM(INDIRECT(BN$1&BN$2&$C14):INDIRECT(BN$1&BN$3&$C14))+SUM(INDIRECT(BN$1&BN$2&$D14):INDIRECT(BN$1&BN$3&$D14)) -> 3011914.756 | BO14: =BJ14-BN14 -> 40422.49312 | BP14: =IFERROR(BJ14/BN14,0) -> 1.013420862
A15: =A14+1 -> 15 | B15: 1 | C15: =C14+1 -> 15 | D15: 1 | E15: 1 | F15: 1 | G15: 1 | H15: 1 | I15: 1 | J15: 1 | K15: 1 | L15: MTP | M15: RF | Q15: BT Consolidated Sales | Y15: =CHOOSE(2, "6773000004351", "PL Statement BT Cons. Sales") -> PL Statement BT Cons. Sales | Z15: =Z81+Z403+Z166+Z234+Z338 -> 1136727.611 | AA15: =AA81+AA403+AA166+AA234+AA338 -> 966087.2323 | AB15: 949522.4064 | AC15: =AC81+AC403+AC166+AC234+AC338 -> 962618.8965 | AD15: =AD81+AD403+AD166+AD234+AD338 -> 993102.7139 | AE15: 1205164.63 | AF15: 966915.5028 | AG15: 952166.802 | AH15: 1062536.703 | AI15: 1045400.808 | AJ15: 1050174.952 | AK15: 1066039.461 | AL15: =SUM(Z15,AA15,AB15) -> 3052337.249 | AM15: =SUM(AC15,AD15,AE15) -> 3160886.24 | AN15: =SUM(AF15,AG15,AH15) -> 2981619.008 | AO15: =SUM(AI15,AJ15,AK15) -> 3161615.221 | AP15: =AL15+AM15 -> 6213223.49 | AQ15: =AO15+AN15 -> 6143234.229 | AR15: =AP15+AQ15 -> 12356457.72 | AT15: =SUM((INDIRECT(AT$2&(ROW())):INDIRECT(AT$3&(ROW())))) -> 949522.4064 | AU15: =SUM(INDIRECT(AU$1&AU$2&$A15):INDIRECT(AU$1&AU$3&$A15)) -> 1080671.543 | AV15: =AT15-AU15 -> -131149.1363 | AW15: =IFERROR(AT15/AU15,0) -> 0.8786410754 | AX15: =SUM(INDIRECT(AX$1&AX$2&$C15):INDIRECT(AX$1&AX$3&$C15))+SUM(INDIRECT(AX$1&AX$2&$D15):INDIRECT(AX$1&AX$3&$D15)) -> 906113.294 | AY15: 43409.11245 | AZ15: =IFERROR(AT15/AX15,0) -> 1.047906937 | BB15: =SUM((INDIRECT(BB$2&(ROW())):INDIRECT(BB$3&(ROW())))) -> 3052337.249 | BC15: =SUM(INDIRECT(BC$1&BC$2&$A15):INDIRECT(BC$1&BC$3&$A15)) -> 3237706.97 | BD15: =BB15-BC15 -> -185369.7207 | BE15: =IFERROR(BB15/BC15,0) -> 0.9427466036 | BF15: =SUM(INDIRECT(BF$1&BF$2&$C15):INDIRECT(BF$1&BF$3&$C15))+SUM(INDIRECT(BF$1&BF$2&$D15):INDIRECT(BF$1&BF$3&$D15)) -> 3011915.438 | BG15: 40421.81112 | BH15: =IFERROR(BB15/BF15,0) -> 1.013420633 | BJ15: =SUM((INDIRECT(BJ$2&(ROW())):INDIRECT(BJ$3&(ROW())))) -> 3052337.249 | BK15: =SUM(INDIRECT(BK$1&BK$2&$A15):INDIRECT(BK$1&BK$3&$A15)) -> 3237706.97 | BL15: =BJ15-BK15 -> -185369.7207 | BM15: =IFERROR(BJ15/BK15,0) -> 0.9427466036 | BN15: =SUM(INDIRECT(BN$1&BN$2&$C15):INDIRECT(BN$1&BN$3&$C15))+SUM(INDIRECT(BN$1&BN$2&$D15):INDIRECT(BN$1&BN$3&$D15)) -> 3011915.438 | BO15: 40421.81112 | BP15: =IFERROR(BJ15/BN15,0) -> 1.013420633
A16: 16 | B16: 1 | C16: =C15+1 -> 16 | D16: 1 | E16: 1 | F16: 1 | G16: 1 | H16: 1 | I16: 1 | J16: 1 | K16: 1 | L16: MTP | M16: RF | Q16: Cost of Sales | Y16: =CHOOSE(2, "6773000004350", "PL Statement Cost of Sales") -> PL Statement Cost of Sales | Z16: =Z14-Z17 -> 717303.1043 | AA16: =AA14-AA17 -> 665252.7784 | AB16: =AB14-AB17 -> 648222.3921 | AC16: 658676.9806 | AD16: =AD14-AD17 -> 643269.6608 | AE16: 754637.21 | AF16: 668805.4228 | AG16: 664473.579 | AH16: 746470.1584 | AI16: 749466.7676 | AJ16: 763118.4584 | AK16: 774180.6419 | AL16: =SUM(Z16,AA16,AB16) -> 2030778.275 | AM16: =SUM(AC16,AD16,AE16) -> 2056583.851 | AN16: =SUM(AF16,AG16,AH16) -> 2079749.16 | AO16: =SUM(AI16,AJ16,AK16) -> 2286765.868 | AP16: =AL16+AM16 -> 4087362.126 | AQ16: =AO16+AN16 -> 4366515.028 | AR16: =AP16+AQ16 -> 8453877.154 | AT16: =SUM((INDIRECT(AT$2&(ROW())):INDIRECT(AT$3&(ROW())))) -> 648222.3921 | AU16: =SUM(INDIRECT(AU$1&AU$2&$A16):INDIRECT(AU$1&AU$3&$A16)) -> 770117.3038 | AV16: -121894.9116 | AW16: 0.8417190329 | AX16: =SUM(INDIRECT(AX$1&AX$2&$C16):INDIRECT(AX$1&AX$3&$C16))+SUM(INDIRECT(AX$1&AX$2&$D16):INDIRECT(AX$1&AX$3&$D16)) -> 622030.6851 | AY16: 26191.70701 | AZ16: =IFERROR(AT16/AX16,0) -> 1.042106776 | BB16: =SUM((INDIRECT(BB$2&(ROW())):INDIRECT(BB$3&(ROW())))) -> 2030778.275 | BC16: =SUM(INDIRECT(BC$1&BC$2&$A16):INDIRECT(BC$1&BC$3&$A16)) -> 2253807.551 | BD16: -223029.2767 | BE16: =IFERROR(BB16/BC16,0) -> 0.901043336 | BF16: =SUM(INDIRECT(BF$1&BF$2&$C16):INDIRECT(BF$1&BF$3&$C16))+SUM(INDIRECT(BF$1&BF$2&$D16):INDIRECT(BF$1&BF$3&$D16)) -> 2011803.365 | BG16: 18974.91025 | BH16: =IFERROR(BB16/BF16,0) -> 1.009431792 | BJ16: =SUM((INDIRECT(BJ$2&(ROW())):INDIRECT(BJ$3&(ROW())))) -> 2030778.275 | BK16: =SUM(INDIRECT(BK$1&BK$2&$A16):INDIRECT(BK$1&BK$3&$A16)) -> 2253807.551 | BL16: -223029.2767 | BM16: =IFERROR(BJ16/BK16,0) -> 0.901043336 | BN16: =SUM(INDIRECT(BN$1&BN$2&$C16):INDIRECT(BN$1&BN$3&$C16))+SUM(INDIRECT(BN$1&BN$2&$D16):INDIRECT(BN$1&BN$3&$D16)) -> 2011803.365 | BO16: 18974.91025 | BP16: =IFERROR(BJ16/BN16,0) -> 1.009431792
A17: 17 | B17: 1 | C17: 17 | D17: 1 | E17: 1 | F17: 1 | G17: 1 | H17: 1 | I17: 1 | J17: 1 | K17: 1 | L17: MTP | M17: RF | Q17: Gross Profit | Y17: =CHOOSE(2, "6773000004349", "PL Statement Gross Profit") -> PL Statement Gross Profit | Z17: =Z82+Z413+Z185+Z274+Z348 -> 419424.5064 | AA17: =AA82+AA413+AA185+AA274+AA348 -> 300834.4539 | AB17: 301300.0143 | AC17: =AC82+AC413+AC185+AC274+AC348 -> 303941.9159 | AD17: =AD82+AD413+AD185+AD274+AD348 -> 349833.053 | AE17: 450527.42 | AF17: 298110.0799 | AG17: 287693.223 | AH17: 316066.5446 | AI17: 295934.0404 | AJ17: 287056.4934 | AK17: 291858.8192 | AL17: =SUM(Z17,AA17,AB17) -> 1021558.975 | AM17: =SUM(AC17,AD17,AE17) -> 1104302.389 | AN17: =SUM(AF17,AG17,AH17) -> 901869.8476 | AO17: =SUM(AI17,AJ17,AK17) -> 874849.353 | AP17: =AL17+AM17 -> 2125861.363 | AQ17: =AO17+AN17 -> 1776719.201 | AR17: =AP17+AQ17 -> 3902580.564 | AT17: =SUM((INDIRECT(AT$2&(ROW())):INDIRECT(AT$3&(ROW())))) -> 301300.0143 | AU17: =SUM(INDIRECT(AU$1&AU$2&$A17):INDIRECT(AU$1&AU$3&$A17)) -> 310554.2389 | AV17: -9254.224663 | AW17: 0.9702009392 | AX17: =SUM(INDIRECT(AX$1&AX$2&$C17):INDIRECT(AX$1&AX$3&$C17))+SUM(INDIRECT(AX$1&AX$2&$D17):INDIRECT(AX$1&AX$3&$D17)) -> 284082.6088 | AY17: 17217.40544 | AZ17: =IFERROR(AT17/AX17,0) -> 1.060607038 | BB17: =SUM((INDIRECT(BB$2&(ROW())):INDIRECT(BB$3&(ROW())))) -> 1021558.975 | BC17: =SUM(INDIRECT(BC$1&BC$2&$A17):INDIRECT(BC$1&BC$3&$A17)) -> 983899.4186 | BD17: 37659.55593 | BE17: =IFERROR(BB17/BC17,0) -> 1.038275819 | BF17: =SUM(INDIRECT(BF$1&BF$2&$C17):INDIRECT(BF$1&BF$3&$C17))+SUM(INDIRECT(BF$1&BF$2&$D17):INDIRECT(BF$1&BF$3&$D17)) -> 1000111.392 | BG17: 21447.58287 | BH17: =IFERROR(BB17/BF17,0) -> 1.021445194 | BJ17: =SUM((INDIRECT(BJ$2&(ROW())):INDIRECT(BJ$3&(ROW())))) -> 1021558.975 | BK17: =SUM(INDIRECT(BK$1&BK$2&$A17):INDIRECT(BK$1&BK$3&$A17)) -> 983899.4186 | BL17: 37659.55593 | BM17: =IFERROR(BJ17/BK17,0) -> 1.038275819 | BN17: =SUM(INDIRECT(BN$1&BN$2&$C17):INDIRECT(BN$1&BN$3&$C17))+SUM(INDIRECT(BN$1&BN$2&$D17):INDIRECT(BN$1&BN$3&$D17)) -> 1000111.392 | BO17: 21447.58287 | BP17: =IFERROR(BJ17/BN17,0) -> 1.021445194
A18: 18 | B18: 1 | C18: 18 | D18: 1 | E18: 1 | F18: 1 | G18: 1 | H18: 1 | I18: 1 | J18: 1 | K18: 1 | L18: MTP | M18: RF | X18: (%) | Y18: =CHOOSE(2, "6773000004348", "PL Statement Gross Profit (%)") -> PL Statement Gross Profit (%) | Z18: =IFERROR(Z17/Z14,0) -> 0.3689753838 | AA18: =IFERROR(AA17/AA14,0) -> 0.3113947103 | AB18: =IFERROR(AB17/AB14,0) -> 0.3173174348 | AC18: 0.3157448051 | AD18: =IFERROR(AD17/AD14,0) -> 0.3522627097 | AE18: 0.3738306027 | AF18: 0.3083103736 | AG18: 0.3021458241 | AH18: 0.2974641193 | AI18: 0.2830818937 | AJ18: 0.2733415922 | AK18: 0.2737786262 | AL18: =IFERROR(AL17/AL14,0) -> 0.334680899 | AM18: 0.3493647999 | AN18: 0.3024765556 | AO18: 0.2767096221 | AP18: 0.342151118 | AQ18: 0.2892156044 | AR18: 0.3158332795 | AT18: =IFERROR(AT17/AT14,0) -> 0.3173174348 | AU18: =IFERROR(AU17/AU14,0) -> 0.287371534 | AV18: 0.02994590082 | AX18: =IFERROR(AX17/AX14,0) -> 0.3135177585 | AY18: 0.003799676328 | BB18: =IFERROR(BB17/BB14,0) -> 0.334680899 | BC18: =IFERROR(BC17/BC14,0) -> 0.3038877291 | BD18: 0.03079316986 | BF18: =IFERROR(BF17/BF14,0) -> 0.3320516922 | BG18: 0.002629206726 | BJ18: =IFERROR(BJ17/BJ14,0) -> 0.334680899 | BK18: =IFERROR(BK17/BK14,0) -> 0.3038877291 | BL18: 0.03079316986 | BN18: =IFERROR(BN17/BN14,0) -> 0.3320516922 | BO18: 0.002629206726
A19: 19 | B19: 1 | C19: 19 | D19: 1 | E19: 1 | F19: 1 | G19: 1 | H19: 1 | I19: 1 | J19: 1 | K19: 1 | L19: MTP | M19: RF | Q19: SGA Expenses | Y19: =CHOOSE(2, "6773000004347", "PL Statement SGA") -> PL Statement SGA | Z19: =Z21+Z22+Z23 -> 269306.36 | AA19: =AA21+AA22+AA23 -> 215697.2772 | AB19: =AB21+AB22+AB23 -> 186048.366 | AC19: 217937.5092 | AD19: =AD21+AD22+AD23 -> 225396.9449 | AE19: 231480.9983 | AF19: 225976.2732 | AG19: 226996.6314 | AH19: 244040.9697 | AI19: 236783.1838 | AJ19: 236561.5319 | AK19: 248165.0736 | AL19: =SUM(Z19,AA19,AB19) -> 671052.0032 | AM19: =SUM(AC19,AD19,AE19) -> 674815.4524 | AN19: =SUM(AF19,AG19,AH19) -> 697013.8743 | AO19: =SUM(AI19,AJ19,AK19) -> 721509.7892 | AP19: =AL19+AM19 -> 1345867.456 | AQ19: =AO19+AN19 -> 1418523.664 | AR19: =AP19+AQ19 -> 2764391.119 | AT19: =SUM((INDIRECT(AT$2&(ROW())):INDIRECT(AT$3&(ROW())))) -> 186048.366 | AU19: =SUM(INDIRECT(AU$1&AU$2&$A19):INDIRECT(AU$1&AU$3&$A19)) -> 218408.239 | AV19: -32359.87298 | AW19: 0.8518376727 | AX19: =SUM(INDIRECT(AX$1&AX$2&$C19):INDIRECT(AX$1&AX$3&$C19))+SUM(INDIRECT(AX$1&AX$2&$D19):INDIRECT(AX$1&AX$3&$D19)) -> 197639.74 | AY19: -11591.374 | AZ19: =IFERROR(AT19/AX19,0) -> 0.9413509955 | BB19: =SUM((INDIRECT(BB$2&(ROW())):INDIRECT(BB$3&(ROW())))) -> 671052.0032 | BC19: =SUM(INDIRECT(BC$1&BC$2&$A19):INDIRECT(BC$1&BC$3&$A19)) -> 652014.491 | BD19: 19037.51217 | BE19: =IFERROR(BB19/BC19,0) -> 1.029197989 | BF19: =SUM(INDIRECT(BF$1&BF$2&$C19):INDIRECT(BF$1&BF$3&$C19))+SUM(INDIRECT(BF$1&BF$2&$D19):INDIRECT(BF$1&BF$3&$D19)) -> 684920.7491 | BG19: -13868.7459 | BH19: =IFERROR(BB19/BF19,0) -> 0.979751313 | BJ19: =SUM((INDIRECT(BJ$2&(ROW())):INDIRECT(BJ$3&(ROW())))) -> 671052.0032 | BK19: =SUM(INDIRECT(BK$1&BK$2&$A19):INDIRECT(BK$1&BK$3&$A19)) -> 652014.491 | BL19: 19037.51217 | BM19: =IFERROR(BJ19/BK19,0) -> 1.029197989 | BN19: =SUM(INDIRECT(BN$1&BN$2&$C19):INDIRECT(BN$1&BN$3&$C19))+SUM(INDIRECT(BN$1&BN$2&$D19):INDIRECT(BN$1&BN$3&$D19)) -> 684920.7491 | BO19: -13868.7459 | BP19: =IFERROR(BJ19/BN19,0) -> 0.979751313
A20: 20 | B20: 1 | C20: 20 | D20: 1 | E20: 1 | F20: 1 | G20: 1 | H20: 1 | I20: 1 | J20: 1 | K20: 1 | L20: MTP | M20: RF | X20: (%) | Y20: =CHOOSE(2, "6773000004346", "PL Statement SGA (%)") -> PL Statement SGA (%) | Z20: =IFERROR(Z19/Z14,0) -> 0.236913714 | AA20: =IFERROR(AA19/AA14,0) -> 0.223268945 | AB20: =IFERROR(AB19/AB14,0) -> 0.1959388896 | AC20: 0.226400614 | AD20: =IFERROR(AD19/AD14,0) -> 0.2269623693 | AE20: 0.1920741719 | AF20: 0.2337083981 | AG20: 0.2384000691 | AH20: 0.2296776846 | AI20: 0.2264999051 | AJ20: 0.2252591641 | AK20: 0.2327916392 | AL20: =IFERROR(AL19/AL14,0) -> 0.2198485778 | AM20: 0.2134893195 | AN20: 0.2337702679 | AO20: 0.2282092345 | AP20: 0.2166133985 | AQ20: 0.2309082823 | AR20: 0.223720356 | AT20: =INDIRECT(AT$2&ROW()) -> 0.1959388896 | AU20: =IFERROR(AU19/AU14,0) -> 0.2021041828 | AV20: -0.006165293134 | AX20: =IFERROR(AX19/AX14,0) -> 0.218118133 | AY20: -0.0221792434 | BB20: =INDIRECT(BB$2&ROW()) -> 0.236913714 | BC20: =IFERROR(BC19/BC14,0) -> 0.2013815633 | BD20: 0.03553215074 | BF20: =IFERROR(BF19/BF14,0) -> 0.2274037629 | BG20: 0.009509951103 | BJ20: =INDIRECT(BJ$2&ROW()) -> 0.236913714 | BK20: =IFERROR(BK19/BK14,0) -> 0.2013815633 | BL20: 0.03553215074 | BN20: =IFERROR(BN19/BN14,0) -> 0.2274037629 | BO20: 0.009509951103
A21: 21 | B21: 1 | C21: 21 | D21: 1 | E21: 1 | F21: 1 | G21: 1 | H21: 1 | I21: 1 | J21: 1 | K21: 1 | L21: MTP | M21: RF | R21: Variable Expenses | Y21: =CHOOSE(2, "6773000004345", "PL Statement SGA Variable Expenses") -> PL Statement SGA Variable Expenses | Z21: =Z84+Z196+Z305+Z370+Z434 -> 82368.743 | AA21: =AA84+AA196+AA305+AA370+AA434 -> 64222.69465 | AB21: 73890.55974 | AC21: =AC84+AC196+AC305+AC370+AC434 -> 73556.05722 | AD21: =AD84+AD196+AD305+AD370+AD434 -> 74930.6983 | AE21: 88915.07617 | AF21: 86973.16486 | AG21: 86930.88632 | AH21: 102507.7856 | AI21: 95099.64146 | AJ21: 95028.46189 | AK21: 97007.70389 | AL21: =SUM(Z21,AA21,AB21) -> 220481.9974 | AM21: =SUM(AC21,AD21,AE21) -> 237401.8317 | AN21: =SUM(AF21,AG21,AH21) -> 276411.8368 | AO21: =SUM(AI21,AJ21,AK21) -> 287135.8072 | AP21: =AL21+AM21 -> 457883.8291 | AQ21: =AO21+AN21 -> 563547.644 | AR21: =AP21+AQ21 -> 1021431.473 | AT21: =SUM((INDIRECT(AT$2&(ROW())):INDIRECT(AT$3&(ROW())))) -> 73890.55974 | AU21: =SUM(INDIRECT(AU$1&AU$2&$A21):INDIRECT(AU$1&AU$3&$A21)) -> 79954.92904 | AV21: -6064.369298 | AW21: 0.9241526524 | AX21: =SUM(INDIRECT(AX$1&AX$2&$C21):INDIRECT(AX$1&AX$3&$C21))+SUM(INDIRECT(AX$1&AX$2&$D21):INDIRECT(AX$1&AX$3&$D21)) -> 111747.6271 | AY21: -37857.06738 | AZ21: =IFERROR(AT21/AX21,0) -> 0.6612271029 | BB21: =SUM((INDIRECT(BB$2&(ROW())):INDIRECT(BB$3&(ROW())))) -> 220481.9974 | BC21: =SUM(INDIRECT(BC$1&BC$2&$A21):INDIRECT(BC$1&BC$3&$A21)) -> 235905.1422 | BD21: -15423.1448 | BE21: =IFERROR(BB21/BC21,0) -> 0.9346214132 | BF21: =SUM(INDIRECT(BF$1&BF$2&$C21):INDIRECT(BF$1&BF$3&$C21))+SUM(INDIRECT(BF$1&BF$2&$D21):INDIRECT(BF$1&BF$3&$D21)) -> 257349.9128 | BG21: -36867.91545 | BH21: =IFERROR(BB21/BF21,0) -> 0.8567401285 | BJ21: =SUM((INDIRECT(BJ$2&(ROW())):INDIRECT(BJ$3&(ROW())))) -> 220481.9974 | BK21: =SUM(INDIRECT(BK$1&BK$2&$A21):INDIRECT(BK$1&BK$3&$A21)) -> 235905.1422 | BL21: -15423.1448 | BM21: =IFERROR(BJ21/BK21,0) -> 0.9346214132 | BN21: =SUM(INDIRECT(BN$1&BN$2&$C21):INDIRECT(BN$1&BN$3&$C21))+SUM(INDIRECT(BN$1&BN$2&$D21):INDIRECT(BN$1&BN$3&$D21)) -> 257349.9128 | BO21: -36867.91545 | BP21: =IFERROR(BJ21/BN21,0) -> 0.8567401285
A22: 22 | B22: 1 | C22: 22 | D22: 1 | E22: 1 | F22: 1 | G22: 1 | H22: 1 | I22: 1 | J22: 1 | K22: 1 | L22: MTP | M22: RF | R22: Wages & Salaries | Y22: =CHOOSE(2, "6773000004344", "PL Statement SGA Wages & Salaries") -> PL Statement SGA Wages & Salaries | Z22: 76021.69775 | AA22: =AA85+AA197+AA306+AA371+AA435 -> 78904.16416 | AB22: 69685.40347 | AC22: =AC85+AC197+AC306+AC371+AC435 -> 65138.99954 | AD22: =AD85+AD197+AD306+AD371+AD435 -> 71251.39862 | AE22: 75930.06606 | AF22: 75459.47696 | AG22: 75038.62764 | AH22: 75350.04379 | AI22: 75405.81763 | AJ22: 75172.01194 | AK22: 75216.31165 | AL22: =SUM(Z22,AA22,AB22) -> 224611.2654 | AM22: =SUM(AC22,AD22,AE22) -> 212320.4642 | AN22: =SUM(AF22,AG22,AH22) -> 225848.1484 | AO22: =SUM(AI22,AJ22,AK22) -> 225794.1412 | AP22: =AL22+AM22 -> 436931.7296 | AQ22: =AO22+AN22 -> 451642.2896 | AR22: =AP22+AQ22 -> 888574.0192 | AT22: =SUM((INDIRECT(AT$2&(ROW())):INDIRECT(AT$3&(ROW())))) -> 69685.40347 | AU22: =SUM(INDIRECT(AU$1&AU$2&$A22):INDIRECT(AU$1&AU$3&$A22)) -> 76202.20051 | AV22: -6516.797041 | AW22: 0.9144801988 | AX22: =SUM(INDIRECT(AX$1&AX$2&$C22):INDIRECT(AX$1&AX$3&$C22))+SUM(INDIRECT(AX$1&AX$2&$D22):INDIRECT(AX$1&AX$3&$D22)) -> 70105.612 | AY22: -420.2085253 | AZ22: =IFERROR(AT22/AX22,0) -> 0.9940060644 | BB22: =SUM((INDIRECT(BB$2&(ROW())):INDIRECT(BB$3&(ROW())))) -> 224611.2654 | BC22: =SUM(INDIRECT(BC$1&BC$2&$A22):INDIRECT(BC$1&BC$3&$A22)) -> 228474.2615 | BD22: -3862.996168 | BE22: =IFERROR(BB22/BC22,0) -> 0.9830922042 | BF22: =SUM(INDIRECT(BF$1&BF$2&$C22):INDIRECT(BF$1&BF$3&$C22))+SUM(INDIRECT(BF$1&BF$2&$D22):INDIRECT(BF$1&BF$3&$D22)) -> 203804.9365 | BG22: 20806.32883 | BH22: =IFERROR(BB22/BF22,0) -> 1.102089425 | BJ22: =SUM((INDIRECT(BJ$2&(ROW())):INDIRECT(BJ$3&(ROW())))) -> 224611.2654 | BK22: =SUM(INDIRECT(BK$1&BK$2&$A22):INDIRECT(BK$1&BK$3&$A22)) -> 228474.2615 | BL22: -3862.996168 | BM22: =IFERROR(BJ22/BK22,0) -> 0.9830922042 | BN22: =SUM(INDIRECT(BN$1&BN$2&$C22):INDIRECT(BN$1&BN$3&$C22))+SUM(INDIRECT(BN$1&BN$2&$D22):INDIRECT(BN$1&BN$3&$D22)) -> 203804.9365 | BO22: 20806.32883 | BP22: =IFERROR(BJ22/BN22,0) -> 1.102089425
A23: 23 | B23: 1 | C23: 23 | D23: 1 | E23: 1 | F23: 1 | G23: 1 | H23: 1 | I23: 1 | J23: 1 | K23: 1 | L23: MTP | M23: RF | R23: Fixed Expenses | Y23: =CHOOSE(2, "6773000004343", "PL Statement SGA Fixed Expenses") -> PL Statement SGA Fixed Expenses | Z23: 110915.9193 | AA23: =AA86+AA198+AA307+AA372+AA436 -> 72570.41837 | AB23: 42472.40277 | AC23: =AC86+AC198+AC307+AC372+AC436 -> 79242.45243 | AD23: =AD86+AD198+AD307+AD372+AD436 -> 79214.848 | AE23: 66635.85605 | AF23: 63543.63139 | AG23: 65027.11743 | AH23: 66183.14031 | AI23: 66277.72469 | AJ23: 66361.05802 | AK23: 75941.05802 | AL23: =SUM(Z23,AA23,AB23) -> 225958.7404 | AM23: =SUM(AC23,AD23,AE23) -> 225093.1565 | AN23: =SUM(AF23,AG23,AH23) -> 194753.8891 | AO23: =SUM(AI23,AJ23,AK23) -> 208579.8407 | AP23: =AL23+AM23 -> 451051.8969 | AQ23: =AO23+AN23 -> 403333.7299 | AR23: =AP23+AQ23 -> 854385.6268 | AT23: =SUM((INDIRECT(AT$2&(ROW())):INDIRECT(AT$3&(ROW())))) -> 42472.40277 | AU23: =SUM(INDIRECT(AU$1&AU$2&$A23):INDIRECT(AU$1&AU$3&$A23)) -> 62251.10941 | AV23: -19778.70664 | AW23: 0.6822754353 | AX23: =SUM(INDIRECT(AX$1&AX$2&$C23):INDIRECT(AX$1&AX$3&$C23))+SUM(INDIRECT(AX$1&AX$2&$D23):INDIRECT(AX$1&AX$3&$D23)) -> 15786.50086 | AY23: 26685.90191 | AZ23: =IFERROR(AT23/AX23,0) -> 2.690425392 | BB23: =SUM((INDIRECT(BB$2&(ROW())):INDIRECT(BB$3&(ROW())))) -> 225958.7404 | BC23: =SUM(INDIRECT(BC$1&BC$2&$A23):INDIRECT(BC$1&BC$3&$A23)) -> 187635.0873 | BD23: 38323.65315 | BE23: =IFERROR(BB23/BC23,0) -> 1.204245665 | BF23: =SUM(INDIRECT(BF$1&BF$2&$C23):INDIRECT(BF$1&BF$3&$C23))+SUM(INDIRECT(BF$1&BF$2&$D23):INDIRECT(BF$1&BF$3&$D23)) -> 223765.8997 | BG23: 2192.840716 | BH23: =IFERROR(BB23/BF23,0) -> 1.009799709 | BJ23: =SUM((INDIRECT(BJ$2&(ROW())):INDIRECT(BJ$3&(ROW())))) -> 225958.7404 | BK23: =SUM(INDIRECT(BK$1&BK$2&$A23):INDIRECT(BK$1&BK$3&$A23)) -> 187635.0873 | BL23: 38323.65315 | BM23: =IFERROR(BJ23/BK23,0) -> 1.204245665 | BN23: =SUM(INDIRECT(BN$1&BN$2&$C23):INDIRECT(BN$1&BN$3&$C23))+SUM(INDIRECT(BN$1&BN$2&$D23):INDIRECT(BN$1&BN$3&$D23)) -> 223765.8997 | BO23: 2192.840716 | BP23: =IFERROR(BJ23/BN23,0) -> 1.009799709
A24: 24 | B24: 1 | C24: 24 | D24: 1 | E24: 1 | F24: 1 | G24: 1 | H24: 1 | I24: 1 | J24: 1 | K24: 1 | L24: MTP | M24: RF | Q24: Business Contribution Profit 2 | Y24: =CHOOSE(2, "6773000004342", "PL Statement BCP") -> PL Statement BCP | Z24: =Z17-Z19 -> 150118.1463 | AA24: =AA17-AA19 -> 85137.1767 | AB24: =AB17-AB19 -> 115251.6483 | AC24: 86004.40672 | AD24: =AD17-AD19 -> 124436.1081 | AE24: 219046.4217 | AF24: 72133.80673 | AG24: 60696.59165 | AH24: 72025.57491 | AI24: 59150.85661 | AJ24: 50494.96159 | AK24: 43693.74561 | AL24: =SUM(Z24,AA24,AB24) -> 350506.9713 | AM24: =SUM(AC24,AD24,AE24) -> 429486.9365 | AN24: =SUM(AF24,AG24,AH24) -> 204855.9733 | AO24: =SUM(AI24,AJ24,AK24) -> 153339.5638 | AP24: =AL24+AM24 -> 779993.9079 | AQ24: =AO24+AN24 -> 358195.5371 | AR24: =AP24+AQ24 -> 1138189.445 | AT24: =SUM((INDIRECT(AT$2&(ROW())):INDIRECT(AT$3&(ROW())))) -> 115251.6483 | AU24: =SUM(INDIRECT(AU$1&AU$2&$A24):INDIRECT(AU$1&AU$3&$A24)) -> 92145.99998 | AV24: 23105.64832 | AW24: 1.250750421 | AX24: =SUM(INDIRECT(AX$1&AX$2&$C24):INDIRECT(AX$1&AX$3&$C24))+SUM(INDIRECT(AX$1&AX$2&$D24):INDIRECT(AX$1&AX$3&$D24)) -> 86442.86885 | AY24: 28808.77944 | AZ24: =IFERROR(AT24/AX24,0) -> 1.33326959 | BB24: =SUM((INDIRECT(BB$2&(ROW())):INDIRECT(BB$3&(ROW())))) -> 350506.9713 | BC24: =SUM(INDIRECT(BC$1&BC$2&$A24):INDIRECT(BC$1&BC$3&$A24)) -> 331884.9276 | BD24: 18622.04376 | BE24: =IFERROR(BB24/BC24,0) -> 1.056109941 | BF24: =SUM(INDIRECT(BF$1&BF$2&$C24):INDIRECT(BF$1&BF$3&$C24))+SUM(INDIRECT(BF$1&BF$2&$D24):INDIRECT(BF$1&BF$3&$D24)) -> 315190.6426 | BG24: 35316.32877 | BH24: =IFERROR(BB24/BF24,0) -> 1.112047517 | BJ24: =SUM((INDIRECT(BJ$2&(ROW())):INDIRECT(BJ$3&(ROW())))) -> 350506.9713 | BK24: =SUM(INDIRECT(BK$1&BK$2&$A24):INDIRECT(BK$1&BK$3&$A24)) -> 331884.9276 | BL24: 18622.04376 | BM24: =IFERROR(BJ24/BK24,0) -> 1.056109941 | BN24: =SUM(INDIRECT(BN$1&BN$2&$C24):INDIRECT(BN$1&BN$3&$C24))+SUM(INDIRECT(BN$1&BN$2&$D24):INDIRECT(BN$1&BN$3&$D24)) -> 315190.6426 | BO24: 35316.32877 | BP24: =IFERROR(BJ24/BN24,0) -> 1.112047517
A25: 25 | B25: 1 | C25: 25 | D25: 1 | E25: 1 | F25: 1 | G25: 1 | H25: 1 | I25: 1 | J25: 1 | K25: 1 | L25: MTP | M25: RF | X25: (%) | Y25: =CHOOSE(2, "6773000004341", "PL Statement BCP (%)") -> PL Statement BCP (%) | Z25: =IFERROR(Z24/Z14,0) -> 0.1320616698 | AA25: =IFERROR(AA24/AA14,0) -> 0.08812576531 | AB25: =IFERROR(AB24/AB14,0) -> 0.1213785452 | AC25: 0.08934419117 | AD25: =IFERROR(AD24/AD14,0) -> 0.1253003404 | AE25: 0.1817564308 | AF25: 0.07460197559 | AG25: 0.06374575497 | AH25: 0.06778643477 | AI25: 0.05658198861 | AJ25: 0.04808242808 | AK25: 0.04098698707 | AL25: =IFERROR(AL24/AL14,0) -> 0.1148323212 | AM25: 0.1358754804 | AN25: 0.06870628768 | AO25: 0.04850038765 | AP25: 0.1255377195 | AQ25: 0.05830732213 | AR25: 0.09211292353 | AT25: =IFERROR(AT24/AT14,0) -> 0.1213785452 | AU25: =IFERROR(AU24/AU14,0) -> 0.08526735121 | AV25: 0.03611119395 | AX25: =IFERROR(AX24/AX14,0) -> 0.09539962544 | AY25: 0.02597891973 | BB25: =IFERROR(BB24/BB14,0) -> 0.1148323212 | BC25: =IFERROR(BC24/BC14,0) -> 0.1025061658 | BD25: 0.01232615534 | BF25: =IFERROR(BF24/BF14,0) -> 0.1046479293 | BG25: 0.01018439184 | BJ25: =IFERROR(BJ24/BJ14,0) -> 0.1148323212 | BK25: =IFERROR(BK24/BK14,0) -> 0.1025061658 | BL25: 0.01232615534 | BN25: =IFERROR(BN24/BN14,0) -> 0.1046479293 | BO25: 0.01018439184
A26: 26 | B26: 1 | C26: 26 | D26: 1 | E26: 1 | F26: 1 | G26: 1 | H26: 1 | I26: 1 | J26: 1 | K26: 1 | L26: MTP | M26: RF | Q26: Other Income | Y26: =CHOOSE(2, "6773000004340", "PL Statement Other Income") -> PL Statement Other Income | Z26: =Z101+Z469+Z213+Z322+Z387 -> 1740.02316 | AA26: =AA101+AA469+AA213+AA322+AA387 -> 5176 | AB26: 1179.07438 | AC26: =AC101+AC469+AC213+AC322+AC387 -> 1975.83202 | AD26: =AD101+AD469+AD213+AD322+AD387 -> 2207.7707 | AE26: 0 | AF26: 0 | AG26: 0 | AH26: 0 | AI26: 0 | AJ26: 0 | AK26: 0 | AL26: =SUM(Z26,AA26,AB26) -> 8095.09754 | AM26: =SUM(AC26,AD26,AE26) -> 4183.60272 | AN26: =SUM(AF26,AG26,AH26) -> 0 | AO26: =SUM(AI26,AJ26,AK26) -> 0 | AP26: =AL26+AM26 -> 12278.70026 | AQ26: =AO26+AN26 -> 0 | AR26: =AP26+AQ26 -> 12278.70026 | AT26: =SUM((INDIRECT(AT$2&(ROW())):INDIRECT(AT$3&(ROW())))) -> 1179.07438 | AU26: =SUM(INDIRECT(AU$1&AU$2&$A26):INDIRECT(AU$1&AU$3&$A26)) -> 250 | AV26: 929.07438 | AW26: 4.71629752 | AX26: =SUM(INDIRECT(AX$1&AX$2&$C26):INDIRECT(AX$1&AX$3&$C26))+SUM(INDIRECT(AX$1&AX$2&$D26):INDIRECT(AX$1&AX$3&$D26)) -> 1463 | AY26: -283.92562 | AZ26: =IFERROR(AT26/AX26,0) -> 0.8059291729 | BB26: =SUM((INDIRECT(BB$2&(ROW())):INDIRECT(BB$3&(ROW())))) -> 8095.09754 | BC26: =SUM(INDIRECT(BC$1&BC$2&$A26):INDIRECT(BC$1&BC$3&$A26)) -> 750 | BD26: 7345.09754 | BE26: =IFERROR(BB26/BC26,0) -> 10.79346339 | BF26: =SUM(INDIRECT(BF$1&BF$2&$C26):INDIRECT(BF$1&BF$3&$C26))+SUM(INDIRECT(BF$1&BF$2&$D26):INDIRECT(BF$1&BF$3&$D26)) -> 6498 | BG26: 1597.09754 | BH26: =IFERROR(BB26/BF26,0) -> 1.245782939 | BJ26: =SUM((INDIRECT(BJ$2&(ROW())):INDIRECT(BJ$3&(ROW())))) -> 8095.09754 | BK26: =SUM(INDIRECT(BK$1&BK$2&$A26):INDIRECT(BK$1&BK$3&$A26)) -> 750 | BL26: 7345.09754 | BM26: =IFERROR(BJ26/BK26,0) -> 10.79346339 | BN26: =SUM(INDIRECT(BN$1&BN$2&$C26):INDIRECT(BN$1&BN$3&$C26))+SUM(INDIRECT(BN$1&BN$2&$D26):INDIRECT(BN$1&BN$3&$D26)) -> 6498 | BO26: 1597.09754 | BP26: =IFERROR(BJ26/BN26,0) -> 1.245782939
A27: 27 | B27: 1 | C27: 27 | D27: 1 | E27: 1 | F27: 1 | G27: 1 | H27: 1 | I27: 1 | J27: 1 | K27: 1 | L27: MTP | M27: RF | Q27: Other Expenses | Y27: =CHOOSE(2, "6773000004339", "PL Statement Other Expenses") -> PL Statement Other Expenses | Z27: 2487.591 | AA27: =AA102+AA470+AA214+AA323+AA388 -> 2047 | AB27: 0 | AC27: =AC102+AC470+AC214+AC323+AC388 -> 0 | AD27: =AD102+AD470+AD214+AD323+AD388 -> 4921.55225 | AE27: 0 | AF27: 0 | AG27: 0 | AH27: 11465.409 | AI27: 0 | AJ27: 0 | AK27: 0 | AL27: =SUM(Z27,AA27,AB27) -> 4534.591 | AM27: =SUM(AC27,AD27,AE27) -> 4921.55225 | AN27: =SUM(AF27,AG27,AH27) -> 11465.409 | AO27: =SUM(AI27,AJ27,AK27) -> 0 | AP27: =AL27+AM27 -> 9456.14325 | AQ27: =AO27+AN27 -> 11465.409 | AR27: =AP27+AQ27 -> 20921.55225 | AT27: =SUM((INDIRECT(AT$2&(ROW())):INDIRECT(AT$3&(ROW())))) -> 0 | AU27: =SUM(INDIRECT(AU$1&AU$2&$A27):INDIRECT(AU$1&AU$3&$A27)) -> 0 | AV27: 0 | AW27: 0 | AX27: =SUM(INDIRECT(AX$1&AX$2&$C27):INDIRECT(AX$1&AX$3&$C27))+SUM(INDIRECT(AX$1&AX$2&$D27):INDIRECT(AX$1&AX$3&$D27)) -> 0 | AY27: 0 | AZ27: =IFERROR(AT27/AX27,0) -> 0 | BB27: =SUM((INDIRECT(BB$2&(ROW())):INDIRECT(BB$3&(ROW())))) -> 4534.591 | BC27: =SUM(INDIRECT(BC$1&BC$2&$A27):INDIRECT(BC$1&BC$3&$A27)) -> 0 | BD27: 4534.591 | BE27: =IFERROR(BB27/BC27,0) -> 0 | BF27: =SUM(INDIRECT(BF$1&BF$2&$C27):INDIRECT(BF$1&BF$3&$C27))+SUM(INDIRECT(BF$1&BF$2&$D27):INDIRECT(BF$1&BF$3&$D27)) -> 0 | BG27: 4534.591 | BH27: =IFERROR(BB27/BF27,0) -> 0 | BJ27: =SUM((INDIRECT(BJ$2&(ROW())):INDIRECT(BJ$3&(ROW())))) -> 4534.591 | BK27: =SUM(INDIRECT(BK$1&BK$2&$A27):INDIRECT(BK$1&BK$3&$A27)) -> 0 | BL27: 4534.591 | BM27: =IFERROR(BJ27/BK27,0) -> 0 | BN27: =SUM(INDIRECT(BN$1&BN$2&$C27):INDIRECT(BN$1&BN$3&$C27))+SUM(INDIRECT(BN$1&BN$2&$D27):INDIRECT(BN$1&BN$3&$D27)) -> 0 | BO27: 4534.591 | BP27: =IFERROR(BJ27/BN27,0) -> 0
A28: 28 | B28: 1 | C28: 28 | D28: 1 | E28: 1 | F28: 1 | G28: 1 | H28: 1 | I28: 1 | J28: 1 | K28: 1 | L28: MTP | M28: RF | Q28: Operating Profit | Y28: =CHOOSE(2, "6773000004338", "PL Statement Operating Profit") -> PL Statement Operating Profit | Z28: =Z24+Z26-Z27 -> 149370.5785 | AA28: =AA24+AA26-AA27 -> 88266.1767 | AB28: =AB24+AB26-AB27 -> 116430.7227 | AC28: 87980.23874 | AD28: =AD24+AD26-AD27 -> 121722.3266 | AE28: 219046.4217 | AF28: 72133.80673 | AG28: 60696.59165 | AH28: 60560.16591 | AI28: 59150.85661 | AJ28: 50494.96159 | AK28: 43693.74561 | AL28: =SUM(Z28,AA28,AB28) -> 354067.4779 | AM28: =SUM(AC28,AD28,AE28) -> 428748.987 | AN28: =SUM(AF28,AG28,AH28) -> 193390.5643 | AO28: =SUM(AI28,AJ28,AK28) -> 153339.5638 | AP28: =AL28+AM28 -> 782816.4649 | AQ28: =AO28+AN28 -> 346730.1281 | AR28: =AP28+AQ28 -> 1129546.593 | AT28: =SUM((INDIRECT(AT$2&(ROW())):INDIRECT(AT$3&(ROW())))) -> 116430.7227 | AU28: =SUM(INDIRECT(AU$1&AU$2&$A28):INDIRECT(AU$1&AU$3&$A28)) -> 92395.99998 | AV28: 24034.7227 | AW28: 1.260127307 | AX28: =SUM(INDIRECT(AX$1&AX$2&$C28):INDIRECT(AX$1&AX$3&$C28))+SUM(INDIRECT(AX$1&AX$2&$D28):INDIRECT(AX$1&AX$3&$D28)) -> 87905.86885 | AY28: 28524.85382 | AZ28: =IFERROR(AT28/AX28,0) -> 1.324493167 | BB28: =SUM((INDIRECT(BB$2&(ROW())):INDIRECT(BB$3&(ROW())))) -> 354067.4779 | BC28: =SUM(INDIRECT(BC$1&BC$2&$A28):INDIRECT(BC$1&BC$3&$A28)) -> 332634.9276 | BD28: 21432.5503 | BE28: =IFERROR(BB28/BC28,0) -> 1.064432651 | BF28: =SUM(INDIRECT(BF$1&BF$2&$C28):INDIRECT(BF$1&BF$3&$C28))+SUM(INDIRECT(BF$1&BF$2&$D28):INDIRECT(BF$1&BF$3&$D28)) -> 321688.6426 | BG28: 32378.83531 | BH28: =IFERROR(BB28/BF28,0) -> 1.100652715 | BJ28: =SUM((INDIRECT(BJ$2&(ROW())):INDIRECT(BJ$3&(ROW())))) -> 354067.4779 | BK28: =SUM(INDIRECT(BK$1&BK$2&$A28):INDIRECT(BK$1&BK$3&$A28)) -> 332634.9276 | BL28: 21432.5503 | BM28: =IFERROR(BJ28/BK28,0) -> 1.064432651 | BN28: =SUM(INDIRECT(BN$1&BN$2&$C28):INDIRECT(BN$1&BN$3&$C28))+SUM(INDIRECT(BN$1&BN$2&$D28):INDIRECT(BN$1&BN$3&$D28)) -> 321688.6426 | BO28: 32378.83531 | BP28: =IFERROR(BJ28/BN28,0) -> 1.100652715
A29: 29 | B29: 1 | C29: 29 | D29: 1 | E29: 1 | F29: 1 | G29: 1 | H29: 1 | I29: 1 | J29: 1 | K29: 1 | L29: MTP | M29: RF | X29: (%) | Y29: =CHOOSE(2, "6773000004337", "PL Statement Operating Profit (%)") -> PL Statement Operating Profit (%) | Z29: =IFERROR(Z28/Z14,0) -> 0.1314040207 | AA29: =IFERROR(AA28/AA14,0) -> 0.09136460326 | AB29: =IFERROR(AB28/AB14,0) -> 0.1226203004 | AC29: 0.09139675011 | AD29: =IFERROR(AD28/AD14,0) -> 0.1225677111 | AE29: 0.1817564308 | AF29: 0.07460197559 | AG29: 0.06374575497 | AH29: 0.05699583434 | AI29: 0.05658198861 | AJ29: 0.04808242808 | AK29: 0.04098698707 | AL29: =IFERROR(AL28/AL14,0) -> 0.1159988065 | AM29: 0.1356420176 | AN29: 0.06486092415 | AO29: 0.04850038765 | AP29: 0.1259920018 | AQ29: 0.05644097477 | AR29: 0.0914134632 | AT29: =IFERROR(AT28/AT14,0) -> 0.1226203004 | AU29: =IFERROR(AU28/AU14,0) -> 0.08549868885 | AV29: 0.03712161151 | AX29: =IFERROR(AX28/AX14,0) -> 0.09701421383 | AY29: 0.02560608653 | BB29: =IFERROR(BB28/BB14,0) -> 0.1159988065 | BC29: =IFERROR(BC28/BC14,0) -> 0.1027378113 | BD29: 0.01326099522 | BF29: =IFERROR(BF28/BF14,0) -> 0.1068053609 | BG29: 0.009193445564 | BJ29: =IFERROR(BJ28/BJ14,0) -> 0.1159988065 | BK29: =IFERROR(BK28/BK14,0) -> 0.1027378113 | BL29: 0.01326099522 | BN29: =IFERROR(BN28/BN14,0) -> 0.1068053609 | BO29: 0.009193445564
A30: 30 | B30: 1 | C30: 30 | D30: 1 | E30: 1 | F30: 1 | G30: 1 | H30: 1 | I30: 1 | J30: 1 | K30: 1 | M30: RF | Q30: Financial Income (Expenses), net | Y30: =CHOOSE(2, "6773000004336", "PL Statement Financial Income/Expenses") -> PL Statement Financial Income/Expenses | Z30: =Z31-Z32 -> 21541.81993 | AA30: =AA31-AA32 -> 21748.24639 | AB30: =AB31-AB32 -> 14397.13075 | AC30: 12723.29543 | AD30: =AD31-AD32 -> 14417.4857 | AE30: 0 | AF30: 0 | AG30: 0 | AH30: 0 | AI30: 0 | AJ30: 0 | AK30: 0 | AL30: =SUM(Z30,AA30,AB30) -> 57687.19707 | AM30: =SUM(AC30,AD30,AE30) -> 27140.78113 | AN30: =SUM(AF30,AG30,AH30) -> 0 | AO30: =SUM(AI30,AJ30,AK30) -> 0 | AP30: =AL30+AM30 -> 84827.9782 | AQ30: =AO30+AN30 -> 0 | AR30: =AP30+AQ30 -> 84827.9782 | AT30: =SUM((INDIRECT(AT$2&(ROW())):INDIRECT(AT$3&(ROW())))) -> 14397.13075 | AU30: =SUM(INDIRECT(AU$1&AU$2&$A30):INDIRECT(AU$1&AU$3&$A30)) -> 0 | AV30: 14397.13075 | AW30: 0 | AX30: =SUM(INDIRECT(AX$1&AX$2&$C30):INDIRECT(AX$1&AX$3&$C30))+SUM(INDIRECT(AX$1&AX$2&$D30):INDIRECT(AX$1&AX$3&$D30)) -> 17280 | AY30: -2882.86925 | AZ30: =IFERROR(AT30/AX30,0) -> 0.8331672888 | BB30: =SUM((INDIRECT(BB$2&(ROW())):INDIRECT(BB$3&(ROW())))) -> 57687.19707 | BC30: =SUM(INDIRECT(BC$1&BC$2&$A30):INDIRECT(BC$1&BC$3&$A30)) -> 0 | BD30: 57687.19707 | BE30: =IFERROR(BB30/BC30,0) -> 0 | BF30: =SUM(INDIRECT(BF$1&BF$2&$C30):INDIRECT(BF$1&BF$3&$C30))+SUM(INDIRECT(BF$1&BF$2&$D30):INDIRECT(BF$1&BF$3&$D30)) -> 50635 | BG30: 7052.19707 | BH30: =IFERROR(BB30/BF30,0) -> 1.139275147 | BJ30: =SUM((INDIRECT(BJ$2&(ROW())):INDIRECT(BJ$3&(ROW())))) -> 57687.19707 | BK30: =SUM(INDIRECT(BK$1&BK$2&$A30):INDIRECT(BK$1&BK$3&$A30)) -> 0 | BL30: 57687.19707 | BM30: =IFERROR(BJ30/BK30,0) -> 0 | BN30: =SUM(INDIRECT(BN$1&BN$2&$C30):INDIRECT(BN$1&BN$3&$C30))+SUM(INDIRECT(BN$1&BN$2&$D30):INDIRECT(BN$1&BN$3&$D30)) -> 50635 | BO30: 7052.19707 | BP30: =IFERROR(BJ30/BN30,0) -> 1.139275147
A31: 31 | B31: 1 | C31: 31 | D31: 1 | E31: 1 | F31: 1 | G31: 1 | H31: 1 | I31: 1 | J31: 1 | K31: 1 | M31: RF | R31: Financial Income | Y31: =CHOOSE(2, "6773000004335", "PL Statement Financial Income") -> PL Statement Financial Income | Z31: 21541.81993 | AA31: 21748.24639 | AB31: 20574.652 | AC31: 12723.29543 | AD31: 14417.4857 | AL31: 63864.71832 | AM31: 27140.78113 | AN31: 0 | AO31: 0 | AP31: 91005.49945 | AQ31: 0 | AR31: 91005.49945 | AT31: =SUM((INDIRECT(AT$2&(ROW())):INDIRECT(AT$3&(ROW())))) -> 20574.652 | AU31: =SUM(INDIRECT(AU$1&AU$2&$A31):INDIRECT(AU$1&AU$3&$A31)) -> 0 | AV31: 20574.652 | AW31: 0 | AX31: =SUM(INDIRECT(AX$1&AX$2&$C31):INDIRECT(AX$1&AX$3&$C31))+SUM(INDIRECT(AX$1&AX$2&$D31):INDIRECT(AX$1&AX$3&$D31)) -> 20268 | AY31: 306.652 | AZ31: 1.01512986 | BB31: =SUM((INDIRECT(BB$2&(ROW())):INDIRECT(BB$3&(ROW())))) -> 63864.71832 | BC31: =SUM(INDIRECT(BC$1&BC$2&$A31):INDIRECT(BC$1&BC$3&$A31)) -> 0 | BD31: 63864.71832 | BE31: 0 | BF31: =SUM(INDIRECT(BF$1&BF$2&$C31):INDIRECT(BF$1&BF$3&$C31))+SUM(INDIRECT(BF$1&BF$2&$D31):INDIRECT(BF$1&BF$3&$D31)) -> 54308 | BG31: 9556.71832 | BH31: 1.17597257 | BJ31: =SUM((INDIRECT(BJ$2&(ROW())):INDIRECT(BJ$3&(ROW())))) -> 63864.71832 | BK31: =SUM(INDIRECT(BK$1&BK$2&$A31):INDIRECT(BK$1&BK$3&$A31)) -> 0 | BL31: 63864.71832 | BM31: 0 | BN31: =SUM(INDIRECT(BN$1&BN$2&$C31):INDIRECT(BN$1&BN$3&$C31))+SUM(INDIRECT(BN$1&BN$2&$D31):INDIRECT(BN$1&BN$3&$D31)) -> 54308 | BO31: 9556.71832 | BP31: 1.17597257
A32: 32 | B32: 1 | C32: 32 | D32: 1 | E32: 1 | F32: 1 | G32: 1 | H32: 1 | I32: 1 | J32: 1 | K32: 1 | M32: RF | R32: Financial Expenses | Y32: =CHOOSE(2, "6773000004334", "PL Statement Financial Expenses") -> PL Statement Financial Expenses | Z32: 0 | AA32: 0 | AB32: 6177.52125 | AC32: 0 | AD32: 0 | AL32: 6177.52125 | AM32: 0 | AN32: 0 | AO32: 0 | AP32: 6177.52125 | AQ32: 0 | AR32: 6177.52125 | AT32: =SUM((INDIRECT(AT$2&(ROW())):INDIRECT(AT$3&(ROW())))) -> 6177.52125 | AU32: =SUM(INDIRECT(AU$1&AU$2&$A32):INDIRECT(AU$1&AU$3&$A32)) -> 0 | AV32: 6177.52125 | AW32: 0 | AX32: =SUM(INDIRECT(AX$1&AX$2&$C32):INDIRECT(AX$1&AX$3&$C32))+SUM(INDIRECT(AX$1&AX$2&$D32):INDIRECT(AX$1&AX$3&$D32)) -> 2988 | AY32: 3189.52125 | AZ32: 2.067443524 | BB32: =SUM((INDIRECT(BB$2&(ROW())):INDIRECT(BB$3&(ROW())))) -> 6177.52125 | BC32: =SUM(INDIRECT(BC$1&BC$2&$A32):INDIRECT(BC$1&BC$3&$A32)) -> 0 | BD32: 6177.52125 | BE32: 0 | BF32: =SUM(INDIRECT(BF$1&BF$2&$C32):INDIRECT(BF$1&BF$3&$C32))+SUM(INDIRECT(BF$1&BF$2&$D32):INDIRECT(BF$1&BF$3&$D32)) -> 3673 | BG32: 2504.52125 | BH32: 1.681873469 | BJ32: =SUM((INDIRECT(BJ$2&(ROW())):INDIRECT(BJ$3&(ROW())))) -> 6177.52125 | BK32: =SUM(INDIRECT(BK$1&BK$2&$A32):INDIRECT(BK$1&BK$3&$A32)) -> 0 | BL32: 6177.52125 | BM32: 0 | BN32: =SUM(INDIRECT(BN$1&BN$2&$C32):INDIRECT(BN$1&BN$3&$C32))+SUM(INDIRECT(BN$1&BN$2&$D32):INDIRECT(BN$1&BN$3&$D32)) -> 3673 | BO32: 2504.52125 | BP32: 1.681873469
A33: 33 | B33: 1 | C33: 33 | D33: 1 | E33: 1 | F33: 1 | G33: 1 | H33: 1 | I33: 1 | J33: 1 | K33: 1 | M33: RF | Q33: Profit before Taxes | Y33: =CHOOSE(2, "6773000004333", "PL Statement Profit before Taxes") -> PL Statement Profit before Taxes | Z33: =Z28+Z30 -> 170912.3984 | AA33: =AA28+AA30 -> 110014.4231 | AB33: =AB28+AB30 -> 130827.8534 | AC33: 100703.5342 | AD33: =AD28+AD30 -> 136139.8123 | AE33: 219046.4217 | AF33: 72133.80673 | AG33: 60696.59165 | AH33: 60560.16591 | AI33: 59150.85661 | AJ33: 50494.96159 | AK33: 43693.74561 | AL33: 411754.6749 | AM33: 455889.7681 | AN33: 193390.5643 | AO33: 153339.5638 | AP33: 867644.4431 | AQ33: 346730.1281 | AR33: 1214374.571 | AT33: =SUM((INDIRECT(AT$2&(ROW())):INDIRECT(AT$3&(ROW())))) -> 130827.8534 | AU33: =SUM(INDIRECT(AU$1&AU$2&$A33):INDIRECT(AU$1&AU$3&$A33)) -> 92395.99998 | AV33: 38431.85345 | AW33: 1.415947156 | AX33: =SUM(INDIRECT(AX$1&AX$2&$C33):INDIRECT(AX$1&AX$3&$C33))+SUM(INDIRECT(AX$1&AX$2&$D33):INDIRECT(AX$1&AX$3&$D33)) -> 105185.8689 | AY33: 25641.98457 | AZ33: 1.243777846 | BB33: =SUM((INDIRECT(BB$2&(ROW())):INDIRECT(BB$3&(ROW())))) -> 411754.6749 | BC33: =SUM(INDIRECT(BC$1&BC$2&$A33):INDIRECT(BC$1&BC$3&$A33)) -> 332634.9276 | BD33: 79119.74737 | BE33: 1.237857605 | BF33: =SUM(INDIRECT(BF$1&BF$2&$C33):INDIRECT(BF$1&BF$3&$C33))+SUM(INDIRECT(BF$1&BF$2&$D33):INDIRECT(BF$1&BF$3&$D33)) -> 372323.6426 | BG33: 39431.03238 | BH33: 1.105905261 | BJ33: =SUM((INDIRECT(BJ$2&(ROW())):INDIRECT(BJ$3&(ROW())))) -> 411754.6749 | BK33: =SUM(INDIRECT(BK$1&BK$2&$A33):INDIRECT(BK$1&BK$3&$A33)) -> 332634.9276 | BL33: 79119.74737 | BM33: 1.237857605 | BN33: =SUM(INDIRECT(BN$1&BN$2&$C33):INDIRECT(BN$1&BN$3&$C33))+SUM(INDIRECT(BN$1&BN$2&$D33):INDIRECT(BN$1&BN$3&$D33)) -> 372323.6426 | BO33: 39431.03238 | BP33: 1.105905261
A34: 34 | B34: 1 | C34: 34 | D34: 1 | E34: 1 | F34: 1 | G34: 1 | H34: 1 | I34: 1 | J34: 1 | K34: 1 | M34: RF | Q34: Tax Expenses & Others | Y34: =CHOOSE(2, "6773000004332", "PL Statement Tax Expenses & Others") -> PL Statement Tax Expenses & Others | Z34: 42910 | AA34: 27690.63029 | AB34: 32598.36971 | AC34: 25154.65 | AD34: 34149.67 | AE34: =AE33*25.1% -> 54980.65184 | AF34: 18105.58549 | AG34: 15234.84451 | AH34: 15200.60164 | AI34: 14846.86501 | AJ34: 12674.23536 | AK34: 10967.13015 | AL34: 103199 | AM34: 114284.9718 | AN34: 48541.03164 | AO34: 38488.23052 | AP34: 217483.9718 | AQ34: 87029.26215 | AR34: 304513.234 | AT34: =SUM((INDIRECT(AT$2&(ROW())):INDIRECT(AT$3&(ROW())))) -> 32598.36971 | AU34: =SUM(INDIRECT(AU$1&AU$2&$A34):INDIRECT(AU$1&AU$3&$A34)) -> 23193.13266 | AV34: 9405.237048 | AW34: 1.405518184 | AX34: =SUM(INDIRECT(AX$1&AX$2&$C34):INDIRECT(AX$1&AX$3&$C34))+SUM(INDIRECT(AX$1&AX$2&$D34):INDIRECT(AX$1&AX$3&$D34)) -> 26327.0221 | AY34: 6271.347608 | AZ34: 1.238209532 | BB34: =SUM((INDIRECT(BB$2&(ROW())):INDIRECT(BB$3&(ROW())))) -> 103199 | BC34: =SUM(INDIRECT(BC$1&BC$2&$A34):INDIRECT(BC$1&BC$3&$A34)) -> 83497.61899 | BD34: 19701.38101 | BE34: 1.235951411 | BF34: =SUM(INDIRECT(BF$1&BF$2&$C34):INDIRECT(BF$1&BF$3&$C34))+SUM(INDIRECT(BF$1&BF$2&$D34):INDIRECT(BF$1&BF$3&$D34)) -> 93266 | BG34: 9933 | BH34: 1.106501833 | BJ34: =SUM((INDIRECT(BJ$2&(ROW())):INDIRECT(BJ$3&(ROW())))) -> 103199 | BK34: =SUM(INDIRECT(BK$1&BK$2&$A34):INDIRECT(BK$1&BK$3&$A34)) -> 83497.61899 | BL34: 19701.38101 | BM34: 1.235951411 | BN34: =SUM(INDIRECT(BN$1&BN$2&$C34):INDIRECT(BN$1&BN$3&$C34))+SUM(INDIRECT(BN$1&BN$2&$D34):INDIRECT(BN$1&BN$3&$D34)) -> 93266 | BO34: 9933 | BP34: 1.106501833
A35: 35 | B35: 1 | C35: 35 | D35: 1 | E35: 1 | F35: 1 | G35: 1 | H35: 1 | I35: 1 | J35: 1 | K35: 1 | L35: MTP | M35: RF | Q35: Net Profit | Y35: =CHOOSE(2, "6773000004331", "PL Statement Net Profit") -> PL Statement Net Profit | Z35: =Z33-Z34 -> 128002.3984 | AA35: =AA33-AA34 -> 82323.7928 | AB35: =AB33-AB34 -> 98229.48372 | AC35: 75548.88417 | AD35: =AD33-AD34 -> 101990.1423 | AE35: 164065.7698 | AF35: 54028.22124 | AG35: 45461.74715 | AH35: 45359.56426 | AI35: 44303.9916 | AJ35: 37820.72623 | AK35: 32726.61546 | AL35: 308555.6749 | AM35: 341604.7963 | AN35: 144849.5327 | AO35: 114851.3333 | AP35: 650160.4712 | AQ35: 259700.866 | AR35: 909861.3372 | AT35: =SUM((INDIRECT(AT$2&(ROW())):INDIRECT(AT$3&(ROW())))) -> 98229.48372 | AU35: =SUM(INDIRECT(AU$1&AU$2&$A35):INDIRECT(AU$1&AU$3&$A35)) -> 69202.86732 | AV35: 29026.6164 | AW35: 1.419442395 | AX35: =SUM(INDIRECT(AX$1&AX$2&$C35):INDIRECT(AX$1&AX$3&$C35))+SUM(INDIRECT(AX$1&AX$2&$D35):INDIRECT(AX$1&AX$3&$D35)) -> 78858.84675 | AY35: 19370.63696 | AZ35: 1.245636828 | BB35: =SUM((INDIRECT(BB$2&(ROW())):INDIRECT(BB$3&(ROW())))) -> 308555.6749 | BC35: =SUM(INDIRECT(BC$1&BC$2&$A35):INDIRECT(BC$1&BC$3&$A35)) -> 249137.3086 | BD35: 59418.36636 | BE35: 1.238496461 | BF35: =SUM(INDIRECT(BF$1&BF$2&$C35):INDIRECT(BF$1&BF$3&$C35))+SUM(INDIRECT(BF$1&BF$2&$D35):INDIRECT(BF$1&BF$3&$D35)) -> 279057.6426 | BG35: 29498.03238 | BH35: 1.105705875 | BJ35: =SUM((INDIRECT(BJ$2&(ROW())):INDIRECT(BJ$3&(ROW())))) -> 308555.6749 | BK35: =SUM(INDIRECT(BK$1&BK$2&$A35):INDIRECT(BK$1&BK$3&$A35)) -> 249137.3086 | BL35: 59418.36636 | BM35: 1.238496461 | BN35: =SUM(INDIRECT(BN$1&BN$2&$C35):INDIRECT(BN$1&BN$3&$C35))+SUM(INDIRECT(BN$1&BN$2&$D35):INDIRECT(BN$1&BN$3&$D35)) -> 279057.6426 | BO35: 29498.03238 | BP35: 1.105705875
A36: 36 | B36: 1 | C36: 36 | D36: 1 | E36: 1 | F36: 1 | G36: 1 | H36: 1 | I36: 1 | J36: 1 | K36: 1 | L36: MTP | M36: RF | X36: (%) | Y36: =CHOOSE(2, "6773000004330", "PL Statement Net Profit (%)") -> PL Statement Net Profit (%) | Z36: =IFERROR(Z35/Z14,0) -> 0.1126060432 | AA36: =IFERROR(AA35/AA14,0) -> 0.08521362258 | AB36: =IFERROR(AB35/AB14,0) -> 0.1034514647 | AC36: 0.07848265231 | AD36: =IFERROR(AD35/AD14,0) -> 0.1026984831 | AE36: 0.1361355667 | AF36: 0.05587687972 | AG36: 0.04774557047 | AH36: 0.04268987992 | AI36: 0.04237990947 | AJ36: 0.03601373863 | AK36: 0.03069925332 | AL36: =IFERROR(AL35/AL14,0) -> 0.1010883299 | AM36: 0.1080724741 | AN36: 0.04858083219 | AO36: 0.03632679035 | AP36: 0.1046414107 | AQ36: 0.0422742901 | AR36: 0.07363447987 | AT36: =IFERROR(AT35/AT14,0) -> 0.1034514647 | AU36: =IFERROR(AU35/AU14,0) -> 0.06403691092 | AV36: 0.03941455378 | AX36: =IFERROR(AX35/AX14,0) -> 0.08702978676 | AY36: 0.01642167795 | BB36: =IFERROR(BB35/BB14,0) -> 0.1010883299 | BC36: =IFERROR(BC35/BC14,0) -> 0.07694868958 | BD36: 0.02413964036 | BF36: =IFERROR(BF35/BF14,0) -> 0.09265124187 | BG36: 0.008437088071 | BJ36: =IFERROR(BJ35/BJ14,0) -> 0.1010883299 | BK36: =IFERROR(BK35/BK14,0) -> 0.07694868958 | BL36: 0.02413964036 | BN36: =IFERROR(BN35/BN14,0) -> 0.09265124187 | BO36: 0.008437088071
A37: 37 | B37: 1 | C37: 37 | D37: 1 | E37: 1 | F37: 1 | G37: 1 | H37: 1 | I37: 1 | J37: 1 | K37: 1 | L37: MTP | M37: RF | Y37: =CHOOSE(2, "6773000004356", "▷ Blank 1") -> ▷ Blank 1
A38: 38 | B38: 1 | C38: 38 | D38: 1 | E38: 1 | F38: 1 | G38: 1 | H38: 1 | I38: 1 | J38: 1 | K38: 1 | Y38: =CHOOSE(2, "6773000004357", "▷ Blank 2") -> ▷ Blank 2
A39: 39 | B39: 1 | C39: 39 | D39: 1 | E39: 1 | F39: 1 | G39: 1 | H39: 1 | I39: 1 | J39: 1 | K39: 1 | O39: 1-2.SGA Expenses Details | Y39: =CHOOSE(2, "6773000004358", "1-2.SGA Expenses Details") -> 1-2.SGA Expenses Details
A40: 40 | B40: 1 | C40: 40 | D40: 1 | E40: 1 | F40: 1 | G40: 1 | H40: 1 | I40: 1 | J40: 1 | K40: 1 | Q40: Variable Expenses | Y40: =CHOOSE(2, "6773000004359", "SGA Variable Expenses") -> SGA Variable Expenses | Z40: =SUM(Z41:Z43) -> 0 | AA40: =SUM(AA41:AA43) -> 0 | AB40: =SUM(AB41:AB43) -> 0 | AC40: 0 | AD40: 0 | AE40: 0 | AF40: 0 | AG40: 0 | AH40: 0 | AI40: 0 | AJ40: 0 | AK40: 0 | AL40: =SUM(AL41:AL43) -> 0 | AM40: 0 | AN40: 0 | AO40: 0 | AP40: 0 | AQ40: 0 | AR40: 0 | AT40: =SUM((INDIRECT(AT$2&(ROW())):INDIRECT(AT$3&(ROW())))) -> 0 | AU40: =SUM(INDIRECT(AU$1&AU$2&$A40):INDIRECT(AU$1&AU$3&$A40)) -> 80135.52904 | AV40: =AT40-AU40 -> -80135.52904 | AW40: =IFERROR(AT40/AU40,0) -> 0 | AX40: =SUM(INDIRECT(AX$1&AX$2&$C40):INDIRECT(AX$1&AX$3&$C40))+SUM(INDIRECT(AX$1&AX$2&$D40):INDIRECT(AX$1&AX$3&$D40)) -> 111747.6271 | AY40: =AT40-AX40 -> -111747.6271 | AZ40: =IFERROR(AT40/AX40,0) -> 0 | BB40: =SUM((INDIRECT(BB$2&(ROW())):INDIRECT(BB$3&(ROW())))) -> 0 | BC40: =SUM(INDIRECT(BC$1&BC$2&$A40):INDIRECT(BC$1&BC$3&$A40)) -> 236404.9422 | BD40: =BB40-BC40 -> -236404.9422 | BE40: =IFERROR(BB40/BC40,0) -> 0 | BF40: =SUM(INDIRECT(BF$1&BF$2&$C40):INDIRECT(BF$1&BF$3&$C40))+SUM(INDIRECT(BF$1&BF$2&$D40):INDIRECT(BF$1&BF$3&$D40)) -> 257350.5874 | BG40: =BB40-BF40 -> -257350.5874 | BH40: =IFERROR(BB40/BF40,0) -> 0 | BJ40: =SUM((INDIRECT(BJ$2&(ROW())):INDIRECT(BJ$3&(ROW())))) -> 0 | BK40: =SUM(INDIRECT(BK$1&BK$2&$A40):INDIRECT(BK$1&BK$3&$A40)) -> 236404.9422 | BL40: =BJ40-BK40 -> -236404.9422 | BM40: =IFERROR(BJ40/BK40,0) -> 0 | BN40: =SUM(INDIRECT(BN$1&BN$2&$C40):INDIRECT(BN$1&BN$3&$C40))+SUM(INDIRECT(BN$1&BN$2&$D40):INDIRECT(BN$1&BN$3&$D40)) -> 257350.5874 | BO40: =BJ40-BN40 -> -257350.5874 | BP40: =IFERROR(BJ40/BN40,0) -> 0
A41: 41 | B41: 1 | C41: 41 | D41: 1 | E41: 1 | F41: 1 | G41: 1 | H41: 1 | I41: 1 | J41: 1 | K41: 1 | R41: Selling Expenses | Y41: =CHOOSE(2, "6773000004360", "SGA Variable Expenses Selling Expenses") -> SGA Variable Expenses Selling Expenses | AL41: =SUM(Z41,AA41,AB41) -> 0 | AM41: =SUM(AC41,AD41,AE41) -> 0 | AN41: =SUM(AF41,AG41,AH41) -> 0 | AO41: =SUM(AI41,AJ41,AK41) -> 0 | AP41: =AL41+AM41 -> 0 | AQ41: =AO41+AN41 -> 0 | AR41: =AP41+AQ41 -> 0 | AT41: =SUM((INDIRECT(AT$2&(ROW())):INDIRECT(AT$3&(ROW())))) -> 0 | AU41: =SUM(INDIRECT(AU$1&AU$2&$A41):INDIRECT(AU$1&AU$3&$A41)) -> 27355.35762 | AV41: -27355.35762 | AW41: 0 | AX41: =SUM(INDIRECT(AX$1&AX$2&$C41):INDIRECT(AX$1&AX$3&$C41))+SUM(INDIRECT(AX$1&AX$2&$D41):INDIRECT(AX$1&AX$3&$D41)) -> 64127.33821 | AY41: -64127.33821 | AZ41: 0 | BB41: =SUM((INDIRECT(BB$2&(ROW())):INDIRECT(BB$3&(ROW())))) -> 0 | BC41: =SUM(INDIRECT(BC$1&BC$2&$A41):INDIRECT(BC$1&BC$3&$A41)) -> 78085.42873 | BD41: -78085.42873 | BE41: 0 | BF41: =SUM(INDIRECT(BF$1&BF$2&$C41):INDIRECT(BF$1&BF$3&$C41))+SUM(INDIRECT(BF$1&BF$2&$D41):INDIRECT(BF$1&BF$3&$D41)) -> 132629.3432 | BG41: -132629.3432 | BH41: 0 | BJ41: =SUM((INDIRECT(BJ$2&(ROW())):INDIRECT(BJ$3&(ROW())))) -> 0 | BK41: =SUM(INDIRECT(BK$1&BK$2&$A41):INDIRECT(BK$1&BK$3&$A41)) -> 78085.42873 | BL41: -78085.42873 | BM41: 0 | BN41: =SUM(INDIRECT(BN$1&BN$2&$C41):INDIRECT(BN$1&BN$3&$C41))+SUM(INDIRECT(BN$1&BN$2&$D41):INDIRECT(BN$1&BN$3&$D41)) -> 132629.3432 | BO41: -132629.3432 | BP41: 0
A42: 42 | B42: 1 | C42: 42 | D42: 1 | E42: 1 | F42: 1 | G42: 1 | H42: 1 | I42: 1 | J42: 1 | K42: 1 | R42: Adverting Expenses | Y42: =CHOOSE(2, "6773000004361", "SGA Variable Expenses Adverting Expenses") -> SGA Variable Expenses Adverting Expenses | AL42: =SUM(Z42,AA42,AB42) -> 0 | AM42: =SUM(AC42,AD42,AE42) -> 0 | AN42: =SUM(AF42,AG42,AH42) -> 0 | AO42: =SUM(AI42,AJ42,AK42) -> 0 | AP42: =AL42+AM42 -> 0 | AQ42: =AO42+AN42 -> 0 | AR42: =AP42+AQ42 -> 0 | AT42: =SUM((INDIRECT(AT$2&(ROW())):INDIRECT(AT$3&(ROW())))) -> 0 | AU42: =SUM(INDIRECT(AU$1&AU$2&$A42):INDIRECT(AU$1&AU$3&$A42)) -> 5257.429061 | AV42: -5257.429061 | AW42: 0 | AX42: =SUM(INDIRECT(AX$1&AX$2&$C42):INDIRECT(AX$1&AX$3&$C42))+SUM(INDIRECT(AX$1&AX$2&$D42):INDIRECT(AX$1&AX$3&$D42)) -> 2596.79023 | AY42: -2596.79023 | AZ42: 0 | BB42: =SUM((INDIRECT(BB$2&(ROW())):INDIRECT(BB$3&(ROW())))) -> 0 | BC42: =SUM(INDIRECT(BC$1&BC$2&$A42):INDIRECT(BC$1&BC$3&$A42)) -> 15772.28718 | BD42: -15772.28718 | BE42: 0 | BF42: =SUM(INDIRECT(BF$1&BF$2&$C42):INDIRECT(BF$1&BF$3&$C42))+SUM(INDIRECT(BF$1&BF$2&$D42):INDIRECT(BF$1&BF$3&$D42)) -> 5382.42277 | BG42: -5382.42277 | BH42: 0 | BJ42: =SUM((INDIRECT(BJ$2&(ROW())):INDIRECT(BJ$3&(ROW())))) -> 0 | BK42: =SUM(INDIRECT(BK$1&BK$2&$A42):INDIRECT(BK$1&BK$3&$A42)) -> 15772.28718 | BL42: -15772.28718 | BM42: 0 | BN42: =SUM(INDIRECT(BN$1&BN$2&$C42):INDIRECT(BN$1&BN$3&$C42))+SUM(INDIRECT(BN$1&BN$2&$D42):INDIRECT(BN$1&BN$3&$D42)) -> 5382.42277 | BO42: -5382.42277 | BP42: 0
A43: 43 | B43: 1 | C43: 43 | D43: 1 | E43: 1 | F43: 1 | G43: 1 | H43: 1 | I43: 1 | J43: 1 | K43: 1 | R43: Logistics Expense | Y43: =CHOOSE(2, "6773000004362", "SGA Variable Expenses Logistics Expense") -> SGA Variable Expenses Logistics Expense | AL43: =SUM(Z43,AA43,AB43) -> 0 | AM43: =SUM(AC43,AD43,AE43) -> 0 | AN43: =SUM(AF43,AG43,AH43) -> 0 | AO43: =SUM(AI43,AJ43,AK43) -> 0 | AP43: =AL43+AM43 -> 0 | AQ43: =AO43+AN43 -> 0 | AR43: =AP43+AQ43 -> 0 | AT43: =SUM((INDIRECT(AT$2&(ROW())):INDIRECT(AT$3&(ROW())))) -> 0 | AU43: =SUM(INDIRECT(AU$1&AU$2&$A43):INDIRECT(AU$1&AU$3&$A43)) -> 47522.74235 | AV43: -47522.74235 | AW43: 0 | AX43: =SUM(INDIRECT(AX$1&AX$2&$C43):INDIRECT(AX$1&AX$3&$C43))+SUM(INDIRECT(AX$1&AX$2&$D43):INDIRECT(AX$1&AX$3&$D43)) -> 45023.49868 | AY43: -45023.49868 | AZ43: 0 | BB43: =SUM((INDIRECT(BB$2&(ROW())):INDIRECT(BB$3&(ROW())))) -> 0 | BC43: =SUM(INDIRECT(BC$1&BC$2&$A43):INDIRECT(BC$1&BC$3&$A43)) -> 142547.2263 | BD43: -142547.2263 | BE43: 0 | BF43: =SUM(INDIRECT(BF$1&BF$2&$C43):INDIRECT(BF$1&BF$3&$C43))+SUM(INDIRECT(BF$1&BF$2&$D43):INDIRECT(BF$1&BF$3&$D43)) -> 119338.8215 | BG43: -119338.8215 | BH43: 0 | BJ43: =SUM((INDIRECT(BJ$2&(ROW())):INDIRECT(BJ$3&(ROW())))) -> 0 | BK43: =SUM(INDIRECT(BK$1&BK$2&$A43):INDIRECT(BK$1&BK$3&$A43)) -> 142547.2263 | BL43: -142547.2263 | BM43: 0 | BN43: =SUM(INDIRECT(BN$1&BN$2&$C43):INDIRECT(BN$1&BN$3&$C43))+SUM(INDIRECT(BN$1&BN$2&$D43):INDIRECT(BN$1&BN$3&$D43)) -> 119338.8215 | BO43: -119338.8215 | BP43: 0
A44: 44 | B44: 1 | C44: 44 | D44: 1 | E44: 1 | F44: 1 | G44: 1 | H44: 1 | I44: 1 | J44: 1 | K44: 1 | Q44: Wages & Salaries | Y44: =CHOOSE(2, "6773000004363", "SGA Wages & Salaries") -> SGA Wages & Salaries | Z44: =SUM(Z45:Z47) -> 0 | AA44: =SUM(AA45:AA47) -> 0 | AB44: =SUM(AB45:AB47) -> 0 | AC44: 0 | AD44: 0 | AE44: 0 | AF44: 0 | AG44: 0 | AH44: 0 | AI44: 0 | AJ44: 0 | AK44: 0 | AL44: =SUM(AL45:AL47) -> 0 | AM44: 0 | AN44: 0 | AO44: 0 | AP44: 0 | AQ44: 0 | AR44: 0 | AT44: =SUM((INDIRECT(AT$2&(ROW())):INDIRECT(AT$3&(ROW())))) -> 0 | AU44: =SUM(INDIRECT(AU$1&AU$2&$A44):INDIRECT(AU$1&AU$3&$A44)) -> 77068.86718 | AV44: -77068.86718 | AW44: 0 | AX44: =SUM(INDIRECT(AX$1&AX$2&$C44):INDIRECT(AX$1&AX$3&$C44))+SUM(INDIRECT(AX$1&AX$2&$D44):INDIRECT(AX$1&AX$3&$D44)) -> 70437.96994 | AY44: -70437.96994 | AZ44: 0 | BB44: =SUM((INDIRECT(BB$2&(ROW())):INDIRECT(BB$3&(ROW())))) -> 0 | BC44: =SUM(INDIRECT(BC$1&BC$2&$A44):INDIRECT(BC$1&BC$3&$A44)) -> 231074.2615 | BD44: -231074.2615 | BE44: 0 | BF44: =SUM(INDIRECT(BF$1&BF$2&$C44):INDIRECT(BF$1&BF$3&$C44))+SUM(INDIRECT(BF$1&BF$2&$D44):INDIRECT(BF$1&BF$3&$D44)) -> 204825.5308 | BG44: -204825.5308 | BH44: 0 | BJ44: =SUM((INDIRECT(BJ$2&(ROW())):INDIRECT(BJ$3&(ROW())))) -> 0 | BK44: =SUM(INDIRECT(BK$1&BK$2&$A44):INDIRECT(BK$1&BK$3&$A44)) -> 231074.2615 | BL44: -231074.2615 | BM44: 0 | BN44: =SUM(INDIRECT(BN$1&BN$2&$C44):INDIRECT(BN$1&BN$3&$C44))+SUM(INDIRECT(BN$1&BN$2&$D44):INDIRECT(BN$1&BN$3&$D44)) -> 204825.5308 | BO44: -204825.5308 | BP44: 0
A45: 45 | B45: 1 | C45: 45 | D45: 1 | E45: 1 | F45: 1 | G45: 1 | H45: 1 | I45: 1 | J45: 1 | K45: 1 | R45: Variable Wages & Salaries | Y45: =CHOOSE(2, "6773000004364", "SGA Wages & Salaries Variable Wages & Salaries") -> SGA Wages & Salaries Variable Wages & Salaries | AL45: =SUM(Z45,AA45,AB45) -> 0 | AM45: =SUM(AC45,AD45,AE45) -> 0 | AN45: =SUM(AF45,AG45,AH45) -> 0 | AO45: =SUM(AI45,AJ45,AK45) -> 0 | AP45: =AL45+AM45 -> 0 | AQ45: =AO45+AN45 -> 0 | AR45: =AP45+AQ45 -> 0 | AT45: =SUM((INDIRECT(AT$2&(ROW())):INDIRECT(AT$3&(ROW())))) -> 0 | AU45: =SUM(INDIRECT(AU$1&AU$2&$A45):INDIRECT(AU$1&AU$3&$A45)) -> 7442.711559 | AV45: -7442.711559 | AW45: 0 | AX45: =SUM(INDIRECT(AX$1&AX$2&$C45):INDIRECT(AX$1&AX$3&$C45))+SUM(INDIRECT(AX$1&AX$2&$D45):INDIRECT(AX$1&AX$3&$D45)) -> 10987.56592 | AY45: -10987.56592 | AZ45: 0 | BB45: =SUM((INDIRECT(BB$2&(ROW())):INDIRECT(BB$3&(ROW())))) -> 0 | BC45: =SUM(INDIRECT(BC$1&BC$2&$A45):INDIRECT(BC$1&BC$3&$A45)) -> 22311.63635 | BD45: -22311.63635 | BE45: 0 | BF45: =SUM(INDIRECT(BF$1&BF$2&$C45):INDIRECT(BF$1&BF$3&$C45))+SUM(INDIRECT(BF$1&BF$2&$D45):INDIRECT(BF$1&BF$3&$D45)) -> 31221.16192 | BG45: -31221.16192 | BH45: 0 | BJ45: =SUM((INDIRECT(BJ$2&(ROW())):INDIRECT(BJ$3&(ROW())))) -> 0 | BK45: =SUM(INDIRECT(BK$1&BK$2&$A45):INDIRECT(BK$1&BK$3&$A45)) -> 22311.63635 | BL45: -22311.63635 | BM45: 0 | BN45: =SUM(INDIRECT(BN$1&BN$2&$C45):INDIRECT(BN$1&BN$3&$C45))+SUM(INDIRECT(BN$1&BN$2&$D45):INDIRECT(BN$1&BN$3&$D45)) -> 31221.16192 | BO45: -31221.16192 | BP45: 0
A46: 46 | B46: 1 | C46: 46 | D46: 1 | E46: 1 | F46: 1 | G46: 1 | H46: 1 | I46: 1 | J46: 1 | K46: 1 | R46: Fixed Wages & Salaries | Y46: =CHOOSE(2, "6773000004365", "SGA Wages & Salaries Fixed Wages & Salaries") -> SGA Wages & Salaries Fixed Wages & Salaries | AL46: =SUM(Z46,AA46,AB46) -> 0 | AM46: =SUM(AC46,AD46,AE46) -> 0 | AN46: =SUM(AF46,AG46,AH46) -> 0 | AO46: =SUM(AI46,AJ46,AK46) -> 0 | AP46: =AL46+AM46 -> 0 | AQ46: =AO46+AN46 -> 0 | AR46: =AP46+AQ46 -> 0 | AT46: =SUM((INDIRECT(AT$2&(ROW())):INDIRECT(AT$3&(ROW())))) -> 0 | AU46: =SUM(INDIRECT(AU$1&AU$2&$A46):INDIRECT(AU$1&AU$3&$A46)) -> 66297.97527 | AV46: -66297.97527 | AW46: 0 | AX46: =SUM(INDIRECT(AX$1&AX$2&$C46):INDIRECT(AX$1&AX$3&$C46))+SUM(INDIRECT(AX$1&AX$2&$D46):INDIRECT(AX$1&AX$3&$D46)) -> 56181.91302 | AY46: -56181.91302 | AZ46: 0 | BB46: =SUM((INDIRECT(BB$2&(ROW())):INDIRECT(BB$3&(ROW())))) -> 0 | BC46: =SUM(INDIRECT(BC$1&BC$2&$A46):INDIRECT(BC$1&BC$3&$A46)) -> 198778.0842 | BD46: -198778.0842 | BE46: 0 | BF46: =SUM(INDIRECT(BF$1&BF$2&$C46):INDIRECT(BF$1&BF$3&$C46))+SUM(INDIRECT(BF$1&BF$2&$D46):INDIRECT(BF$1&BF$3&$D46)) -> 163571.1269 | BG46: -163571.1269 | BH46: 0 | BJ46: =SUM((INDIRECT(BJ$2&(ROW())):INDIRECT(BJ$3&(ROW())))) -> 0 | BK46: =SUM(INDIRECT(BK$1&BK$2&$A46):INDIRECT(BK$1&BK$3&$A46)) -> 198778.0842 | BL46: -198778.0842 | BM46: 0 | BN46: =SUM(INDIRECT(BN$1&BN$2&$C46):INDIRECT(BN$1&BN$3&$C46))+SUM(INDIRECT(BN$1&BN$2&$D46):INDIRECT(BN$1&BN$3&$D46)) -> 163571.1269 | BO46: -163571.1269 | BP46: 0
A47: 47 | B47: 1 | C47: 47 | D47: 1 | E47: 1 | F47: 1 | G47: 1 | H47: 1 | I47: 1 | J47: 1 | K47: 1 | R47: Retirement Benefit Cost | Y47: =CHOOSE(2, "6773000004366", "SGA Wages & Salaries Retirement Benefit Cost") -> SGA Wages & Salaries Retirement Benefit Cost | AL47: =SUM(Z47,AA47,AB47) -> 0 | AM47: =SUM(AC47,AD47,AE47) -> 0 | AN47: =SUM(AF47,AG47,AH47) -> 0 | AO47: =SUM(AI47,AJ47,AK47) -> 0 | AP47: =AL47+AM47 -> 0 | AQ47: =AO47+AN47 -> 0 | AR47: =AP47+AQ47 -> 0 | AT47: =SUM((INDIRECT(AT$2&(ROW())):INDIRECT(AT$3&(ROW())))) -> 0 | AU47: =SUM(INDIRECT(AU$1&AU$2&$A47):INDIRECT(AU$1&AU$3&$A47)) -> 3328.180346 | AV47: -3328.180346 | AW47: 0 | AX47: =SUM(INDIRECT(AX$1&AX$2&$C47):INDIRECT(AX$1&AX$3&$C47))+SUM(INDIRECT(AX$1&AX$2&$D47):INDIRECT(AX$1&AX$3&$D47)) -> 3268.491 | AY47: -3268.491 | AZ47: 0 | BB47: =SUM((INDIRECT(BB$2&(ROW())):INDIRECT(BB$3&(ROW())))) -> 0 | BC47: =SUM(INDIRECT(BC$1&BC$2&$A47):INDIRECT(BC$1&BC$3&$A47)) -> 9984.541039 | BD47: -9984.541039 | BE47: 0 | BF47: =SUM(INDIRECT(BF$1&BF$2&$C47):INDIRECT(BF$1&BF$3&$C47))+SUM(INDIRECT(BF$1&BF$2&$D47):INDIRECT(BF$1&BF$3&$D47)) -> 10033.242 | BG47: -10033.242 | BH47: 0 | BJ47: =SUM((INDIRECT(BJ$2&(ROW())):INDIRECT(BJ$3&(ROW())))) -> 0 | BK47: =SUM(INDIRECT(BK$1&BK$2&$A47):INDIRECT(BK$1&BK$3&$A47)) -> 9984.541039 | BL47: -9984.541039 | BM47: 0 | BN47: =SUM(INDIRECT(BN$1&BN$2&$C47):INDIRECT(BN$1&BN$3&$C47))+SUM(INDIRECT(BN$1&BN$2&$D47):INDIRECT(BN$1&BN$3&$D47)) -> 10033.242 | BO47: -10033.242 | BP47: 0
A48: 48 | B48: 1 | C48: 48 | D48: 1 | E48: 1 | F48: 1 | G48: 1 | H48: 1 | I48: 1 | J48: 1 | K48: 1 | Q48: Fixed Expenses | Y48: =CHOOSE(2, "6773000004367", "SGA Fixed Expenses") -> SGA Fixed Expenses | Z48: =SUM(Z49:Z54) -> 0 | AA48: =SUM(AA49:AA54) -> 0 | AB48: =SUM(AB49:AB54) -> 0 | AC48: 0 | AD48: 0 | AE48: 0 | AF48: 0 | AG48: 0 | AH48: 0 | AI48: 0 | AJ48: 0 | AK48: 0 | AL48: =SUM(AL49:AL54) -> 0 | AM48: 0 | AN48: 0 | AO48: 0 | AP48: 0 | AQ48: 0 | AR48: 0 | AT48: =SUM((INDIRECT(AT$2&(ROW())):INDIRECT(AT$3&(ROW())))) -> 0 | AU48: =SUM(INDIRECT(AU$1&AU$2&$A48):INDIRECT(AU$1&AU$3&$A48)) -> 62377.77608 | AV48: -62377.77608 | AW48: 0 | AX48: =SUM(INDIRECT(AX$1&AX$2&$C48):INDIRECT(AX$1&AX$3&$C48))+SUM(INDIRECT(AX$1&AX$2&$D48):INDIRECT(AX$1&AX$3&$D48)) -> 15802.46624 | AY48: -15802.46624 | AZ48: 0 | BB48: =SUM((INDIRECT(BB$2&(ROW())):INDIRECT(BB$3&(ROW())))) -> 0 | BC48: =SUM(INDIRECT(BC$1&BC$2&$A48):INDIRECT(BC$1&BC$3&$A48)) -> 188015.0873 | BD48: -188015.0873 | BE48: 0 | BF48: =SUM(INDIRECT(BF$1&BF$2&$C48):INDIRECT(BF$1&BF$3&$C48))+SUM(INDIRECT(BF$1&BF$2&$D48):INDIRECT(BF$1&BF$3&$D48)) -> 223835.0879 | BG48: -223835.0879 | BH48: 0 | BJ48: =SUM((INDIRECT(BJ$2&(ROW())):INDIRECT(BJ$3&(ROW())))) -> 0 | BK48: =SUM(INDIRECT(BK$1&BK$2&$A48):INDIRECT(BK$1&BK$3&$A48)) -> 188015.0873 | BL48: -188015.0873 | BM48: 0 | BN48: =SUM(INDIRECT(BN$1&BN$2&$C48):INDIRECT(BN$1&BN$3&$C48))+SUM(INDIRECT(BN$1&BN$2&$D48):INDIRECT(BN$1&BN$3&$D48)) -> 223835.0879 | BO48: -223835.0879 | BP48: 0
A49: 49 | B49: 1 | C49: 49 | D49: 1 | E49: 1 | F49: 1 | G49: 1 | H49: 1 | I49: 1 | J49: 1 | K49: 1 | R49: Traveling Expenses | Y49: =CHOOSE(2, "6773000004368", "SGA Fixed Expenses Traveling Expenses") -> SGA Fixed Expenses Traveling Expenses | AL49: =SUM(Z49,AA49,AB49) -> 0 | AM49: =SUM(AC49,AD49,AE49) -> 0 | AN49: =SUM(AF49,AG49,AH49) -> 0 | AO49: =SUM(AI49,AJ49,AK49) -> 0 | AP49: =AL49+AM49 -> 0 | AQ49: =AO49+AN49 -> 0 | AR49: =AP49+AQ49 -> 0 | AT49: =SUM((INDIRECT(AT$2&(ROW())):INDIRECT(AT$3&(ROW())))) -> 0 | AU49: =SUM(INDIRECT(AU$1&AU$2&$A49):INDIRECT(AU$1&AU$3&$A49)) -> 5808.995118 | AV49: -5808.995118 | AW49: 0 | AX49: =SUM(INDIRECT(AX$1&AX$2&$C49):INDIRECT(AX$1&AX$3&$C49))+SUM(INDIRECT(AX$1&AX$2&$D49):INDIRECT(AX$1&AX$3&$D49)) -> 4540.54911 | AY49: -4540.54911 | AZ49: 0 | BB49: =SUM((INDIRECT(BB$2&(ROW())):INDIRECT(BB$3&(ROW())))) -> 0 | BC49: =SUM(INDIRECT(BC$1&BC$2&$A49):INDIRECT(BC$1&BC$3&$A49)) -> 17426.98535 | BD49: -17426.98535 | BE49: 0 | BF49: =SUM(INDIRECT(BF$1&BF$2&$C49):INDIRECT(BF$1&BF$3&$C49))+SUM(INDIRECT(BF$1&BF$2&$D49):INDIRECT(BF$1&BF$3&$D49)) -> 13278.07399 | BG49: -13278.07399 | BH49: 0 | BJ49: =SUM((INDIRECT(BJ$2&(ROW())):INDIRECT(BJ$3&(ROW())))) -> 0 | BK49: =SUM(INDIRECT(BK$1&BK$2&$A49):INDIRECT(BK$1&BK$3&$A49)) -> 17426.98535 | BL49: -17426.98535 | BM49: 0 | BN49: =SUM(INDIRECT(BN$1&BN$2&$C49):INDIRECT(BN$1&BN$3&$C49))+SUM(INDIRECT(BN$1&BN$2&$D49):INDIRECT(BN$1&BN$3&$D49)) -> 13278.07399 | BO49: -13278.07399 | BP49: 0
A50: 50 | B50: 1 | C50: 50 | D50: 1 | E50: 1 | F50: 1 | G50: 1 | H50: 1 | I50: 1 | J50: 1 | K50: 1 | R50: Depreciation & Amortization | Y50: =CHOOSE(2, "6773000004369", "SGA Fixed Expenses Depreciation & Amortization") -> SGA Fixed Expenses Depreciation & Amortization | AL50: 0 | AM50: 0 | AN50: 0 | AO50: 0 | AP50: 0 | AQ50: 0 | AR50: 0 | AT50: =SUM((INDIRECT(AT$2&(ROW())):INDIRECT(AT$3&(ROW())))) -> 0 | AU50: =SUM(INDIRECT(AU$1&AU$2&$A50):INDIRECT(AU$1&AU$3&$A50)) -> 2508.567147 | AV50: -2508.567147 | AW50: 0 | AX50: =SUM(INDIRECT(AX$1&AX$2&$C50):INDIRECT(AX$1&AX$3&$C50))+SUM(INDIRECT(AX$1&AX$2&$D50):INDIRECT(AX$1&AX$3&$D50)) -> 21139.68409 | AY50: -21139.68409 | AZ50: 0 | BB50: =SUM((INDIRECT(BB$2&(ROW())):INDIRECT(BB$3&(ROW())))) -> 0 | BC50: =SUM(INDIRECT(BC$1&BC$2&$A50):INDIRECT(BC$1&BC$3&$A50)) -> 7525.701441 | BD50: -7525.701441 | BE50: 0 | BF50: =SUM(INDIRECT(BF$1&BF$2&$C50):INDIRECT(BF$1&BF$3&$C50))+SUM(INDIRECT(BF$1&BF$2&$D50):INDIRECT(BF$1&BF$3&$D50)) -> 23906.24881 | BG50: -23906.24881 | BH50: 0 | BJ50: =SUM((INDIRECT(BJ$2&(ROW())):INDIRECT(BJ$3&(ROW())))) -> 0 | BK50: =SUM(INDIRECT(BK$1&BK$2&$A50):INDIRECT(BK$1&BK$3&$A50)) -> 7525.701441 | BL50: -7525.701441 | BM50: 0 | BN50: =SUM(INDIRECT(BN$1&BN$2&$C50):INDIRECT(BN$1&BN$3&$C50))+SUM(INDIRECT(BN$1&BN$2&$D50):INDIRECT(BN$1&BN$3&$D50)) -> 23906.24881 | BO50: -23906.24881 | BP50: 0
A51: 51 | B51: 1 | C51: 51 | D51: 1 | E51: 1 | F51: 1 | G51: 1 | H51: 1 | I51: 1 | J51: 1 | K51: 1 | R51: Repair and Maintenance | Y51: =CHOOSE(2, "6773000004370", "SGA Fixed Expenses Repair and Maintenance") -> SGA Fixed Expenses Repair and Maintenance | AL51: 0 | AM51: 0 | AN51: 0 | AO51: 0 | AP51: 0 | AQ51: 0 | AR51: 0 | AT51: =SUM((INDIRECT(AT$2&(ROW())):INDIRECT(AT$3&(ROW())))) -> 0 | AU51: =SUM(INDIRECT(AU$1&AU$2&$A51):INDIRECT(AU$1&AU$3&$A51)) -> 1463.920386 | AV51: -1463.920386 | AW51: 0 | AX51: =SUM(INDIRECT(AX$1&AX$2&$C51):INDIRECT(AX$1&AX$3&$C51))+SUM(INDIRECT(AX$1&AX$2&$D51):INDIRECT(AX$1&AX$3&$D51)) -> 1065.91912 | AY51: -1065.91912 | AZ51: 0 | BB51: =SUM((INDIRECT(BB$2&(ROW())):INDIRECT(BB$3&(ROW())))) -> 0 | BC51: =SUM(INDIRECT(BC$1&BC$2&$A51):INDIRECT(BC$1&BC$3&$A51)) -> 4391.761159 | BD51: -4391.761159 | BE51: 0 | BF51: =SUM(INDIRECT(BF$1&BF$2&$C51):INDIRECT(BF$1&BF$3&$C51))+SUM(INDIRECT(BF$1&BF$2&$D51):INDIRECT(BF$1&BF$3&$D51)) -> 3579.74126 | BG51: -3579.74126 | BH51: 0 | BJ51: =SUM((INDIRECT(BJ$2&(ROW())):INDIRECT(BJ$3&(ROW())))) -> 0 | BK51: =SUM(INDIRECT(BK$1&BK$2&$A51):INDIRECT(BK$1&BK$3&$A51)) -> 4391.761159 | BL51: -4391.761159 | BM51: 0 | BN51: =SUM(INDIRECT(BN$1&BN$2&$C51):INDIRECT(BN$1&BN$3&$C51))+SUM(INDIRECT(BN$1&BN$2&$D51):INDIRECT(BN$1&BN$3&$D51)) -> 3579.74126 | BO51: -3579.74126 | BP51: 0
A52: 52 | B52: 1 | C52: 52 | D52: 1 | E52: 1 | F52: 1 | G52: 1 | H52: 1 | I52: 1 | J52: 1 | K52: 1 | R52: Rent Expenses | Y52: =CHOOSE(2, "6773000004371", "SGA Fixed Expenses Rent Expenses") -> SGA Fixed Expenses Rent Expenses | AL52: 0 | AM52: 0 | AN52: 0 | AO52: 0 | AP52: 0 | AQ52: 0 | AR52: 0 | AT52: =SUM((INDIRECT(AT$2&(ROW())):INDIRECT(AT$3&(ROW())))) -> 0 | AU52: =SUM(INDIRECT(AU$1&AU$2&$A52):INDIRECT(AU$1&AU$3&$A52)) -> 14816.02823 | AV52: -14816.02823 | AW52: 0 | AX52: =SUM(INDIRECT(AX$1&AX$2&$C52):INDIRECT(AX$1&AX$3&$C52))+SUM(INDIRECT(AX$1&AX$2&$D52):INDIRECT(AX$1&AX$3&$D52)) -> -2159.71869 | AY52: 2159.71869 | AZ52: 0 | BB52: =SUM((INDIRECT(BB$2&(ROW())):INDIRECT(BB$3&(ROW())))) -> 0 | BC52: =SUM(INDIRECT(BC$1&BC$2&$A52):INDIRECT(BC$1&BC$3&$A52)) -> 44448.08468 | BD52: -44448.08468 | BE52: 0 | BF52: =SUM(INDIRECT(BF$1&BF$2&$C52):INDIRECT(BF$1&BF$3&$C52))+SUM(INDIRECT(BF$1&BF$2&$D52):INDIRECT(BF$1&BF$3&$D52)) -> 26211.6043 | BG52: -26211.6043 | BH52: 0 | BJ52: =SUM((INDIRECT(BJ$2&(ROW())):INDIRECT(BJ$3&(ROW())))) -> 0 | BK52: =SUM(INDIRECT(BK$1&BK$2&$A52):INDIRECT(BK$1&BK$3&$A52)) -> 44448.08468 | BL52: -44448.08468 | BM52: 0 | BN52: =SUM(INDIRECT(BN$1&BN$2&$C52):INDIRECT(BN$1&BN$3&$C52))+SUM(INDIRECT(BN$1&BN$2&$D52):INDIRECT(BN$1&BN$3&$D52)) -> 26211.6043 | BO52: -26211.6043 | BP52: 0
A53: 53 | B53: 1 | C53: 53 | D53: 1 | E53: 1 | F53: 1 | G53: 1 | H53: 1 | I53: 1 | J53: 1 | K53: 1 | R53: Service Charges and Fees | Y53: =CHOOSE(2, "6773000004372", "SGA Fixed Expenses Service Charges and Fees") -> SGA Fixed Expenses Service Charges and Fees | AL53: 0 | AM53: 0 | AN53: 0 | AO53: 0 | AP53: 0 | AQ53: 0 | AR53: 0 | AT53: =SUM((INDIRECT(AT$2&(ROW())):INDIRECT(AT$3&(ROW())))) -> 0 | AU53: =SUM(INDIRECT(AU$1&AU$2&$A53):INDIRECT(AU$1&AU$3&$A53)) -> 124.7505158 | AV53: -124.7505158 | AW53: 0 | AX53: =SUM(INDIRECT(AX$1&AX$2&$C53):INDIRECT(AX$1&AX$3&$C53))+SUM(INDIRECT(AX$1&AX$2&$D53):INDIRECT(AX$1&AX$3&$D53)) -> 0 | AY53: 0 | AZ53: 0 | BB53: =SUM((INDIRECT(BB$2&(ROW())):INDIRECT(BB$3&(ROW())))) -> 0 | BC53: =SUM(INDIRECT(BC$1&BC$2&$A53):INDIRECT(BC$1&BC$3&$A53)) -> 374.2515473 | BD53: -374.2515473 | BE53: 0 | BF53: =SUM(INDIRECT(BF$1&BF$2&$C53):INDIRECT(BF$1&BF$3&$C53))+SUM(INDIRECT(BF$1&BF$2&$D53):INDIRECT(BF$1&BF$3&$D53)) -> 0 | BG53: 0 | BH53: 0 | BJ53: =SUM((INDIRECT(BJ$2&(ROW())):INDIRECT(BJ$3&(ROW())))) -> 0 | BK53: =SUM(INDIRECT(BK$1&BK$2&$A53):INDIRECT(BK$1&BK$3&$A53)) -> 374.2515473 | BL53: -374.2515473 | BM53: 0 | BN53: =SUM(INDIRECT(BN$1&BN$2&$C53):INDIRECT(BN$1&BN$3&$C53))+SUM(INDIRECT(BN$1&BN$2&$D53):INDIRECT(BN$1&BN$3&$D53)) -> 0 | BO53: 0 | BP53: 0
A54: 54 | B54: 1 | C54: 54 | D54: 1 | E54: 1 | F54: 1 | G54: 1 | H54: 1 | I54: 1 | J54: 1 | K54: 1 | R54: Other Expenses | Y54: =CHOOSE(2, "6773000004373", "SGA Fixed Expenses Other Expenses") -> SGA Fixed Expenses Other Expenses | AL54: 0 | AM54: 0 | AN54: 0 | AO54: 0 | AP54: 0 | AQ54: 0 | AR54: 0 | AT54: =SUM((INDIRECT(AT$2&(ROW())):INDIRECT(AT$3&(ROW())))) -> 0 | AU54: =SUM(INDIRECT(AU$1&AU$2&$A54):INDIRECT(AU$1&AU$3&$A54)) -> 37655.51469 | AV54: -37655.51469 | AW54: 0 | AX54: =SUM(INDIRECT(AX$1&AX$2&$C54):INDIRECT(AX$1&AX$3&$C54))+SUM(INDIRECT(AX$1&AX$2&$D54):INDIRECT(AX$1&AX$3&$D54)) -> -8783.96739 | AY54: 8783.96739 | AZ54: 0 | BB54: =SUM((INDIRECT(BB$2&(ROW())):INDIRECT(BB$3&(ROW())))) -> 0 | BC54: =SUM(INDIRECT(BC$1&BC$2&$A54):INDIRECT(BC$1&BC$3&$A54)) -> 113848.3031 | BD54: -113848.3031 | BE54: 0 | BF54: =SUM(INDIRECT(BF$1&BF$2&$C54):INDIRECT(BF$1&BF$3&$C54))+SUM(INDIRECT(BF$1&BF$2&$D54):INDIRECT(BF$1&BF$3&$D54)) -> 156859.4195 | BG54: -156859.4195 | BH54: 0 | BJ54: =SUM((INDIRECT(BJ$2&(ROW())):INDIRECT(BJ$3&(ROW())))) -> 0 | BK54: =SUM(INDIRECT(BK$1&BK$2&$A54):INDIRECT(BK$1&BK$3&$A54)) -> 113848.3031 | BL54: -113848.3031 | BM54: 0 | BN54: =SUM(INDIRECT(BN$1&BN$2&$C54):INDIRECT(BN$1&BN$3&$C54))+SUM(INDIRECT(BN$1&BN$2&$D54):INDIRECT(BN$1&BN$3&$D54)) -> 156859.4195 | BO54: -156859.4195 | BP54: 0
A55: 55 | B55: 1 | C55: 55 | D55: 1 | E55: 1 | F55: 1 | G55: 1 | H55: 1 | I55: 1 | J55: 1 | K55: 1 | Y55: =CHOOSE(2, "6773000004374", "▷ Blank 3") -> ▷ Blank 3
A56: 56 | B56: 1 | C56: 56 | D56: 1 | E56: 1 | F56: 1 | G56: 1 | H56: 1 | I56: 1 | J56: 1 | K56: 1 | L56: MTP | M56: RF | O56: 1-3.Total Personnel Costs | Y56: =CHOOSE(2, "6773000004375", "1-3.Total Personnel Costs") -> 1-3.Total Personnel Costs
A57: 57 | B57: 1 | C57: 57 | D57: 1 | E57: 1 | F57: 1 | G57: 1 | H57: 1 | I57: 1 | J57: 1 | K57: 1 | L57: MTP | M57: RF | Q57: Personnel Costs Total | Y57: =CHOOSE(2, "6773000004376", "Total PC Personnel Costs Total") -> Total PC Personnel Costs Total | Z57: =SUM(Z58:Z59) -> 100424.7392 | AA57: =SUM(AA58:AA59) -> 103183.1789 | AB57: 94121.512 | AC57: =SUM(AC58:AC59) -> 89058.48573 | AD57: 95390.67562 | AE57: 103012.6654 | AF57: 102667.4837 | AG57: 102246.6344 | AH57: 102558.0505 | AI57: 102712.845 | AJ57: 102541.743 | AK57: 102586.0427 | AL57: =SUM(Z57,AA57,AB57) -> 297729.4302 | AM57: =SUM(AC57,AD57,AE57) -> 287461.8268 | AN57: =SUM(AF57,AG57,AH57) -> 307472.1686 | AO57: =SUM(AI57,AJ57,AK57) -> 307840.6308 | AP57: =AL57+AM57 -> 585191.2569 | AQ57: =AO57+AN57 -> 615312.7994 | AR57: =AP57+AQ57 -> 1200504.056 | AT57: =SUM((INDIRECT(AT$2&(ROW())):INDIRECT(AT$3&(ROW())))) -> 94121.512 | AU57: =SUM(INDIRECT(AU$1&AU$2&$A57):INDIRECT(AU$1&AU$3&$A57)) -> 103702.6104 | AV57: =AT57-AU57 -> -9581.098401 | AW57: =IFERROR(AT57/AU57,0) -> 0.9076098628 | AX57: =SUM(INDIRECT(AX$1&AX$2&$C57):INDIRECT(AX$1&AX$3&$C57))+SUM(INDIRECT(AX$1&AX$2&$D57):INDIRECT(AX$1&AX$3&$D57)) -> 89026.93294 | AY57: =AT57-AX57 -> 5094.57906 | AZ57: =IFERROR(AT57/AX57,0) -> 1.057225144 | BB57: =SUM((INDIRECT(BB$2&(ROW())):INDIRECT(BB$3&(ROW())))) -> 297729.4302 | BC57: =SUM(INDIRECT(BC$1&BC$2&$A57):INDIRECT(BC$1&BC$3&$A57)) -> 310688.3595 | BD57: =BB57-BC57 -> -12958.92929 | BE57: =IFERROR(BB57/BC57,0) -> 0.9582896208 | BF57: =SUM(INDIRECT(BF$1&BF$2&$C57):INDIRECT(BF$1&BF$3&$C57))+SUM(INDIRECT(BF$1&BF$2&$D57):INDIRECT(BF$1&BF$3&$D57)) -> 261335.4438 | BG57: =BB57-BF57 -> 36393.9864 | BH57: =IFERROR(BB57/BF57,0) -> 1.139261578 | BJ57: =SUM((INDIRECT(BJ$2&(ROW())):INDIRECT(BJ$3&(ROW())))) -> 297729.4302 | BK57: =SUM(INDIRECT(BK$1&BK$2&$A57):INDIRECT(BK$1&BK$3&$A57)) -> 310688.3595 | BL57: =BJ57-BK57 -> -12958.92929 | BM57: =IFERROR(BJ57/BK57,0) -> 0.9582896208 | BN57: =SUM(INDIRECT(BN$1&BN$2&$C57):INDIRECT(BN$1&BN$3&$C57))+SUM(INDIRECT(BN$1&BN$2&$D57):INDIRECT(BN$1&BN$3&$D57)) -> 261335.4438 | BO57: =BJ57-BN57 -> 36393.9864 | BP57: =IFERROR(BJ57/BN57,0) -> 1.139261578
A58: 58 | B58: 1 | C58: 58 | D58: 1 | E58: 1 | F58: 1 | G58: 1 | H58: 1 | I58: 1 | J58: 1 | K58: 1 | L58: MTP | M58: RF | R58: Included in COGS （Field Service cost /Service Desk Cost） | Y58: =CHOOSE(2, "6773000004377", "Total PC Personnel Costs Total Included in COGS") -> Total PC Personnel Costs Total Included in COGS | Z58: =Z909 -> 24403.0415 | AA58: =AA909 -> 24279.01477 | AB58: =AB909 -> 24436.10853 | AC58: =AC909 -> 23919.48619 | AD58: 24139.277 | AE58: 27082.59935 | AF58: 27208.00672 | AG58: 27208.00672 | AH58: 27208.00672 | AI58: 27307.02741 | AJ58: 27369.7311 | AK58: 27369.7311 | AL58: =SUM(Z58,AA58,AB58) -> 73118.1648 | AM58: =SUM(AC58,AD58,AE58) -> 75141.36254 | AN58: =SUM(AF58,AG58,AH58) -> 81624.02017 | AO58: =SUM(AI58,AJ58,AK58) -> 82046.4896 | AP58: =AL58+AM58 -> 148259.5273 | AQ58: =AO58+AN58 -> 163670.5098 | AR58: =AP58+AQ58 -> 311930.0371 | AT58: =SUM((INDIRECT(AT$2&(ROW())):INDIRECT(AT$3&(ROW())))) -> 24436.10853 | AU58: =SUM(INDIRECT(AU$1&AU$2&$A58):INDIRECT(AU$1&AU$3&$A58)) -> 26633.74322 | AV58: =AT58-AU58 -> -2197.634694 | AW58: =IFERROR(AT58/AU58,0) -> 0.9174868258 | AX58: =SUM(INDIRECT(AX$1&AX$2&$C58):INDIRECT(AX$1&AX$3&$C58))+SUM(INDIRECT(AX$1&AX$2&$D58):INDIRECT(AX$1&AX$3&$D58)) -> 18588.963 | AY58: =AT58-AX58 -> 5847.14553 | AZ58: =IFERROR(AT58/AX58,0) -> 1.314549312 | BB58: =SUM((INDIRECT(BB$2&(ROW())):INDIRECT(BB$3&(ROW())))) -> 73118.1648 | BC58: =SUM(INDIRECT(BC$1&BC$2&$A58):INDIRECT(BC$1&BC$3&$A58)) -> 79614.09792 | BD58: =BB58-BC58 -> -6495.933127 | BE58: =IFERROR(BB58/BC58,0) -> 0.9184072508 | BF58: =SUM(INDIRECT(BF$1&BF$2&$C58):INDIRECT(BF$1&BF$3&$C58))+SUM(INDIRECT(BF$1&BF$2&$D58):INDIRECT(BF$1&BF$3&$D58)) -> 56509.913 | BG58: =BB58-BF58 -> 16608.2518 | BH58: =IFERROR(BB58/BF58,0) -> 1.293899794 | BJ58: =SUM((INDIRECT(BJ$2&(ROW())):INDIRECT(BJ$3&(ROW())))) -> 73118.1648 | BK58: =SUM(INDIRECT(BK$1&BK$2&$A58):INDIRECT(BK$1&BK$3&$A58)) -> 79614.09792 | BL58: =BJ58-BK58 -> -6495.933127 | BM58: =IFERROR(BJ58/BK58,0) -> 0.9184072508 | BN58: =SUM(INDIRECT(BN$1&BN$2&$C58):INDIRECT(BN$1&BN$3&$C58))+SUM(INDIRECT(BN$1&BN$2&$D58):INDIRECT(BN$1&BN$3&$D58)) -> 56509.913 | BO58: =BJ58-BN58 -> 16608.2518 | BP58: =IFERROR(BJ58/BN58,0) -> 1.293899794
A59: 59 | B59: 1 | C59: 59 | D59: 1 | E59: 1 | F59: 1 | G59: 1 | H59: 1 | I59: 1 | J59: 1 | K59: 1 | L59: MTP | M59: RF | R59: Included in SG&A (Wages & Salaries） | Y59: =CHOOSE(2, "6773000004378", "Total PC Personnel Costs Total Included in SG&A") -> Total PC Personnel Costs Total Included in SG&A | Z59: =Z22 -> 76021.69775 | AA59: =AA22 -> 78904.16416 | AB59: =AB22 -> 69685.40347 | AC59: =AC22 -> 65138.99954 | AD59: 71251.39862 | AE59: 75930.06606 | AF59: 75459.47696 | AG59: 75038.62764 | AH59: 75350.04379 | AI59: 75405.81763 | AJ59: 75172.01194 | AK59: 75216.31165 | AL59: =SUM(Z59,AA59,AB59) -> 224611.2654 | AM59: =SUM(AC59,AD59,AE59) -> 212320.4642 | AN59: =SUM(AF59,AG59,AH59) -> 225848.1484 | AO59: =SUM(AI59,AJ59,AK59) -> 225794.1412 | AP59: =AL59+AM59 -> 436931.7296 | AQ59: =AO59+AN59 -> 451642.2896 | AR59: =AP59+AQ59 -> 888574.0192 | AT59: =SUM((INDIRECT(AT$2&(ROW())):INDIRECT(AT$3&(ROW())))) -> 69685.40347 | AU59: =SUM(INDIRECT(AU$1&AU$2&$A59):INDIRECT(AU$1&AU$3&$A59)) -> 77068.86718 | AV59: =AT59-AU59 -> -7383.463707 | AW59: =IFERROR(AT59/AU59,0) -> 0.9041965455 | AX59: =SUM(INDIRECT(AX$1&AX$2&$C59):INDIRECT(AX$1&AX$3&$C59))+SUM(INDIRECT(AX$1&AX$2&$D59):INDIRECT(AX$1&AX$3&$D59)) -> 70437.96994 | AY59: =AT59-AX59 -> -752.56647 | AZ59: =IFERROR(AT59/AX59,0) -> 0.9893158978 | BB59: =SUM((INDIRECT(BB$2&(ROW())):INDIRECT(BB$3&(ROW())))) -> 224611.2654 | BC59: =SUM(INDIRECT(BC$1&BC$2&$A59):INDIRECT(BC$1&BC$3&$A59)) -> 231074.2615 | BD59: =BB59-BC59 -> -6462.996168 | BE59: =IFERROR(BB59/BC59,0) -> 0.9720306532 | BF59: =SUM(INDIRECT(BF$1&BF$2&$C59):INDIRECT(BF$1&BF$3&$C59))+SUM(INDIRECT(BF$1&BF$2&$D59):INDIRECT(BF$1&BF$3&$D59)) -> 204825.5308 | BG59: =BB59-BF59 -> 19785.73461 | BH59: =IFERROR(BB59/BF59,0) -> 1.09659799 | BJ59: =SUM((INDIRECT(BJ$2&(ROW())):INDIRECT(BJ$3&(ROW())))) -> 224611.2654 | BK59: =SUM(INDIRECT(BK$1&BK$2&$A59):INDIRECT(BK$1&BK$3&$A59)) -> 231074.2615 | BL59: =BJ59-BK59 -> -6462.996168 | BM59: =IFERROR(BJ59/BK59,0) -> 0.9720306532 | BN59: =SUM(INDIRECT(BN$1&BN$2&$C59):INDIRECT(BN$1&BN$3&$C59))+SUM(INDIRECT(BN$1&BN$2&$D59):INDIRECT(BN$1&BN$3&$D59)) -> 204825.5308 | BO59: =BJ59-BN59 -> 19785.73461 | BP59: =IFERROR(BJ59/BN59,0) -> 1.09659799
A60: 60 | B60: 1 | C60: 60 | D60: 1 | E60: 1 | F60: 1 | G60: 1 | H60: 1 | I60: 1 | J60: 1 | K60: 1 | L60: MTP | M60: RF | Y60: =CHOOSE(2, "6773000004379", "▷ Blank 4") -> ▷ Blank 4
A61: 61 | B61: 1 | C61: 61 | D61: 1 | E61: 1 | F61: 1 | G61: 1 | H61: 1 | I61: 1 | J61: 1 | K61: 1 | M61: RF | O61: 1-4.Break-down of Other Income, Other Expense | Y61: =CHOOSE(2, "6773000004380", "1-4.Break-down of Other Income, Other Expense") -> 1-4.Break-down of Other Income, Other Expense
A62: 62 | B62: 1 | C62: 62 | D62: 1 | E62: 1 | F62: 1 | G62: 1 | H62: 1 | I62: 1 | J62: 1 | K62: 1 | M62: RF | Q62: Other income | Y62: =CHOOSE(2, "6773000004381", "BO,OE Other income") -> BO,OE Other income | Z62: =Z26 -> 1740.02316 | AA62: 5176 | AB62: 1179.07438 | AC62: 1975.83202 | AD62: 2207.7707 | AE62: 0 | AF62: 0 | AG62: 0 | AH62: 0 | AI62: 0 | AJ62: 0 | AK62: 0 | AL62: =AL26 -> 8095.09754 | AM62: 4183.60272 | AN62: 0 | AO62: 0 | AP62: 12278.70026 | AQ62: 0 | AR62: 12278.70026 | AT62: =SUM((INDIRECT(AT$2&(ROW())):INDIRECT(AT$3&(ROW())))) -> 1179.07438 | AU62: =SUM(INDIRECT(AU$1&AU$2&$A62):INDIRECT(AU$1&AU$3&$A62)) -> 250 | AV62: =AT62-AU62 -> 929.07438 | AW62: =IFERROR(AT62/AU62,0) -> 4.71629752 | AX62: =SUM(INDIRECT(AX$1&AX$2&$C62):INDIRECT(AX$1&AX$3&$C62))+SUM(INDIRECT(AX$1&AX$2&$D62):INDIRECT(AX$1&AX$3&$D62)) -> 1463 | AY62: =AT62-AX62 -> -283.92562 | AZ62: =IFERROR(AT62/AX62,0) -> 0.8059291729 | BB62: =SUM((INDIRECT(BB$2&(ROW())):INDIRECT(BB$3&(ROW())))) -> 8095.09754 | BC62: =SUM(INDIRECT(BC$1&BC$2&$A62):INDIRECT(BC$1&BC$3&$A62)) -> 750 | BD62: =BB62-BC62 -> 7345.09754 | BE62: =IFERROR(BB62/BC62,0) -> 10.79346339 | BF62: =SUM(INDIRECT(BF$1&BF$2&$C62):INDIRECT(BF$1&BF$3&$C62))+SUM(INDIRECT(BF$1&BF$2&$D62):INDIRECT(BF$1&BF$3&$D62)) -> 6498 | BG62: =BB62-BF62 -> 1597.09754 | BH62: =IFERROR(BB62/BF62,0) -> 1.245782939 | BJ62: =SUM((INDIRECT(BJ$2&(ROW())):INDIRECT(BJ$3&(ROW())))) -> 8095.09754 | BK62: =SUM(INDIRECT(BK$1&BK$2&$A62):INDIRECT(BK$1&BK$3&$A62)) -> 750 | BL62: =BJ62-BK62 -> 7345.09754 | BM62: =IFERROR(BJ62/BK62,0) -> 10.79346339 | BN62: =SUM(INDIRECT(BN$1&BN$2&$C62):INDIRECT(BN$1&BN$3&$C62))+SUM(INDIRECT(BN$1&BN$2&$D62):INDIRECT(BN$1&BN$3&$D62)) -> 6498 | BO62: =BJ62-BN62 -> 1597.09754 | BP62: =IFERROR(BJ62/BN62,0) -> 1.245782939
A63: 63 | B63: 1 | C63: 63 | D63: 1 | E63: 1 | F63: 1 | G63: 1 | H63: 1 | I63: 1 | J63: 1 | K63: 1 | M63: RF | R63: Rent income from Property, Plant and Equipment | Y63: =CHOOSE(2, "6773000004382", "BO,OE Other income RP,PE") -> BO,OE Other income RP,PE | AL63: =SUM(Z63,AA63,AB63) -> 0 | AM63: =SUM(AC63,AD63,AE63) -> 0 | AN63: =SUM(AF63,AG63,AH63) -> 0 | AO63: =SUM(AI63,AJ63,AK63) -> 0 | AP63: =AL63+AM63 -> 0 | AQ63: =AO63+AN63 -> 0 | AR63: =AP63+AQ63 -> 0 | AT63: =SUM((INDIRECT(AT$2&(ROW())):INDIRECT(AT$3&(ROW())))) -> 0 | AU63: =SUM(INDIRECT(AU$1&AU$2&$A63):INDIRECT(AU$1&AU$3&$A63)) -> 0 | AV63: 0 | AW63: 0 | AX63: =SUM(INDIRECT(AX$1&AX$2&$C63):INDIRECT(AX$1&AX$3&$C63))+SUM(INDIRECT(AX$1&AX$2&$D63):INDIRECT(AX$1&AX$3&$D63)) -> 0 | AY63: 0 | AZ63: 0 | BB63: =SUM((INDIRECT(BB$2&(ROW())):INDIRECT(BB$3&(ROW())))) -> 0 | BC63: =SUM(INDIRECT(BC$1&BC$2&$A63):INDIRECT(BC$1&BC$3&$A63)) -> 0 | BD63: 0 | BE63: 0 | BF63: =SUM(INDIRECT(BF$1&BF$2&$C63):INDIRECT(BF$1&BF$3&$C63))+SUM(INDIRECT(BF$1&BF$2&$D63):INDIRECT(BF$1&BF$3&$D63)) -> 0 | BG63: 0 | BH63: 0 | BJ63: =SUM((INDIRECT(BJ$2&(ROW())):INDIRECT(BJ$3&(ROW())))) -> 0 | BK63: =SUM(INDIRECT(BK$1&BK$2&$A63):INDIRECT(BK$1&BK$3&$A63)) -> 0 | BL63: 0 | BM63: 0 | BN63: =SUM(INDIRECT(BN$1&BN$2&$C63):INDIRECT(BN$1&BN$3&$C63))+SUM(INDIRECT(BN$1&BN$2&$D63):INDIRECT(BN$1&BN$3&$D63)) -> 0 | BO63: 0 | BP63: 0
A64: 64 | B64: 1 | C64: 64 | D64: 1 | E64: 1 | F64: 1 | G64: 1 | H64: 1 | I64: 1 | J64: 1 | K64: 1 | M64: RF | R64: Commissions and Fees Income | Y64: =CHOOSE(2, "6773000004383", "BO,OE Other income Commissions and Fees Income") -> BO,OE Other income Commissions and Fees Income | AL64: =SUM(Z64,AA64,AB64) -> 0 | AM64: =SUM(AC64,AD64,AE64) -> 0 | AN64: =SUM(AF64,AG64,AH64) -> 0 | AO64: =SUM(AI64,AJ64,AK64) -> 0 | AP64: =AL64+AM64 -> 0 | AQ64: =AO64+AN64 -> 0 | AR64: =AP64+AQ64 -> 0 | AT64: =SUM((INDIRECT(AT$2&(ROW())):INDIRECT(AT$3&(ROW())))) -> 0 | AU64: =SUM(INDIRECT(AU$1&AU$2&$A64):INDIRECT(AU$1&AU$3&$A64)) -> 0 | AV64: 0 | AW64: 0 | AX64: =SUM(INDIRECT(AX$1&AX$2&$C64):INDIRECT(AX$1&AX$3&$C64))+SUM(INDIRECT(AX$1&AX$2&$D64):INDIRECT(AX$1&AX$3&$D64)) -> 0 | AY64: 0 | AZ64: 0 | BB64: =SUM((INDIRECT(BB$2&(ROW())):INDIRECT(BB$3&(ROW())))) -> 0 | BC64: =SUM(INDIRECT(BC$1&BC$2&$A64):INDIRECT(BC$1&BC$3&$A64)) -> 0 | BD64: 0 | BE64: 0 | BF64: =SUM(INDIRECT(BF$1&BF$2&$C64):INDIRECT(BF$1&BF$3&$C64))+SUM(INDIRECT(BF$1&BF$2&$D64):INDIRECT(BF$1&BF$3&$D64)) -> 0 | BG64: 0 | BH64: 0 | BJ64: =SUM((INDIRECT(BJ$2&(ROW())):INDIRECT(BJ$3&(ROW())))) -> 0 | BK64: =SUM(INDIRECT(BK$1&BK$2&$A64):INDIRECT(BK$1&BK$3&$A64)) -> 0 | BL64: 0 | BM64: 0 | BN64: =SUM(INDIRECT(BN$1&BN$2&$C64):INDIRECT(BN$1&BN$3&$C64))+SUM(INDIRECT(BN$1&BN$2&$D64):INDIRECT(BN$1&BN$3&$D64)) -> 0 | BO64: 0 | BP64: 0
A65: 65 | B65: 1 | C65: 65 | D65: 1 | E65: 1 | F65: 1 | G65: 1 | H65: 1 | I65: 1 | J65: 1 | K65: 1 | M65: RF | R65: Gains on Sales of Asset | Y65: =CHOOSE(2, "6773000004384", "BO,OE Other income Gains on Sales of Asset") -> BO,OE Other income Gains on Sales of Asset | AL65: =SUM(Z65,AA65,AB65) -> 0 | AM65: =SUM(AC65,AD65,AE65) -> 0 | AN65: =SUM(AF65,AG65,AH65) -> 0 | AO65: =SUM(AI65,AJ65,AK65) -> 0 | AP65: =AL65+AM65 -> 0 | AQ65: =AO65+AN65 -> 0 | AR65: =AP65+AQ65 -> 0 | AT65: =SUM((INDIRECT(AT$2&(ROW())):INDIRECT(AT$3&(ROW())))) -> 0 | AU65: =SUM(INDIRECT(AU$1&AU$2&$A65):INDIRECT(AU$1&AU$3&$A65)) -> 0 | AV65: 0 | AW65: 0 | AX65: =SUM(INDIRECT(AX$1&AX$2&$C65):INDIRECT(AX$1&AX$3&$C65))+SUM(INDIRECT(AX$1&AX$2&$D65):INDIRECT(AX$1&AX$3&$D65)) -> 0 | AY65: 0 | AZ65: 0 | BB65: =SUM((INDIRECT(BB$2&(ROW())):INDIRECT(BB$3&(ROW())))) -> 0 | BC65: =SUM(INDIRECT(BC$1&BC$2&$A65):INDIRECT(BC$1&BC$3&$A65)) -> 0 | BD65: 0 | BE65: 0 | BF65: =SUM(INDIRECT(BF$1&BF$2&$C65):INDIRECT(BF$1&BF$3&$C65))+SUM(INDIRECT(BF$1&BF$2&$D65):INDIRECT(BF$1&BF$3&$D65)) -> 0 | BG65: 0 | BH65: 0 | BJ65: =SUM((INDIRECT(BJ$2&(ROW())):INDIRECT(BJ$3&(ROW())))) -> 0 | BK65: =SUM(INDIRECT(BK$1&BK$2&$A65):INDIRECT(BK$1&BK$3&$A65)) -> 0 | BL65: 0 | BM65: 0 | BN65: =SUM(INDIRECT(BN$1&BN$2&$C65):INDIRECT(BN$1&BN$3&$C65))+SUM(INDIRECT(BN$1&BN$2&$D65):INDIRECT(BN$1&BN$3&$D65)) -> 0 | BO65: 0 | BP65: 0
A66: 66 | B66: 1 | C66: 66 | D66: 1 | E66: 1 | F66: 1 | G66: 1 | H66: 1 | I66: 1 | J66: 1 | K66: 1 | M66: RF | R66: Government support | Y66: =CHOOSE(2, "6773000004385", "BO,OE Other income Government support") -> BO,OE Other income Government support | AL66: =SUM(Z66,AA66,AB66) -> 0 | AM66: =SUM(AC66,AD66,AE66) -> 0 | AN66: =SUM(AF66,AG66,AH66) -> 0 | AO66: =SUM(AI66,AJ66,AK66) -> 0 | AP66: =AL66+AM66 -> 0 | AQ66: =AO66+AN66 -> 0 | AR66: =AP66+AQ66 -> 0 | AT66: =SUM((INDIRECT(AT$2&(ROW())):INDIRECT(AT$3&(ROW())))) -> 0 | AU66: =SUM(INDIRECT(AU$1&AU$2&$A66):INDIRECT(AU$1&AU$3&$A66)) -> 0 | AV66: 0 | AW66: 0 | AX66: =SUM(INDIRECT(AX$1&AX$2&$C66):INDIRECT(AX$1&AX$3&$C66))+SUM(INDIRECT(AX$1&AX$2&$D66):INDIRECT(AX$1&AX$3&$D66)) -> 0 | AY66: 0 | AZ66: 0 | BB66: =SUM((INDIRECT(BB$2&(ROW())):INDIRECT(BB$3&(ROW())))) -> 0 | BC66: =SUM(INDIRECT(BC$1&BC$2&$A66):INDIRECT(BC$1&BC$3&$A66)) -> 0 | BD66: 0 | BE66: 0 | BF66: =SUM(INDIRECT(BF$1&BF$2&$C66):INDIRECT(BF$1&BF$3&$C66))+SUM(INDIRECT(BF$1&BF$2&$D66):INDIRECT(BF$1&BF$3&$D66)) -> 0 | BG66: 0 | BH66: 0 | BJ66: =SUM((INDIRECT(BJ$2&(ROW())):INDIRECT(BJ$3&(ROW())))) -> 0 | BK66: =SUM(INDIRECT(BK$1&BK$2&$A66):INDIRECT(BK$1&BK$3&$A66)) -> 0 | BL66: 0 | BM66: 0 | BN66: =SUM(INDIRECT(BN$1&BN$2&$C66):INDIRECT(BN$1&BN$3&$C66))+SUM(INDIRECT(BN$1&BN$2&$D66):INDIRECT(BN$1&BN$3&$D66)) -> 0 | BO66: 0 | BP66: 0
A67: 67 | B67: 1 | C67: 67 | D67: 1 | E67: 1 | F67: 1 | G67: 1 | H67: 1 | I67: 1 | J67: 1 | K67: 1 | M67: RF | R67: Other income | Y67: =CHOOSE(2, "6773000004386", "BO,OE Other income Other income") -> BO,OE Other income Other income | Z67: =Z62-SUM(Z63:Z66) -> 1740.02316 | AA67: =AA62-SUM(AA63:AA66) -> 5176 | AB67: =AB62-SUM(AB63:AB66) -> 1179.07438 | AC67: 1975.83202 | AD67: 2207.7707 | AE67: 0 | AF67: 0 | AG67: 0 | AH67: 0 | AI67: 0 | AJ67: 0 | AK67: 0 | AL67: =AL62-SUM(AL63:AL66) -> 8095.09754 | AM67: 4183.60272 | AN67: 0 | AO67: 0 | AP67: 12278.70026 | AQ67: 0 | AR67: 12278.70026 | AT67: =SUM((INDIRECT(AT$2&(ROW())):INDIRECT(AT$3&(ROW())))) -> 1179.07438 | AU67: =SUM(INDIRECT(AU$1&AU$2&$A67):INDIRECT(AU$1&AU$3&$A67)) -> 250 | AV67: 929.07438 | AW67: 4.71629752 | AX67: =SUM(INDIRECT(AX$1&AX$2&$C67):INDIRECT(AX$1&AX$3&$C67))+SUM(INDIRECT(AX$1&AX$2&$D67):INDIRECT(AX$1&AX$3&$D67)) -> 1463 | AY67: -283.92562 | AZ67: 0.8059291729 | BB67: =SUM((INDIRECT(BB$2&(ROW())):INDIRECT(BB$3&(ROW())))) -> 8095.09754 | BC67: =SUM(INDIRECT(BC$1&BC$2&$A67):INDIRECT(BC$1&BC$3&$A67)) -> 750 | BD67: 7345.09754 | BE67: 10.79346339 | BF67: =SUM(INDIRECT(BF$1&BF$2&$C67):INDIRECT(BF$1&BF$3&$C67))+SUM(INDIRECT(BF$1&BF$2&$D67):INDIRECT(BF$1&BF$3&$D67)) -> 6498 | BG67: 1597.09754 | BH67: 1.245782939 | BJ67: =SUM((INDIRECT(BJ$2&(ROW())):INDIRECT(BJ$3&(ROW())))) -> 8095.09754 | BK67: =SUM(INDIRECT(BK$1&BK$2&$A67):INDIRECT(BK$1&BK$3&$A67)) -> 750 | BL67: 7345.09754 | BM67: 10.79346339 | BN67: =SUM(INDIRECT(BN$1&BN$2&$C67):INDIRECT(BN$1&BN$3&$C67))+SUM(INDIRECT(BN$1&BN$2&$D67):INDIRECT(BN$1&BN$3&$D67)) -> 6498 | BO67: 1597.09754 | BP67: 1.245782939
A68: 68 | B68: 1 | C68: 68 | D68: 1 | E68: 1 | F68: 1 | G68: 1 | H68: 1 | I68: 1 | J68: 1 | K68: 1 | M68: RF | Q68: Other Expense | Y68: =CHOOSE(2, "6773000004387", "BO,OE Other Expense") -> BO,OE Other Expense | Z68: =Z27 -> 2487.591 | AA68: =AA27 -> 2047 | AB68: =AB27 -> 0 | AC68: 0 | AD68: 4921.55225 | AE68: 0 | AF68: 0 | AG68: 0 | AH68: 11465.409 | AI68: 0 | AJ68: 0 | AK68: 0 | AL68: =AL27 -> 4534.591 | AM68: 4921.55225 | AN68: 11465.409 | AO68: 0 | AP68: 9456.14325 | AQ68: 11465.409 | AR68: 20921.55225 | AT68: =SUM((INDIRECT(AT$2&(ROW())):INDIRECT(AT$3&(ROW())))) -> 0 | AU68: =SUM(INDIRECT(AU$1&AU$2&$A68):INDIRECT(AU$1&AU$3&$A68)) -> 0 | AV68: 0 | AW68: 0 | AX68: =SUM(INDIRECT(AX$1&AX$2&$C68):INDIRECT(AX$1&AX$3&$C68))+SUM(INDIRECT(AX$1&AX$2&$D68):INDIRECT(AX$1&AX$3&$D68)) -> 0 | AY68: 0 | AZ68: 0 | BB68: =SUM((INDIRECT(BB$2&(ROW())):INDIRECT(BB$3&(ROW())))) -> 4534.591 | BC68: =SUM(INDIRECT(BC$1&BC$2&$A68):INDIRECT(BC$1&BC$3&$A68)) -> 0 | BD68: 4534.591 | BE68: 0 | BF68: =SUM(INDIRECT(BF$1&BF$2&$C68):INDIRECT(BF$1&BF$3&$C68))+SUM(INDIRECT(BF$1&BF$2&$D68):INDIRECT(BF$1&BF$3&$D68)) -> 0 | BG68: 4534.591 | BH68: 0 | BJ68: =SUM((INDIRECT(BJ$2&(ROW())):INDIRECT(BJ$3&(ROW())))) -> 4534.591 | BK68: =SUM(INDIRECT(BK$1&BK$2&$A68):INDIRECT(BK$1&BK$3&$A68)) -> 0 | BL68: 4534.591 | BM68: 0 | BN68: =SUM(INDIRECT(BN$1&BN$2&$C68):INDIRECT(BN$1&BN$3&$C68))+SUM(INDIRECT(BN$1&BN$2&$D68):INDIRECT(BN$1&BN$3&$D68)) -> 0 | BO68: 4534.591 | BP68: 0
A69: 69 | B69: 1 | C69: 69 | D69: 1 | E69: 1 | F69: 1 | G69: 1 | H69: 1 | I69: 1 | J69: 1 | K69: 1 | M69: RF | R69: Losses on Sales of Asset, Disposal of Asset | Y69: =CHOOSE(2, "6773000004388", "BO,OE Other Expense LSA, DA") -> BO,OE Other Expense LSA, DA | AL69: =SUM(Z69,AA69,AB69) -> 0 | AM69: =SUM(AC69,AD69,AE69) -> 0 | AN69: =SUM(AF69,AG69,AH69) -> 0 | AO69: =SUM(AI69,AJ69,AK69) -> 0 | AP69: =AL69+AM69 -> 0 | AQ69: =AO69+AN69 -> 0 | AR69: =AP69+AQ69 -> 0 | AT69: =SUM((INDIRECT(AT$2&(ROW())):INDIRECT(AT$3&(ROW())))) -> 0 | AU69: =SUM(INDIRECT(AU$1&AU$2&$A69):INDIRECT(AU$1&AU$3&$A69)) -> 0 | AV69: 0 | AW69: 0 | AX69: =SUM(INDIRECT(AX$1&AX$2&$C69):INDIRECT(AX$1&AX$3&$C69))+SUM(INDIRECT(AX$1&AX$2&$D69):INDIRECT(AX$1&AX$3&$D69)) -> 0 | AY69: 0 | AZ69: 0 | BB69: =SUM((INDIRECT(BB$2&(ROW())):INDIRECT(BB$3&(ROW())))) -> 0 | BC69: =SUM(INDIRECT(BC$1&BC$2&$A69):INDIRECT(BC$1&BC$3&$A69)) -> 0 | BD69: 0 | BE69: 0 | BF69: =SUM(INDIRECT(BF$1&BF$2&$C69):INDIRECT(BF$1&BF$3&$C69))+SUM(INDIRECT(BF$1&BF$2&$D69):INDIRECT(BF$1&BF$3&$D69)) -> 0 | BG69: 0 | BH69: 0 | BJ69: =SUM((INDIRECT(BJ$2&(ROW())):INDIRECT(BJ$3&(ROW())))) -> 0 | BK69: =SUM(INDIRECT(BK$1&BK$2&$A69):INDIRECT(BK$1&BK$3&$A69)) -> 0 | BL69: 0 | BM69: 0 | BN69: =SUM(INDIRECT(BN$1&BN$2&$C69):INDIRECT(BN$1&BN$3&$C69))+SUM(INDIRECT(BN$1&BN$2&$D69):INDIRECT(BN$1&BN$3&$D69)) -> 0 | BO69: 0 | BP69: 0
A70: 70 | B70: 1 | C70: 70 | D70: 1 | E70: 1 | F70: 1 | G70: 1 | H70: 1 | I70: 1 | J70: 1 | K70: 1 | M70: RF | R70: Impairment Loss | Y70: =CHOOSE(2, "6773000004389", "BO,OE Other Expense Impairment Loss") -> BO,OE Other Expense Impairment Loss | AL70: =SUM(Z70,AA70,AB70) -> 0 | AM70: =SUM(AC70,AD70,AE70) -> 0 | AN70: =SUM(AF70,AG70,AH70) -> 0 | AO70: =SUM(AI70,AJ70,AK70) -> 0 | AP70: =AL70+AM70 -> 0 | AQ70: =AO70+AN70 -> 0 | AR70: =AP70+AQ70 -> 0 | AT70: =SUM((INDIRECT(AT$2&(ROW())):INDIRECT(AT$3&(ROW())))) -> 0 | AU70: =SUM(INDIRECT(AU$1&AU$2&$A70):INDIRECT(AU$1&AU$3&$A70)) -> 0 | AV70: 0 | AW70: 0 | AX70: =SUM(INDIRECT(AX$1&AX$2&$C70):INDIRECT(AX$1&AX$3&$C70))+SUM(INDIRECT(AX$1&AX$2&$D70):INDIRECT(AX$1&AX$3&$D70)) -> 0 | AY70: 0 | AZ70: 0 | BB70: =SUM((INDIRECT(BB$2&(ROW())):INDIRECT(BB$3&(ROW())))) -> 0 | BC70: =SUM(INDIRECT(BC$1&BC$2&$A70):INDIRECT(BC$1&BC$3&$A70)) -> 0 | BD70: 0 | BE70: 0 | BF70: =SUM(INDIRECT(BF$1&BF$2&$C70):INDIRECT(BF$1&BF$3&$C70))+SUM(INDIRECT(BF$1&BF$2&$D70):INDIRECT(BF$1&BF$3&$D70)) -> 0 | BG70: 0 | BH70: 0 | BJ70: =SUM((INDIRECT(BJ$2&(ROW())):INDIRECT(BJ$3&(ROW())))) -> 0 | BK70: =SUM(INDIRECT(BK$1&BK$2&$A70):INDIRECT(BK$1&BK$3&$A70)) -> 0 | BL70: 0 | BM70: 0 | BN70: =SUM(INDIRECT(BN$1&BN$2&$C70):INDIRECT(BN$1&BN$3&$C70))+SUM(INDIRECT(BN$1&BN$2&$D70):INDIRECT(BN$1&BN$3&$D70)) -> 0 | BO70: 0 | BP70: 0
A71: 71 | B71: 1 | C71: 71 | D71: 1 | E71: 1 | F71: 1 | G71: 1 | H71: 1 | I71: 1 | J71: 1 | K71: 1 | M71: RF | R71: Restructuring Expense | Y71: =CHOOSE(2, "6773000004390", "BO,OE Other Expense Restructuring Expense") -> BO,OE Other Expense Restructuring Expense | AL71: =SUM(Z71,AA71,AB71) -> 0 | AM71: =SUM(AC71,AD71,AE71) -> 0 | AN71: =SUM(AF71,AG71,AH71) -> 0 | AO71: =SUM(AI71,AJ71,AK71) -> 0 | AP71: =AL71+AM71 -> 0 | AQ71: =AO71+AN71 -> 0 | AR71: =AP71+AQ71 -> 0 | AT71: =SUM((INDIRECT(AT$2&(ROW())):INDIRECT(AT$3&(ROW())))) -> 0 | AU71: =SUM(INDIRECT(AU$1&AU$2&$A71):INDIRECT(AU$1&AU$3&$A71)) -> 0 | AV71: 0 | AW71: 0 | AX71: =SUM(INDIRECT(AX$1&AX$2&$C71):INDIRECT(AX$1&AX$3&$C71))+SUM(INDIRECT(AX$1&AX$2&$D71):INDIRECT(AX$1&AX$3&$D71)) -> 0 | AY71: 0 | AZ71: 0 | BB71: =SUM((INDIRECT(BB$2&(ROW())):INDIRECT(BB$3&(ROW())))) -> 0 | BC71: =SUM(INDIRECT(BC$1&BC$2&$A71):INDIRECT(BC$1&BC$3&$A71)) -> 0 | BD71: 0 | BE71: 0 | BF71: =SUM(INDIRECT(BF$1&BF$2&$C71):INDIRECT(BF$1&BF$3&$C71))+SUM(INDIRECT(BF$1&BF$2&$D71):INDIRECT(BF$1&BF$3&$D71)) -> 0 | BG71: 0 | BH71: 0 | BJ71: =SUM((INDIRECT(BJ$2&(ROW())):INDIRECT(BJ$3&(ROW())))) -> 0 | BK71: =SUM(INDIRECT(BK$1&BK$2&$A71):INDIRECT(BK$1&BK$3&$A71)) -> 0 | BL71: 0 | BM71: 0 | BN71: =SUM(INDIRECT(BN$1&BN$2&$C71):INDIRECT(BN$1&BN$3&$C71))+SUM(INDIRECT(BN$1&BN$2&$D71):INDIRECT(BN$1&BN$3&$D71)) -> 0 | BO71: 0 | BP71: 0
A72: 72 | B72: 1 | C72: =C71+1 -> 72 | D72: 1 | E72: 1 | F72: 1 | G72: 1 | H72: 1 | I72: 1 | J72: 1 | K72: 1 | M72: RF | R72: Expense for layoff benefit | Y72: =CHOOSE(2, "6773000004391", "BO,OE Other Expense Expense for layoff benefit") -> BO,OE Other Expense Expense for layoff benefit | AL72: =SUM(Z72,AA72,AB72) -> 0 | AM72: =SUM(AC72,AD72,AE72) -> 0 | AN72: =SUM(AF72,AG72,AH72) -> 0 | AO72: =SUM(AI72,AJ72,AK72) -> 0 | AP72: =AL72+AM72 -> 0 | AQ72: =AO72+AN72 -> 0 | AR72: =AP72+AQ72 -> 0 | AT72: =SUM((INDIRECT(AT$2&(ROW())):INDIRECT(AT$3&(ROW())))) -> 0 | AU72: =SUM(INDIRECT(AU$1&AU$2&$A72):INDIRECT(AU$1&AU$3&$A72)) -> 0 | AV72: 0 | AW72: 0 | AX72: =SUM(INDIRECT(AX$1&AX$2&$C72):INDIRECT(AX$1&AX$3&$C72))+SUM(INDIRECT(AX$1&AX$2&$D72):INDIRECT(AX$1&AX$3&$D72)) -> 0 | AY72: 0 | AZ72: 0 | BB72: =SUM((INDIRECT(BB$2&(ROW())):INDIRECT(BB$3&(ROW())))) -> 0 | BC72: =SUM(INDIRECT(BC$1&BC$2&$A72):INDIRECT(BC$1&BC$3&$A72)) -> 0 | BD72: 0 | BE72: 0 | BF72: =SUM(INDIRECT(BF$1&BF$2&$C72):INDIRECT(BF$1&BF$3&$C72))+SUM(INDIRECT(BF$1&BF$2&$D72):INDIRECT(BF$1&BF$3&$D72)) -> 0 | BG72: 0 | BH72: 0 | BJ72: =SUM((INDIRECT(BJ$2&(ROW())):INDIRECT(BJ$3&(ROW())))) -> 0 | BK72: =SUM(INDIRECT(BK$1&BK$2&$A72):INDIRECT(BK$1&BK$3&$A72)) -> 0 | BL72: 0 | BM72: 0 | BN72: =SUM(INDIRECT(BN$1&BN$2&$C72):INDIRECT(BN$1&BN$3&$C72))+SUM(INDIRECT(BN$1&BN$2&$D72):INDIRECT(BN$1&BN$3&$D72)) -> 0 | BO72: 0 | BP72: 0
A73: 73 | B73: 1 | C73: 1 | D73: 1 | E73: 1 | F73: 1 | G73: 1 | H73: 1 | I73: 1 | J73: 1 | K73: 1 | M73: RF | R73: Legal fee / Litigation Costs | Y73: =CHOOSE(2, "6773000006077", "BO,OE Other Expense Legal fee / Litigation Costs") -> BO,OE Other Expense Legal fee / Litigation Costs | AL73: =SUM(Z73,AA73,AB73) -> 0 | AM73: =SUM(AC73,AD73,AE73) -> 0 | AN73: =SUM(AF73,AG73,AH73) -> 0 | AO73: =SUM(AI73,AJ73,AK73) -> 0 | AP73: =AL73+AM73 -> 0 | AQ73: =AO73+AN73 -> 0 | AR73: =AP73+AQ73 -> 0 | AT73: =SUM((INDIRECT(AT$2&(ROW())):INDIRECT(AT$3&(ROW())))) -> 0 | AU73: =SUM(INDIRECT(AU$1&AU$2&$A73):INDIRECT(AU$1&AU$3&$A73)) -> 0 | AV73: =AT73-AU73 -> 0 | AW73: =IFERROR(AT73/AU73,0) -> 0 | AX73: =SUM(INDIRECT(AX$1&AX$2&$C73):INDIRECT(AX$1&AX$3&$C73))+SUM(INDIRECT(AX$1&AX$2&$D73):INDIRECT(AX$1&AX$3&$D73)) -> 0 | AY73: =AT73-AX73 -> 0 | AZ73: =IFERROR(AT73/AX73,0) -> 0 | BB73: =SUM((INDIRECT(BB$2&(ROW())):INDIRECT(BB$3&(ROW())))) -> 0 | BC73: =SUM(INDIRECT(BC$1&BC$2&$A73):INDIRECT(BC$1&BC$3&$A73)) -> 0 | BD73: =BB73-BC73 -> 0 | BE73: =IFERROR(BB73/BC73,0) -> 0 | BF73: =SUM(INDIRECT(BF$1&BF$2&$C73):INDIRECT(BF$1&BF$3&$C73))+SUM(INDIRECT(BF$1&BF$2&$D73):INDIRECT(BF$1&BF$3&$D73)) -> 0 | BG73: =BB73-BF73 -> 0 | BH73: =IFERROR(BB73/BF73,0) -> 0 | BJ73: =SUM((INDIRECT(BJ$2&(ROW())):INDIRECT(BJ$3&(ROW())))) -> 0 | BK73: =SUM(INDIRECT(BK$1&BK$2&$A73):INDIRECT(BK$1&BK$3&$A73)) -> 0 | BL73: =BJ73-BK73 -> 0 | BM73: =IFERROR(BJ73/BK73,0) -> 0 | BN73: =SUM(INDIRECT(BN$1&BN$2&$C73):INDIRECT(BN$1&BN$3&$C73))+SUM(INDIRECT(BN$1&BN$2&$D73):INDIRECT(BN$1&BN$3&$D73)) -> 0 | BO73: =BJ73-BN73 -> 0 | BP73: =IFERROR(BJ73/BN73,0) -> 0
A74: 74 | B74: 1 | C74: =C72+1 -> 73 | D74: 1 | E74: 1 | F74: 1 | G74: 1 | H74: 1 | I74: 1 | J74: 1 | K74: 1 | M74: RF | R74: Other Expense | Y74: =CHOOSE(2, "6773000004392", "BO,OE Other Expense Other Expense") -> BO,OE Other Expense Other Expense | Z74: =Z68-SUM(Z69:Z73) -> 2487.591 | AA74: =AA68-SUM(AA69:AA73) -> 2047 | AB74: =AB68-SUM(AB69:AB73) -> 0 | AC74: 0 | AD74: 4921.55225 | AE74: 0 | AF74: 0 | AG74: 0 | AH74: 11465.409 | AI74: 0 | AJ74: 0 | AK74: 0 | AL74: =AL68-SUM(AL69:AL73) -> 4534.591 | AM74: 4921.55225 | AN74: 11465.409 | AO74: 0 | AP74: 9456.14325 | AQ74: 11465.409 | AR74: 20921.55225 | AT74: =SUM((INDIRECT(AT$2&(ROW())):INDIRECT(AT$3&(ROW())))) -> 0 | AU74: =SUM(INDIRECT(AU$1&AU$2&$A74):INDIRECT(AU$1&AU$3&$A74)) -> 0 | AV74: =AT74-AU74 -> 0 | AW74: =IFERROR(AT74/AU74,0) -> 0 | AX74: =SUM(INDIRECT(AX$1&AX$2&$C74):INDIRECT(AX$1&AX$3&$C74))+SUM(INDIRECT(AX$1&AX$2&$D74):INDIRECT(AX$1&AX$3&$D74)) -> 0 | AY74: =AT74-AX74 -> 0 | AZ74: =IFERROR(AT74/AX74,0) -> 0 | BB74: =SUM((INDIRECT(BB$2&(ROW())):INDIRECT(BB$3&(ROW())))) -> 4534.591 | BC74: =SUM(INDIRECT(BC$1&BC$2&$A74):INDIRECT(BC$1&BC$3&$A74)) -> 0 | BD74: =BB74-BC74 -> 4534.591 | BE74: =IFERROR(BB74/BC74,0) -> 0 | BF74: =SUM(INDIRECT(BF$1&BF$2&$C74):INDIRECT(BF$1&BF$3&$C74))+SUM(INDIRECT(BF$1&BF$2&$D74):INDIRECT(BF$1&BF$3&$D74)) -> 0 | BG74: =BB74-BF74 -> 4534.591 | BH74: =IFERROR(BB74/BF74,0) -> 0 | BJ74: =SUM((INDIRECT(BJ$2&(ROW())):INDIRECT(BJ$3&(ROW())))) -> 4534.591 | BK74: =SUM(INDIRECT(BK$1&BK$2&$A74):INDIRECT(BK$1&BK$3&$A74)) -> 0 | BL74: =BJ74-BK74 -> 4534.591 | BM74: =IFERROR(BJ74/BK74,0) -> 0 | BN74: =SUM(INDIRECT(BN$1&BN$2&$C74):INDIRECT(BN$1&BN$3&$C74))+SUM(INDIRECT(BN$1&BN$2&$D74):INDIRECT(BN$1&BN$3&$D74)) -> 0 | BO74: =BJ74-BN74 -> 4534.591 | BP74: =IFERROR(BJ74/BN74,0) -> 0
A75: 75 | B75: 1 | C75: =C74+1 -> 74 | D75: 1 | E75: 1 | F75: 1 | G75: 1 | H75: 1 | I75: 1 | J75: 1 | K75: 1 | L75: MTP | M75: RF | Y75: =CHOOSE(2, "6773000004393", "▷ Blank 5") -> ▷ Blank 5
A76: 76 | B76: 1 | C76: 75 | D76: 1 | E76: 1 | F76: 1 | G76: 1 | H76: 1 | I76: 1 | J76: 1 | K76: 1 | L76: MTP | M76: RF | N76: 2. P/L (2) - Overview by BU | Y76: =CHOOSE(2, "6773000004394", "2. P/L (2) - Overview by BU") -> 2. P/L (2) - Overview by BU
A77: 77 | B77: 1 | C77: 76 | D77: 1 | E77: 1 | F77: 1 | G77: 1 | H77: 1 | I77: 1 | J77: 1 | K77: 1 | L77: MTP | M77: RF | O77: 2-1. P/L Statement by BU | Y77: =CHOOSE(2, "6773000004395", "2-1. P/L Statement by BU") -> 2-1. P/L Statement by BU
A78: 78 | B78: 1 | C78: 77 | D78: 1 | E78: 1 | F78: 1 | G78: 1 | H78: 1 | I78: 1 | J78: 1 | K78: 1 | L78: MTP | M78: RF | P78: (1) Office | Y78: =CHOOSE(2, "6773000004396", "PL (1) Office") -> PL (1) Office
A79: =A78+1 -> 79 | B79: 1 | C79: 78 | D79: 1 | E79: 1 | F79: 1 | G79: 1 | H79: 1 | I79: 1 | J79: 1 | K79: 1 | L79: MTP | M79: RF | Y79: =CHOOSE(2, "6773000004397", "▷ Blank 6") -> ▷ Blank 6 | Z79: =Z13 -> 2023-04-01 | AA79: 2023-05-01 | AB79: 2023-06-01 | AC79: 2023-07-01 | AD79: 2023-08-01 | AE79: 2023-09-01 | AF79: 2023-10-01 | AG79: 2023-11-01 | AH79: 2023-12-01 | AI79: 2024-01-01 | AJ79: 2024-02-01 | AK79: 2024-03-01 | AL79: =AL$13 -> Q1 | AM79: Q2 | AN79: Q3 | AO79: Q4 | AP79: 1st H | AQ79: 2nd H | AR79: Year | AT79: =AT$13 -> Result | AU79: OP | AV79: vs OP | AW79: % | AX79: FY23 | AY79: vs FY23 | AZ79: % | BB79: Result | BC79: OP | BD79: vs OP | BE79: % | BF79: FY23 | BG79: vs FY23 | BH79: % | BJ79: Result | BK79: OP | BL79: vs OP | BM79: % | BN79: FY23 | BO79: vs FY23 | BP79: %
A80: 80 | B80: 1 | C80: 79 | D80: 1 | E80: 1 | F80: 1 | G80: 1 | H80: 1 | I80: 1 | J80: 1 | K80: 1 | L80: MTP | M80: RF | Q80: Net Sales | Y80: =CHOOSE(2, "6773000004398", "PL Net Sales") -> PL Net Sales | Z80: =Z107+Z150 -> 327817.9509 | AA80: =AA107+AA150 -> 309239.7093 | AB80: 342609.9781 | AC80: =AC107+AC150 -> 305101.0678 | AD80: =AD107+AD150 -> 320312.0536 | AE80: 397892.4867 | AF80: 269025.2272 | AG80: 291873.13 | AH80: 324234.9795 | AI80: 294099.5961 | AJ80: 311324.1885 | AK80: 317125.2469 | AL80: =SUM(Z80,AA80,AB80) -> 979667.6382 | AM80: =SUM(AC80,AD80,AE80) -> 1023305.608 | AN80: =SUM(AF80,AG80,AH80) -> 885133.3366 | AO80: =SUM(AI80,AJ80,AK80) -> 922549.0315 | AP80: =AL80+AM80 -> 2002973.246 | AQ80: =AO80+AN80 -> 1807682.368 | AR80: =AP80+AQ80 -> 3810655.614 | AT80: =AT107+AT150 -> 342609.9781 | AU80: =AU107+AU150 -> 336854.9979 | AV80: =AT80-AU80 -> 5754.980166 | AW80: =IFERROR(AT80/AU80,0) -> 1.017084443 | AX80: =AX107+AX150 -> 319681.6248 | AY80: =AT80-AX80 -> 22928.35325 | AZ80: =IFERROR(AT80/AX80,0) -> 1.071722462 | BB80: =BB107+BB150 -> 979667.6382 | BC80: =BC107+BC150 -> 995523.0568 | BD80: =BB80-BC80 -> -15855.41856 | BE80: =IFERROR(BB80/BC80,0) -> 0.9840732784 | BF80: =BF107+BF150 -> 907166.826 | BG80: =BB80-BF80 -> 72500.81222 | BH80: =IFERROR(BB80/BF80,0) -> 1.079920044 | BJ80: =BJ107+BJ150 -> 979667.6382 | BK80: =BK107+BK150 -> 995523.0568 | BL80: =BJ80-BK80 -> -15855.41856 | BM80: =IFERROR(BJ80/BK80,0) -> 0.9840732784 | BN80: =BN107+BN150 -> 907166.826 | BO80: =BJ80-BN80 -> 72500.81222 | BP80: =IFERROR(BJ80/BN80,0) -> 1.079920044
A81: 81 | B81: 1 | C81: 80 | D81: 1 | E81: 1 | F81: 1 | G81: 1 | H81: 1 | I81: 1 | J81: 1 | K81: 1 | L81: MTP | M81: RF | Q81: BT Consolidated Sales | Y81: =CHOOSE(2, "6773000004399", "PL BT Cons. Sales") -> PL BT Cons. Sales | Z81: =Z111+Z151 -> 327817.9509 | AA81: =AA111+AA151 -> 309239.7093 | AB81: 342609.9781 | AC81: =AC111+AC151 -> 305101.0678 | AD81: =AD111+AD151 -> 320312.0536 | AE81: 397892.4867 | AF81: 269025.2272 | AG81: 291873.13 | AH81: 324234.9795 | AI81: 294099.5961 | AJ81: 311324.1885 | AK81: 317125.2469 | AL81: =SUM(Z81,AA81,AB81) -> 979667.6382 | AM81: =SUM(AC81,AD81,AE81) -> 1023305.608 | AN81: =SUM(AF81,AG81,AH81) -> 885133.3366 | AO81: =SUM(AI81,AJ81,AK81) -> 922549.0315 | AP81: =AL81+AM81 -> 2002973.246 | AQ81: =AO81+AN81 -> 1807682.368 | AR81: =AP81+AQ81 -> 3810655.614 | AT81: =AT111+AT151 -> 342609.9781 | AU81: =AU111+AU151 -> 336854.9979 | AV81: 5754.980166 | AW81: 1.017084443 | AX81: =AX111+AX151 -> 319681.6248 | AY81: 22928.35325 | AZ81: 1.071722462 | BB81: =BB111+BB151 -> 979667.6382 | BC81: =BC111+BC151 -> 995523.0568 | BD81: -15855.41856 | BE81: 0.9840732784 | BF81: =BF111+BF151 -> 907167.321 | BG81: 72500.31722 | BH81: 1.079919454 | BJ81: =BJ111+BJ151 -> 979667.6382 | BK81: =BK111+BK151 -> 995523.0568 | BL81: -15855.41856 | BM81: 0.9840732784 | BN81: =BN111+BN151 -> 907167.321 | BO81: 72500.31722 | BP81: 1.079919454
A82: 82 | B82: 1 | C82: 81 | D82: 1 | E82: 1 | F82: 1 | G82: 1 | H82: 1 | I82: 1 | J82: 1 | K82: 1 | L82: MTP | M82: RF | Q82: Gross Profit | Y82: =CHOOSE(2, "6773000004400", "PL Gross Profit") -> PL Gross Profit | Z82: =Z130+Z152 -> 124363.4512 | AA82: =AA130+AA152 -> 107054.8949 | AB82: =AB130+AB152 -> 122146.2085 | AC82: 106516.8141 | AD82: =AD130+AD152 -> 119323.9698 | AE82: 143032.7072 | AF82: 92068.2355 | AG82: 97350.99964 | AH82: 107734.3664 | AI82: 93568.24847 | AJ82: 97591.85994 | AK82: 99107.56454 | AL82: =SUM(Z82,AA82,AB82) -> 353564.5546 | AM82: =SUM(AC82,AD82,AE82) -> 368873.4911 | AN82: =SUM(AF82,AG82,AH82) -> 297153.6016 | AO82: =SUM(AI82,AJ82,AK82) -> 290267.6729 | AP82: =AL82+AM82 -> 722438.0457 | AQ82: =AO82+AN82 -> 587421.2745 | AR82: =AP82+AQ82 -> 1309859.32 | AT82: =AT130+AT152 -> 122146.2085 | AU82: =AU130+AU152 -> 97152.35467 | AV82: 24993.85384 | AW82: 1.257264519 | AX82: =AX130+AX152 -> 97777.98165 | AY82: 24368.22687 | AZ82: 1.249219982 | BB82: =BB130+BB152 -> 353564.5546 | BC82: =BC130+BC152 -> 300301.5558 | BD82: 53262.99885 | BE82: 1.177365045 | BF82: =BF130+BF152 -> 287771.5915 | BG82: 65792.96314 | BH82: 1.228629111 | BJ82: =BJ130+BJ152 -> 353564.5546 | BK82: =BK130+BK152 -> 300301.5558 | BL82: 53262.99885 | BM82: 1.177365045 | BN82: =BN130+BN152 -> 287771.5915 | BO82: 65792.96314 | BP82: 1.228629111
A83: 83 | B83: 1 | C83: 82 | D83: 1 | E83: 1 | F83: 1 | G83: 1 | H83: 1 | I83: 1 | J83: 1 | K83: 1 | L83: MTP | M83: RF | Q83: SGA Expenses | Y83: =CHOOSE(2, "6773000004401", "PL SGA Expenses") -> PL SGA Expenses | Z83: =SUM(Z84:Z86) -> 93151.18931 | AA83: =SUM(AA84:AA86) -> 87520.90793 | AB83: =SUM(AB84:AB86) -> 97049.59163 | AC83: 94620.9398 | AD83: =SUM(AD84:AD86) -> 97018.76633 | AE83: 90465.83967 | AF83: 80674.25389 | AG83: 81213.61872 | AH83: 86285.34345 | AI83: 83337.34276 | AJ83: 83190.97417 | AK83: 86619.38084 | AL83: =SUM(AL84:AL86) -> 277721.6889 | AM83: 282105.5458 | AN83: 248173.2161 | AO83: 253147.6978 | AP83: 559827.2347 | AQ83: 501320.9138 | AR83: 1061148.149 | AT83: =SUM(AT84:AT86) -> 97049.59163 | AU83: =SUM(AU84:AU86) -> 77492.74266 | AV83: 19556.84897 | AW83: 1.252370071 | AX83: =SUM(AX84:AX86) -> 71900.7901 | AY83: 25148.80153 | AZ83: 1.349770865 | BB83: =SUM(BB84:BB86) -> 277721.6889 | BC83: =SUM(BC84:BC86) -> 232736.0034 | BD83: 44985.68547 | BE83: 1.193290616 | BF83: =SUM(BF84:BF86) -> 242605.8302 | BG83: 35115.85871 | BH83: 1.144744496 | BJ83: =SUM(BJ84:BJ86) -> 277721.6889 | BK83: =SUM(BK84:BK86) -> 232736.0034 | BL83: 44985.68547 | BM83: 1.193290616 | BN83: =SUM(BN84:BN86) -> 242605.8302 | BO83: 35115.85871 | BP83: 1.144744496
A84: 84 | B84: 1 | C84: 83 | D84: 1 | E84: 1 | F84: 1 | G84: 1 | H84: 1 | I84: 1 | J84: 1 | K84: 1 | L84: MTP | M84: RF | R84: Variable Expenses | Y84: =CHOOSE(2, "6773000004402", "PL SGA Expenses Variable Expenses") -> PL SGA Expenses Variable Expenses | Z84: =Z139+Z154 -> 45294.19834 | AA84: =AA139+AA154 -> 31970.56324 | AB84: 44212.15397 | AC84: =AC139+AC154 -> 41653.20977 | AD84: =AD139+AD154 -> 40730.85379 | AE84: 35814.30248 | AF84: 28271.93253 | AG84: 28229.65338 | AH84: 32806.55308 | AI84: 29898.41197 | AJ84: 29827.2303 | AK84: 29806.47269 | AL84: =SUM(Z84,AA84,AB84) -> 121476.9156 | AM84: =SUM(AC84,AD84,AE84) -> 118198.366 | AN84: =SUM(AF84,AG84,AH84) -> 89308.13898 | AO84: =SUM(AI84,AJ84,AK84) -> 89532.11496 | AP84: =AL84+AM84 -> 239675.2816 | AQ84: =AO84+AN84 -> 178840.2539 | AR84: =AP84+AQ84 -> 418515.5355 | AT84: =AT139+AT154 -> 44212.15397 | AU84: 25153.69636 | AV84: 19058.45761 | AW84: 1.757680197 | AX84: =AX139+AX154 -> 36525.783 | AY84: 7686.370974 | AZ84: 1.210436857 | BB84: =BB139+BB154 -> 121476.9156 | BC84: 75501.44469 | BD84: 45975.47087 | BE84: 1.608934982 | BF84: =BF139+BF154 -> 88212.9354 | BG84: 33263.98016 | BH84: 1.377087329 | BJ84: =BJ139+BJ154 -> 121476.9156 | BK84: 75501.44469 | BL84: 45975.47087 | BM84: 1.608934982 | BN84: =BN139+BN154 -> 88212.9354 | BO84: 33263.98016 | BP84: 1.377087329
A85: 85 | B85: 1 | C85: 84 | D85: 1 | E85: 1 | F85: 1 | G85: 1 | H85: 1 | I85: 1 | J85: 1 | K85: 1 | L85: MTP | M85: RF | R85: Wages & Salaries | Y85: =CHOOSE(2, "6773000004403", "PL SGA Expenses Wages & Salaries") -> PL SGA Expenses Wages & Salaries | Z85: 30034.67876 | AA85: =AA140+AA155 -> 32816.32612 | AB85: 29721.78291 | AC85: =AC140+AC155 -> 28238.78852 | AD85: =AD140+AD155 -> 30565.71609 | AE85: 33215.44609 | AF85: 32532.6579 | AG85: 32350.59635 | AH85: 32485.31656 | AI85: 32509.4446 | AJ85: 32408.29908 | AK85: 32427.46335 | AL85: 92572.78779 | AM85: 92019.95071 | AN85: 97368.57081 | AO85: 97345.20703 | AP85: =AL85+AM85 -> 184592.7385 | AQ85: =AO85+AN85 -> 194713.7778 | AR85: =AP85+AQ85 -> 379306.5163 | AT85: 29721.78291 | AU85: 32965.45853 | AV85: -3243.675612 | AW85: 0.9016038072 | AX85: =AX140+AX155 -> 30146.80998 | AY85: -425.0270614 | AZ85: 0.985901425 | BB85: 92572.78779 | BC85: 98839.12463 | BD85: -6266.33684 | BE85: 0.9366006441 | BF85: =BF140+BF155 -> 87320.05204 | BG85: 5252.735748 | BH85: 1.060154977 | BJ85: 92572.78779 | BK85: 98839.12463 | BL85: -6266.33684 | BM85: 0.9366006441 | BN85: =BN140+BN155 -> 87320.05204 | BO85: 5252.735748 | BP85: 1.060154977
A86: 86 | B86: 1 | C86: 85 | D86: 1 | E86: 1 | F86: 1 | G86: 1 | H86: 1 | I86: 1 | J86: 1 | K86: 1 | L86: MTP | M86: RF | R86: Fixed Expenses | Y86: =CHOOSE(2, "6773000004404", "PL SGA Expenses Fixed Expenses") -> PL SGA Expenses Fixed Expenses | Z86: 17822.31221 | AA86: =AA141+AA156 -> 22734.01856 | AB86: 23115.65475 | AC86: =AC141+AC156 -> 24728.9415 | AD86: =AD141+AD156 -> 25722.19645 | AE86: 21436.0911 | AF86: 19869.66346 | AG86: 20633.36899 | AH86: 20993.47382 | AI86: 20929.48619 | AJ86: 20955.44479 | AK86: 24385.44479 | AL86: 63671.98552 | AM86: 71887.22906 | AN86: 61496.50627 | AO86: 66270.37578 | AP86: =AL86+AM86 -> 135559.2146 | AQ86: =AO86+AN86 -> 127766.882 | AR86: =AP86+AQ86 -> 263326.0966 | AT86: 23115.65475 | AU86: 19373.58777 | AV86: 3742.066974 | AW86: 1.193153019 | AX86: =AX141+AX156 -> 5228.197129 | AY86: 17887.45762 | AZ86: 4.421343376 | BB86: 63671.98552 | BC86: 58395.43408 | BD86: 5276.551444 | BE86: 1.090358973 | BF86: =BF141+BF156 -> 67072.84272 | BG86: -3400.857194 | BH86: 0.949296063 | BJ86: 63671.98552 | BK86: 58395.43408 | BL86: 5276.551444 | BM86: 1.090358973 | BN86: =BN141+BN156 -> 67072.84272 | BO86: -3400.857194 | BP86: 0.949296063
A87: 87 | B87: 1 | C87: =C98+1 -> 91 | D87: 1 | E87: 1 | F87: 1 | G87: 1 | H87: 1 | I87: 1 | J87: 1 | K87: 1 | M87: RF | S87: SG&A: Direct Cost | Y87: =CHOOSE(2, "6773000006078", "PL SGA Expenses CAR Directly assigned") -> PL SGA Expenses CAR Directly assigned | Z87: =SUM(Z88:Z90) -> 59330.86158 | AA87: =SUM(AA88:AA90) -> 40308.01982 | AB87: =SUM(AB88:AB90) -> 71729.24314 | AC87: 42703.81469 | AD87: =SUM(AD88:AD90) -> 43176.86578 | AE87: 40000 | AF87: 40000 | AG87: 40000 | AH87: 40000 | AI87: 40000 | AJ87: 40000 | AK87: 40000 | AL87: 171368.1245 | AM87: 125880.6805 | AN87: 120000 | AO87: 120000 | AP87: =SUM(AP88:AP90) -> 297248.805 | AQ87: =SUM(AQ88:AQ90) -> 240000 | AR87: =SUM(AR88:AR90) -> 537248.805 | AT87: =SUM(AT88:AT90) -> 71729.24314 | AU87: =SUM(AU88:AU90) -> 41000 | AV87: =AT87-AU87 -> 30729.24314 | AW87: =IFERROR(AT87/AU87,0) -> 1.749493735 | AX87: =SUM(AX88:AX90) -> 36337.81787 | AY87: =AT87-AX87 -> 35391.42527 | AZ87: 1.973955712 | BB87: =SUM(BB88:BB90) -> 171368.1245 | BC87: =SUM(BC88:BC90) -> 123000 | BD87: =BB87-BC87 -> 48368.12454 | BE87: =IFERROR(BB87/BC87,0) -> 1.393236785 | BF87: =SUM(BF88:BF90) -> 115295.4904 | BG87: =BB87-BF87 -> 56072.63415 | BH87: 1.486338485 | BJ87: =SUM(BJ88:BJ90) -> 171368.1245 | BK87: =SUM(BK88:BK90) -> 123000 | BL87: =BJ87-BK87 -> 48368.12454 | BM87: =IFERROR(BJ87/BK87,0) -> 1.393236785 | BN87: =SUM(BN88:BN90) -> 115295.4904 | BO87: =BJ87-BN87 -> 56072.63415 | BP87: 1.486338485
A88: 88 | B88: 1 | C88: =C87+1 -> 92 | D88: 1 | E88: 1 | F88: 1 | G88: 1 | H88: 1 | I88: 1 | J88: 1 | K88: 1 | M88: RF | T88: Variable Expenses | Y88: =CHOOSE(2, "6773000006079", "PL SGA Expenses CAR Directly assigned VE") -> PL SGA Expenses CAR Directly assigned VE | Z88: 40969.61026 | AA88: 19472.41844 | AB88: 34705.91851 | AC88: 19743.28508 | AD88: 25069.79151 | AE88: 15000 | AF88: 15000 | AG88: 15000 | AH88: 15000 | AI88: 15000 | AJ88: 15000 | AK88: 15000 | AL88: 95147.94721 | AM88: 59813.07659 | AN88: 45000 | AO88: 45000 | AP88: =AL88+AM88 -> 154961.0238 | AQ88: =AO88+AN88 -> 90000 | AR88: =AP88+AQ88 -> 244961.0238 | AT88: =SUM((INDIRECT(AT$2&(ROW())):INDIRECT(AT$3&(ROW())))) -> 34705.91851 | AU88: =SUM(INDIRECT(AU$1&AU$2&$A88):INDIRECT(AU$1&AU$3&$A88)) -> 9500 | AV88: =AT88-AU88 -> 25205.91851 | AW88: =IFERROR(AT88/AU88,0) -> 3.65325458 | AX88: =SUM(INDIRECT(AX$1&AX$2&$C88):INDIRECT(AX$1&AX$3&$C88)) -> 12660.03108 | AY88: =AT88-AX88 -> 22045.88743 | AZ88: 2.741377039 | BB88: =SUM((INDIRECT(BB$2&(ROW())):INDIRECT(BB$3&(ROW())))) -> 95147.94721 | BC88: =SUM(INDIRECT(BC$1&BC$2&$A88):INDIRECT(BC$1&BC$3&$A88)) -> 28500 | BD88: =BB88-BC88 -> 66647.94721 | BE88: =IFERROR(BB88/BC88,0) -> 3.338524464 | BF88: =SUM(INDIRECT(BF$1&BF$2&$C88):INDIRECT(BF$1&BF$3&$C88)) -> 39853.80826 | BG88: =BB88-BF88 -> 55294.13895 | BH88: 2.387424223 | BJ88: =SUM((INDIRECT(BJ$2&(ROW())):INDIRECT(BJ$3&(ROW())))) -> 95147.94721 | BK88: =SUM(INDIRECT(BK$1&BK$2&$A88):INDIRECT(BK$1&BK$3&$A88)) -> 28500 | BL88: =BJ88-BK88 -> 66647.94721 | BM88: =IFERROR(BJ88/BK88,0) -> 3.338524464 | BN88: =SUM(INDIRECT(BN$1&BN$2&$C88):INDIRECT(BN$1&BN$3&$C88)) -> 39853.80826 | BO88: =BJ88-BN88 -> 55294.13895 | BP88: 2.387424223
A89: 89 | B89: 1 | C89: =C88+1 -> 93 | D89: 1 | E89: 1 | F89: 1 | G89: 1 | H89: 1 | I89: 1 | J89: 1 | K89: 1 | M89: RF | T89: Wages & Salaries | Y89: =CHOOSE(2, "6773000006080", "PL SGA Expenses CAR Directly assigned W&S") -> PL SGA Expenses CAR Directly assigned W&S | Z89: 15577.1746 | AA89: 18162.68074 | AB89: 19153.54138 | AC89: 20292.69059 | AD89: 13150.27728 | AE89: 17000 | AF89: 17000 | AG89: 17000 | AH89: 17000 | AI89: 17000 | AJ89: 17000 | AK89: 17000 | AL89: 52893.39671 | AM89: 50442.96786 | AN89: 51000 | AO89: 51000 | AP89: =AL89+AM89 -> 103336.3646 | AQ89: =AO89+AN89 -> 102000 | AR89: =AP89+AQ89 -> 205336.3646 | AT89: =SUM((INDIRECT(AT$2&(ROW())):INDIRECT(AT$3&(ROW())))) -> 19153.54138 | AU89: =SUM(INDIRECT(AU$1&AU$2&$A89):INDIRECT(AU$1&AU$3&$A89)) -> 21000 | AV89: =AT89-AU89 -> -1846.458623 | AW89: =IFERROR(AT89/AU89,0) -> 0.9120733989 | AX89: =SUM(INDIRECT(AX$1&AX$2&$C89):INDIRECT(AX$1&AX$3&$C89)) -> 20242.57063 | AY89: =AT89-AX89 -> -1089.029252 | AZ89: 0.9462010398 | BB89: =SUM((INDIRECT(BB$2&(ROW())):INDIRECT(BB$3&(ROW())))) -> 52893.39671 | BC89: =SUM(INDIRECT(BC$1&BC$2&$A89):INDIRECT(BC$1&BC$3&$A89)) -> 63000 | BD89: =BB89-BC89 -> -10106.60329 | BE89: =IFERROR(BB89/BC89,0) -> 0.8395777256 | BF89: =SUM(INDIRECT(BF$1&BF$2&$C89):INDIRECT(BF$1&BF$3&$C89)) -> 59420.76717 | BG89: =BB89-BF89 -> -6527.370454 | BH89: 0.8901500138 | BJ89: =SUM((INDIRECT(BJ$2&(ROW())):INDIRECT(BJ$3&(ROW())))) -> 52893.39671 | BK89: =SUM(INDIRECT(BK$1&BK$2&$A89):INDIRECT(BK$1&BK$3&$A89)) -> 63000 | BL89: =BJ89-BK89 -> -10106.60329 | BM89: =IFERROR(BJ89/BK89,0) -> 0.8395777256 | BN89: =SUM(INDIRECT(BN$1&BN$2&$C89):INDIRECT(BN$1&BN$3&$C89)) -> 59420.76717 | BO89: =BJ89-BN89 -> -6527.370454 | BP89: 0.8901500138
A90: 90 | B90: 1 | C90: =C89+1 -> 94 | D90: 1 | E90: 1 | F90: 1 | G90: 1 | H90: 1 | I90: 1 | J90: 1 | K90: 1 | M90: RF | T90: Fixed Expenses | Y90: =CHOOSE(2, "6773000006081", "PL SGA Expenses CAR Directly assigned FE") -> PL SGA Expenses CAR Directly assigned FE | Z90: 2784.076724 | AA90: 2672.920639 | AB90: 17869.78326 | AC90: 2667.839017 | AD90: 4956.796994 | AE90: 8000 | AF90: 8000 | AG90: 8000 | AH90: 8000 | AI90: 8000 | AJ90: 8000 | AK90: 8000 | AL90: 23326.78062 | AM90: 15624.63601 | AN90: 24000 | AO90: 24000 | AP90: =AL90+AM90 -> 38951.41663 | AQ90: =AO90+AN90 -> 48000 | AR90: =AP90+AQ90 -> 86951.41663 | AT90: =SUM((INDIRECT(AT$2&(ROW())):INDIRECT(AT$3&(ROW())))) -> 17869.78326 | AU90: =SUM(INDIRECT(AU$1&AU$2&$A90):INDIRECT(AU$1&AU$3&$A90)) -> 10500 | AV90: =AT90-AU90 -> 7369.783256 | AW90: =IFERROR(AT90/AU90,0) -> 1.70188412 | AX90: =SUM(INDIRECT(AX$1&AX$2&$C90):INDIRECT(AX$1&AX$3&$C90)) -> 3435.216161 | AY90: =AT90-AX90 -> 14434.56709 | AZ90: 5.201938514 | BB90: =SUM((INDIRECT(BB$2&(ROW())):INDIRECT(BB$3&(ROW())))) -> 23326.78062 | BC90: =SUM(INDIRECT(BC$1&BC$2&$A90):INDIRECT(BC$1&BC$3&$A90)) -> 31500 | BD90: =BB90-BC90 -> -8173.219382 | BE90: =IFERROR(BB90/BC90,0) -> 0.740532718 | BF90: =SUM(INDIRECT(BF$1&BF$2&$C90):INDIRECT(BF$1&BF$3&$C90)) -> 16020.91496 | BG90: =BB90-BF90 -> 7305.865656 | BH90: 1.4560205 | BJ90: =SUM((INDIRECT(BJ$2&(ROW())):INDIRECT(BJ$3&(ROW())))) -> 23326.78062 | BK90: =SUM(INDIRECT(BK$1&BK$2&$A90):INDIRECT(BK$1&BK$3&$A90)) -> 31500 | BL90: =BJ90-BK90 -> -8173.219382 | BM90: =IFERROR(BJ90/BK90,0) -> 0.740532718 | BN90: =SUM(INDIRECT(BN$1&BN$2&$C90):INDIRECT(BN$1&BN$3&$C90)) -> 16020.91496 | BO90: =BJ90-BN90 -> 7305.865656 | BP90: 1.4560205
A91: 91 | B91: 1 | C91: 1 | D91: 1 | E91: 1 | F91: 1 | G91: 1 | H91: 1 | I91: 1 | J91: 1 | K91: 1 | L91: MTP | M91: RF | Q91: Business Contribution Profit 1 ( GP - SGA Direct Cost ) | Y91: =CHOOSE(2, "6773000006082", "PL Business Contribution Profit 1") -> PL Business Contribution Profit 1 | Z91: =Z82-Z87 -> 65032.58966 | AA91: =AA82-AA87 -> 66746.87505 | AB91: =AB82-AB87 -> 50416.96537 | AC91: =AC82-AC87 -> 63812.99944 | AD91: 76147.10403 | AE91: 103032.7072 | AF91: 52068.2355 | AG91: 57350.99964 | AH91: 67734.36641 | AI91: 53568.24847 | AJ91: 57591.85994 | AK91: 59107.56454 | AL91: =AL82-AL87 -> 182196.4301 | AM91: 242992.8106 | AN91: 177153.6016 | AO91: 170267.6729 | AP91: 425189.2407 | AQ91: 347421.2745 | AR91: 772610.5152 | AT91: =AT82-AT87 -> 50416.96537 | AU91: =AU82-AU87 -> 56152.35467 | AV91: =AT91-AU91 -> -5735.3893 | AW91: =IFERROR(AT91/AU91,0) -> 0.8978602174 | AX91: =AX82-AX87 -> 61440.16378 | AY91: -11023.1984 | AZ91: 0.8205864417 | BB91: =BB82-BB87 -> 182196.4301 | BC91: =BC82-BC87 -> 177301.5558 | BD91: =BB91-BC91 -> 4894.874302 | BE91: =IFERROR(BB91/BC91,0) -> 1.027607622 | BF91: =BF82-BF87 -> 172476.1011 | BG91: =BB91-BF91 -> 9720.328993 | BH91: 1.056357541 | BJ91: =BJ82-BJ87 -> 182196.4301 | BK91: =BK82-BK87 -> 177301.5558 | BL91: =BJ91-BK91 -> 4894.874302 | BM91: =IFERROR(BJ91/BK91,0) -> 1.027607622 | BN91: =BN82-BN87 -> 172476.1011 | BO91: =BJ91-BN91 -> 9720.328993 | BP91: 1.056357541
A92: 92 | C92: 1 | E92: 1 | F92: 1 | G92: 1 | H92: 1 | I92: 1 | J92: 1 | K92: 1 | L92: MTP | R92: (%) | Y92: =CHOOSE(2, "6773000006083", "PL Business Contribution Profit 1 (%)") -> PL Business Contribution Profit 1 (%) | Z92: =IFERROR(Z91/Z80,0) -> 0.1983801969 | AA92: =IFERROR(AA91/AA80,0) -> 0.2158418633 | AB92: =IFERROR(AB91/AB80,0) -> 0.1471555664 | AC92: =IFERROR(AC91/AC80,0) -> 0.2091536418 | AD92: 0.2377278756 | AE92: 0.2589460988 | AF92: 0.193544063 | AG92: 0.1964929065 | AH92: 0.2089051789 | AI92: 0.1821432235 | AJ92: 0.1849899946 | AK92: 0.1863855531 | AL92: =IFERROR(AL91/AL80,0) -> 0.185977798 | AM92: 0.2374586915 | AN92: 0.2001434069 | AO92: 0.1845621936 | AP92: 0.2122790414 | AQ92: 0.192191549 | AR92: 0.2027500235 | AT92: =IFERROR(AT91/AT80,0) -> 0.1471555664 | AU92: =IFERROR(AU91/AU80,0) -> 0.1666959227 | AV92: -0.01954035626 | AX92: =IFERROR(AX91/AX80,0) -> 0.1921917277 | AY92: -0.04503616128 | BB92: =IFERROR(BB91/BB80,0) -> 0.185977798 | BC92: =IFERROR(BC91/BC80,0) -> 0.1780988944 | BD92: 0.007878903534 | BF92: =IFERROR(BF91/BF80,0) -> 0.1901261115 | BG92: -0.004148313525 | BJ92: =IFERROR(BJ91/BJ80,0) -> 0.185977798 | BK92: =IFERROR(BK91/BK80,0) -> 0.1780988944 | BL92: 0.007878903534 | BN92: =IFERROR(BN91/BN80,0) -> 0.1901261115 | BO92: -0.004148313525
A93: 93 | B93: 1 | C93: =C90+1 -> 95 | D93: 1 | E93: 1 | F93: 1 | G93: 1 | H93: 1 | I93: 1 | J93: 1 | K93: 1 | M93: RF | S93: SG&A: Allocation | Y93: =CHOOSE(2, "6773000006084", "PL SGA Expenses CAR Allocation") -> PL SGA Expenses CAR Allocation | Z93: =SUM(Z95:Z97) -> 33820.32773 | AA93: =SUM(AA95:AA97) -> 47212.88811 | AB93: =SUM(AB95:AB97) -> 25320.34849 | AC93: =SUM(AC95:AC97) -> 51917.12511 | AD93: 53841.90055 | AE93: 41314.30248 | AF93: 40674.25389 | AG93: 41213.61872 | AH93: 46285.34345 | AI93: 43337.34276 | AJ93: 43190.97417 | AK93: 46619.38084 | AL93: =SUM(Z93,AA93,AB93) -> 106353.5643 | AM93: =SUM(AC93,AD93,AE93) -> 147073.3281 | AN93: =SUM(AF93,AG93,AH93) -> 128173.2161 | AO93: =SUM(AI93,AJ93,AK93) -> 133147.6978 | AP93: =SUM(AP95:AP97) -> 253426.8925 | AQ93: =SUM(AQ95:AQ97) -> 261320.9138 | AR93: =SUM(AR95:AR97) -> 514747.8063 | AT93: =SUM(AT95:AT97) -> 25320.34849 | AU93: =SUM(AU95:AU97) -> 36492.74266 | AV93: -11172.39417 | AW93: 0.6938461361 | AX93: =SUM(AX95:AX97) -> 35562.97223 | AY93: -10242.62374 | AZ93: 0.7119862852 | BB93: =SUM(BB95:BB97) -> 106353.5643 | BC93: =SUM(BC95:BC97) -> 109736.0034 | BD93: -3382.439071 | BE93: =IFERROR(BB93/BC93,0) -> 0.9691765786 | BF93: =SUM(BF95:BF97) -> 127310.3398 | BG93: -20956.77544 | BH93: =IFERROR(BB93/BF93,0) -> 0.8353882687 | BJ93: =SUM(BJ95:BJ97) -> 106353.5643 | BK93: =SUM(BK95:BK97) -> 109736.0034 | BL93: -3382.439071 | BM93: =IFERROR(BJ93/BK93,0) -> 0.9691765786 | BN93: =SUM(BN95:BN97) -> 127310.3398 | BO93: -20956.77544 | BP93: =IFERROR(BJ93/BN93,0) -> 0.8353882687
A94: 94 | B94: 1 | C94: =C93+1 -> 96 | D94: 1 | E94: 1 | F94: 1 | G94: 1 | H94: 1 | I94: 1 | J94: 1 | K94: 1 | M94: RF | T94: Allocation cost in total SGA (%) | Y94: =CHOOSE(2, "6773000006085", "PL SGA Expenses CAR Allocation SGA (%)") -> PL SGA Expenses CAR Allocation SGA (%) | Z94: =IFERROR(Z93/Z83,0) -> 0.3630691994 | AA94: =IFERROR(AA93/AA83,0) -> 0.5394469645 | AB94: 0.2609011338 | AC94: =IFERROR(AC93/AC83,0) -> 0.5486853674 | AD94: 0.5549637724 | AE94: 0.4566840106 | AF94: 0.5041788666 | AG94: 0.5074717685 | AH94: 0.5364218487 | AI94: 0.5200230932 | AJ94: 0.519178608 | AK94: 0.538209583 | AL94: =IFERROR(AL93/AL83,0) -> 0.3829501569 | AM94: 0.5213414991 | AN94: 0.516466757 | AO94: 0.5259684324 | AP94: 0.4526876807 | AQ94: 0.5212647361 | AR94: 0.4850857131 | AT94: =IFERROR(AT93/AT83,0) -> 0.2609011338 | AU94: =IFERROR(AU93/AU83,0) -> 0.4709181971 | AV94: -0.2100170633 | AX94: =IFERROR(AX93/AX83,0) -> 0.4946117029 | AY94: -0.2337105691 | BB94: =IFERROR(BB93/BB83,0) -> 0.3829501569 | BC94: =IFERROR(BC93/BC83,0) -> 0.4715042013 | BD94: -0.08855404441 | BF94: =IFERROR(BF93/BF83,0) -> 0.5247620788 | BG94: -0.1418119219 | BJ94: =IFERROR(BJ93/BJ83,0) -> 0.3829501569 | BK94: =IFERROR(BK93/BK83,0) -> 0.4715042013 | BL94: -0.08855404441 | BN94: =IFERROR(BN93/BN83,0) -> 0.5247620788 | BO94: -0.1418119219
A95: 95 | B95: 1 | C95: =C94+1 -> 97 | D95: 1 | E95: 1 | F95: 1 | G95: 1 | H95: 1 | I95: 1 | J95: 1 | K95: 1 | M95: RF | T95: Variable Expenses | Y95: =CHOOSE(2, "6773000006086", "PL SGA Expenses CAR Allocation VE") -> PL SGA Expenses CAR Allocation VE | Z95: =Z84-Z88 -> 4324.588082 | AA95: =AA84-AA88 -> 12498.1448 | AB95: 9506.235462 | AC95: =AC84-AC88 -> 21909.92469 | AD95: 15661.06228 | AE95: 20814.30248 | AF95: 13271.93253 | AG95: 13229.65338 | AH95: 17806.55308 | AI95: 14898.41197 | AJ95: 14827.2303 | AK95: 14806.47269 | AL95: =SUM(Z95,AA95,AB95) -> 26328.96835 | AM95: =SUM(AC95,AD95,AE95) -> 58385.28945 | AN95: =SUM(AF95,AG95,AH95) -> 44308.13898 | AO95: =SUM(AI95,AJ95,AK95) -> 44532.11496 | AP95: =AL95+AM95 -> 84714.2578 | AQ95: =AO95+AN95 -> 88840.25394 | AR95: =AP95+AQ95 -> 173554.5117 | AT95: =AT84-AT88 -> 9506.235462 | AU95: 15653.69636 | AV95: -6147.460899 | AW95: 0.6072837522 | AX95: =AX84-AX88 -> 23865.75192 | AY95: -14359.51646 | AZ95: 0.3983212218 | BB95: =BB84-BB88 -> 26328.96835 | BC95: 47001.44469 | BD95: -20672.47634 | BE95: =IFERROR(BB95/BC95,0) -> 0.5601735973 | BF95: =BF84-BF88 -> 48359.12714 | BG95: -22030.15879 | BH95: =IFERROR(BB95/BF95,0) -> 0.544446724 | BJ95: =BJ84-BJ88 -> 26328.96835 | BK95: 47001.44469 | BL95: -20672.47634 | BM95: =IFERROR(BJ95/BK95,0) -> 0.5601735973 | BN95: =BN84-BN88 -> 48359.12714 | BO95: -22030.15879 | BP95: =IFERROR(BJ95/BN95,0) -> 0.544446724
A96: 96 | B96: 1 | C96: =C95+1 -> 98 | D96: 1 | E96: 1 | F96: 1 | G96: 1 | H96: 1 | I96: 1 | J96: 1 | K96: 1 | M96: RF | T96: Wages & Salaries | Y96: =CHOOSE(2, "6773000006087", "PL SGA Expenses CAR Allocation W&S") -> PL SGA Expenses CAR Allocation W&S | Z96: 14457.50416 | AA96: =AA85-AA89 -> 14653.64538 | AB96: 10568.24154 | AC96: =AC85-AC89 -> 7946.097935 | AD96: 17415.43882 | AE96: 10000 | AF96: 15532.6579 | AG96: 15350.59635 | AH96: 15485.31656 | AI96: 15509.4446 | AJ96: 15408.29908 | AK96: 15427.46335 | AL96: =SUM(Z96,AA96,AB96) -> 39679.39107 | AM96: =SUM(AC96,AD96,AE96) -> 35361.53675 | AN96: =SUM(AF96,AG96,AH96) -> 46368.57081 | AO96: =SUM(AI96,AJ96,AK96) -> 46345.20703 | AP96: =AL96+AM96 -> 75040.92782 | AQ96: =AO96+AN96 -> 92713.77785 | AR96: =AP96+AQ96 -> 167754.7057 | AT96: 10568.24154 | AU96: 11965.45853 | AV96: -1397.216989 | AW96: 0.8832291311 | AX96: =AX85-AX89 -> 9904.239346 | AY96: 664.002191 | AZ96: 1.06704222 | BB96: 39679.39107 | BC96: 35839.12463 | BD96: 3840.266445 | BE96: =IFERROR(BB96/BC96,0) -> 1.107152909 | BF96: =BF85-BF89 -> 27899.28487 | BG96: 11780.1062 | BH96: =IFERROR(BB96/BF96,0) -> 1.422236851 | BJ96: 39679.39107 | BK96: 35839.12463 | BL96: 3840.266445 | BM96: =IFERROR(BJ96/BK96,0) -> 1.107152909 | BN96: =BN85-BN89 -> 27899.28487 | BO96: 11780.1062 | BP96: =IFERROR(BJ96/BN96,0) -> 1.422236851
A97: 97 | B97: 1 | C97: =C96+1 -> 99 | D97: 1 | E97: 1 | F97: 1 | G97: 1 | H97: 1 | I97: 1 | J97: 1 | K97: 1 | M97: RF | T97: Fixed Expenses | Y97: =CHOOSE(2, "6773000006088", "PL SGA Expenses CAR Allocation FE") -> PL SGA Expenses CAR Allocation FE | Z97: 15038.23549 | AA97: =AA86-AA90 -> 20061.09793 | AB97: 5245.871489 | AC97: =AC86-AC90 -> 22061.10249 | AD97: 20765.39946 | AE97: 10500 | AF97: 11869.66346 | AG97: 12633.36899 | AH97: 12993.47382 | AI97: 12929.48619 | AJ97: 12955.44479 | AK97: 16385.44479 | AL97: =SUM(Z97,AA97,AB97) -> 40345.2049 | AM97: =SUM(AC97,AD97,AE97) -> 53326.50195 | AN97: =SUM(AF97,AG97,AH97) -> 37496.50627 | AO97: =SUM(AI97,AJ97,AK97) -> 42270.37578 | AP97: =AL97+AM97 -> 93671.70685 | AQ97: =AO97+AN97 -> 79766.88205 | AR97: =AP97+AQ97 -> 173438.5889 | AT97: 5245.871489 | AU97: 8873.587771 | AV97: -3627.716282 | AW97: 0.5911781823 | AX97: =AX86-AX90 -> 1792.980968 | AY97: 3452.890522 | AZ97: 2.925782027 | BB97: 40345.2049 | BC97: 26895.43408 | BD97: 13449.77083 | BE97: =IFERROR(BB97/BC97,0) -> 1.500076362 | BF97: =BF86-BF90 -> 51051.92775 | BG97: -10706.72285 | BH97: =IFERROR(BB97/BF97,0) -> 0.7902777952 | BJ97: 40345.2049 | BK97: 26895.43408 | BL97: 13449.77083 | BM97: =IFERROR(BJ97/BK97,0) -> 1.500076362 | BN97: =BN86-BN90 -> 51051.92775 | BO97: -10706.72285 | BP97: =IFERROR(BJ97/BN97,0) -> 0.7902777952
A98: 98 | B98: 1 | C98: =C103+1 -> 90 | D98: 1 | E98: 1 | F98: 1 | G98: 1 | H98: 1 | I98: 1 | J98: 1 | K98: 1 | M98: RF | R98: Cost Allocation Ratio [Allocation to Office] (%) | Y98: =CHOOSE(2, "6773000006089", "PL SGA Expenses CAR (%)") -> PL SGA Expenses CAR (%) | Z98: =Z481 -> 0.3281323814 | AA98: =AA481 -> 0.3250017328 | AB98: 0.3189825068 | AC98: =AC481 -> 0.3632739938 | AD98: 0.3448794102 | AE98: 0.3146008166 | AF98: 0.3173484346 | AG98: 0.3048229884 | AH98: 0.3072920188 | AI98: 0.3018625964 | AJ98: 0.301294207 | AK98: 0.3047943653 | AL98: =AL481 -> 0.3245283866 | AM98: 0.3417484618 | AN98: 0.309599028 | AO98: 0.3026968059 | AP98: 0.3343041682 | AQ98: 0.3060433411 | AR98: 0.3193339974 | AT98: =AT481 -> 0.3189825068 | AU98: =AU481 -> 0.3179066849 | AV98: 0.001075821909 | AW98: 1.003384081 | AX98: =AX481 -> 0.2979357112 | AY98: 0.02104679558 | AZ98: 1.070642071 | BB98: =BB481 -> 0.3245283866 | BC98: =BC481 -> 0.3179330455 | BD98: 0.006595341145 | BE98: =IFERROR(BB98/BC98,0) -> 1.020744434 | BF98: =BF481 -> 0.2975224339 | BG98: 0.02700595272 | BH98: =IFERROR(BB98/BF98,0) -> 1.090769467 | BJ98: =BJ481 -> 0.3245283866 | BK98: =BK481 -> 0.3179330455 | BL98: 0.006595341145 | BM98: =IFERROR(BJ98/BK98,0) -> 1.020744434 | BN98: =BN481 -> 0.2975224339 | BO98: 0.02700595272 | BP98: =IFERROR(BJ98/BN98,0) -> 1.090769467
A99: 99 | B99: 1 | C99: =C86+1 -> 86 | D99: 1 | E99: 1 | F99: 1 | G99: 1 | H99: 1 | I99: 1 | J99: 1 | K99: 1 | L99: MTP | M99: RF | Q99: Business Contribution Profit 2 ( GP - SGA Total ) | Y99: =CHOOSE(2, "6773000004405", "PL Business Contribution Profit") -> PL Business Contribution Profit | Z99: =Z82-Z83 -> 31212.26193 | AA99: =AA82-AA83 -> 19533.98695 | AB99: 25096.61689 | AC99: =AC82-AC83 -> 11895.87432 | AD99: 22305.20348 | AE99: 52566.8675 | AF99: 11393.98161 | AG99: 16137.38092 | AH99: 21449.02296 | AI99: 10230.9057 | AJ99: 14400.88578 | AK99: 12488.1837 | AL99: =AL82-AL83 -> 75842.86576 | AM99: 86767.9453 | AN99: 48980.38549 | AO99: 37119.97518 | AP99: 162610.8111 | AQ99: 86100.36067 | AR99: 248711.1717 | AT99: =AT82-AT83 -> 25096.61689 | AU99: =AU82-AU83 -> 19659.61202 | AV99: 5437.00487 | AW99: 1.276557079 | AX99: =AX82-AX83 -> 25877.19155 | AY99: -780.5746617 | AZ99: 0.9698354182 | BB99: =BB82-BB83 -> 75842.86576 | BC99: =BC82-BC83 -> 67565.55239 | BD99: 8277.313373 | BE99: =IFERROR(BB99/BC99,0) -> 1.122507892 | BF99: =BF82-BF83 -> 45165.76133 | BG99: 30677.10443 | BH99: =IFERROR(BB99/BF99,0) -> 1.679211498 | BJ99: =BJ82-BJ83 -> 75842.86576 | BK99: =BK82-BK83 -> 67565.55239 | BL99: 8277.313373 | BM99: =IFERROR(BJ99/BK99,0) -> 1.122507892 | BN99: =BN82-BN83 -> 45165.76133 | BO99: 30677.10443 | BP99: =IFERROR(BJ99/BN99,0) -> 1.679211498
A100: 100 | C100: 1 | E100: 1 | F100: 1 | G100: 1 | H100: 1 | I100: 1 | J100: 1 | K100: 1 | L100: MTP | R100: (%) | Y100: =CHOOSE(2, "6773000006090", "PL Business Contribution Profit 2 (%)") -> PL Business Contribution Profit 2 (%) | Z100: =IFERROR(Z99/Z80,0) -> 0.09521218055 | AA100: =IFERROR(AA99/AA80,0) -> 0.06316778331 | AB100: =IFERROR(AB99/AB80,0) -> 0.07325127256 | AC100: =IFERROR(AC99/AC80,0) -> 0.03898994655 | AD100: 0.06963585425 | AE100: 0.1321132448 | AF100: 0.04235283705 | AG100: 0.05528902548 | AH100: 0.0661527112 | AI100: 0.03478721439 | AJ100: 0.04625688047 | AK100: 0.03937934246 | AL100: =IFERROR(AL99/AL80,0) -> 0.07741693489 | AM100: 0.08479182038 | AN100: 0.05533673116 | AO100: 0.04023631689 | AP100: 0.08118471446 | AQ100: 0.04763024865 | AR100: 0.06526729175 | AT100: =IFERROR(AT99/AT80,0) -> 0.07325127256 | AU100: =IFERROR(AU99/AU80,0) -> 0.05836223936 | AV100: 0.01488903321 | AX100: =IFERROR(AX99/AX80,0) -> 0.08094675934 | AY100: -0.007695486773 | BB100: =IFERROR(BB99/BB80,0) -> 0.07741693489 | BC100: =IFERROR(BC99/BC80,0) -> 0.06786939984 | BD100: 0.009547535051 | BF100: =IFERROR(BF99/BF80,0) -> 0.04978771273 | BG100: 0.02762922216 | BJ100: =IFERROR(BJ99/BJ80,0) -> 0.07741693489 | BK100: =IFERROR(BK99/BK80,0) -> 0.06786939984 | BL100: 0.009547535051 | BN100: =IFERROR(BN99/BN80,0) -> 0.04978771273 | BO100: 0.02762922216
A101: 101 | B101: 1 | C101: =C99+1 -> 87 | D101: 1 | E101: 1 | F101: 1 | G101: 1 | H101: 1 | I101: 1 | J101: 1 | K101: 1 | L101: MTP | M101: RF | Q101: Other Income | Y101: =CHOOSE(2, "6773000004406", "PL Other Income") -> PL Other Income | Z101: =Z144 -> 554.4462527 | AA101: =AA144 -> 1649.296325 | AB101: =AB144 -> 375.7038335 | AC101: =AC144 -> 629.5851025 | AD101: 703.4907463 | AE101: 0 | AF101: 0 | AG101: 0 | AH101: 0 | AI101: 0 | AJ101: 0 | AK101: 0 | AL101: =SUM(Z101,AA101,AB101) -> 2579.446412 | AM101: =SUM(AC101,AD101,AE101) -> 1333.075849 | AN101: =SUM(AF101,AG101,AH101) -> 0 | AO101: =SUM(AI101,AJ101,AK101) -> 0 | AP101: =AL101+AM101 -> 3912.52226 | AQ101: =AO101+AN101 -> 0 | AR101: =AP101+AQ101 -> 3912.52226 | AT101: =AT144 -> 375.7038335 | AU101: =AU144 -> 250 | AV101: 125.7038335 | AW101: 1.502815334 | AX101: =AX144 -> 466 | AY101: =IFERROR(AY100/AY134,0) -> 0 | AZ101: 0.8062314024 | BB101: =BB144 -> 2579.446412 | BC101: =BC144 -> 750 | BD101: 1829.446412 | BE101: =IFERROR(BB101/BC101,0) -> 3.439261882 | BF101: =BF144 -> 2071 | BG101: =IFERROR(BG100/BG134,0) -> 0 | BH101: =IFERROR(BB101/BF101,0) -> 1.245507683 | BJ101: =BJ144 -> 2579.446412 | BK101: =BK144 -> 750 | BL101: 1829.446412 | BM101: =IFERROR(BJ101/BK101,0) -> 3.439261882 | BN101: =BN144 -> 2071 | BO101: =IFERROR(BO100/BO134,0) -> 0 | BP101: =IFERROR(BJ101/BN101,0) -> 1.245507683
A102: 102 | B102: 1 | C102: =C101+1 -> 88 | D102: 1 | E102: 1 | F102: 1 | G102: 1 | H102: 1 | I102: 1 | J102: 1 | K102: 1 | L102: MTP | M102: RF | Q102: Other Expenses | Y102: =CHOOSE(2, "6773000004407", "PL Other Expenses") -> PL Other Expenses | Z102: =Z145 -> 2487.591 | AA102: =AA145 -> 2047 | AB102: 0 | AC102: =AC145 -> 0 | AD102: 1568.218323 | AE102: 0 | AF102: 0 | AG102: 0 | AH102: 3465.409 | AI102: 0 | AJ102: 0 | AK102: 0 | AL102: =SUM(Z102,AA102,AB102) -> 4534.591 | AM102: =SUM(AC102,AD102,AE102) -> 1568.218323 | AN102: =SUM(AF102,AG102,AH102) -> 3465.409 | AO102: =SUM(AI102,AJ102,AK102) -> 0 | AP102: =AL102+AM102 -> 6102.809323 | AQ102: =AO102+AN102 -> 3465.409 | AR102: =AP102+AQ102 -> 9568.218323 | AT102: =AT145 -> 0 | AU102: =AU145 -> 0 | AV102: 0 | AW102: 0 | AX102: =AX145 -> 0 | AY102: =AT102-AX102 -> 0 | AZ102: 0 | BB102: =BB145 -> 4534.591 | BC102: =BC145 -> 0 | BD102: 4534.591 | BE102: =IFERROR(BB102/BC102,0) -> 0 | BF102: =BF145 -> 0 | BG102: =BB102-BF102 -> 4534.591 | BH102: =IFERROR(BB102/BF102,0) -> 0 | BJ102: =BJ145 -> 4534.591 | BK102: =BK145 -> 0 | BL102: 4534.591 | BM102: =IFERROR(BJ102/BK102,0) -> 0 | BN102: =BN145 -> 0 | BO102: =BJ102-BN102 -> 4534.591 | BP102: =IFERROR(BJ102/BN102,0) -> 0
A103: 103 | B103: 1 | C103: =C102+1 -> 89 | D103: 1 | E103: 1 | F103: 1 | G103: 1 | H103: 1 | I103: 1 | J103: 1 | K103: 1 | L103: MTP | M103: RF | Q103: Operating Profit | Y103: =CHOOSE(2, "6773000004408", "PL Operating Profit") -> PL Operating Profit | Z103: =Z99+Z101-Z102 -> 29279.11718 | AA103: =AA99+AA101-AA102 -> 19136.28327 | AB103: =AB99+AB101-AB102 -> 25472.32072 | AC103: =AC99+AC101-AC102 -> 12525.45943 | AD103: 21440.4759 | AE103: 52566.8675 | AF103: 11393.98161 | AG103: 16137.38092 | AH103: 17983.61396 | AI103: 10230.9057 | AJ103: 14400.88578 | AK103: 12488.1837 | AL103: =AL99+AL101-AL102 -> 73887.72117 | AM103: 86532.80283 | AN103: 45514.97649 | AO103: 37119.97518 | AP103: 160420.524 | AQ103: 82634.95167 | AR103: 243055.4757 | AT103: =AT99+AT101-AT102 -> 25472.32072 | AU103: =AU99+AU101-AU102 -> 19909.61202 | AV103: 5562.708703 | AW103: 1.279398147 | AX103: =AX99+AX101-AX102 -> 26343.19155 | AY103: =AT103-AX103 -> -870.8708282 | AZ103: 0.9669413318 | BB103: =BB99+BB101-BB102 -> 73887.72117 | BC103: =BC99+BC101-BC102 -> 68315.55239 | BD103: 5572.168785 | BE103: =IFERROR(BB103/BC103,0) -> 1.081565157 | BF103: =BF99+BF101-BF102 -> 47236.76133 | BG103: =BB103-BF103 -> 26650.95984 | BH103: =IFERROR(BB103/BF103,0) -> 1.564199558 | BJ103: =BJ99+BJ101-BJ102 -> 73887.72117 | BK103: =BK99+BK101-BK102 -> 68315.55239 | BL103: 5572.168785 | BM103: =IFERROR(BJ103/BK103,0) -> 1.081565157 | BN103: =BN99+BN101-BN102 -> 47236.76133 | BO103: =BJ103-BN103 -> 26650.95984 | BP103: =IFERROR(BJ103/BN103,0) -> 1.564199558
A104: 104 | C104: 1 | E104: 1 | F104: 1 | G104: 1 | H104: 1 | I104: 1 | J104: 1 | K104: 1 | L104: MTP | R104: (%) | Y104: =CHOOSE(2, "6773000004409", "PL Operating Profit CAR (%)") -> PL Operating Profit CAR (%) | Z104: =IFERROR(Z103/Z80,0) -> 0.08931517357 | AA104: =IFERROR(AA103/AA80,0) -> 0.06188171408 | AB104: =IFERROR(AB103/AB80,0) -> 0.07434786594 | AC104: 0.04105347621 | AD104: 0.06693621317 | AE104: 0.1321132448 | AF104: 0.04235283705 | AG104: 0.05528902548 | AH104: 0.0554647558 | AI104: 0.03478721439 | AJ104: 0.04625688047 | AK104: 0.03937934246 | AL104: =IFERROR(AL103/AL80,0) -> 0.07542121255 | AM104: 0.08456203323 | AN104: 0.05142160464 | AO104: 0.04023631689 | AP104: 0.08009119658 | AQ104: 0.04571320334 | AR104: 0.06378311248 | AT104: =IFERROR(AT103/AT80,0) -> 0.07434786594 | AU104: =IFERROR(AU103/AU80,0) -> 0.05910439845 | AV104: 0.01524346749 | AX104: =IFERROR(AX103/AX80,0) -> 0.08240445964 | AY104: =AT104-AX104 -> -0.008056593692 | BB104: =IFERROR(BB103/BB80,0) -> 0.07542121255 | BC104: =IFERROR(BC103/BC80,0) -> 0.06862277265 | BD104: 0.006798439907 | BF104: =IFERROR(BF103/BF80,0) -> 0.05207064453 | BG104: =BB104-BF104 -> 0.02335056802 | BJ104: =IFERROR(BJ103/BJ80,0) -> 0.07542121255 | BK104: =IFERROR(BK103/BK80,0) -> 0.06862277265 | BL104: 0.006798439907 | BN104: =IFERROR(BN103/BN80,0) -> 0.05207064453 | BO104: =BJ104-BN104 -> 0.02335056802
A105: 105 | B105: 1 | C105: =C97+1 -> 100 | D105: 1 | E105: 1 | F105: 1 | G105: 1 | H105: 1 | I105: 1 | J105: 1 | K105: 1 | L105: MTP | M105: RF | Y105: =CHOOSE(2, "6773000004419", "▷ Blank 7") -> ▷ Blank 7
A106: 106 | B106: 1 | C106: =C105+1 -> 101 | D106: 1 | E106: 1 | F106: 1 | G106: 1 | H106: 1 | I106: 1 | J106: 1 | K106: 1 | L106: MTP | M106: RF | P106: (1)-1 Office: Excluding "Office Solution" | Y106: =CHOOSE(2, "6773000004420", "PL (1)-1 Office: Excluding ""Office Solution""") -> PL (1)-1 Office: Excluding "Office Solution"
A107: 107 | B107: 1 | C107: 102 | D107: 1 | E107: 1 | F107: 1 | G107: 1 | H107: 1 | I107: 1 | J107: 1 | K107: 1 | L107: MTP | M107: RF | Q107: Net Sales | W107: (Includes Sales to BT-Gr. Companies) | Y107: =CHOOSE(2, "6773000004421", "PL (1)-1 Net Sales") -> PL (1)-1 Net Sales | Z107: =SUM(Z108:Z110) -> 323819.9839 | AA107: =SUM(AA108:AA110) -> 306038.0393 | AB107: 338688.2791 | AC107: =SUM(AC108:AC110) -> 301971.5848 | AD107: =SUM(AD108:AD110) -> 314032.7886 | AE107: 394992.4867 | AF107: 266325.2272 | AG107: 288573.13 | AH107: 320734.9795 | AI107: 291099.5961 | AJ107: 309024.1885 | AK107: 314625.2469 | AL107: =SUM(Z107,AA107,AB107) -> 968546.3022 | AM107: =SUM(AC107,AD107,AE107) -> 1010996.86 | AN107: =SUM(AF107,AG107,AH107) -> 875633.3366 | AO107: =SUM(AI107,AJ107,AK107) -> 914749.0315 | AP107: =SUM(AP108:AP110) -> 1979543.162 | AQ107: =SUM(AQ108:AQ110) -> 1790382.368 | AR107: =SUM(AR108:AR110) -> 3769925.53 | AT107: =SUM((INDIRECT(AT$2&(ROW())):INDIRECT(AT$3&(ROW())))) -> 338688.2791 | AU107: =SUM(INDIRECT(AU$1&AU$2&$A107):INDIRECT(AU$1&AU$3&$A107)) -> 332454.8799 | AV107: =AT107-AU107 -> 6233.399106 | AW107: =IFERROR(AT107/AU107,0) -> 1.018749609 | AX107: =SUM(INDIRECT(AX$1&AX$2&$C107):INDIRECT(AX$1&AX$3&$C107)) -> 314565.4758 | AY107: =AT107-AX107 -> 24122.80325 | AZ107: =IFERROR(AT107/AX107,0) -> 1.076686112 | BB107: =SUM((INDIRECT(BB$2&(ROW())):INDIRECT(BB$3&(ROW())))) -> 968546.3022 | BC107: =SUM(INDIRECT(BC$1&BC$2&$A107):INDIRECT(BC$1&BC$3&$A107)) -> 985123.5235 | BD107: =BB107-BC107 -> -16577.22132 | BE107: =IFERROR(BB107/BC107,0) -> 0.9831724439 | BF107: =SUM(INDIRECT(BF$1&BF$2&$C107):INDIRECT(BF$1&BF$3&$C107)) -> 896302.172 | BG107: =BB107-BF107 -> 72244.13022 | BH107: =IFERROR(BB107/BF107,0) -> 1.080602427 | BJ107: =SUM((INDIRECT(BJ$2&(ROW())):INDIRECT(BJ$3&(ROW())))) -> 968546.3022 | BK107: =SUM(INDIRECT(BK$1&BK$2&$A107):INDIRECT(BK$1&BK$3&$A107)) -> 985123.5235 | BL107: =BJ107-BK107 -> -16577.22132 | BM107: =IFERROR(BJ107/BK107,0) -> 0.9831724439 | BN107: =SUM(INDIRECT(BN$1&BN$2&$C107):INDIRECT(BN$1&BN$3&$C107)) -> 896302.172 | BO107: =BJ107-BN107 -> 72244.13022 | BP107: =IFERROR(BJ107/BN107,0) -> 1.080602427
A108: 108 | B108: 1 | C108: 103 | D108: 1 | E108: 1 | F108: 1 | G108: 1 | H108: 1 | I108: 1 | J108: 1 | K108: 1 | L108: MTP | M108: RF | U108: Hard | Y108: =CHOOSE(2, "6773000004422", "PL (1)-1 Net Sales HW") -> PL (1)-1 Net Sales HW | Z108: 205788.5988 | AA108: 197953.8059 | AB108: 234920.8635 | AC108: 199895.5797 | AD108: 202707.4304 | AE108: 254660.0502 | AF108: 170730.9622 | AG108: 179647.0756 | AH108: 213589.6773 | AI108: 199594.4069 | AJ108: 204731.7999 | AK108: 203513.0186 | AL108: 638663.2682 | AM108: 657263.0603 | AN108: 563967.7151 | AO108: 607839.2255 | AP108: =AL108+AM108 -> 1295926.329 | AQ108: =AO108+AN108 -> 1171806.941 | AR108: =AP108+AQ108 -> 2467733.269 | AT108: =SUM((INDIRECT(AT$2&(ROW())):INDIRECT(AT$3&(ROW())))) -> 234920.8635 | AU108: =SUM(INDIRECT(AU$1&AU$2&$A108):INDIRECT(AU$1&AU$3&$A108)) -> 235753.7863 | AV108: -832.9227812 | AW108: 0.9964669803 | AX108: =SUM(INDIRECT(AX$1&AX$2&$C108):INDIRECT(AX$1&AX$3&$C108)) -> 223907.1861 | AY108: 11013.67739 | AZ108: 1.049188584 | BB108: =SUM((INDIRECT(BB$2&(ROW())):INDIRECT(BB$3&(ROW())))) -> 638663.2682 | BC108: =SUM(INDIRECT(BC$1&BC$2&$A108):INDIRECT(BC$1&BC$3&$A108)) -> 660769.3747 | BD108: -22106.10647 | BE108: 0.9665448985 | BF108: =SUM(INDIRECT(BF$1&BF$2&$C108):INDIRECT(BF$1&BF$3&$C108)) -> 592255.2828 | BG108: 46407.98547 | BH108: 1.078358078 | BJ108: =SUM((INDIRECT(BJ$2&(ROW())):INDIRECT(BJ$3&(ROW())))) -> 638663.2682 | BK108: =SUM(INDIRECT(BK$1&BK$2&$A108):INDIRECT(BK$1&BK$3&$A108)) -> 660769.3747 | BL108: -22106.10647 | BM108: 0.9665448985 | BN108: =SUM(INDIRECT(BN$1&BN$2&$C108):INDIRECT(BN$1&BN$3&$C108)) -> 592255.2828 | BO108: 46407.98547 | BP108: 1.078358078
A109: 109 | B109: 1 | C109: 104 | D109: 1 | E109: 1 | F109: 1 | G109: 1 | H109: 1 | I109: 1 | J109: 1 | K109: 1 | L109: MTP | M109: RF | U109: Non-hard | Y109: =CHOOSE(2, "6773000004423", "PL (1)-1 Net Sales NH") -> PL (1)-1 Net Sales NH | Z109: 118031.3851 | AA109: 108084.2333 | AB109: 103767.4156 | AC109: 102076.0051 | AD109: 111325.3582 | AE109: 140332.4364 | AF109: 95594.265 | AG109: 108926.0543 | AH109: 107145.3022 | AI109: 91505.18917 | AJ109: 104292.3886 | AK109: 111112.2283 | AL109: 329883.034 | AM109: 353733.7997 | AN109: 311665.6216 | AO109: 306909.806 | AP109: =AL109+AM109 -> 683616.8337 | AQ109: =AO109+AN109 -> 618575.4276 | AR109: =AP109+AQ109 -> 1302192.261 | AT109: =SUM((INDIRECT(AT$2&(ROW())):INDIRECT(AT$3&(ROW())))) -> 103767.4156 | AU109: =SUM(INDIRECT(AU$1&AU$2&$A109):INDIRECT(AU$1&AU$3&$A109)) -> 96701.09369 | AV109: 7066.321887 | AW109: 1.073073857 | AX109: =SUM(INDIRECT(AX$1&AX$2&$C109):INDIRECT(AX$1&AX$3&$C109)) -> 90658.28972 | AY109: 13109.12586 | AZ109: 1.144599307 | BB109: =SUM((INDIRECT(BB$2&(ROW())):INDIRECT(BB$3&(ROW())))) -> 329883.034 | BC109: =SUM(INDIRECT(BC$1&BC$2&$A109):INDIRECT(BC$1&BC$3&$A109)) -> 324354.1488 | BD109: 5528.885157 | BE109: 1.017045828 | BF109: =SUM(INDIRECT(BF$1&BF$2&$C109):INDIRECT(BF$1&BF$3&$C109)) -> 304046.8893 | BG109: 25836.14475 | BH109: 1.084974212 | BJ109: =SUM((INDIRECT(BJ$2&(ROW())):INDIRECT(BJ$3&(ROW())))) -> 329883.034 | BK109: =SUM(INDIRECT(BK$1&BK$2&$A109):INDIRECT(BK$1&BK$3&$A109)) -> 324354.1488 | BL109: 5528.885157 | BM109: 1.017045828 | BN109: =SUM(INDIRECT(BN$1&BN$2&$C109):INDIRECT(BN$1&BN$3&$C109)) -> 304046.8893 | BO109: 25836.14475 | BP109: 1.084974212
A110: 110 | B110: 1 | C110: 105 | D110: 1 | E110: 1 | F110: 1 | G110: 1 | H110: 1 | I110: 1 | J110: 1 | K110: 1 | L110: MTP | M110: RF | U110: Others | Y110: =CHOOSE(2, "6773000004424", "PL (1)-1 Net Sales Others") -> PL (1)-1 Net Sales Others | Z110: 0 | AA110: 0 | AB110: 0 | AC110: 0 | AD110: 0 | AL110: 0 | AM110: 0 | AN110: 0 | AO110: 0 | AP110: =AL110+AM110 -> 0 | AQ110: =AO110+AN110 -> 0 | AR110: =AP110+AQ110 -> 0 | AT110: =SUM((INDIRECT(AT$2&(ROW())):INDIRECT(AT$3&(ROW())))) -> 0 | AU110: =SUM(INDIRECT(AU$1&AU$2&$A110):INDIRECT(AU$1&AU$3&$A110)) -> 0 | AV110: 0 | AW110: 0 | AX110: =SUM(INDIRECT(AX$1&AX$2&$C110):INDIRECT(AX$1&AX$3&$C110)) -> 0 | AY110: 0 | AZ110: 0 | BB110: =SUM((INDIRECT(BB$2&(ROW())):INDIRECT(BB$3&(ROW())))) -> 0 | BC110: =SUM(INDIRECT(BC$1&BC$2&$A110):INDIRECT(BC$1&BC$3&$A110)) -> 0 | BD110: 0 | BE110: 0 | BF110: =SUM(INDIRECT(BF$1&BF$2&$C110):INDIRECT(BF$1&BF$3&$C110)) -> 0 | BG110: 0 | BH110: 0 | BJ110: =SUM((INDIRECT(BJ$2&(ROW())):INDIRECT(BJ$3&(ROW())))) -> 0 | BK110: =SUM(INDIRECT(BK$1&BK$2&$A110):INDIRECT(BK$1&BK$3&$A110)) -> 0 | BL110: 0 | BM110: 0 | BN110: =SUM(INDIRECT(BN$1&BN$2&$C110):INDIRECT(BN$1&BN$3&$C110)) -> 0 | BO110: 0 | BP110: 0
A111: 111 | B111: 1 | C111: 106 | D111: 1 | E111: 1 | F111: 1 | G111: 1 | H111: 1 | I111: 1 | J111: 1 | K111: 1 | L111: MTP | M111: RF | Q111: BT Consolidated Sales | W111: (Excludes Sales to BT-Gr. Companies) | Y111: =CHOOSE(2, "6773000004425", "PL (1)-1 BT Cons. Sales") -> PL (1)-1 BT Cons. Sales | Z111: =SUM(Z112:Z114) -> 323819.9839 | AA111: =SUM(AA112:AA114) -> 306038.0393 | AB111: 338688.2791 | AC111: =SUM(AC112:AC114) -> 301971.5848 | AD111: 314032.7886 | AE111: =SUM(AE112:AE114) -> 394992.4867 | AF111: 266325.2272 | AG111: 288573.13 | AH111: 320734.9795 | AI111: 291099.5961 | AJ111: 309024.1885 | AK111: 314625.2469 | AL111: 968546.3022 | AM111: 1010996.86 | AN111: 875633.3366 | AO111: 914749.0315 | AP111: =SUM(AP112:AP114) -> 1979543.162 | AQ111: =SUM(AQ112:AQ114) -> 1790382.368 | AR111: =SUM(AR112:AR114) -> 3769925.53 | AT111: =SUM((INDIRECT(AT$2&(ROW())):INDIRECT(AT$3&(ROW())))) -> 338688.2791 | AU111: =SUM(INDIRECT(AU$1&AU$2&$A111):INDIRECT(AU$1&AU$3&$A111)) -> 332454.8799 | AV111: 6233.399106 | AW111: 1.018749609 | AX111: =SUM(INDIRECT(AX$1&AX$2&$C111):INDIRECT(AX$1&AX$3&$C111)) -> 314565.4758 | AY111: 24122.80325 | AZ111: 1.076686112 | BB111: =SUM((INDIRECT(BB$2&(ROW())):INDIRECT(BB$3&(ROW())))) -> 968546.3022 | BC111: =SUM(INDIRECT(BC$1&BC$2&$A111):INDIRECT(BC$1&BC$3&$A111)) -> 985123.5235 | BD111: -16577.22132 | BE111: 0.9831724439 | BF111: =SUM(INDIRECT(BF$1&BF$2&$C111):INDIRECT(BF$1&BF$3&$C111)) -> 896302.172 | BG111: 72244.13022 | BH111: 1.080602427 | BJ111: =SUM((INDIRECT(BJ$2&(ROW())):INDIRECT(BJ$3&(ROW())))) -> 968546.3022 | BK111: =SUM(INDIRECT(BK$1&BK$2&$A111):INDIRECT(BK$1&BK$3&$A111)) -> 985123.5235 | BL111: -16577.22132 | BM111: 0.9831724439 | BN111: =SUM(INDIRECT(BN$1&BN$2&$C111):INDIRECT(BN$1&BN$3&$C111)) -> 896302.172 | BO111: 72244.13022 | BP111: 1.080602427
A112: 112 | B112: 1 | C112: 107 | D112: 1 | E112: 1 | F112: 1 | G112: 1 | H112: 1 | I112: 1 | J112: 1 | K112: 1 | L112: MTP | M112: RF | U112: Hard | Y112: =CHOOSE(2, "6773000004426", "PL (1)-1 BT Cons. Sales HW") -> PL (1)-1 BT Cons. Sales HW | Z112: =Z108 -> 205788.5988 | AA112: =AA108 -> 197953.8059 | AB112: =AB108 -> 234920.8635 | AC112: =AC108 -> 199895.5797 | AD112: =AD108 -> 202707.4304 | AE112: =AE108 -> 254660.0502 | AF112: 170730.9622 | AG112: 179647.0756 | AH112: 213589.6773 | AI112: 199594.4069 | AJ112: 204731.7999 | AK112: 203513.0186 | AL112: 638663.2682 | AM112: 657263.0603 | AN112: 563967.7151 | AO112: 607839.2255 | AP112: =AL112+AM112 -> 1295926.329 | AQ112: =AO112+AN112 -> 1171806.941 | AR112: =AP112+AQ112 -> 2467733.269 | AT112: =SUM((INDIRECT(AT$2&(ROW())):INDIRECT(AT$3&(ROW())))) -> 234920.8635 | AU112: =SUM(INDIRECT(AU$1&AU$2&$A112):INDIRECT(AU$1&AU$3&$A112)) -> 235753.7863 | AV112: -832.9227812 | AW112: 0.9964669803 | AX112: =SUM(INDIRECT(AX$1&AX$2&$C112):INDIRECT(AX$1&AX$3&$C112)) -> 223907.1861 | AY112: 11013.67739 | AZ112: 1.049188584 | BB112: =SUM((INDIRECT(BB$2&(ROW())):INDIRECT(BB$3&(ROW())))) -> 638663.2682 | BC112: =SUM(INDIRECT(BC$1&BC$2&$A112):INDIRECT(BC$1&BC$3&$A112)) -> 660769.3747 | BD112: -22106.10647 | BE112: 0.9665448985 | BF112: =SUM(INDIRECT(BF$1&BF$2&$C112):INDIRECT(BF$1&BF$3&$C112)) -> 592255.2828 | BG112: 46407.98547 | BH112: 1.078358078 | BJ112: =SUM((INDIRECT(BJ$2&(ROW())):INDIRECT(BJ$3&(ROW())))) -> 638663.2682 | BK112: =SUM(INDIRECT(BK$1&BK$2&$A112):INDIRECT(BK$1&BK$3&$A112)) -> 660769.3747 | BL112: -22106.10647 | BM112: 0.9665448985 | BN112: =SUM(INDIRECT(BN$1&BN$2&$C112):INDIRECT(BN$1&BN$3&$C112)) -> 592255.2828 | BO112: 46407.98547 | BP112: 1.078358078
A113: 113 | B113: 1 | C113: 108 | D113: 1 | E113: 1 | F113: 1 | G113: 1 | H113: 1 | I113: 1 | J113: 1 | K113: 1 | L113: MTP | M113: RF | U113: Non-hard | Y113: =CHOOSE(2, "6773000004427", "PL (1)-1 BT Cons. Sales NH") -> PL (1)-1 BT Cons. Sales NH | Z113: =Z109 -> 118031.3851 | AA113: =AA109 -> 108084.2333 | AB113: 103767.4156 | AC113: =AC109 -> 102076.0051 | AD113: 111325.3582 | AE113: =AE109 -> 140332.4364 | AF113: 95594.265 | AG113: 108926.0543 | AH113: 107145.3022 | AI113: 91505.18917 | AJ113: 104292.3886 | AK113: 111112.2283 | AL113: 329883.034 | AM113: 353733.7997 | AN113: 311665.6216 | AO113: 306909.806 | AP113: =AL113+AM113 -> 683616.8337 | AQ113: =AO113+AN113 -> 618575.4276 | AR113: =AP113+AQ113 -> 1302192.261 | AT113: =SUM((INDIRECT(AT$2&(ROW())):INDIRECT(AT$3&(ROW())))) -> 103767.4156 | AU113: =SUM(INDIRECT(AU$1&AU$2&$A113):INDIRECT(AU$1&AU$3&$A113)) -> 96701.09369 | AV113: 7066.321887 | AW113: 1.073073857 | AX113: =SUM(INDIRECT(AX$1&AX$2&$C113):INDIRECT(AX$1&AX$3&$C113)) -> 90658.28972 | AY113: 13109.12586 | AZ113: 1.144599307 | BB113: =SUM((INDIRECT(BB$2&(ROW())):INDIRECT(BB$3&(ROW())))) -> 329883.034 | BC113: =SUM(INDIRECT(BC$1&BC$2&$A113):INDIRECT(BC$1&BC$3&$A113)) -> 324354.1488 | BD113: 5528.885157 | BE113: 1.017045828 | BF113: =SUM(INDIRECT(BF$1&BF$2&$C113):INDIRECT(BF$1&BF$3&$C113)) -> 304046.8893 | BG113: 25836.14475 | BH113: 1.084974212 | BJ113: =SUM((INDIRECT(BJ$2&(ROW())):INDIRECT(BJ$3&(ROW())))) -> 329883.034 | BK113: =SUM(INDIRECT(BK$1&BK$2&$A113):INDIRECT(BK$1&BK$3&$A113)) -> 324354.1488 | BL113: 5528.885157 | BM113: 1.017045828 | BN113: =SUM(INDIRECT(BN$1&BN$2&$C113):INDIRECT(BN$1&BN$3&$C113)) -> 304046.8893 | BO113: 25836.14475 | BP113: 1.084974212
A114: 114 | B114: 1 | C114: 109 | D114: 1 | E114: 1 | F114: 1 | G114: 1 | H114: 1 | I114: 1 | J114: 1 | K114: 1 | L114: MTP | M114: RF | U114: Others | Y114: =CHOOSE(2, "6773000004428", "PL (1)-1 BT Cons. Sales Others") -> PL (1)-1 BT Cons. Sales Others | Z114: 0 | AA114: =AA110 -> 0 | AB114: 0 | AC114: =AC110 -> 0 | AD114: 0 | AL114: 0 | AM114: 0 | AN114: 0 | AO114: 0 | AP114: =AL114+AM114 -> 0 | AQ114: =AO114+AN114 -> 0 | AR114: =AP114+AQ114 -> 0 | AT114: =SUM((INDIRECT(AT$2&(ROW())):INDIRECT(AT$3&(ROW())))) -> 0 | AU114: =SUM(INDIRECT(AU$1&AU$2&$A114):INDIRECT(AU$1&AU$3&$A114)) -> 0 | AV114: 0 | AW114: 0 | AX114: =SUM(INDIRECT(AX$1&AX$2&$C114):INDIRECT(AX$1&AX$3&$C114)) -> 0 | AY114: 0 | AZ114: 0 | BB114: =SUM((INDIRECT(BB$2&(ROW())):INDIRECT(BB$3&(ROW())))) -> 0 | BC114: =SUM(INDIRECT(BC$1&BC$2&$A114):INDIRECT(BC$1&BC$3&$A114)) -> 0 | BD114: 0 | BE114: 0 | BF114: =SUM(INDIRECT(BF$1&BF$2&$C114):INDIRECT(BF$1&BF$3&$C114)) -> 0 | BG114: 0 | BH114: 0 | BJ114: =SUM((INDIRECT(BJ$2&(ROW())):INDIRECT(BJ$3&(ROW())))) -> 0 | BK114: =SUM(INDIRECT(BK$1&BK$2&$A114):INDIRECT(BK$1&BK$3&$A114)) -> 0 | BL114: 0 | BM114: 0 | BN114: =SUM(INDIRECT(BN$1&BN$2&$C114):INDIRECT(BN$1&BN$3&$C114)) -> 0 | BO114: 0 | BP114: 0
A115: 115 | B115: 1 | C115: 110 | D115: 1 | E115: 1 | F115: 1 | G115: 1 | H115: 1 | I115: 1 | J115: 1 | K115: 1 | Q115: Cost of Sales | Y115: =CHOOSE(2, "6773000004429", "PL (1)-1 Cost of Sales") -> PL (1)-1 Cost of Sales | Z115: =Z116+Z121+Z129 -> 61073.39276 | AA115: =AA116+AA121+AA129 -> 60662.03946 | AB115: 58904.59316 | AC115: =AC116+AC121+AC129 -> 57567.79503 | AD115: 59734.90594 | AE115: =AE116+AE121+AE129 -> 76956.29722 | AF115: 56353.50443 | AG115: 66113.86229 | AH115: 65709.22073 | AI115: 56844.05719 | AJ115: 65547.33198 | AK115: 70882.76528 | AL115: =AL116+AL121+AL129 -> 180640.0254 | AM115: 194258.9982 | AN115: 188176.5874 | AO115: 193274.1545 | AP115: 374899.0236 | AQ115: 381450.7419 | AR115: 756349.7655 | AT115: =SUM((INDIRECT(AT$2&(ROW())):INDIRECT(AT$3&(ROW())))) -> 58904.59316 | AU115: =SUM(INDIRECT(AU$1&AU$2&$A115):INDIRECT(AU$1&AU$3&$A115)) -> 237863.3939 | AV115: -178958.8008 | AW115: 0.24764043 | AX115: =SUM(INDIRECT(AX$1&AX$2&$C115):INDIRECT(AX$1&AX$3&$C115)) -> 220152.0612 | AY115: -161247.4681 | AZ115: 0.2675632144 | BB115: =SUM((INDIRECT(BB$2&(ROW())):INDIRECT(BB$3&(ROW())))) -> 180640.0254 | BC115: =SUM(INDIRECT(BC$1&BC$2&$A115):INDIRECT(BC$1&BC$3&$A115)) -> 690874.4961 | BD115: -510234.4707 | BE115: 0.2614657603 | BF115: =SUM(INDIRECT(BF$1&BF$2&$C115):INDIRECT(BF$1&BF$3&$C115)) -> 615419.6611 | BG115: -434779.6357 | BH115: 0.2935233253 | BJ115: =SUM((INDIRECT(BJ$2&(ROW())):INDIRECT(BJ$3&(ROW())))) -> 180640.0254 | BK115: =SUM(INDIRECT(BK$1&BK$2&$A115):INDIRECT(BK$1&BK$3&$A115)) -> 690874.4961 | BL115: -510234.4707 | BM115: 0.2614657603 | BN115: =SUM(INDIRECT(BN$1&BN$2&$C115):INDIRECT(BN$1&BN$3&$C115)) -> 615419.6611 | BO115: -434779.6357 | BP115: 0.2935233253
A116: 116 | B116: 1 | C116: 111 | D116: 1 | E116: 1 | F116: 1 | G116: 1 | H116: 1 | I116: 1 | J116: 1 | K116: 1 | N116: Chg fx | U116: Hard | Y116: =CHOOSE(2, "6773000004430", "PL (1)-1 Cost of Sales HW") -> PL (1)-1 Cost of Sales HW | Z116: =SUM(Z117,Z120) -> 0 | AA116: =SUM(AA117,AA120) -> 0 | AB116: =SUM(AB117,AB120) -> 0 | AC116: 0 | AD116: =SUM(AD117,AD120) -> 0 | AE116: =SUM(AE117,AE120) -> 0 | AF116: 0 | AG116: 0 | AH116: 0 | AI116: 0 | AJ116: 0 | AK116: 0 | AL116: =SUM(Z116,AA116,AB116) -> 0 | AM116: =SUM(AC116,AD116,AE116) -> 0 | AN116: =SUM(AF116,AG116,AH116) -> 0 | AO116: =SUM(AI116,AJ116,AK116) -> 0 | AP116: =AL116+AM116 -> 0 | AQ116: =AO116+AN116 -> 0 | AR116: =AP116+AQ116 -> 0 | AT116: =SUM((INDIRECT(AT$2&(ROW())):INDIRECT(AT$3&(ROW())))) -> 0 | AU116: =SUM(INDIRECT(AU$1&AU$2&$A116):INDIRECT(AU$1&AU$3&$A116)) -> 180111.9379 | AV116: -180111.9379 | AW116: 0 | AX116: =SUM(INDIRECT(AX$1&AX$2&$C116):INDIRECT(AX$1&AX$3&$C116)) -> 168964.3849 | AY116: -168964.3849 | AZ116: 0 | BB116: =SUM((INDIRECT(BB$2&(ROW())):INDIRECT(BB$3&(ROW())))) -> 0 | BC116: =SUM(INDIRECT(BC$1&BC$2&$A116):INDIRECT(BC$1&BC$3&$A116)) -> 497785.0806 | BD116: -497785.0806 | BE116: 0 | BF116: =SUM(INDIRECT(BF$1&BF$2&$C116):INDIRECT(BF$1&BF$3&$C116)) -> 443146.2584 | BG116: -443146.2584 | BH116: 0 | BJ116: =SUM((INDIRECT(BJ$2&(ROW())):INDIRECT(BJ$3&(ROW())))) -> 0 | BK116: =SUM(INDIRECT(BK$1&BK$2&$A116):INDIRECT(BK$1&BK$3&$A116)) -> 497785.0806 | BL116: -497785.0806 | BM116: 0 | BN116: =SUM(INDIRECT(BN$1&BN$2&$C116):INDIRECT(BN$1&BN$3&$C116)) -> 443146.2584 | BO116: -443146.2584 | BP116: 0
A117: 1 | B117: 1 | C117: 1 | D117: 1 | E117: 1 | F117: 1 | G117: 1 | H117: 1 | I117: 1 | J117: 1 | K117: 1 | N117: New | W117: Material Cost(Machine) | Y117: =CHOOSE(2, "6773000006180", "PL (1)-1 Cost of Sales HW MC(M)") -> PL (1)-1 Cost of Sales HW MC(M) | Z117: =SUM(Z118:Z119) -> 0 | AA117: =SUM(AA118:AA119) -> 0 | AB117: =SUM(AB118:AB119) -> 0 | AC117: 0 | AD117: =SUM(AD118:AD119) -> 0 | AE117: =SUM(AE118:AE119) -> 0 | AF117: 0 | AG117: 0 | AH117: 0 | AI117: 0 | AJ117: 0 | AK117: 0 | AL117: =SUM(Z117,AA117,AB117) -> 0 | AM117: =SUM(AC117,AD117,AE117) -> 0 | AN117: =SUM(AF117,AG117,AH117) -> 0 | AO117: =SUM(AI117,AJ117,AK117) -> 0 | AP117: =AL117+AM117 -> 0 | AQ117: =AO117+AN117 -> 0 | AR117: =AP117+AQ117 -> 0 | AT117: =SUM(AT118:AT119) -> 0 | AU117: =SUM(AU118:AU119) -> 180111.9379 | AV117: -180111.9379 | AW117: 0 | AX117: =SUM(AX118:AX119) -> 168964.3849 | AY117: -168964.3849 | AZ117: 0 | BB117: =SUM(BB118:BB119) -> 0 | BC117: =SUM(BC118:BC119) -> 497785.0806 | BD117: -497785.0806 | BE117: 0 | BF117: =SUM(BF118:BF119) -> 443146.2584 | BG117: -443146.2584 | BH117: 0 | BJ117: =SUM(BJ118:BJ119) -> 0 | BK117: =SUM(BK118:BK119) -> 497785.0806 | BL117: -497785.0806 | BM117: 0 | BN117: =SUM(BN118:BN119) -> 443146.2584 | BO117: -443146.2584 | BP117: 0
A118: =A116+1 -> 117 | B118: 1 | C118: =C116+1 -> 112 | D118: 1 | E118: 1 | F118: 1 | G118: 1 | H118: 1 | I118: 1 | J118: 1 | K118: 1 | X118: KMI | Y118: =CHOOSE(2, "6773000004431", "PL (1)-1 Cost of Sales HW KMI") -> PL (1)-1 Cost of Sales HW KMI | Z118: =Z517+Z533-Z550-Z577 -> 0 | AA118: =AA517+AA533-AA550-AA577 -> 0 | AB118: =AB517+AB533-AB550-AB577 -> 0 | AC118: 0 | AD118: =AD517+AD533-AD550-AD577 -> 0 | AE118: =AE517+AE533-AE550-AE577 -> 0 | AF118: 0 | AG118: 0 | AH118: 0 | AI118: 0 | AJ118: 0 | AK118: 0 | AL118: =SUM(Z118,AA118,AB118) -> 0 | AM118: 0 | AN118: 0 | AO118: 0 | AP118: 0 | AQ118: 0 | AR118: 0 | AT118: =SUM((INDIRECT(AT$2&(ROW())):INDIRECT(AT$3&(ROW())))) -> 0 | AU118: =SUM(INDIRECT(AU$1&AU$2&$A118):INDIRECT(AU$1&AU$3&$A118)) -> 180111.9379 | AV118: -180111.9379 | AW118: 0 | AX118: =SUM(INDIRECT(AX$1&AX$2&$C118):INDIRECT(AX$1&AX$3&$C118)) -> 168964.3849 | AY118: -168964.3849 | AZ118: 0 | BB118: =SUM((INDIRECT(BB$2&(ROW())):INDIRECT(BB$3&(ROW())))) -> 0 | BC118: =SUM(INDIRECT(BC$1&BC$2&$A118):INDIRECT(BC$1&BC$3&$A118)) -> 497785.0806 | BD118: -497785.0806 | BE118: 0 | BF118: =SUM(INDIRECT(BF$1&BF$2&$C118):INDIRECT(BF$1&BF$3&$C118)) -> 443146.2584 | BG118: -443146.2584 | BH118: 0 | BJ118: =SUM((INDIRECT(BJ$2&(ROW())):INDIRECT(BJ$3&(ROW())))) -> 0 | BK118: =SUM(INDIRECT(BK$1&BK$2&$A118):INDIRECT(BK$1&BK$3&$A118)) -> 497785.0806 | BL118: -497785.0806 | BM118: 0 | BN118: =SUM(INDIRECT(BN$1&BN$2&$C118):INDIRECT(BN$1&BN$3&$C118)) -> 443146.2584 | BO118: -443146.2584 | BP118: 0
A119: 1 | B119: 1 | C119: =C118+1 -> 113 | D119: 1 | E119: 1 | F119: 1 | G119: 1 | H119: 1 | I119: 1 | J119: 1 | K119: 1 | X119: 3rd Party | Y119: =CHOOSE(2, "6773000004432", "PL (1)-1 Cost of Sales HW 3rd Party") -> PL (1)-1 Cost of Sales HW 3rd Party | Z119: =Z520+Z536-Z553-Z580 -> 0 | AA119: =AA520+AA536-AA553-AA580 -> 0 | AB119: 0 | AC119: =AC520+AC536-AC553-AC580 -> 0 | AD119: 0 | AE119: =AE520+AE536-AE553-AE580 -> 0 | AF119: 0 | AG119: 0 | AH119: 0 | AI119: 0 | AJ119: 0 | AK119: 0 | AL119: =SUM(Z119,AA119,AB119) -> 0 | AM119: 0 | AN119: 0 | AO119: 0 | AP119: 0 | AQ119: 0 | AR119: 0 | AT119: =SUM((INDIRECT(AT$2&(ROW())):INDIRECT(AT$3&(ROW())))) -> 0 | AU119: =SUM(INDIRECT(AU$1&AU$2&$A119):INDIRECT(AU$1&AU$3&$A119)) -> 0 | AV119: 0 | AW119: 0 | AX119: =SUM(INDIRECT(AX$1&AX$2&$C119):INDIRECT(AX$1&AX$3&$C119)) -> 0 | AY119: 0 | AZ119: 0 | BB119: =SUM((INDIRECT(BB$2&(ROW())):INDIRECT(BB$3&(ROW())))) -> 0 | BC119: =SUM(INDIRECT(BC$1&BC$2&$A119):INDIRECT(BC$1&BC$3&$A119)) -> 0 | BD119: 0 | BE119: 0 | BF119: =SUM(INDIRECT(BF$1&BF$2&$C119):INDIRECT(BF$1&BF$3&$C119)) -> 0 | BG119: 0 | BH119: 0 | BJ119: =SUM((INDIRECT(BJ$2&(ROW())):INDIRECT(BJ$3&(ROW())))) -> 0 | BK119: =SUM(INDIRECT(BK$1&BK$2&$A119):INDIRECT(BK$1&BK$3&$A119)) -> 0 | BL119: 0 | BM119: 0 | BN119: =SUM(INDIRECT(BN$1&BN$2&$C119):INDIRECT(BN$1&BN$3&$C119)) -> 0 | BO119: 0 | BP119: 0
A120: =A118+1 -> 118 | B120: 1 | C120: 1 | D120: 1 | E120: 1 | F120: 1 | G120: 1 | H120: 1 | I120: 1 | J120: 1 | K120: 1 | N120: New | W120: Field Service Cost(Machine set-up) | Y120: =CHOOSE(2, "6773000006092", "PL (1)-1 Cost of Sales HW Field Service Cost (M)") -> PL (1)-1 Cost of Sales HW Field Service Cost (M) | Z120: =(Z554+Z581)*-1 -> 0 | AA120: =(AA554+AA581)*-1 -> 0 | AB120: =(AB554+AB581)*-1 -> 0 | AC120: 0 | AD120: =(AD554+AD581)*-1 -> 0 | AE120: =(AE554+AE581)*-1 -> 0 | AF120: 0 | AG120: 0 | AH120: 0 | AI120: 0 | AJ120: 0 | AK120: 0 | AL120: 0 | AM120: 0 | AN120: 0 | AO120: 0 | AP120: 0 | AQ120: 0 | AR120: 0 | AT120: =SUM((INDIRECT(AT$2&(ROW())):INDIRECT(AT$3&(ROW())))) -> 0 | AU120: =SUM(INDIRECT(AU$1&AU$2&$A120):INDIRECT(AU$1&AU$3&$A120)) -> 0 | AV120: 0 | AW120: 0 | AX120: =SUM(INDIRECT(AX$1&AX$2&$C120):INDIRECT(AX$1&AX$3&$C120)) -> 0 | AY120: 0 | AZ120: 0 | BB120: =SUM((INDIRECT(BB$2&(ROW())):INDIRECT(BB$3&(ROW())))) -> 0 | BC120: =SUM(INDIRECT(BC$1&BC$2&$A120):INDIRECT(BC$1&BC$3&$A120)) -> 0 | BD120: 0 | BE120: 0 | BF120: =SUM(INDIRECT(BF$1&BF$2&$C120):INDIRECT(BF$1&BF$3&$C120)) -> 0 | BG120: 0 | BH120: 0 | BJ120: =SUM((INDIRECT(BJ$2&(ROW())):INDIRECT(BJ$3&(ROW())))) -> 0 | BK120: =SUM(INDIRECT(BK$1&BK$2&$A120):INDIRECT(BK$1&BK$3&$A120)) -> 0 | BL120: 0 | BM120: 0 | BN120: =SUM(INDIRECT(BN$1&BN$2&$C120):INDIRECT(BN$1&BN$3&$C120)) -> 0 | BO120: 0 | BP120: 0
A121: =A120+1 -> 119 | B121: 1 | C121: =C119+1 -> 114 | D121: 1 | E121: 1 | F121: 1 | G121: 1 | H121: 1 | I121: 1 | J121: 1 | K121: 1 | U121: Non-hard | Y121: =CHOOSE(2, "6773000004433", "PL (1)-1 Cost of Sales NH") -> PL (1)-1 Cost of Sales NH | Z121: =Z109-Z136 -> 61073.39276 | AA121: =AA109-AA136 -> 60662.03946 | AB121: 58904.59316 | AC121: =AC109-AC136 -> 57567.79503 | AD121: 59734.90594 | AE121: =AE109-AE136 -> 76956.29722 | AF121: 56353.50443 | AG121: 66113.86229 | AH121: 65709.22073 | AI121: 56844.05719 | AJ121: 65547.33198 | AK121: 70882.76528 | AL121: 180640.0254 | AM121: 194258.9982 | AN121: 188176.5874 | AO121: 193274.1545 | AP121: 374899.0236 | AQ121: 381450.7419 | AR121: 756349.7655 | AT121: =SUM((INDIRECT(AT$2&(ROW())):INDIRECT(AT$3&(ROW())))) -> 58904.59316 | AU121: =SUM(INDIRECT(AU$1&AU$2&$A121):INDIRECT(AU$1&AU$3&$A121)) -> 57751.45596 | AV121: 1153.137195 | AW121: 1.01996724 | AX121: =SUM(INDIRECT(AX$1&AX$2&$C121):INDIRECT(AX$1&AX$3&$C121)) -> 51187.67636 | AY121: 7716.916796 | AZ121: 1.150757318 | BB121: =SUM((INDIRECT(BB$2&(ROW())):INDIRECT(BB$3&(ROW())))) -> 180640.0254 | BC121: =SUM(INDIRECT(BC$1&BC$2&$A121):INDIRECT(BC$1&BC$3&$A121)) -> 193089.4155 | BD121: -12449.39008 | BE121: 0.9355252589 | BF121: =SUM(INDIRECT(BF$1&BF$2&$C121):INDIRECT(BF$1&BF$3&$C121)) -> 172273.4027 | BG121: 8366.62267 | BH121: 1.048565957 | BJ121: =SUM((INDIRECT(BJ$2&(ROW())):INDIRECT(BJ$3&(ROW())))) -> 180640.0254 | BK121: =SUM(INDIRECT(BK$1&BK$2&$A121):INDIRECT(BK$1&BK$3&$A121)) -> 193089.4155 | BL121: -12449.39008 | BM121: 0.9355252589 | BN121: =SUM(INDIRECT(BN$1&BN$2&$C121):INDIRECT(BN$1&BN$3&$C121)) -> 172273.4027 | BO121: 8366.62267 | BP121: 1.048565957
A122: 120 | B122: 1 | C122: =C121+1 -> 115 | D122: 1 | E122: 1 | F122: 1 | G122: 1 | H122: 1 | I122: 1 | J122: 1 | K122: 1 | W122: Material Cost(Toner, Parts, Consumable) | Y122: =CHOOSE(2, "6773000004434", "PL (1)-1 Cost of Sales NH MC(T, P, C)") -> PL (1)-1 Cost of Sales NH MC(T, P, C) | AL122: 0 | AM122: 0 | AN122: 0 | AO122: 0 | AP122: 0 | AQ122: 0 | AR122: 0 | AT122: =SUM((INDIRECT(AT$2&(ROW())):INDIRECT(AT$3&(ROW())))) -> 0 | AU122: =SUM(INDIRECT(AU$1&AU$2&$A122):INDIRECT(AU$1&AU$3&$A122)) -> 47885.87872 | AV122: -47885.87872 | AW122: 0 | AX122: =SUM(INDIRECT(AX$1&AX$2&$C122):INDIRECT(AX$1&AX$3&$C122)) -> 42992.41936 | AY122: -42992.41936 | AZ122: 0 | BB122: =SUM((INDIRECT(BB$2&(ROW())):INDIRECT(BB$3&(ROW())))) -> 0 | BC122: =SUM(INDIRECT(BC$1&BC$2&$A122):INDIRECT(BC$1&BC$3&$A122)) -> 162262.2722 | BD122: -162262.2722 | BE122: 0 | BF122: =SUM(INDIRECT(BF$1&BF$2&$C122):INDIRECT(BF$1&BF$3&$C122)) -> 147833.5277 | BG122: -147833.5277 | BH122: 0 | BJ122: =SUM((INDIRECT(BJ$2&(ROW())):INDIRECT(BJ$3&(ROW())))) -> 0 | BK122: =SUM(INDIRECT(BK$1&BK$2&$A122):INDIRECT(BK$1&BK$3&$A122)) -> 162262.2722 | BL122: -162262.2722 | BM122: 0 | BN122: =SUM(INDIRECT(BN$1&BN$2&$C122):INDIRECT(BN$1&BN$3&$C122)) -> 147833.5277 | BO122: -147833.5277 | BP122: 0
A123: 121 | B123: 1 | C123: 116 | D123: 1 | E123: 1 | F123: 1 | G123: 1 | H123: 1 | I123: 1 | J123: 1 | K123: 1 | X123: Direct | Y123: =CHOOSE(2, "6773000004435", "PL (1)-1 Cost of Sales NH MC(T, P, C) Direct") -> PL (1)-1 Cost of Sales NH MC(T, P, C) Direct | AL123: 0 | AM123: 0 | AN123: 0 | AO123: 0 | AP123: 0 | AQ123: 0 | AR123: 0 | AT123: =SUM((INDIRECT(AT$2&(ROW())):INDIRECT(AT$3&(ROW())))) -> 0 | AU123: =SUM(INDIRECT(AU$1&AU$2&$A123):INDIRECT(AU$1&AU$3&$A123)) -> 17712.08744 | AV123: -17712.08744 | AW123: 0 | AX123: =SUM(INDIRECT(AX$1&AX$2&$C123):INDIRECT(AX$1&AX$3&$C123)) -> 6461.564455 | AY123: -6461.564455 | AZ123: 0 | BB123: =SUM((INDIRECT(BB$2&(ROW())):INDIRECT(BB$3&(ROW())))) -> 0 | BC123: =SUM(INDIRECT(BC$1&BC$2&$A123):INDIRECT(BC$1&BC$3&$A123)) -> 56079.26988 | BD123: -56079.26988 | BE123: 0 | BF123: =SUM(INDIRECT(BF$1&BF$2&$C123):INDIRECT(BF$1&BF$3&$C123)) -> 22033.00129 | BG123: -22033.00129 | BH123: 0 | BJ123: =SUM((INDIRECT(BJ$2&(ROW())):INDIRECT(BJ$3&(ROW())))) -> 0 | BK123: =SUM(INDIRECT(BK$1&BK$2&$A123):INDIRECT(BK$1&BK$3&$A123)) -> 56079.26988 | BL123: -56079.26988 | BM123: 0 | BN123: =SUM(INDIRECT(BN$1&BN$2&$C123):INDIRECT(BN$1&BN$3&$C123)) -> 22033.00129 | BO123: -22033.00129 | BP123: 0
A124: 122 | B124: 1 | C124: 117 | D124: 1 | E124: 1 | F124: 1 | G124: 1 | H124: 1 | I124: 1 | J124: 1 | K124: 1 | X124: Indirect | Y124: =CHOOSE(2, "6773000004436", "PL (1)-1 Cost of Sales NH MC(T, P, C) Indirect") -> PL (1)-1 Cost of Sales NH MC(T, P, C) Indirect | Z124: =Z122-Z123 -> 0 | AA124: =AA122-AA123 -> 0 | AB124: =AB122-AB123 -> 0 | AC124: 0 | AD124: =AD122-AD123 -> 0 | AE124: =AE122-AE123 -> 0 | AF124: 0 | AG124: 0 | AH124: 0 | AI124: 0 | AJ124: 0 | AK124: 0 | AL124: =AL122-AL123 -> 0 | AM124: 0 | AN124: 0 | AO124: 0 | AP124: 0 | AQ124: 0 | AR124: 0 | AT124: =SUM((INDIRECT(AT$2&(ROW())):INDIRECT(AT$3&(ROW())))) -> 0 | AU124: =SUM(INDIRECT(AU$1&AU$2&$A124):INDIRECT(AU$1&AU$3&$A124)) -> 30173.79128 | AV124: -30173.79128 | AW124: 0 | AX124: =SUM(INDIRECT(AX$1&AX$2&$C124):INDIRECT(AX$1&AX$3&$C124)) -> 36530.85491 | AY124: -36530.85491 | AZ124: 0 | BB124: =SUM((INDIRECT(BB$2&(ROW())):INDIRECT(BB$3&(ROW())))) -> 0 | BC124: =SUM(INDIRECT(BC$1&BC$2&$A124):INDIRECT(BC$1&BC$3&$A124)) -> 106183.0023 | BD124: -106183.0023 | BE124: 0 | BF124: =SUM(INDIRECT(BF$1&BF$2&$C124):INDIRECT(BF$1&BF$3&$C124)) -> 125800.5264 | BG124: -125800.5264 | BH124: 0 | BJ124: =SUM((INDIRECT(BJ$2&(ROW())):INDIRECT(BJ$3&(ROW())))) -> 0 | BK124: =SUM(INDIRECT(BK$1&BK$2&$A124):INDIRECT(BK$1&BK$3&$A124)) -> 106183.0023 | BL124: -106183.0023 | BM124: 0 | BN124: =SUM(INDIRECT(BN$1&BN$2&$C124):INDIRECT(BN$1&BN$3&$C124)) -> 125800.5264 | BO124: -125800.5264 | BP124: 0
A125: 123 | B125: 1 | C125: 118 | D125: 1 | E125: 1 | F125: 1 | G125: 1 | H125: 1 | I125: 1 | J125: 1 | K125: 1 | W125: Field Service Cost | Y125: =CHOOSE(2, "6773000004437", "PL (1)-1 Cost of Sales NH Field Service Cost") -> PL (1)-1 Cost of Sales NH Field Service Cost | Z125: =(Z566+Z593)*-1 -> 0 | AA125: =(AA566+AA593)*-1 -> 0 | AB125: 0 | AC125: =(AC566+AC593)*-1 -> 0 | AD125: 0 | AE125: =(AE566+AE593)*-1 -> 0 | AF125: 0 | AG125: 0 | AH125: 0 | AI125: 0 | AJ125: 0 | AK125: 0 | AL125: =SUM(Z125,AA125,AB125) -> 0 | AM125: =SUM(AC125,AD125,AE125) -> 0 | AN125: =SUM(AF125,AG125,AH125) -> 0 | AO125: =SUM(AI125,AJ125,AK125) -> 0 | AP125: 0 | AQ125: 0 | AR125: 0 | AT125: =SUM((INDIRECT(AT$2&(ROW())):INDIRECT(AT$3&(ROW())))) -> 0 | AU125: =SUM(INDIRECT(AU$1&AU$2&$A125):INDIRECT(AU$1&AU$3&$A125)) -> 9830.577245 | AV125: -9830.577245 | AW125: 0 | AX125: =SUM(INDIRECT(AX$1&AX$2&$C125):INDIRECT(AX$1&AX$3&$C125)) -> 8163.285 | AY125: -8163.285 | AZ125: 0 | BB125: =SUM((INDIRECT(BB$2&(ROW())):INDIRECT(BB$3&(ROW())))) -> 0 | BC125: =SUM(INDIRECT(BC$1&BC$2&$A125):INDIRECT(BC$1&BC$3&$A125)) -> 30722.14327 | BD125: -30722.14327 | BE125: 0 | BF125: =SUM(INDIRECT(BF$1&BF$2&$C125):INDIRECT(BF$1&BF$3&$C125)) -> 24343.931 | BG125: -24343.931 | BH125: 0 | BJ125: =SUM((INDIRECT(BJ$2&(ROW())):INDIRECT(BJ$3&(ROW())))) -> 0 | BK125: =SUM(INDIRECT(BK$1&BK$2&$A125):INDIRECT(BK$1&BK$3&$A125)) -> 30722.14327 | BL125: -30722.14327 | BM125: 0 | BN125: =SUM(INDIRECT(BN$1&BN$2&$C125):INDIRECT(BN$1&BN$3&$C125)) -> 24343.931 | BO125: -24343.931 | BP125: 0
A126: 124 | B126: 1 | C126: 119 | D126: 1 | E126: 1 | F126: 1 | G126: 1 | H126: 1 | I126: 1 | J126: 1 | K126: 1 | W126: Service Desk Cost | Y126: =CHOOSE(2, "6773000004438", "PL (1)-1 Cost of Sales NH Service Desk Cost") -> PL (1)-1 Cost of Sales NH Service Desk Cost | Z126: =(Z570+Z597)*-1 -> 0 | AA126: =(AA570+AA597)*-1 -> 0 | AB126: 0 | AC126: =(AC570+AC597)*-1 -> 0 | AD126: 0 | AE126: =(AE570+AE597)*-1 -> 0 | AF126: 0 | AG126: 0 | AH126: 0 | AI126: 0 | AJ126: 0 | AK126: 0 | AL126: 0 | AM126: 0 | AN126: 0 | AO126: 0 | AP126: 0 | AQ126: 0 | AR126: 0 | AT126: =SUM((INDIRECT(AT$2&(ROW())):INDIRECT(AT$3&(ROW())))) -> 0 | AU126: =SUM(INDIRECT(AU$1&AU$2&$A126):INDIRECT(AU$1&AU$3&$A126)) -> 35 | AV126: -35 | AW126: 0 | AX126: =SUM(INDIRECT(AX$1&AX$2&$C126):INDIRECT(AX$1&AX$3&$C126)) -> 31.972 | AY126: -31.972 | AZ126: 0 | BB126: =SUM((INDIRECT(BB$2&(ROW())):INDIRECT(BB$3&(ROW())))) -> 0 | BC126: =SUM(INDIRECT(BC$1&BC$2&$A126):INDIRECT(BC$1&BC$3&$A126)) -> 105 | BD126: -105 | BE126: 0 | BF126: =SUM(INDIRECT(BF$1&BF$2&$C126):INDIRECT(BF$1&BF$3&$C126)) -> 95.944 | BG126: -95.944 | BH126: 0 | BJ126: =SUM((INDIRECT(BJ$2&(ROW())):INDIRECT(BJ$3&(ROW())))) -> 0 | BK126: =SUM(INDIRECT(BK$1&BK$2&$A126):INDIRECT(BK$1&BK$3&$A126)) -> 105 | BL126: -105 | BM126: 0 | BN126: =SUM(INDIRECT(BN$1&BN$2&$C126):INDIRECT(BN$1&BN$3&$C126)) -> 95.944 | BO126: -95.944 | BP126: 0
A127: 125 | B127: 1 | C127: 120 | D127: 1 | E127: 1 | F127: 1 | G127: 1 | H127: 1 | I127: 1 | J127: 1 | K127: 1 | W127: Depreciation & Amortization | Y127: =CHOOSE(2, "6773000004439", "PL (1)-1 Cost of Sales NH D&A") -> PL (1)-1 Cost of Sales NH D&A | Z127: =(Z573+Z600)*-1 -> 0 | AA127: =(AA573+AA600)*-1 -> 0 | AB127: =(AB573+AB600)*-1 -> 0 | AC127: 0 | AD127: =(AD573+AD600)*-1 -> 0 | AE127: =(AE573+AE600)*-1 -> 0 | AF127: 0 | AG127: 0 | AH127: 0 | AI127: 0 | AJ127: 0 | AK127: 0 | AL127: 0 | AM127: 0 | AN127: 0 | AO127: 0 | AP127: =AL127+AM127 -> 0 | AQ127: =AO127+AN127 -> 0 | AR127: =AP127+AQ127 -> 0 | AT127: =SUM((INDIRECT(AT$2&(ROW())):INDIRECT(AT$3&(ROW())))) -> 0 | AU127: =SUM(INDIRECT(AU$1&AU$2&$A127):INDIRECT(AU$1&AU$3&$A127)) -> 0 | AV127: 0 | AW127: 0 | AX127: =SUM(INDIRECT(AX$1&AX$2&$C127):INDIRECT(AX$1&AX$3&$C127)) -> 0 | AY127: 0 | AZ127: 0 | BB127: =SUM((INDIRECT(BB$2&(ROW())):INDIRECT(BB$3&(ROW())))) -> 0 | BC127: =SUM(INDIRECT(BC$1&BC$2&$A127):INDIRECT(BC$1&BC$3&$A127)) -> 0 | BD127: 0 | BE127: 0 | BF127: =SUM(INDIRECT(BF$1&BF$2&$C127):INDIRECT(BF$1&BF$3&$C127)) -> 0 | BG127: 0 | BH127: 0 | BJ127: =SUM((INDIRECT(BJ$2&(ROW())):INDIRECT(BJ$3&(ROW())))) -> 0 | BK127: =SUM(INDIRECT(BK$1&BK$2&$A127):INDIRECT(BK$1&BK$3&$A127)) -> 0 | BL127: 0 | BM127: 0 | BN127: =SUM(INDIRECT(BN$1&BN$2&$C127):INDIRECT(BN$1&BN$3&$C127)) -> 0 | BO127: 0 | BP127: 0
A128: 126 | B128: 1 | C128: 121 | D128: 1 | E128: 1 | F128: 1 | G128: 1 | H128: 1 | I128: 1 | J128: 1 | K128: 1 | W128: Others | Y128: =CHOOSE(2, "6773000004440", "PL (1)-1 Cost of Sales NH Others") -> PL (1)-1 Cost of Sales NH Others | Z128: =Z121-Z122-Z125-Z126-Z127 -> 61073.39276 | AA128: =AA121-AA122-AA125-AA126-AA127 -> 60662.03946 | AB128: =AB121-AB122-AB125-AB126-AB127 -> 58904.59316 | AC128: 57567.79503 | AD128: =AD121-AD122-AD125-AD126-AD127 -> 59734.90594 | AE128: =AE121-AE122-AE125-AE126-AE127 -> 76956.29722 | AF128: 56353.50443 | AG128: 66113.86229 | AH128: 65709.22073 | AI128: 56844.05719 | AJ128: 65547.33198 | AK128: 70882.76528 | AL128: 180640.0254 | AM128: 194258.9982 | AN128: 188176.5874 | AO128: 193274.1545 | AP128: =AL128+AM128 -> 374899.0236 | AQ128: =AO128+AN128 -> 381450.7419 | AR128: =AP128+AQ128 -> 756349.7655 | AT128: =SUM((INDIRECT(AT$2&(ROW())):INDIRECT(AT$3&(ROW())))) -> 58904.59316 | AU128: =SUM(INDIRECT(AU$1&AU$2&$A128):INDIRECT(AU$1&AU$3&$A128)) -> -3.637978807e-12 | AV128: 58904.59316 | AW128: -1.619157128e+16 | AX128: =SUM(INDIRECT(AX$1&AX$2&$C128):INDIRECT(AX$1&AX$3&$C128)) -> -2.067679361e-12 | AY128: 58904.59316 | AZ128: -2.848826286e+16 | BB128: =SUM((INDIRECT(BB$2&(ROW())):INDIRECT(BB$3&(ROW())))) -> 180640.0254 | BC128: =SUM(INDIRECT(BC$1&BC$2&$A128):INDIRECT(BC$1&BC$3&$A128)) -> -3.637978807e-12 | BD128: 180640.0254 | BE128: -4.965395209e+16 | BF128: =SUM(INDIRECT(BF$1&BF$2&$C128):INDIRECT(BF$1&BF$3&$C128)) -> -4.97379915e-13 | BG128: 180640.0254 | BH128: -3.631831924e+17 | BJ128: =SUM((INDIRECT(BJ$2&(ROW())):INDIRECT(BJ$3&(ROW())))) -> 180640.0254 | BK128: =SUM(INDIRECT(BK$1&BK$2&$A128):INDIRECT(BK$1&BK$3&$A128)) -> -3.637978807e-12 | BL128: 180640.0254 | BM128: -4.965395209e+16 | BN128: =SUM(INDIRECT(BN$1&BN$2&$C128):INDIRECT(BN$1&BN$3&$C128)) -> -4.97379915e-13 | BO128: 180640.0254 | BP128: -3.631831924e+17
A129: 127 | B129: 1 | C129: 122 | D129: 1 | E129: 1 | F129: 1 | G129: 1 | H129: 1 | I129: 1 | J129: 1 | K129: 1 | U129: Others | W129: For KMJ Only | Y129: =CHOOSE(2, "6773000004441", "PL (1)-1 Cost of Sales Others For KMJ Only") -> PL (1)-1 Cost of Sales Others For KMJ Only | Z129: =Z530+Z546-Z574-Z601 -> 0 | AA129: =AA530+AA546-AA574-AA601 -> 0 | AB129: 0 | AC129: =AC530+AC546-AC574-AC601 -> 0 | AD129: 0 | AE129: =AE530+AE546-AE574-AE601 -> 0 | AF129: 0 | AG129: 0 | AH129: 0 | AI129: 0 | AJ129: 0 | AK129: 0 | AL129: 0 | AM129: 0 | AN129: 0 | AO129: 0 | AP129: 0 | AQ129: 0 | AR129: 0 | AT129: =SUM((INDIRECT(AT$2&(ROW())):INDIRECT(AT$3&(ROW())))) -> 0 | AU129: =SUM(INDIRECT(AU$1&AU$2&$A129):INDIRECT(AU$1&AU$3&$A129)) -> 0 | AV129: 0 | AW129: 0 | AX129: =SUM(INDIRECT(AX$1&AX$2&$C129):INDIRECT(AX$1&AX$3&$C129)) -> 0 | AY129: 0 | AZ129: 0 | BB129: =SUM((INDIRECT(BB$2&(ROW())):INDIRECT(BB$3&(ROW())))) -> 0 | BC129: =SUM(INDIRECT(BC$1&BC$2&$A129):INDIRECT(BC$1&BC$3&$A129)) -> 0 | BD129: 0 | BE129: 0 | BF129: =SUM(INDIRECT(BF$1&BF$2&$C129):INDIRECT(BF$1&BF$3&$C129)) -> 0 | BG129: 0 | BH129: 0 | BJ129: =SUM((INDIRECT(BJ$2&(ROW())):INDIRECT(BJ$3&(ROW())))) -> 0 | BK129: =SUM(INDIRECT(BK$1&BK$2&$A129):INDIRECT(BK$1&BK$3&$A129)) -> 0 | BL129: 0 | BM129: 0 | BN129: =SUM(INDIRECT(BN$1&BN$2&$C129):INDIRECT(BN$1&BN$3&$C129)) -> 0 | BO129: 0 | BP129: 0
A130: 128 | B130: 1 | C130: 123 | D130: 1 | E130: 1 | F130: 1 | G130: 1 | H130: 1 | I130: 1 | J130: 1 | K130: 1 | L130: MTP | M130: RF | Q130: Gross Profit | Y130: =CHOOSE(2, "6773000004442", "PL (1)-1 Gross Profit") -> PL (1)-1 Gross Profit | Z130: =SUM(Z135:Z137) -> 121659.5403 | AA130: =SUM(AA135:AA137) -> 104865.8349 | AB130: 119616.4175 | AC130: =SUM(AC135:AC137) -> 104220.6535 | AD130: 114978.3043 | AE130: =SUM(AE135:AE137) -> 141727.7072 | AF130: 90853.2355 | AG130: 95700.99964 | AH130: 105984.3664 | AI130: 92068.24847 | AJ130: 96441.85994 | AK130: 97857.56454 | AL130: 346141.7927 | AM130: 360926.665 | AN130: 292538.6016 | AO130: 286367.6729 | AP130: =SUM(AP135:AP137) -> 707068.4576 | AQ130: =SUM(AQ135:AQ137) -> 578906.2745 | AR130: =SUM(AR135:AR137) -> 1285974.732 | AT130: =SUM((INDIRECT(AT$2&(ROW())):INDIRECT(AT$3&(ROW())))) -> 119616.4175 | AU130: =SUM(INDIRECT(AU$1&AU$2&$A130):INDIRECT(AU$1&AU$3&$A130)) -> 94591.48603 | AV130: 25024.93142 | AW130: 1.264557969 | AX130: =SUM(INDIRECT(AX$1&AX$2&$C130):INDIRECT(AX$1&AX$3&$C130)) -> 94413.41456 | AY130: 25203.0029 | AZ130: 1.266943029 | BB130: =SUM((INDIRECT(BB$2&(ROW())):INDIRECT(BB$3&(ROW())))) -> 346141.7927 | BC130: =SUM(INDIRECT(BC$1&BC$2&$A130):INDIRECT(BC$1&BC$3&$A130)) -> 294249.0274 | BD130: 51892.76521 | BE130: 1.176356624 | BF130: =SUM(INDIRECT(BF$1&BF$2&$C130):INDIRECT(BF$1&BF$3&$C130)) -> 280882.5109 | BG130: 65259.28175 | BH130: 1.232336579 | BJ130: =SUM((INDIRECT(BJ$2&(ROW())):INDIRECT(BJ$3&(ROW())))) -> 346141.7927 | BK130: =SUM(INDIRECT(BK$1&BK$2&$A130):INDIRECT(BK$1&BK$3&$A130)) -> 294249.0274 | BL130: 51892.76521 | BM130: 1.176356624 | BN130: =SUM(INDIRECT(BN$1&BN$2&$C130):INDIRECT(BN$1&BN$3&$C130)) -> 280882.5109 | BO130: 65259.28175 | BP130: 1.232336579
A131: 129 | B131: 1 | C131: 124 | D131: 1 | E131: 1 | F131: 1 | G131: 1 | H131: 1 | I131: 1 | J131: 1 | K131: 1 | L131: MTP | M131: RF | R131: (%) | W131: (Formula: Gross Profit / Net Sales) | Y131: =CHOOSE(2, "6773000004443", "PL (1)-1 Gross Profit (%)") -> PL (1)-1 Gross Profit (%) | Z131: =IFERROR(Z130/Z107,0) -> 0.3757011498 | AA131: =IFERROR(AA130/AA107,0) -> 0.3426562109 | AB131: 0.3531755448 | AC131: =IFERROR(AC130/AC107,0) -> 0.3451339753 | AD131: 0.3661347111 | AE131: =IFERROR(AE130/AE107,0) -> 0.3588111469 | AF131: 0.3411364236 | AG131: 0.3316351722 | AH131: 0.3304421818 | AI131: 0.3162774861 | AJ131: 0.3120851491 | AK131: 0.3110289638 | AL131: =IFERROR(AL130/AL107,0) -> 0.3573828033 | AM131: 0.3570007774 | AN131: 0.334088013 | AO131: 0.3130560002 | AP131: 0.3571876942 | AQ131: 0.3233422563 | AR131: 0.3411140941 | AT131: =IFERROR(AT130/AT107,0) -> 0.3531755448 | AU131: =IFERROR(AU130/AU107,0) -> 0.2845242821 | AV131: 0.0686512627 | AX131: =IFERROR(AX130/AX107,0) -> 0.3001391501 | AY131: 0.05303639465 | BB131: =IFERROR(BB130/BB107,0) -> 0.3573828033 | BC131: =IFERROR(BC130/BC107,0) -> 0.2986925197 | BD131: 0.05869028366 | BF131: =IFERROR(BF130/BF107,0) -> 0.3133792594 | BG131: 0.0440035439 | BJ131: =IFERROR(BJ130/BJ107,0) -> 0.3573828033 | BK131: =IFERROR(BK130/BK107,0) -> 0.2986925197 | BL131: 0.05869028366 | BN131: =IFERROR(BN130/BN107,0) -> 0.3133792594 | BO131: 0.0440035439
A132: 130 | B132: 1 | C132: 125 | D132: 1 | E132: 1 | F132: 1 | G132: 1 | H132: 1 | I132: 1 | J132: 1 | K132: 1 | L132: MTP | M132: RF | U132: Hard (%) | Y132: =CHOOSE(2, "6773000004444", "PL (1)-1 Gross Profit HW (%)") -> PL (1)-1 Gross Profit HW (%) | Z132: =IFERROR(Z135/Z108,0) -> 0.3144078355 | AA132: =IFERROR(AA135/AA108,0) -> 0.2901871009 | AB132: 0.3182075612 | AC132: =IFERROR(AC135/AC108,0) -> 0.2987181783 | AD132: 0.3127061102 | AE132: =IFERROR(AE135/AE108,0) -> 0.3076712185 | AF132: 0.3023029583 | AG132: 0.294403944 | AH132: 0.3022069498 | AI132: 0.2876188636 | AJ132: 0.2818165197 | AK132: 0.283166659 | AL132: =IFERROR(AL135/AL108,0) -> 0.3082982752 | AM132: 0.306501119 | AN132: 0.2997504341 | AO132: 0.2841738639 | AP132: 0.3073868002 | AQ132: 0.2916705619 | AR132: 0.2999239203 | AT132: =IFERROR(AT135/AT108,0) -> 0.3182075612 | AU132: 0.2360167749 | AV132: 0.08219078627 | AX132: =IFERROR(AX135/AX108,0) -> 0.245382036 | AY132: 0.07282552515 | BB132: =IFERROR(BB135/BB108,0) -> 0.3082982752 | BC132: 0.2466583657 | BD132: 0.06163990953 | BF132: =IFERROR(BF135/BF108,0) -> 0.2517647857 | BG132: 0.05653348948 | BJ132: =IFERROR(BJ135/BJ108,0) -> 0.3082982752 | BK132: 0.2466583657 | BL132: 0.06163990953 | BN132: =IFERROR(BN135/BN108,0) -> 0.2517647857 | BO132: 0.05653348948
A133: 131 | B133: 1 | C133: 126 | D133: 1 | E133: 1 | F133: 1 | G133: 1 | H133: 1 | I133: 1 | J133: 1 | K133: 1 | L133: MTP | M133: RF | U133: Non-hard (%) | Y133: =CHOOSE(2, "6773000004445", "PL (1)-1 Gross Profit NH (%)") -> PL (1)-1 Gross Profit NH (%) | Z133: 0.4825664995 | AA133: =IFERROR(AA136/AA109,0) -> 0.438752188 | AB133: 0.4323401732 | AC133: =IFERROR(AC136/AC109,0) -> 0.4360300936 | AD133: 0.4634204919 | AE133: =IFERROR(AE136/AE109,0) -> 0.4516143297 | AF133: 0.410492832 | AG133: 0.393039042 | AH133: 0.3867279353 | AI133: 0.3787887035 | AJ133: 0.3715041638 | AK133: 0.3620615266 | AL133: 0.4524118952 | AM133: 0.4508328061 | AN133: 0.3962228285 | AO133: 0.3702574807 | AP133: 0.4515948042 | AQ133: 0.3833399698 | AR133: 0.4191719703 | AT133: 0.4323401732 | AU133: 0.4027838388 | AV133: 0.02955633441 | AX133: =IFERROR(AX136/AX109,0) -> 0.4353778731 | AY133: -0.003037699934 | BB133: 0.4524118952 | BC133: 0.4046957126 | BD133: 0.04771618268 | BF133: =IFERROR(BF136/BF109,0) -> 0.4333985684 | BG133: 0.0190133268 | BJ133: 0.4524118952 | BK133: 0.4046957126 | BL133: 0.04771618268 | BN133: =IFERROR(BN136/BN109,0) -> 0.4333985684 | BO133: 0.0190133268
A134: 132 | B134: 1 | C134: 127 | D134: 1 | E134: 1 | F134: 1 | G134: 1 | H134: 1 | I134: 1 | J134: 1 | K134: 1 | L134: MTP | M134: RF | U134: Others (%) | Y134: =CHOOSE(2, "6773000004446", "PL (1)-1 Gross Profit Others (%)") -> PL (1)-1 Gross Profit Others (%) | Z134: 0 | AA134: =IFERROR(AA137/AA110,0) -> 0 | AB134: 0 | AC134: =IFERROR(AC137/AC110,0) -> 0 | AD134: 0 | AE134: =IFERROR(AE137/AE110,0) -> 0 | AF134: 0 | AG134: 0 | AH134: 0 | AI134: 0 | AJ134: 0 | AK134: 0 | AL134: 0 | AM134: 0 | AN134: 0 | AO134: 0 | AP134: 0 | AQ134: 0 | AR134: 0 | AT134: 0 | AU134: 0 | AV134: 0 | AX134: =IFERROR(AX137/AX110,0) -> 0 | AY134: 0 | BB134: 0 | BC134: 0 | BD134: 0 | BF134: =IFERROR(BF137/BF110,0) -> 0 | BG134: 0 | BJ134: 0 | BK134: 0 | BL134: 0 | BN134: =IFERROR(BN137/BN110,0) -> 0 | BO134: 0
A135: 133 | B135: 1 | C135: 128 | D135: 1 | E135: 1 | F135: 1 | G135: 1 | H135: 1 | I135: 1 | J135: 1 | K135: 1 | L135: MTP | M135: RF | U135: Hard | Y135: =CHOOSE(2, "6773000004447", "PL (1)-1 Gross Profit HW") -> PL (1)-1 Gross Profit HW | Z135: 64701.54793 | AA135: 57443.64106 | AB135: 74753.59503 | AC135: 59712.44342 | AD135: 63387.85205 | AE135: 78351.56796 | AF135: 51612.47494 | AG135: 52888.8076 | AH135: 64548.28489 | AI135: 57407.11649 | AJ135: 57696.80333 | AK135: 57628.10154 | AL135: =SUM(Z135,AA135,AB135) -> 196898.784 | AM135: =SUM(AC135,AD135,AE135) -> 201451.8634 | AN135: =SUM(AF135,AG135,AH135) -> 169049.5674 | AO135: =SUM(AI135,AJ135,AK135) -> 172732.0214 | AP135: =AL135+AM135 -> 398350.6475 | AQ135: =AO135+AN135 -> 341781.5888 | AR135: =AP135+AQ135 -> 740132.2363 | AT135: =SUM((INDIRECT(AT$2&(ROW())):INDIRECT(AT$3&(ROW())))) -> 74753.59503 | AU135: =SUM(INDIRECT(AU$1&AU$2&$A135):INDIRECT(AU$1&AU$3&$A135)) -> 55641.8483 | AV135: 19111.74673 | AW135: 1.343477927 | AX135: =SUM(INDIRECT(AX$1&AX$2&$C135):INDIRECT(AX$1&AX$3&$C135)) -> 54942.8012 | AY135: 19810.79383 | AZ135: =IFERROR(AT135/AX135,0) -> 1.360571238 | BB135: =SUM((INDIRECT(BB$2&(ROW())):INDIRECT(BB$3&(ROW())))) -> 196898.784 | BC135: =SUM(INDIRECT(BC$1&BC$2&$A135):INDIRECT(BC$1&BC$3&$A135)) -> 162984.2941 | BD135: 33914.48998 | BE135: =IFERROR(BB135/BC135,0) -> 1.208084406 | BF135: =SUM(INDIRECT(BF$1&BF$2&$C135):INDIRECT(BF$1&BF$3&$C135)) -> 149109.0244 | BG135: 47789.75967 | BH135: =IFERROR(BB135/BF135,0) -> 1.320502128 | BJ135: =SUM((INDIRECT(BJ$2&(ROW())):INDIRECT(BJ$3&(ROW())))) -> 196898.784 | BK135: =SUM(INDIRECT(BK$1&BK$2&$A135):INDIRECT(BK$1&BK$3&$A135)) -> 162984.2941 | BL135: 33914.48998 | BM135: =IFERROR(BJ135/BK135,0) -> 1.208084406 | BN135: =SUM(INDIRECT(BN$1&BN$2&$C135):INDIRECT(BN$1&BN$3&$C135)) -> 149109.0244 | BO135: 47789.75967 | BP135: =IFERROR(BJ135/BN135,0) -> 1.320502128
A136: 134 | B136: 1 | C136: 129 | D136: 1 | E136: 1 | F136: 1 | G136: 1 | H136: 1 | I136: 1 | J136: 1 | K136: 1 | L136: MTP | M136: RF | U136: Non-hard | Y136: =CHOOSE(2, "6773000004448", "PL (1)-1 Gross Profit NH") -> PL (1)-1 Gross Profit NH | Z136: 56957.99234 | AA136: 47422.19386 | AB136: 44862.82242 | AC136: 44508.21005 | AD136: 51590.45226 | AE136: 63376.13922 | AF136: 39240.76056 | AG136: 42812.19204 | AH136: 41436.08152 | AI136: 34661.13197 | AJ136: 38745.05662 | AK136: 40229.463 | AL136: 149243.0086 | AM136: 159474.8015 | AN136: 123489.0341 | AO136: 113635.6516 | AP136: =AL136+AM136 -> 308717.8102 | AQ136: =AO136+AN136 -> 237124.6857 | AR136: =AP136+AQ136 -> 545842.4959 | AT136: =SUM((INDIRECT(AT$2&(ROW())):INDIRECT(AT$3&(ROW())))) -> 44862.82242 | AU136: =SUM(INDIRECT(AU$1&AU$2&$A136):INDIRECT(AU$1&AU$3&$A136)) -> 38949.63773 | AV136: 5913.184691 | AW136: 1.151816167 | AX136: =SUM(INDIRECT(AX$1&AX$2&$C136):INDIRECT(AX$1&AX$3&$C136)) -> 39470.61336 | AY136: 5392.209064 | AZ136: 1.136613257 | BB136: =SUM((INDIRECT(BB$2&(ROW())):INDIRECT(BB$3&(ROW())))) -> 149243.0086 | BC136: =SUM(INDIRECT(BC$1&BC$2&$A136):INDIRECT(BC$1&BC$3&$A136)) -> 131264.7334 | BD136: 17978.27523 | BE136: 1.136961961 | BF136: =SUM(INDIRECT(BF$1&BF$2&$C136):INDIRECT(BF$1&BF$3&$C136)) -> 131773.4865 | BG136: 17469.52208 | BH136: 1.13257236 | BJ136: =SUM((INDIRECT(BJ$2&(ROW())):INDIRECT(BJ$3&(ROW())))) -> 149243.0086 | BK136: =SUM(INDIRECT(BK$1&BK$2&$A136):INDIRECT(BK$1&BK$3&$A136)) -> 131264.7334 | BL136: 17978.27523 | BM136: 1.136961961 | BN136: =SUM(INDIRECT(BN$1&BN$2&$C136):INDIRECT(BN$1&BN$3&$C136)) -> 131773.4865 | BO136: 17469.52208 | BP136: 1.13257236
A137: 135 | B137: 1 | C137: 130 | D137: 1 | E137: 1 | F137: 1 | G137: 1 | H137: 1 | I137: 1 | J137: 1 | K137: 1 | L137: MTP | M137: RF | U137: Others | Y137: =CHOOSE(2, "6773000004449", "PL (1)-1 Gross Profit Others") -> PL (1)-1 Gross Profit Others | Z137: 0 | AA137: 0 | AB137: 0 | AC137: 0 | AD137: 0 | AL137: 0 | AM137: 0 | AN137: 0 | AO137: 0 | AP137: =AL137+AM137 -> 0 | AQ137: =AO137+AN137 -> 0 | AR137: =AP137+AQ137 -> 0 | AT137: =SUM((INDIRECT(AT$2&(ROW())):INDIRECT(AT$3&(ROW())))) -> 0 | AU137: =SUM(INDIRECT(AU$1&AU$2&$A137):INDIRECT(AU$1&AU$3&$A137)) -> 0 | AV137: 0 | AW137: 0 | AX137: =SUM(INDIRECT(AX$1&AX$2&$C137):INDIRECT(AX$1&AX$3&$C137)) -> 0 | AY137: 0 | AZ137: 0 | BB137: =SUM((INDIRECT(BB$2&(ROW())):INDIRECT(BB$3&(ROW())))) -> 0 | BC137: =SUM(INDIRECT(BC$1&BC$2&$A137):INDIRECT(BC$1&BC$3&$A137)) -> 0 | BD137: 0 | BE137: 0 | BF137: =SUM(INDIRECT(BF$1&BF$2&$C137):INDIRECT(BF$1&BF$3&$C137)) -> 0 | BG137: 0 | BH137: 0 | BJ137: =SUM((INDIRECT(BJ$2&(ROW())):INDIRECT(BJ$3&(ROW())))) -> 0 | BK137: =SUM(INDIRECT(BK$1&BK$2&$A137):INDIRECT(BK$1&BK$3&$A137)) -> 0 | BL137: 0 | BM137: 0 | BN137: =SUM(INDIRECT(BN$1&BN$2&$C137):INDIRECT(BN$1&BN$3&$C137)) -> 0 | BO137: 0 | BP137: 0
A138: 136 | B138: 1 | C138: 131 | D138: 1 | E138: 1 | F138: 1 | G138: 1 | H138: 1 | I138: 1 | J138: 1 | K138: 1 | L138: MTP | M138: RF | Q138: SGA Expenses | Y138: =CHOOSE(2, "6773000004450", "PL (1)-1 SGA Expenses") -> PL (1)-1 SGA Expenses | Z138: =SUM(Z139:Z141) -> 92414.05418 | AA138: =SUM(AA139:AA141) -> 86823.35003 | AB138: =SUM(AB139:AB141) -> 96459.76844 | AC138: 93883.45572 | AD138: =SUM(AD139:AD141) -> 96332.07526 | AE138: =SUM(AE139:AE141) -> 89257.57773 | AF138: 79466.40885 | AG138: 80012.11118 | AH138: 85077.84956 | AI138: 82129.2767 | AJ138: 81986.24947 | AK138: 85414.00391 | AL138: 275697.1726 | AM138: 279473.1087 | AN138: 244556.3696 | AO138: 249529.5301 | AP138: =SUM(AP139:AP141) -> 555170.2814 | AQ138: =SUM(AQ139:AQ141) -> 494085.8997 | AR138: =SUM(AR139:AR141) -> 1049256.181 | AT138: =SUM((INDIRECT(AT$2&(ROW())):INDIRECT(AT$3&(ROW())))) -> 96459.76844 | AU138: =SUM(INDIRECT(AU$1&AU$2&$A138):INDIRECT(AU$1&AU$3&$A138)) -> 76294.78853 | AV138: 20164.9799 | AW138: 1.264303503 | AX138: =SUM(INDIRECT(AX$1&AX$2&$C138):INDIRECT(AX$1&AX$3&$C138)) -> 71491.97321 | AY138: 24967.79522 | AZ138: 1.34923914 | BB138: =SUM((INDIRECT(BB$2&(ROW())):INDIRECT(BB$3&(ROW())))) -> 275697.1726 | BC138: =SUM(INDIRECT(BC$1&BC$2&$A138):INDIRECT(BC$1&BC$3&$A138)) -> 229143.0207 | BD138: 46554.15199 | BE138: 1.203166354 | BF138: =SUM(INDIRECT(BF$1&BF$2&$C138):INDIRECT(BF$1&BF$3&$C138)) -> 241329.2083 | BG138: 34367.96434 | BH138: 1.142411126 | BJ138: =SUM((INDIRECT(BJ$2&(ROW())):INDIRECT(BJ$3&(ROW())))) -> 275697.1726 | BK138: =SUM(INDIRECT(BK$1&BK$2&$A138):INDIRECT(BK$1&BK$3&$A138)) -> 229143.0207 | BL138: 46554.15199 | BM138: 1.203166354 | BN138: =SUM(INDIRECT(BN$1&BN$2&$C138):INDIRECT(BN$1&BN$3&$C138)) -> 241329.2083 | BO138: 34367.96434 | BP138: 1.142411126
A139: 137 | B139: 1 | C139: 132 | D139: 1 | E139: 1 | F139: 1 | G139: 1 | H139: 1 | I139: 1 | J139: 1 | K139: 1 | L139: MTP | M139: RF | R139: Variable Expenses | Y139: =CHOOSE(2, "6773000004451", "PL (1)-1 SGA Expenses Variable Expenses") -> PL (1)-1 SGA Expenses Variable Expenses | Z139: 45294.19834 | AA139: 31970.56324 | AB139: 44212.15397 | AC139: 41653.20977 | AD139: 40730.85379 | AE139: 35814.21483 | AF139: 28271.84488 | AG139: 28229.56573 | AH139: 32806.46543 | AI139: 29898.32432 | AJ139: 29827.14265 | AK139: 29806.38504 | AL139: 121476.9156 | AM139: 118198.2784 | AN139: 89307.87604 | AO139: 89531.85201 | AP139: =AL139+AM139 -> 239675.194 | AQ139: =AO139+AN139 -> 178839.728 | AR139: =AP139+AQ139 -> 418514.922 | AT139: =SUM((INDIRECT(AT$2&(ROW())):INDIRECT(AT$3&(ROW())))) -> 44212.15397 | AU139: =SUM(INDIRECT(AU$1&AU$2&$A139):INDIRECT(AU$1&AU$3&$A139)) -> 25153.60871 | AV139: 19058.54526 | AW139: 1.757686322 | AX139: =SUM(INDIRECT(AX$1&AX$2&$C139):INDIRECT(AX$1&AX$3&$C139)) -> 36525.783 | AY139: 7686.370974 | AZ139: 1.210436857 | BB139: =SUM((INDIRECT(BB$2&(ROW())):INDIRECT(BB$3&(ROW())))) -> 121476.9156 | BC139: =SUM(INDIRECT(BC$1&BC$2&$A139):INDIRECT(BC$1&BC$3&$A139)) -> 75501.18174 | BD139: 45975.73382 | BE139: 1.608940586 | BF139: =SUM(INDIRECT(BF$1&BF$2&$C139):INDIRECT(BF$1&BF$3&$C139)) -> 88212.6056 | BG139: 33264.30996 | BH139: 1.377092477 | BJ139: =SUM((INDIRECT(BJ$2&(ROW())):INDIRECT(BJ$3&(ROW())))) -> 121476.9156 | BK139: =SUM(INDIRECT(BK$1&BK$2&$A139):INDIRECT(BK$1&BK$3&$A139)) -> 75501.18174 | BL139: 45975.73382 | BM139: 1.608940586 | BN139: =SUM(INDIRECT(BN$1&BN$2&$C139):INDIRECT(BN$1&BN$3&$C139)) -> 88212.6056 | BO139: 33264.30996 | BP139: 1.377092477 | BR139: =Z139-OP!Z137 -> 20128.08469 | BS139: =AA139-OP!AA137 -> 6789.103871 | BT139: =AB139-OP!AB137 -> 19058.54526
A140: 138 | B140: 1 | C140: 133 | D140: 1 | E140: 1 | F140: 1 | G140: 1 | H140: 1 | I140: 1 | J140: 1 | K140: 1 | L140: MTP | M140: RF | R140: Wages & Salaries | Y140: =CHOOSE(2, "6773000004452", "PL (1)-1 SGA Expenses Wages & Salaries") -> PL (1)-1 SGA Expenses Wages & Salaries | Z140: 29336.35576 | AA140: 32158.16812 | AB140: 29171.50891 | AC140: 27539.78852 | AD140: 29917.50909 | AE140: 32084.99492 | AF140: 31402.75427 | AG140: 31226.88899 | AH140: 31357.02414 | AI140: 31380.33102 | AJ140: 31282.62786 | AK140: 31301.13991 | AL140: 90666.03279 | AM140: 89542.29253 | AN140: 93986.66741 | AO140: 93964.09879 | AP140: =AL140+AM140 -> 180208.3253 | AQ140: =AO140+AN140 -> 187950.7662 | AR140: =AP140+AQ140 -> 368159.0915 | AT140: =SUM((INDIRECT(AT$2&(ROW())):INDIRECT(AT$3&(ROW())))) -> 29171.50891 | AU140: =SUM(INDIRECT(AU$1&AU$2&$A140):INDIRECT(AU$1&AU$3&$A140)) -> 31843.51541 | AV140: -2672.006493 | AW140: 0.9160894625 | AX140: =SUM(INDIRECT(AX$1&AX$2&$C140):INDIRECT(AX$1&AX$3&$C140)) -> 29756.80998 | AY140: -585.3010614 | AZ140: 0.9803305172 | BB140: =SUM((INDIRECT(BB$2&(ROW())):INDIRECT(BB$3&(ROW())))) -> 90666.03279 | BC140: =SUM(INDIRECT(BC$1&BC$2&$A140):INDIRECT(BC$1&BC$3&$A140)) -> 95475.24374 | BD140: -4809.210956 | BE140: 0.9496287125 | BF140: =SUM(INDIRECT(BF$1&BF$2&$C140):INDIRECT(BF$1&BF$3&$C140)) -> 86104.05204 | BG140: 4561.980748 | BH140: 1.052982184 | BJ140: =SUM((INDIRECT(BJ$2&(ROW())):INDIRECT(BJ$3&(ROW())))) -> 90666.03279 | BK140: =SUM(INDIRECT(BK$1&BK$2&$A140):INDIRECT(BK$1&BK$3&$A140)) -> 95475.24374 | BL140: -4809.210956 | BM140: 0.9496287125 | BN140: =SUM(INDIRECT(BN$1&BN$2&$C140):INDIRECT(BN$1&BN$3&$C140)) -> 86104.05204 | BO140: 4561.980748 | BP140: 1.052982184 | BR140: =Z140-OP!Z138 -> -2440.584249 | BS140: =AA140-OP!AA138 -> 303.3797863 | BT140: =AB140-OP!AB138 -> -2672.006493
A141: 139 | B141: 1 | C141: 134 | D141: 1 | E141: 1 | F141: 1 | G141: 1 | H141: 1 | I141: 1 | J141: 1 | K141: 1 | L141: MTP | M141: RF | R141: Fixed Expenses | Y141: =CHOOSE(2, "6773000004453", "PL (1)-1 SGA Expenses Fixed Expenses") -> PL (1)-1 SGA Expenses Fixed Expenses | Z141: 17783.50008 | AA141: 22694.61867 | AB141: 23076.10555 | AC141: 24690.45743 | AD141: 25683.71238 | AE141: 21358.36798 | AF141: 19791.8097 | AG141: 20555.65646 | AH141: 20914.35999 | AI141: 20850.62137 | AJ141: 20876.47895 | AK141: 24306.47895 | AL141: 63554.2243 | AM141: 71732.53779 | AN141: 61261.82615 | AO141: 66033.57928 | AP141: =AL141+AM141 -> 135286.7621 | AQ141: =AO141+AN141 -> 127295.4054 | AR141: =AP141+AQ141 -> 262582.1675 | AT141: =SUM((INDIRECT(AT$2&(ROW())):INDIRECT(AT$3&(ROW())))) -> 23076.10555 | AU141: =SUM(INDIRECT(AU$1&AU$2&$A141):INDIRECT(AU$1&AU$3&$A141)) -> 19297.66441 | AV141: 3778.441136 | AW141: 1.195797847 | AX141: =SUM(INDIRECT(AX$1&AX$2&$C141):INDIRECT(AX$1&AX$3&$C141)) -> 5209.380238 | AY141: 17866.72531 | AZ141: 4.429721867 | BB141: =SUM((INDIRECT(BB$2&(ROW())):INDIRECT(BB$3&(ROW())))) -> 63554.2243 | BC141: =SUM(INDIRECT(BC$1&BC$2&$A141):INDIRECT(BC$1&BC$3&$A141)) -> 58166.59516 | BD141: 5387.629131 | BE141: 1.09262411 | BF141: =SUM(INDIRECT(BF$1&BF$2&$C141):INDIRECT(BF$1&BF$3&$C141)) -> 67012.55066 | BG141: -3458.326361 | BH141: 0.9483928559 | BJ141: =SUM((INDIRECT(BJ$2&(ROW())):INDIRECT(BJ$3&(ROW())))) -> 63554.2243 | BK141: =SUM(INDIRECT(BK$1&BK$2&$A141):INDIRECT(BK$1&BK$3&$A141)) -> 58166.59516 | BL141: 5387.629131 | BM141: 1.09262411 | BN141: =SUM(INDIRECT(BN$1&BN$2&$C141):INDIRECT(BN$1&BN$3&$C141)) -> 67012.55066 | BO141: -3458.326361 | BP141: 0.9483928559 | BR141: =Z141-OP!Z139 -> -1651.341356 | BS141: =AA141-OP!AA139 -> 3260.529352 | BT141: =AB141-OP!AB139 -> 3778.441136
A142: 140 | B142: 1 | C142: 135 | D142: 1 | E142: 1 | F142: 1 | G142: 1 | H142: 1 | I142: 1 | J142: 1 | K142: 1 | L142: MTP | M142: RF | Q142: Business Contribution Profit | Y142: =CHOOSE(2, "6773000004454", "PL (1)-1 Business Contribution Profit") -> PL (1)-1 Business Contribution Profit | Z142: =Z130-Z138 -> 29245.4861 | AA142: =AA130-AA138 -> 18042.48489 | AB142: 23156.64902 | AC142: =AC130-AC138 -> 10337.19775 | AD142: 18646.22906 | AE142: =AE130-AE138 -> 52470.12944 | AF142: 11386.82665 | AG142: 15688.88846 | AH142: 20906.51685 | AI142: 9938.971765 | AJ142: 14455.61047 | AK142: 12443.56064 | AL142: =AL130-AL138 -> 70444.62001 | AM142: 81453.55626 | AN142: 47982.23196 | AO142: 36838.14287 | AP142: 151898.1763 | AQ142: 84820.37483 | AR142: 236718.5511 | AT142: =SUM((INDIRECT(AT$2&(ROW())):INDIRECT(AT$3&(ROW())))) -> 23156.64902 | AU142: =SUM(INDIRECT(AU$1&AU$2&$A142):INDIRECT(AU$1&AU$3&$A142)) -> 18296.6975 | AV142: 4859.951521 | AW142: 1.265619056 | AX142: =SUM(INDIRECT(AX$1&AX$2&$C142):INDIRECT(AX$1&AX$3&$C142)) -> 22921.44135 | AY142: 235.2076728 | AZ142: 1.01026147 | BB142: =SUM((INDIRECT(BB$2&(ROW())):INDIRECT(BB$3&(ROW())))) -> 70444.62001 | BC142: =SUM(INDIRECT(BC$1&BC$2&$A142):INDIRECT(BC$1&BC$3&$A142)) -> 65106.00679 | BD142: 5338.613219 | BE142: 1.081998781 | BF142: =SUM(INDIRECT(BF$1&BF$2&$C142):INDIRECT(BF$1&BF$3&$C142)) -> 39553.3026 | BG142: 30891.31741 | BH142: 1.781004755 | BJ142: =SUM((INDIRECT(BJ$2&(ROW())):INDIRECT(BJ$3&(ROW())))) -> 70444.62001 | BK142: =SUM(INDIRECT(BK$1&BK$2&$A142):INDIRECT(BK$1&BK$3&$A142)) -> 65106.00679 | BL142: 5338.613219 | BM142: 1.081998781 | BN142: =SUM(INDIRECT(BN$1&BN$2&$C142):INDIRECT(BN$1&BN$3&$C142)) -> 39553.3026 | BO142: 30891.31741 | BP142: 1.781004755
A143: 141 | B143: 1 | C143: 136 | D143: 1 | E143: 1 | F143: 1 | G143: 1 | H143: 1 | I143: 1 | J143: 1 | K143: 1 | L143: MTP | M143: RF | R143: (%) | Y143: =CHOOSE(2, "6773000004455", "PL (1)-1 Business Contribution Profit (%)") -> PL (1)-1 Business Contribution Profit (%) | Z143: =IFERROR(Z142/Z107,0) -> 0.09031402491 | AA143: =IFERROR(AA142/AA107,0) -> 0.05895504015 | AB143: 0.06837156894 | AC143: =IFERROR(AC142/AC107,0) -> 0.03423235255 | AD143: 0.05937669486 | AE143: =IFERROR(AE142/AE107,0) -> 0.1328382975 | AF143: 0.04275534379 | AG143: 0.05436711472 | AH143: 0.06518315177 | AI143: 0.0341428566 | AJ143: 0.04677824912 | AK143: 0.03955041993 | AL143: =IFERROR(AL142/AL107,0) -> 0.07273232043 | AM143: 0.08056756601 | AN143: 0.0547971736 | AO143: 0.04027131115 | AP143: 0.07673395517 | AQ143: 0.0473755642 | AR143: 0.06279130693 | AT143: =IFERROR(AT142/AT107,0) -> 0.06837156894 | AU143: =IFERROR(AU142/AU107,0) -> 0.05503512989 | AV143: 0.01333643905 | AX143: =IFERROR(AX142/AX107,0) -> 0.07286699626 | AY143: -0.004495427317 | BB143: =IFERROR(BB142/BB107,0) -> 0.07273232043 | BC143: =IFERROR(BC142/BC107,0) -> 0.06608918093 | BD143: 0.0066431395 | BF143: =IFERROR(BF142/BF107,0) -> 0.04412942849 | BG143: 0.02860289195 | BJ143: =IFERROR(BJ142/BJ107,0) -> 0.07273232043 | BK143: =IFERROR(BK142/BK107,0) -> 0.06608918093 | BL143: 0.0066431395 | BN143: =IFERROR(BN142/BN107,0) -> 0.04412942849 | BO143: 0.02860289195
A144: 142 | B144: 1 | C144: 137 | D144: 1 | E144: 1 | F144: 1 | G144: 1 | H144: 1 | I144: 1 | J144: 1 | K144: 1 | L144: MTP | M144: RF | Q144: Other Income | Y144: =CHOOSE(2, "6773000004456", "PL (1)-1 Other Income") -> PL (1)-1 Other Income | Z144: 554.4462527 | AA144: 1649.296325 | AB144: 375.7038335 | AC144: 629.5851025 | AD144: 703.4907463 | AL144: =SUM(Z144,AA144,AB144) -> 2579.446412 | AM144: =SUM(AC144,AD144,AE144) -> 1333.075849 | AN144: =SUM(AF144,AG144,AH144) -> 0 | AO144: =SUM(AI144,AJ144,AK144) -> 0 | AP144: =AL144+AM144 -> 3912.52226 | AQ144: =AO144+AN144 -> 0 | AR144: =AP144+AQ144 -> 3912.52226 | AT144: =SUM((INDIRECT(AT$2&(ROW())):INDIRECT(AT$3&(ROW())))) -> 375.7038335 | AU144: =SUM(INDIRECT(AU$1&AU$2&$A144):INDIRECT(AU$1&AU$3&$A144)) -> 250 | AV144: 125.7038335 | AW144: 1.502815334 | AX144: =SUM(INDIRECT(AX$1&AX$2&$C144):INDIRECT(AX$1&AX$3&$C144)) -> 466 | AY144: -90.29616646 | AZ144: =IFERROR(AT144/AX144,0) -> 0.8062314024 | BB144: =SUM((INDIRECT(BB$2&(ROW())):INDIRECT(BB$3&(ROW())))) -> 2579.446412 | BC144: =SUM(INDIRECT(BC$1&BC$2&$A144):INDIRECT(BC$1&BC$3&$A144)) -> 750 | BD144: 1829.446412 | BE144: =IFERROR(BB144/BC144,0) -> 3.439261882 | BF144: =SUM(INDIRECT(BF$1&BF$2&$C144):INDIRECT(BF$1&BF$3&$C144)) -> 2071 | BG144: 508.4464117 | BH144: =IFERROR(BB144/BF144,0) -> 1.245507683 | BJ144: =SUM((INDIRECT(BJ$2&(ROW())):INDIRECT(BJ$3&(ROW())))) -> 2579.446412 | BK144: =SUM(INDIRECT(BK$1&BK$2&$A144):INDIRECT(BK$1&BK$3&$A144)) -> 750 | BL144: 1829.446412 | BM144: =IFERROR(BJ144/BK144,0) -> 3.439261882 | BN144: =SUM(INDIRECT(BN$1&BN$2&$C144):INDIRECT(BN$1&BN$3&$C144)) -> 2071 | BO144: 508.4464117 | BP144: =IFERROR(BJ144/BN144,0) -> 1.245507683
A145: 143 | B145: 1 | C145: 138 | D145: 1 | E145: 1 | F145: 1 | G145: 1 | H145: 1 | I145: 1 | J145: 1 | K145: 1 | L145: MTP | M145: RF | Q145: Other Expenses | Y145: =CHOOSE(2, "6773000004457", "PL (1)-1 Other Expenses") -> PL (1)-1 Other Expenses | Z145: 2487.591 | AA145: 2047 | AB145: 0 | AC145: 0 | AD145: 1568.218323 | AH145: 3465.409 | AL145: =SUM(Z145,AA145,AB145) -> 4534.591 | AM145: =SUM(AC145,AD145,AE145) -> 1568.218323 | AN145: =SUM(AF145,AG145,AH145) -> 3465.409 | AO145: =SUM(AI145,AJ145,AK145) -> 0 | AP145: =AL145+AM145 -> 6102.809323 | AQ145: =AO145+AN145 -> 3465.409 | AR145: =AP145+AQ145 -> 9568.218323 | AT145: =SUM((INDIRECT(AT$2&(ROW())):INDIRECT(AT$3&(ROW())))) -> 0 | AU145: =SUM(INDIRECT(AU$1&AU$2&$A145):INDIRECT(AU$1&AU$3&$A145)) -> 0 | AV145: 0 | AW145: 0 | AX145: =SUM(INDIRECT(AX$1&AX$2&$C145):INDIRECT(AX$1&AX$3&$C145)) -> 0 | AY145: 0 | AZ145: =IFERROR(AT145/AX145,0) -> 0 | BB145: =SUM((INDIRECT(BB$2&(ROW())):INDIRECT(BB$3&(ROW())))) -> 4534.591 | BC145: =SUM(INDIRECT(BC$1&BC$2&$A145):INDIRECT(BC$1&BC$3&$A145)) -> 0 | BD145: 4534.591 | BE145: =IFERROR(BB145/BC145,0) -> 0 | BF145: =SUM(INDIRECT(BF$1&BF$2&$C145):INDIRECT(BF$1&BF$3&$C145)) -> 0 | BG145: 4534.591 | BH145: =IFERROR(BB145/BF145,0) -> 0 | BJ145: =SUM((INDIRECT(BJ$2&(ROW())):INDIRECT(BJ$3&(ROW())))) -> 4534.591 | BK145: =SUM(INDIRECT(BK$1&BK$2&$A145):INDIRECT(BK$1&BK$3&$A145)) -> 0 | BL145: 4534.591 | BM145: =IFERROR(BJ145/BK145,0) -> 0 | BN145: =SUM(INDIRECT(BN$1&BN$2&$C145):INDIRECT(BN$1&BN$3&$C145)) -> 0 | BO145: 4534.591 | BP145: =IFERROR(BJ145/BN145,0) -> 0
A146: 144 | B146: 1 | C146: 139 | D146: 1 | E146: 1 | F146: 1 | G146: 1 | H146: 1 | I146: 1 | J146: 1 | K146: 1 | L146: MTP | M146: RF | Q146: Operating Profit | Y146: =CHOOSE(2, "6773000004458", "PL (1)-1 Operating Profit") -> PL (1)-1 Operating Profit | Z146: =Z142+Z144-Z145 -> 27312.34135 | AA146: =AA142+AA144-AA145 -> 17644.78122 | AB146: =AB142+AB144-AB145 -> 23532.35286 | AC146: 10966.78285 | AD146: =AD142+AD144-AD145 -> 17781.50148 | AE146: =AE142+AE144-AE145 -> 52470.12944 | AF146: 11386.82665 | AG146: 15688.88846 | AH146: 17441.10785 | AI146: 9938.971765 | AJ146: 14455.61047 | AK146: 12443.56064 | AL146: =AL142+AL144-AL145 -> 68489.47542 | AM146: 81218.41378 | AN146: 44516.82296 | AO146: 36838.14287 | AP146: 149707.8892 | AQ146: 81354.96583 | AR146: 231062.855 | AT146: =SUM((INDIRECT(AT$2&(ROW())):INDIRECT(AT$3&(ROW())))) -> 23532.35286 | AU146: =SUM(INDIRECT(AU$1&AU$2&$A146):INDIRECT(AU$1&AU$3&$A146)) -> 18546.6975 | AV146: 4985.655355 | AW146: 1.268816341 | AX146: =SUM(INDIRECT(AX$1&AX$2&$C146):INDIRECT(AX$1&AX$3&$C146)) -> 23387.44135 | AY146: 144.9115063 | AZ146: =IFERROR(AT146/AX146,0) -> 1.006196125 | BB146: =SUM((INDIRECT(BB$2&(ROW())):INDIRECT(BB$3&(ROW())))) -> 68489.47542 | BC146: =SUM(INDIRECT(BC$1&BC$2&$A146):INDIRECT(BC$1&BC$3&$A146)) -> 65856.00679 | BD146: 2633.468631 | BE146: =IFERROR(BB146/BC146,0) -> 1.039988283 | BF146: =SUM(INDIRECT(BF$1&BF$2&$C146):INDIRECT(BF$1&BF$3&$C146)) -> 41624.3026 | BG146: 26865.17282 | BH146: =IFERROR(BB146/BF146,0) -> 1.645420371 | BJ146: =SUM((INDIRECT(BJ$2&(ROW())):INDIRECT(BJ$3&(ROW())))) -> 68489.47542 | BK146: =SUM(INDIRECT(BK$1&BK$2&$A146):INDIRECT(BK$1&BK$3&$A146)) -> 65856.00679 | BL146: 2633.468631 | BM146: =IFERROR(BJ146/BK146,0) -> 1.039988283 | BN146: =SUM(INDIRECT(BN$1&BN$2&$C146):INDIRECT(BN$1&BN$3&$C146)) -> 41624.3026 | BO146: 26865.17282 | BP146: =IFERROR(BJ146/BN146,0) -> 1.645420371
A147: 145 | B147: 1 | C147: 140 | D147: 1 | E147: 1 | F147: 1 | G147: 1 | H147: 1 | I147: 1 | J147: 1 | K147: 1 | L147: MTP | M147: RF | R147: (%) | Y147: =CHOOSE(2, "6773000004459", "PL (1)-1 Operating Profit (%)") -> PL (1)-1 Operating Profit (%) | Z147: =IFERROR(Z146/Z107,0) -> 0.08434421192 | AA147: =IFERROR(AA146/AA107,0) -> 0.05765551648 | AB147: 0.06948085987 | AC147: =IFERROR(AC146/AC107,0) -> 0.0363172676 | AD147: 0.05662307291 | AE147: =IFERROR(AE146/AE107,0) -> 0.1328382975 | AF147: 0.04275534379 | AG147: 0.05436711472 | AH147: 0.05437856474 | AI147: 0.0341428566 | AJ147: 0.04677824912 | AK147: 0.03955041993 | AL147: =IFERROR(AL146/AL107,0) -> 0.07071368221 | AM147: 0.08033498124 | AN147: 0.05083957074 | AO147: 0.04027131115 | AP147: 0.07562749429 | AQ147: 0.04543999499 | AR147: 0.06129109267 | AT147: =IFERROR(AT146/AT107,0) -> 0.06948085987 | AU147: =IFERROR(AU146/AU107,0) -> 0.05578711163 | AV147: 0.01369374823 | AX147: =IFERROR(AX146/AX107,0) -> 0.07434840486 | AY147: -0.00486754499 | BB147: =IFERROR(BB146/BB107,0) -> 0.07071368221 | BC147: =IFERROR(BC146/BC107,0) -> 0.06685050678 | BD147: 0.003863175429 | BF147: =IFERROR(BF146/BF107,0) -> 0.04644003317 | BG147: 0.02427364904 | BJ147: =IFERROR(BJ146/BJ107,0) -> 0.07071368221 | BK147: =IFERROR(BK146/BK107,0) -> 0.06685050678 | BL147: 0.003863175429 | BN147: =IFERROR(BN146/BN107,0) -> 0.04644003317 | BO147: 0.02427364904
A148: 146 | B148: 1 | C148: 141 | D148: 1 | E148: 1 | F148: 1 | G148: 1 | H148: 1 | I148: 1 | J148: 1 | K148: 1 | L148: MTP | M148: RF | Y148: =CHOOSE(2, "6773000004460", "▷ Blank 9") -> ▷ Blank 9
A149: 147 | B149: 1 | C149: 142 | D149: 1 | E149: 1 | F149: 1 | G149: 1 | H149: 1 | I149: 1 | J149: 1 | K149: 1 | L149: MTP | M149: RF | P149: (1)-2 "Office Solution" only | Y149: =CHOOSE(2, "6773000004461", "PL (1)-2 ""Office Solution"" only") -> PL (1)-2 "Office Solution" only
A150: 148 | B150: 1 | C150: 143 | D150: 1 | E150: 1 | F150: 1 | G150: 1 | H150: 1 | I150: 1 | J150: 1 | K150: 1 | L150: MTP | M150: RF | Q150: Net Sales | Y150: =CHOOSE(2, "6773000004462", "PL (1)-2 Net Sales") -> PL (1)-2 Net Sales | Z150: 3997.967 | AA150: 3201.67 | AB150: 3921.699 | AC150: 3129.483 | AD150: 6279.265 | AE150: 2900 | AF150: 2700 | AG150: 3300 | AH150: 3500 | AI150: 3000 | AJ150: 2300 | AK150: 2500 | AL150: =SUM(Z150,AA150,AB150) -> 11121.336 | AM150: =SUM(AC150,AD150,AE150) -> 12308.748 | AN150: =SUM(AF150,AG150,AH150) -> 9500 | AO150: =SUM(AI150,AJ150,AK150) -> 7800 | AP150: =AL150+AM150 -> 23430.084 | AQ150: =AO150+AN150 -> 17300 | AR150: =AP150+AQ150 -> 40730.084 | AT150: =SUM((INDIRECT(AT$2&(ROW())):INDIRECT(AT$3&(ROW())))) -> 3921.699 | AU150: =SUM(INDIRECT(AU$1&AU$2&$A150):INDIRECT(AU$1&AU$3&$A150)) -> 4400.11794 | AV150: =AT150-AU150 -> -478.41894 | AW150: =IFERROR(AT150/AU150,0) -> 0.8912713371 | AX150: =SUM(INDIRECT(AX$1&AX$2&$C150):INDIRECT(AX$1&AX$3&$C150)) -> 5116.149 | AY150: =AT150-AX150 -> -1194.45 | AZ150: =IFERROR(AT150/AX150,0) -> 0.7665333828 | BB150: =SUM((INDIRECT(BB$2&(ROW())):INDIRECT(BB$3&(ROW())))) -> 11121.336 | BC150: =SUM(INDIRECT(BC$1&BC$2&$A150):INDIRECT(BC$1&BC$3&$A150)) -> 10399.53324 | BD150: =BB150-BC150 -> 721.80276 | BE150: =IFERROR(BB150/BC150,0) -> 1.069407227 | BF150: =SUM(INDIRECT(BF$1&BF$2&$C150):INDIRECT(BF$1&BF$3&$C150)) -> 10864.654 | BG150: =BB150-BF150 -> 256.682 | BH150: =IFERROR(BB150/BF150,0) -> 1.023625419 | BJ150: =SUM((INDIRECT(BJ$2&(ROW())):INDIRECT(BJ$3&(ROW())))) -> 11121.336 | BK150: =SUM(INDIRECT(BK$1&BK$2&$A150):INDIRECT(BK$1&BK$3&$A150)) -> 10399.53324 | BL150: =BJ150-BK150 -> 721.80276 | BM150: =IFERROR(BJ150/BK150,0) -> 1.069407227 | BN150: =SUM(INDIRECT(BN$1&BN$2&$C150):INDIRECT(BN$1&BN$3&$C150)) -> 10864.654 | BO150: =BJ150-BN150 -> 256.682 | BP150: =IFERROR(BJ150/BN150,0) -> 1.023625419
A151: 149 | B151: 1 | C151: 144 | D151: 1 | E151: 1 | F151: 1 | G151: 1 | H151: 1 | I151: 1 | J151: 1 | K151: 1 | L151: MTP | M151: RF | Q151: BT Consolidated Sales | Y151: =CHOOSE(2, "6773000004463", "PL (1)-2 BT Cons. Sales") -> PL (1)-2 BT Cons. Sales | Z151: =Z150 -> 3997.967 | AA151: =AA150 -> 3201.67 | AB151: =AB150 -> 3921.699 | AC151: =AC150 -> 3129.483 | AD151: =AD150 -> 6279.265 | AE151: =AE150 -> 2900 | AF151: 2700 | AG151: 3300 | AH151: 3500 | AI151: 3000 | AJ151: 2300 | AK151: 2500 | AL151: =SUM(Z151,AA151,AB151) -> 11121.336 | AM151: =SUM(AC151,AD151,AE151) -> 12308.748 | AN151: =SUM(AF151,AG151,AH151) -> 9500 | AO151: =SUM(AI151,AJ151,AK151) -> 7800 | AP151: =AL151+AM151 -> 23430.084 | AQ151: =AO151+AN151 -> 17300 | AR151: =AP151+AQ151 -> 40730.084 | AT151: =SUM((INDIRECT(AT$2&(ROW())):INDIRECT(AT$3&(ROW())))) -> 3921.699 | AU151: =SUM(INDIRECT(AU$1&AU$2&$A151):INDIRECT(AU$1&AU$3&$A151)) -> 4400.11794 | AV151: -478.41894 | AW151: 0.8912713371 | AX151: =SUM(INDIRECT(AX$1&AX$2&$C151):INDIRECT(AX$1&AX$3&$C151)) -> 5116.149 | AY151: -1194.45 | AZ151: 0.7665333828 | BB151: =SUM((INDIRECT(BB$2&(ROW())):INDIRECT(BB$3&(ROW())))) -> 11121.336 | BC151: =SUM(INDIRECT(BC$1&BC$2&$A151):INDIRECT(BC$1&BC$3&$A151)) -> 10399.53324 | BD151: 721.80276 | BE151: 1.069407227 | BF151: =SUM(INDIRECT(BF$1&BF$2&$C151):INDIRECT(BF$1&BF$3&$C151)) -> 10865.149 | BG151: 256.187 | BH151: 1.023578784 | BJ151: =SUM((INDIRECT(BJ$2&(ROW())):INDIRECT(BJ$3&(ROW())))) -> 11121.336 | BK151: =SUM(INDIRECT(BK$1&BK$2&$A151):INDIRECT(BK$1&BK$3&$A151)) -> 10399.53324 | BL151: 721.80276 | BM151: 1.069407227 | BN151: =SUM(INDIRECT(BN$1&BN$2&$C151):INDIRECT(BN$1&BN$3&$C151)) -> 10865.149 | BO151: 256.187 | BP151: 1.023578784
A152: 150 | B152: 1 | C152: 145 | D152: 1 | E152: 1 | F152: 1 | G152: 1 | H152: 1 | I152: 1 | J152: 1 | K152: 1 | L152: MTP | M152: RF | Q152: Gross Profit | Y152: =CHOOSE(2, "6773000004464", "PL (1)-2 Gross Profit") -> PL (1)-2 Gross Profit | Z152: 2703.91097 | AA152: 2189.05995 | AB152: 2529.79106 | AC152: 2296.16065 | AD152: 4345.66549 | AE152: 1305 | AF152: 1215 | AG152: 1650 | AH152: 1750 | AI152: 1500 | AJ152: 1150 | AK152: 1250 | AL152: =SUM(Z152,AA152,AB152) -> 7422.76198 | AM152: =SUM(AC152,AD152,AE152) -> 7946.82614 | AN152: =SUM(AF152,AG152,AH152) -> 4615 | AO152: =SUM(AI152,AJ152,AK152) -> 3900 | AP152: =AL152+AM152 -> 15369.58812 | AQ152: =AO152+AN152 -> 8515 | AR152: =AP152+AQ152 -> 23884.58812 | AT152: =SUM((INDIRECT(AT$2&(ROW())):INDIRECT(AT$3&(ROW())))) -> 2529.79106 | AU152: =SUM(INDIRECT(AU$1&AU$2&$A152):INDIRECT(AU$1&AU$3&$A152)) -> 2560.868641 | AV152: -31.07758108 | AW152: 0.9878644376 | AX152: =SUM(INDIRECT(AX$1&AX$2&$C152):INDIRECT(AX$1&AX$3&$C152)) -> 3364.56709 | AY152: -834.77603 | AZ152: 0.7518919945 | BB152: =SUM((INDIRECT(BB$2&(ROW())):INDIRECT(BB$3&(ROW())))) -> 7422.76198 | BC152: =SUM(INDIRECT(BC$1&BC$2&$A152):INDIRECT(BC$1&BC$3&$A152)) -> 6052.528346 | BD152: 1370.233634 | BE152: 1.226390288 | BF152: =SUM(INDIRECT(BF$1&BF$2&$C152):INDIRECT(BF$1&BF$3&$C152)) -> 6889.08059 | BG152: 533.68139 | BH152: 1.077467723 | BJ152: =SUM((INDIRECT(BJ$2&(ROW())):INDIRECT(BJ$3&(ROW())))) -> 7422.76198 | BK152: =SUM(INDIRECT(BK$1&BK$2&$A152):INDIRECT(BK$1&BK$3&$A152)) -> 6052.528346 | BL152: 1370.233634 | BM152: 1.226390288 | BN152: =SUM(INDIRECT(BN$1&BN$2&$C152):INDIRECT(BN$1&BN$3&$C152)) -> 6889.08059 | BO152: 533.68139 | BP152: 1.077467723
A153: 151 | B153: 1 | C153: 146 | D153: 1 | E153: 1 | F153: 1 | G153: 1 | H153: 1 | I153: 1 | J153: 1 | K153: 1 | L153: MTP | M153: RF | Q153: SGA Expenses | V153: *Allocation is acceptable | Y153: =CHOOSE(2, "6773000004465", "PL (1)-2 SGA Expenses *Allocation is acceptable") -> PL (1)-2 SGA Expenses *Allocation is acceptable | Z153: =SUM(Z154:Z156) -> 737.1351341 | AA153: =SUM(AA154:AA156) -> 697.5578955 | AB153: =SUM(AB154:AB156) -> 589.8231959 | AC153: 737.4840755 | AD153: =SUM(AD154:AD156) -> 686.6910755 | AE153: =SUM(AE154:AE156) -> 1208.261941 | AF153: 1207.845039 | AG153: 1201.50754 | AH153: 1207.493889 | AI153: 1208.066062 | AJ153: 1204.724699 | AK153: 1205.376934 | AL153: =SUM(AL154:AL156) -> 2024.516226 | AM153: 2632.437092 | AN153: 3616.846468 | AO153: 3618.167696 | AP153: 4656.953318 | AQ153: 7235.014164 | AR153: 11891.96748 | AT153: =SUM((INDIRECT(AT$2&(ROW())):INDIRECT(AT$3&(ROW())))) -> 589.8231959 | AU153: =SUM(INDIRECT(AU$1&AU$2&$A153):INDIRECT(AU$1&AU$3&$A153)) -> 1197.954126 | AV153: -608.1309299 | AW153: 0.49235875 | AX153: =SUM(INDIRECT(AX$1&AX$2&$C153):INDIRECT(AX$1&AX$3&$C153)) -> 408.8168915 | AY153: 181.0063045 | AZ153: 1.442756423 | BB153: =SUM((INDIRECT(BB$2&(ROW())):INDIRECT(BB$3&(ROW())))) -> 2024.516226 | BC153: =SUM(INDIRECT(BC$1&BC$2&$A153):INDIRECT(BC$1&BC$3&$A153)) -> 3592.982745 | BD153: -1568.46652 | BE153: 0.5634639432 | BF153: =SUM(INDIRECT(BF$1&BF$2&$C153):INDIRECT(BF$1&BF$3&$C153)) -> 1276.621861 | BG153: 747.8943649 | BH153: 1.585838601 | BJ153: =SUM((INDIRECT(BJ$2&(ROW())):INDIRECT(BJ$3&(ROW())))) -> 2024.516226 | BK153: =SUM(INDIRECT(BK$1&BK$2&$A153):INDIRECT(BK$1&BK$3&$A153)) -> 3592.982745 | BL153: -1568.46652 | BM153: 0.5634639432 | BN153: =SUM(INDIRECT(BN$1&BN$2&$C153):INDIRECT(BN$1&BN$3&$C153)) -> 1276.621861 | BO153: 747.8943649 | BP153: 1.585838601
A154: 152 | B154: 1 | C154: 147 | D154: 1 | E154: 1 | F154: 1 | G154: 1 | H154: 1 | I154: 1 | J154: 1 | K154: 1 | L154: MTP | M154: RF | R154: Variable Expenses | Y154: =CHOOSE(2, "6773000004466", "PL (1)-2 SGA Expenses Variable Expenses") -> PL (1)-2 SGA Expenses Variable Expenses | Z154: 0 | AA154: 0 | AB154: 0 | AC154: 0 | AD154: 0 | AE154: 0.08764931747 | AF154: 0.08764931967 | AG154: 0.08764932068 | AH154: 0.08764931999 | AI154: 0.08764931497 | AJ154: 0.08764931845 | AK154: 0.08764931778 | AL154: =SUM(Z154,AA154,AB154) -> 0 | AM154: =SUM(AC154,AD154,AE154) -> 0.08764931747 | AN154: =SUM(AF154,AG154,AH154) -> 0.2629479603 | AO154: =SUM(AI154,AJ154,AK154) -> 0.2629479512 | AP154: =AL154+AM154 -> 0.08764931747 | AQ154: =AO154+AN154 -> 0.5258959115 | AR154: =AP154+AQ154 -> 0.613545229 | AT154: =SUM((INDIRECT(AT$2&(ROW())):INDIRECT(AT$3&(ROW())))) -> 0 | AU154: =SUM(INDIRECT(AU$1&AU$2&$A154):INDIRECT(AU$1&AU$3&$A154)) -> 0.08764932024 | AV154: -0.08764932024 | AW154: 0 | AX154: =SUM(INDIRECT(AX$1&AX$2&$C154):INDIRECT(AX$1&AX$3&$C154)) -> 0 | AY154: 0 | AZ154: 0 | BB154: =SUM((INDIRECT(BB$2&(ROW())):INDIRECT(BB$3&(ROW())))) -> 0 | BC154: =SUM(INDIRECT(BC$1&BC$2&$A154):INDIRECT(BC$1&BC$3&$A154)) -> 0.2629479599 | BD154: -0.2629479599 | BE154: 0 | BF154: =SUM(INDIRECT(BF$1&BF$2&$C154):INDIRECT(BF$1&BF$3&$C154)) -> 0.3298024461 | BG154: -0.3298024461 | BH154: 0 | BJ154: =SUM((INDIRECT(BJ$2&(ROW())):INDIRECT(BJ$3&(ROW())))) -> 0 | BK154: =SUM(INDIRECT(BK$1&BK$2&$A154):INDIRECT(BK$1&BK$3&$A154)) -> 0.2629479599 | BL154: -0.2629479599 | BM154: 0 | BN154: =SUM(INDIRECT(BN$1&BN$2&$C154):INDIRECT(BN$1&BN$3&$C154)) -> 0.3298024461 | BO154: -0.3298024461 | BP154: 0
A155: 153 | B155: 1 | C155: 148 | D155: 1 | E155: 1 | F155: 1 | G155: 1 | H155: 1 | I155: 1 | J155: 1 | K155: 1 | L155: MTP | M155: RF | R155: Wages & Salaries | Y155: =CHOOSE(2, "6773000004467", "PL (1)-2 SGA Expenses Wages & Salaries") -> PL (1)-2 SGA Expenses Wages & Salaries | Z155: 698.323 | AA155: 658.158 | AB155: 550.274 | AC155: 699 | AD155: 648.207 | AE155: 1130.451171 | AF155: 1129.903627 | AG155: 1123.707362 | AH155: 1128.292416 | AI155: 1129.113588 | AJ155: 1125.671211 | AK155: 1126.323446 | AL155: =SUM(Z155,AA155,AB155) -> 1906.755 | AM155: =SUM(AC155,AD155,AE155) -> 2477.658171 | AN155: =SUM(AF155,AG155,AH155) -> 3381.903406 | AO155: =SUM(AI155,AJ155,AK155) -> 3381.108246 | AP155: =AL155+AM155 -> 4384.413171 | AQ155: =AO155+AN155 -> 6763.011651 | AR155: =AP155+AQ155 -> 11147.42482 | AT155: =SUM((INDIRECT(AT$2&(ROW())):INDIRECT(AT$3&(ROW())))) -> 550.274 | AU155: =SUM(INDIRECT(AU$1&AU$2&$A155):INDIRECT(AU$1&AU$3&$A155)) -> 1121.943119 | AV155: -571.6691191 | AW155: 0.4904651498 | AX155: =SUM(INDIRECT(AX$1&AX$2&$C155):INDIRECT(AX$1&AX$3&$C155)) -> 390 | AY155: 160.274 | AZ155: 1.410958974 | BB155: =SUM((INDIRECT(BB$2&(ROW())):INDIRECT(BB$3&(ROW())))) -> 1906.755 | BC155: =SUM(INDIRECT(BC$1&BC$2&$A155):INDIRECT(BC$1&BC$3&$A155)) -> 3363.880884 | BD155: -1457.125884 | BE155: 0.5668319021 | BF155: =SUM(INDIRECT(BF$1&BF$2&$C155):INDIRECT(BF$1&BF$3&$C155)) -> 1216 | BG155: 690.755 | BH155: 1.568055099 | BJ155: =SUM((INDIRECT(BJ$2&(ROW())):INDIRECT(BJ$3&(ROW())))) -> 1906.755 | BK155: =SUM(INDIRECT(BK$1&BK$2&$A155):INDIRECT(BK$1&BK$3&$A155)) -> 3363.880884 | BL155: -1457.125884 | BM155: 0.5668319021 | BN155: =SUM(INDIRECT(BN$1&BN$2&$C155):INDIRECT(BN$1&BN$3&$C155)) -> 1216 | BO155: 690.755 | BP155: 1.568055099
A156: 154 | B156: 1 | C156: 149 | D156: 1 | E156: 1 | F156: 1 | G156: 1 | H156: 1 | I156: 1 | J156: 1 | K156: 1 | L156: MTP | M156: RF | R156: Fixed Expenses | Y156: =CHOOSE(2, "6773000004468", "PL (1)-2 SGA Expenses Fixed Expenses") -> PL (1)-2 SGA Expenses Fixed Expenses | Z156: 38.81213409 | AA156: 39.39989554 | AB156: 39.54919594 | AC156: 38.48407555 | AD156: 38.48407555 | AE156: 77.723121 | AF156: 77.8537629 | AG156: 77.71252831 | AH156: 79.11382321 | AI156: 78.8648248 | AJ156: 78.96583887 | AK156: 78.96583887 | AL156: =SUM(Z156,AA156,AB156) -> 117.7612256 | AM156: =SUM(AC156,AD156,AE156) -> 154.6912721 | AN156: =SUM(AF156,AG156,AH156) -> 234.6801144 | AO156: =SUM(AI156,AJ156,AK156) -> 236.7965025 | AP156: =AL156+AM156 -> 272.4524977 | AQ156: =AO156+AN156 -> 471.476617 | AR156: =AP156+AQ156 -> 743.9291146 | AT156: =SUM((INDIRECT(AT$2&(ROW())):INDIRECT(AT$3&(ROW())))) -> 39.54919594 | AU156: =SUM(INDIRECT(AU$1&AU$2&$A156):INDIRECT(AU$1&AU$3&$A156)) -> 75.9233574 | AV156: -36.37416147 | AW156: 0.5209094709 | AX156: =SUM(INDIRECT(AX$1&AX$2&$C156):INDIRECT(AX$1&AX$3&$C156)) -> 18.81689147 | AY156: 20.73230446 | AZ156: 2.101792211 | BB156: =SUM((INDIRECT(BB$2&(ROW())):INDIRECT(BB$3&(ROW())))) -> 117.7612256 | BC156: =SUM(INDIRECT(BC$1&BC$2&$A156):INDIRECT(BC$1&BC$3&$A156)) -> 228.838913 | BD156: -111.0776875 | BE156: 0.5146031503 | BF156: =SUM(INDIRECT(BF$1&BF$2&$C156):INDIRECT(BF$1&BF$3&$C156)) -> 60.29205819 | BG156: 57.46916738 | BH156: 1.953179724 | BJ156: =SUM((INDIRECT(BJ$2&(ROW())):INDIRECT(BJ$3&(ROW())))) -> 117.7612256 | BK156: =SUM(INDIRECT(BK$1&BK$2&$A156):INDIRECT(BK$1&BK$3&$A156)) -> 228.838913 | BL156: -111.0776875 | BM156: 0.5146031503 | BN156: =SUM(INDIRECT(BN$1&BN$2&$C156):INDIRECT(BN$1&BN$3&$C156)) -> 60.29205819 | BO156: 57.46916738 | BP156: 1.953179724
A157: 155 | B157: 1 | C157: 150 | D157: 1 | E157: 1 | F157: 1 | G157: 1 | H157: 1 | I157: 1 | J157: 1 | K157: 1 | L157: MTP | M157: RF | Q157: Business Contribution Profit | Y157: =CHOOSE(2, "6773000004469", "PL (1)-2 Business Contribution Profit") -> PL (1)-2 Business Contribution Profit | Z157: =Z152-Z153 -> 1966.775836 | AA157: =AA152-AA153 -> 1491.502054 | AB157: 1939.967864 | AC157: =AC152-AC153 -> 1558.676574 | AD157: 3658.974414 | AE157: =AE152-AE153 -> 96.73805877 | AF157: 7.154960754 | AG157: 448.4924599 | AH157: 542.506111 | AI157: 291.9339379 | AJ157: -54.72469937 | AK157: 44.62306551 | AL157: =AL152-AL153 -> 5398.245754 | AM157: 5314.389048 | AN157: 998.1535316 | AO157: 281.832304 | AP157: 10712.6348 | AQ157: 1279.985836 | AR157: 11992.62064 | AT157: =SUM((INDIRECT(AT$2&(ROW())):INDIRECT(AT$3&(ROW())))) -> 1939.967864 | AU157: =SUM(INDIRECT(AU$1&AU$2&$A157):INDIRECT(AU$1&AU$3&$A157)) -> 1362.914515 | AV157: 577.0533488 | AW157: 1.423396583 | AX157: =AX152-AX153 -> 2955.750199 | AY157: -1015.782334 | AZ157: 0.6563368802 | BB157: =SUM((INDIRECT(BB$2&(ROW())):INDIRECT(BB$3&(ROW())))) -> 5398.245754 | BC157: =SUM(INDIRECT(BC$1&BC$2&$A157):INDIRECT(BC$1&BC$3&$A157)) -> 2459.545601 | BD157: 2938.700154 | BE157: 2.194814259 | BF157: =BF152-BF153 -> 5612.458729 | BG157: -214.2129749 | BH157: 0.9618325969 | BJ157: =SUM((INDIRECT(BJ$2&(ROW())):INDIRECT(BJ$3&(ROW())))) -> 5398.245754 | BK157: =SUM(INDIRECT(BK$1&BK$2&$A157):INDIRECT(BK$1&BK$3&$A157)) -> 2459.545601 | BL157: 2938.700154 | BM157: 2.194814259 | BN157: =BN152-BN153 -> 5612.458729 | BO157: -214.2129749 | BP157: 0.9618325969
A158: 156 | B158: 1 | C158: 151 | D158: 1 | E158: 1 | F158: 1 | G158: 1 | H158: 1 | I158: 1 | J158: 1 | K158: 1 | L158: MTP | M158: RF | Q158: Operation Profit | Y158: =CHOOSE(2, "6773000004470", "PL (1)-2 Operation Profit") -> PL (1)-2 Operation Profit | Z158: =Z157 -> 1966.775836 | AA158: =AA157 -> 1491.502054 | AB158: =AB157 -> 1939.967864 | AC158: 1558.676574 | AD158: =AD157 -> 3658.974414 | AE158: =AE157 -> 96.73805877 | AF158: 7.154960754 | AG158: 448.4924599 | AH158: 542.506111 | AI158: 291.9339379 | AJ158: -54.72469937 | AK158: 44.62306551 | AL158: =AL157 -> 5398.245754 | AM158: 5314.389048 | AN158: 998.1535316 | AO158: 281.832304 | AP158: 10712.6348 | AQ158: 1279.985836 | AR158: 11992.62064 | AT158: =SUM((INDIRECT(AT$2&(ROW())):INDIRECT(AT$3&(ROW())))) -> 1939.967864 | AU158: =SUM(INDIRECT(AU$1&AU$2&$A158):INDIRECT(AU$1&AU$3&$A158)) -> 1362.914515 | AV158: 577.0533488 | AW158: 1.423396583 | AX158: =AX157 -> 2955.750199 | AY158: -1015.782334 | AZ158: 0.6563368802 | BB158: =SUM((INDIRECT(BB$2&(ROW())):INDIRECT(BB$3&(ROW())))) -> 5398.245754 | BC158: =SUM(INDIRECT(BC$1&BC$2&$A158):INDIRECT(BC$1&BC$3&$A158)) -> 2459.545601 | BD158: 2938.700154 | BE158: 2.194814259 | BF158: =BF157 -> 5612.458729 | BG158: -214.2129749 | BH158: 0.9618325969 | BJ158: =SUM((INDIRECT(BJ$2&(ROW())):INDIRECT(BJ$3&(ROW())))) -> 5398.245754 | BK158: =SUM(INDIRECT(BK$1&BK$2&$A158):INDIRECT(BK$1&BK$3&$A158)) -> 2459.545601 | BL158: 2938.700154 | BM158: 2.194814259 | BN158: =BN157 -> 5612.458729 | BO158: -214.2129749 | BP158: 0.9618325969
A159: 157 | B159: 1 | C159: 152 | D159: 1 | E159: 1 | F159: 1 | G159: 1 | H159: 1 | I159: 1 | J159: 1 | K159: 1 | L159: MTP | M159: RF | Y159: =CHOOSE(2, "6773000004471", "▷ Blank 10") -> ▷ Blank 10
A160: 158 | B160: 1 | C160: 153 | D160: 1 | E160: 1 | F160: 1 | G160: 1 | H160: 1 | I160: 1 | J160: 1 | K160: 1 | L160: MTP | M160: RF | P160: (2) PP | Y160: =CHOOSE(2, "6773000004472", "PL (2) PP") -> PL (2) PP
A161: 159 | B161: 1 | C161: 154 | D161: 1 | E161: 1 | F161: 1 | G161: 1 | H161: 1 | I161: 1 | J161: 1 | K161: 1 | L161: MTP | M161: RF | Q161: Net Sales | W161: (Includes Sales to BT-Gr. Companies) | Y161: =CHOOSE(2, "6773000004473", "PL (2) Net Sales") -> PL (2) Net Sales | Z161: =SUM(Z162:Z165) -> 794607.1867 | AA161: =SUM(AA162:AA165) -> 640493.9906 | AB161: =SUM(AB162:AB165) -> 586603.6704 | AC161: 631140.3847 | AD161: =SUM(AD162:AD165) -> 648822.7493 | AE161: =SUM(AE162:AE165) -> 740627.1433 | AF161: 667823.2756 | AG161: 631235.672 | AH161: 708148.4335 | AI161: 721830.0901 | AJ161: 691692.8473 | AK161: 717955.014 | AL161: =SUM(Z161,AA161,AB161) -> 2021704.848 | AM161: =SUM(AC161,AD161,AE161) -> 2020590.277 | AN161: =SUM(AF161,AG161,AH161) -> 2007207.381 | AO161: =SUM(AI161,AJ161,AK161) -> 2131477.951 | AP161: =SUM(AP162:AP165) -> 4042295.125 | AQ161: =SUM(AQ162:AQ165) -> 4138685.332 | AR161: =SUM(AR162:AR165) -> 8180980.458 | AT161: =SUM((INDIRECT(AT$2&(ROW())):INDIRECT(AT$3&(ROW())))) -> 586603.6704 | AU161: =SUM(INDIRECT(AU$1&AU$2&$A161):INDIRECT(AU$1&AU$3&$A161)) -> 716715.674 | AV161: -130112.0037 | AW161: =IFERROR(AT161/AU161,0) -> 0.8184607811 | AX161: =SUM(INDIRECT(AX$1&AX$2&$C161):INDIRECT(AX$1&AX$3&$C161)) -> 548754.7262 | AY161: =AT161-AX161 -> 37848.9442 | AZ161: =IFERROR(AT161/AX161,0) -> 1.068972425 | BB161: =SUM((INDIRECT(BB$2&(ROW())):INDIRECT(BB$3&(ROW())))) -> 2021704.848 | BC161: =SUM(INDIRECT(BC$1&BC$2&$A161):INDIRECT(BC$1&BC$3&$A161)) -> 2168730.903 | BD161: =BB161-BC161 -> -147026.0557 | BE161: =IFERROR(BB161/BC161,0) -> 0.9322064091 | BF161: =SUM(INDIRECT(BF$1&BF$2&$C161):INDIRECT(BF$1&BF$3&$C161)) -> 1960615.556 | BG161: =BB161-BF161 -> 61089.29146 | BH161: =IFERROR(BB161/BF161,0) -> 1.03115822 | BJ161: =SUM((INDIRECT(BJ$2&(ROW())):INDIRECT(BJ$3&(ROW())))) -> 2021704.848 | BK161: =SUM(INDIRECT(BK$1&BK$2&$A161):INDIRECT(BK$1&BK$3&$A161)) -> 2168730.903 | BL161: =BJ161-BK161 -> -147026.0557 | BM161: =IFERROR(BJ161/BK161,0) -> 0.9322064091 | BN161: =SUM(INDIRECT(BN$1&BN$2&$C161):INDIRECT(BN$1&BN$3&$C161)) -> 1960615.556 | BO161: =BJ161-BN161 -> 61089.29146 | BP161: =IFERROR(BJ161/BN161,0) -> 1.03115822
A162: 160 | B162: 1 | C162: 155 | D162: 1 | E162: 1 | F162: 1 | G162: 1 | H162: 1 | I162: 1 | J162: 1 | K162: 1 | L162: MTP | M162: RF | U162: Hard | Y162: =CHOOSE(2, "6773000004474", "PL (2) Net Sales HW") -> PL (2) Net Sales HW | Z162: 216454.538 | AA162: 184391.2646 | AB162: 173735.6931 | AC162: 177660.7631 | AD162: 193365.5753 | AE162: 250732.3892 | AF162: 187278.2342 | AG162: 181230.6769 | AH162: 216004.3755 | AI162: 202707.2072 | AJ162: 166788.8622 | AK162: 172345.9226 | AL162: 574581.4957 | AM162: 621758.7277 | AN162: 584513.2866 | AO162: 541841.992 | AP162: =AL162+AM162 -> 1196340.223 | AQ162: =AO162+AN162 -> 1126355.279 | AR162: =AP162+AQ162 -> 2322695.502 | AT162: =SUM((INDIRECT(AT$2&(ROW())):INDIRECT(AT$3&(ROW())))) -> 173735.6931 | AU162: =SUM(INDIRECT(AU$1&AU$2&$A162):INDIRECT(AU$1&AU$3&$A162)) -> 228831.8656 | AV162: -55096.17246 | AW162: 0.7592285833 | AX162: =SUM(INDIRECT(AX$1&AX$2&$C162):INDIRECT(AX$1&AX$3&$C162)) -> 165723.1982 | AY162: 8012.49494 | AZ162: 1.048348662 | BB162: =SUM((INDIRECT(BB$2&(ROW())):INDIRECT(BB$3&(ROW())))) -> 574581.4957 | BC162: =SUM(INDIRECT(BC$1&BC$2&$A162):INDIRECT(BC$1&BC$3&$A162)) -> 696525.3837 | BD162: -121943.888 | BE162: 0.8249254215 | BF162: =SUM(INDIRECT(BF$1&BF$2&$C162):INDIRECT(BF$1&BF$3&$C162)) -> 566326.2402 | BG162: 8255.25554 | BH162: 1.014576855 | BJ162: =SUM((INDIRECT(BJ$2&(ROW())):INDIRECT(BJ$3&(ROW())))) -> 574581.4957 | BK162: =SUM(INDIRECT(BK$1&BK$2&$A162):INDIRECT(BK$1&BK$3&$A162)) -> 696525.3837 | BL162: -121943.888 | BM162: 0.8249254215 | BN162: =SUM(INDIRECT(BN$1&BN$2&$C162):INDIRECT(BN$1&BN$3&$C162)) -> 566326.2402 | BO162: 8255.25554 | BP162: 1.014576855
A163: 161 | B163: 1 | C163: 156 | D163: 1 | E163: 1 | F163: 1 | G163: 1 | H163: 1 | I163: 1 | J163: 1 | K163: 1 | L163: MTP | M163: RF | U163: Non-hard | Y163: =CHOOSE(2, "6773000004475", "PL (2) Net Sales NH") -> PL (2) Net Sales NH | Z163: 577881.6487 | AA163: 455833.146 | AB163: 412656.9772 | AC163: 452556.6217 | AD163: 455116.174 | AE163: 489404.7541 | AF163: 480045.0414 | AG163: 449004.9952 | AH163: 491144.058 | AI163: 518122.8829 | AJ163: 523903.9851 | AK163: 544609.0914 | AL163: 1446371.772 | AM163: 1397077.55 | AN163: 1420194.095 | AO163: 1586635.959 | AP163: =AL163+AM163 -> 2843449.322 | AQ163: =AO163+AN163 -> 3006830.054 | AR163: =AP163+AQ163 -> 5850279.376 | AT163: =SUM((INDIRECT(AT$2&(ROW())):INDIRECT(AT$3&(ROW())))) -> 412656.9772 | AU163: =SUM(INDIRECT(AU$1&AU$2&$A163):INDIRECT(AU$1&AU$3&$A163)) -> 486883.8084 | AV163: -74226.83119 | AW163: 0.8475471357 | AX163: =SUM(INDIRECT(AX$1&AX$2&$C163):INDIRECT(AX$1&AX$3&$C163)) -> 383031.528 | AY163: 29625.44926 | AZ163: 1.077344676 | BB163: =SUM((INDIRECT(BB$2&(ROW())):INDIRECT(BB$3&(ROW())))) -> 1446371.772 | BC163: =SUM(INDIRECT(BC$1&BC$2&$A163):INDIRECT(BC$1&BC$3&$A163)) -> 1469205.52 | BD163: -22833.74772 | BE163: 0.9844584387 | BF163: =SUM(INDIRECT(BF$1&BF$2&$C163):INDIRECT(BF$1&BF$3&$C163)) -> 1394289.316 | BG163: 52082.45592 | BH163: 1.037354124 | BJ163: =SUM((INDIRECT(BJ$2&(ROW())):INDIRECT(BJ$3&(ROW())))) -> 1446371.772 | BK163: =SUM(INDIRECT(BK$1&BK$2&$A163):INDIRECT(BK$1&BK$3&$A163)) -> 1469205.52 | BL163: -22833.74772 | BM163: 0.9844584387 | BN163: =SUM(INDIRECT(BN$1&BN$2&$C163):INDIRECT(BN$1&BN$3&$C163)) -> 1394289.316 | BO163: 52082.45592 | BP163: 1.037354124
A164: 162 | B164: 1 | C164: 157 | D164: 1 | E164: 1 | F164: 1 | G164: 1 | H164: 1 | I164: 1 | J164: 1 | K164: 1 | L164: MTP | M164: RF | U164: Solution | Y164: =CHOOSE(2, "6773000004476", "PL (2) Net Sales Solution") -> PL (2) Net Sales Solution | Z164: 271 | AA164: 269.58 | AB164: 211 | AC164: 923 | AD164: 341 | AE164: 490 | AF164: 500 | AG164: 1000 | AH164: 1000 | AI164: 1000 | AJ164: 1000 | AK164: 1000 | AL164: 751.58 | AM164: 1754 | AN164: 2500 | AO164: 3000 | AP164: =AL164+AM164 -> 2505.58 | AQ164: =AO164+AN164 -> 5500 | AR164: =AP164+AQ164 -> 8005.58 | AT164: =SUM((INDIRECT(AT$2&(ROW())):INDIRECT(AT$3&(ROW())))) -> 211 | AU164: =SUM(INDIRECT(AU$1&AU$2&$A164):INDIRECT(AU$1&AU$3&$A164)) -> 1000 | AV164: -789 | AW164: 0.211 | AX164: =SUM(INDIRECT(AX$1&AX$2&$C164):INDIRECT(AX$1&AX$3&$C164)) -> 0 | AY164: 211 | AZ164: 0 | BB164: =SUM((INDIRECT(BB$2&(ROW())):INDIRECT(BB$3&(ROW())))) -> 751.58 | BC164: =SUM(INDIRECT(BC$1&BC$2&$A164):INDIRECT(BC$1&BC$3&$A164)) -> 3000 | BD164: -2248.42 | BE164: 0.2505266667 | BF164: =SUM(INDIRECT(BF$1&BF$2&$C164):INDIRECT(BF$1&BF$3&$C164)) -> 0 | BG164: 751.58 | BH164: 0 | BJ164: =SUM((INDIRECT(BJ$2&(ROW())):INDIRECT(BJ$3&(ROW())))) -> 751.58 | BK164: =SUM(INDIRECT(BK$1&BK$2&$A164):INDIRECT(BK$1&BK$3&$A164)) -> 3000 | BL164: -2248.42 | BM164: 0.2505266667 | BN164: =SUM(INDIRECT(BN$1&BN$2&$C164):INDIRECT(BN$1&BN$3&$C164)) -> 0 | BO164: 751.58 | BP164: 0
A165: 163 | B165: 1 | C165: 158 | D165: 1 | E165: 1 | F165: 1 | G165: 1 | H165: 1 | I165: 1 | J165: 1 | K165: 1 | L165: MTP | M165: RF | U165: Others | Y165: =CHOOSE(2, "6773000004477", "PL (2) Net Sales Others") -> PL (2) Net Sales Others | Z165: 0 | AA165: 0 | AB165: 0 | AC165: 0 | AD165: 0 | AL165: 0 | AM165: 0 | AN165: 0 | AO165: 0 | AP165: =AL165+AM165 -> 0 | AQ165: =AO165+AN165 -> 0 | AR165: =AP165+AQ165 -> 0 | AT165: =SUM((INDIRECT(AT$2&(ROW())):INDIRECT(AT$3&(ROW())))) -> 0 | AU165: =SUM(INDIRECT(AU$1&AU$2&$A165):INDIRECT(AU$1&AU$3&$A165)) -> 0 | AV165: 0 | AW165: 0 | AX165: =SUM(INDIRECT(AX$1&AX$2&$C165):INDIRECT(AX$1&AX$3&$C165)) -> 0 | AY165: 0 | AZ165: 0 | BB165: =SUM((INDIRECT(BB$2&(ROW())):INDIRECT(BB$3&(ROW())))) -> 0 | BC165: =SUM(INDIRECT(BC$1&BC$2&$A165):INDIRECT(BC$1&BC$3&$A165)) -> 0 | BD165: 0 | BE165: 0 | BF165: =SUM(INDIRECT(BF$1&BF$2&$C165):INDIRECT(BF$1&BF$3&$C165)) -> 0 | BG165: 0 | BH165: 0 | BJ165: =SUM((INDIRECT(BJ$2&(ROW())):INDIRECT(BJ$3&(ROW())))) -> 0 | BK165: =SUM(INDIRECT(BK$1&BK$2&$A165):INDIRECT(BK$1&BK$3&$A165)) -> 0 | BL165: 0 | BM165: 0 | BN165: =SUM(INDIRECT(BN$1&BN$2&$C165):INDIRECT(BN$1&BN$3&$C165)) -> 0 | BO165: 0 | BP165: 0
A166: 164 | B166: 1 | C166: 159 | D166: 1 | E166: 1 | F166: 1 | G166: 1 | H166: 1 | I166: 1 | J166: 1 | K166: 1 | L166: MTP | M166: RF | Q166: BT Consolidated Sales | W166: (Excludes Sales to BT-Gr. Companies) | Y166: =CHOOSE(2, "6773000004478", "PL (2) BT Cons. Sales") -> PL (2) BT Cons. Sales | Z166: =SUM(Z167:Z170) -> 794607.1867 | AA166: =SUM(AA167:AA170) -> 640493.9906 | AB166: =SUM(AB167:AB170) -> 586603.6704 | AC166: 631140.3847 | AD166: =SUM(AD167:AD170) -> 648822.7493 | AE166: =SUM(AE167:AE170) -> 740627.1433 | AF166: 667823.2756 | AG166: 631235.672 | AH166: 708148.4335 | AI166: 721830.0901 | AJ166: 691692.8473 | AK166: 717955.014 | AL166: 2021704.848 | AM166: 2020590.277 | AN166: 2007207.381 | AO166: 2131477.951 | AP166: =SUM(AP167:AP170) -> 4042295.125 | AQ166: =SUM(AQ167:AQ170) -> 4138685.332 | AR166: =SUM(AR167:AR170) -> 8180980.458 | AT166: =SUM((INDIRECT(AT$2&(ROW())):INDIRECT(AT$3&(ROW())))) -> 586603.6704 | AU166: =SUM(INDIRECT(AU$1&AU$2&$A166):INDIRECT(AU$1&AU$3&$A166)) -> 716715.674 | AV166: -130112.0037 | AW166: 0.8184607811 | AX166: =SUM(INDIRECT(AX$1&AX$2&$C166):INDIRECT(AX$1&AX$3&$C166)) -> 548754.7262 | AY166: 37848.9442 | AZ166: 1.068972425 | BB166: =SUM((INDIRECT(BB$2&(ROW())):INDIRECT(BB$3&(ROW())))) -> 2021704.848 | BC166: =SUM(INDIRECT(BC$1&BC$2&$A166):INDIRECT(BC$1&BC$3&$A166)) -> 2168730.903 | BD166: -147026.0557 | BE166: 0.9322064091 | BF166: =SUM(INDIRECT(BF$1&BF$2&$C166):INDIRECT(BF$1&BF$3&$C166)) -> 1960615.556 | BG166: 61089.29146 | BH166: 1.03115822 | BJ166: =SUM((INDIRECT(BJ$2&(ROW())):INDIRECT(BJ$3&(ROW())))) -> 2021704.848 | BK166: =SUM(INDIRECT(BK$1&BK$2&$A166):INDIRECT(BK$1&BK$3&$A166)) -> 2168730.903 | BL166: -147026.0557 | BM166: 0.9322064091 | BN166: =SUM(INDIRECT(BN$1&BN$2&$C166):INDIRECT(BN$1&BN$3&$C166)) -> 1960615.556 | BO166: 61089.29146 | BP166: 1.03115822
A167: 165 | B167: 1 | C167: 160 | D167: 1 | E167: 1 | F167: 1 | G167: 1 | H167: 1 | I167: 1 | J167: 1 | K167: 1 | L167: MTP | M167: RF | U167: Hard | Y167: =CHOOSE(2, "6773000004479", "PL (2) BT Cons. Sales HW") -> PL (2) BT Cons. Sales HW | Z167: =Z162 -> 216454.538 | AA167: =AA162 -> 184391.2646 | AB167: =AB162 -> 173735.6931 | AC167: =AC162 -> 177660.7631 | AD167: =AD162 -> 193365.5753 | AE167: =AE162 -> 250732.3892 | AF167: 187278.2342 | AG167: 181230.6769 | AH167: 216004.3755 | AI167: 202707.2072 | AJ167: 166788.8622 | AK167: 172345.9226 | AL167: 574581.4957 | AM167: 621758.7277 | AN167: 584513.2866 | AO167: 541841.992 | AP167: =AL167+AM167 -> 1196340.223 | AQ167: =AO167+AN167 -> 1126355.279 | AR167: =AP167+AQ167 -> 2322695.502 | AT167: =SUM((INDIRECT(AT$2&(ROW())):INDIRECT(AT$3&(ROW())))) -> 173735.6931 | AU167: =SUM(INDIRECT(AU$1&AU$2&$A167):INDIRECT(AU$1&AU$3&$A167)) -> 228831.8656 | AV167: -55096.17246 | AW167: 0.7592285833 | AX167: =SUM(INDIRECT(AX$1&AX$2&$C167):INDIRECT(AX$1&AX$3&$C167)) -> 165723.1982 | AY167: 8012.49494 | AZ167: 1.048348662 | BB167: =SUM((INDIRECT(BB$2&(ROW())):INDIRECT(BB$3&(ROW())))) -> 574581.4957 | BC167: =SUM(INDIRECT(BC$1&BC$2&$A167):INDIRECT(BC$1&BC$3&$A167)) -> 696525.3837 | BD167: -121943.888 | BE167: 0.8249254215 | BF167: =SUM(INDIRECT(BF$1&BF$2&$C167):INDIRECT(BF$1&BF$3&$C167)) -> 566326.2402 | BG167: 8255.25554 | BH167: 1.014576855 | BJ167: =SUM((INDIRECT(BJ$2&(ROW())):INDIRECT(BJ$3&(ROW())))) -> 574581.4957 | BK167: =SUM(INDIRECT(BK$1&BK$2&$A167):INDIRECT(BK$1&BK$3&$A167)) -> 696525.3837 | BL167: -121943.888 | BM167: 0.8249254215 | BN167: =SUM(INDIRECT(BN$1&BN$2&$C167):INDIRECT(BN$1&BN$3&$C167)) -> 566326.2402 | BO167: 8255.25554 | BP167: 1.014576855
A168: 166 | B168: 1 | C168: 161 | D168: 1 | E168: 1 | F168: 1 | G168: 1 | H168: 1 | I168: 1 | J168: 1 | K168: 1 | L168: MTP | M168: RF | U168: Non-hard | Y168: =CHOOSE(2, "6773000004480", "PL (2) BT Cons. Sales NH") -> PL (2) BT Cons. Sales NH | Z168: =Z163 -> 577881.6487 | AA168: =AA163 -> 455833.146 | AB168: 412656.9772 | AC168: =AC163 -> 452556.6217 | AD168: 455116.174 | AE168: =AE163 -> 489404.7541 | AF168: 480045.0414 | AG168: 449004.9952 | AH168: 491144.058 | AI168: 518122.8829 | AJ168: 523903.9851 | AK168: 544609.0914 | AL168: 1446371.772 | AM168: 1397077.55 | AN168: 1420194.095 | AO168: 1586635.959 | AP168: =AL168+AM168 -> 2843449.322 | AQ168: =AO168+AN168 -> 3006830.054 | AR168: =AP168+AQ168 -> 5850279.376 | AT168: =SUM((INDIRECT(AT$2&(ROW())):INDIRECT(AT$3&(ROW())))) -> 412656.9772 | AU168: =SUM(INDIRECT(AU$1&AU$2&$A168):INDIRECT(AU$1&AU$3&$A168)) -> 486883.8084 | AV168: -74226.83119 | AW168: 0.8475471357 | AX168: =SUM(INDIRECT(AX$1&AX$2&$C168):INDIRECT(AX$1&AX$3&$C168)) -> 383031.528 | AY168: 29625.44926 | AZ168: 1.077344676 | BB168: =SUM((INDIRECT(BB$2&(ROW())):INDIRECT(BB$3&(ROW())))) -> 1446371.772 | BC168: =SUM(INDIRECT(BC$1&BC$2&$A168):INDIRECT(BC$1&BC$3&$A168)) -> 1469205.52 | BD168: -22833.74772 | BE168: 0.9844584387 | BF168: =SUM(INDIRECT(BF$1&BF$2&$C168):INDIRECT(BF$1&BF$3&$C168)) -> 1394289.316 | BG168: 52082.45592 | BH168: 1.037354124 | BJ168: =SUM((INDIRECT(BJ$2&(ROW())):INDIRECT(BJ$3&(ROW())))) -> 1446371.772 | BK168: =SUM(INDIRECT(BK$1&BK$2&$A168):INDIRECT(BK$1&BK$3&$A168)) -> 1469205.52 | BL168: -22833.74772 | BM168: 0.9844584387 | BN168: =SUM(INDIRECT(BN$1&BN$2&$C168):INDIRECT(BN$1&BN$3&$C168)) -> 1394289.316 | BO168: 52082.45592 | BP168: 1.037354124
A169: 167 | B169: 1 | C169: 162 | D169: 1 | E169: 1 | F169: 1 | G169: 1 | H169: 1 | I169: 1 | J169: 1 | K169: 1 | L169: MTP | M169: RF | U169: Solution | Y169: =CHOOSE(2, "6773000004481", "PL (2) BT Cons. Sales Solution") -> PL (2) BT Cons. Sales Solution | Z169: =Z164 -> 271 | AA169: =AA164 -> 269.58 | AB169: 211 | AC169: =AC164 -> 923 | AD169: 341 | AE169: =AE164 -> 490 | AF169: 500 | AG169: 1000 | AH169: 1000 | AI169: 1000 | AJ169: 1000 | AK169: 1000 | AL169: 751.58 | AM169: 1754 | AN169: 2500 | AO169: 3000 | AP169: =AL169+AM169 -> 2505.58 | AQ169: =AO169+AN169 -> 5500 | AR169: =AP169+AQ169 -> 8005.58 | AT169: =SUM((INDIRECT(AT$2&(ROW())):INDIRECT(AT$3&(ROW())))) -> 211 | AU169: =SUM(INDIRECT(AU$1&AU$2&$A169):INDIRECT(AU$1&AU$3&$A169)) -> 1000 | AV169: -789 | AW169: 0.211 | AX169: =SUM(INDIRECT(AX$1&AX$2&$C169):INDIRECT(AX$1&AX$3&$C169)) -> 0 | AY169: 211 | AZ169: 0 | BB169: =SUM((INDIRECT(BB$2&(ROW())):INDIRECT(BB$3&(ROW())))) -> 751.58 | BC169: =SUM(INDIRECT(BC$1&BC$2&$A169):INDIRECT(BC$1&BC$3&$A169)) -> 3000 | BD169: -2248.42 | BE169: 0.2505266667 | BF169: =SUM(INDIRECT(BF$1&BF$2&$C169):INDIRECT(BF$1&BF$3&$C169)) -> 0 | BG169: 751.58 | BH169: 0 | BJ169: =SUM((INDIRECT(BJ$2&(ROW())):INDIRECT(BJ$3&(ROW())))) -> 751.58 | BK169: =SUM(INDIRECT(BK$1&BK$2&$A169):INDIRECT(BK$1&BK$3&$A169)) -> 3000 | BL169: -2248.42 | BM169: 0.2505266667 | BN169: =SUM(INDIRECT(BN$1&BN$2&$C169):INDIRECT(BN$1&BN$3&$C169)) -> 0 | BO169: 751.58 | BP169: 0
A170: 168 | B170: 1 | C170: 163 | D170: 1 | E170: 1 | F170: 1 | G170: 1 | H170: 1 | I170: 1 | J170: 1 | K170: 1 | L170: MTP | M170: RF | U170: Others | Y170: =CHOOSE(2, "6773000004482", "PL (2) BT Cons. Sales Others") -> PL (2) BT Cons. Sales Others | Z170: 0 | AA170: =AA165 -> 0 | AB170: 0 | AC170: =AC165 -> 0 | AD170: 0 | AL170: 0 | AM170: 0 | AN170: 0 | AO170: 0 | AP170: =AL170+AM170 -> 0 | AQ170: =AO170+AN170 -> 0 | AR170: =AP170+AQ170 -> 0 | AT170: =SUM((INDIRECT(AT$2&(ROW())):INDIRECT(AT$3&(ROW())))) -> 0 | AU170: =SUM(INDIRECT(AU$1&AU$2&$A170):INDIRECT(AU$1&AU$3&$A170)) -> 0 | AV170: 0 | AW170: 0 | AX170: =SUM(INDIRECT(AX$1&AX$2&$C170):INDIRECT(AX$1&AX$3&$C170)) -> 0 | AY170: 0 | AZ170: 0 | BB170: =SUM((INDIRECT(BB$2&(ROW())):INDIRECT(BB$3&(ROW())))) -> 0 | BC170: =SUM(INDIRECT(BC$1&BC$2&$A170):INDIRECT(BC$1&BC$3&$A170)) -> 0 | BD170: 0 | BE170: 0 | BF170: =SUM(INDIRECT(BF$1&BF$2&$C170):INDIRECT(BF$1&BF$3&$C170)) -> 0 | BG170: 0 | BH170: 0 | BJ170: =SUM((INDIRECT(BJ$2&(ROW())):INDIRECT(BJ$3&(ROW())))) -> 0 | BK170: =SUM(INDIRECT(BK$1&BK$2&$A170):INDIRECT(BK$1&BK$3&$A170)) -> 0 | BL170: 0 | BM170: 0 | BN170: =SUM(INDIRECT(BN$1&BN$2&$C170):INDIRECT(BN$1&BN$3&$C170)) -> 0 | BO170: 0 | BP170: 0
A171: 169 | B171: 1 | C171: 164 | D171: 1 | E171: 1 | F171: 1 | G171: 1 | H171: 1 | I171: 1 | J171: 1 | K171: 1 | Q171: Cost of Sales | Y171: =CHOOSE(2, "6773000004483", "PL (2) Cost of Sales") -> PL (2) Cost of Sales | Z171: =Z172+Z175+Z183+Z184 -> 499902.8605 | AA171: =AA172+AA175+AA183+AA184 -> 447093.9768 | AB171: 412303.7852 | AC171: =AC172+AC175+AC183+AC184 -> 435526.171 | AD171: 419035.3808 | AE171: =AE172+AE175+AE183+AE184 -> 446296.9305 | AF171: 464915.8362 | AG171: 443741.9186 | AH171: 503239.7605 | AI171: 522801.3043 | AJ171: 506304.9016 | AK171: 528624.4666 | AL171: =AL172+AL175+AL183+AL184 -> 1359300.622 | AM171: 1300858.482 | AN171: 1411897.515 | AO171: 1557730.673 | AP171: 2660159.105 | AQ171: 2969628.188 | AR171: 5629787.293 | AT171: =SUM((INDIRECT(AT$2&(ROW())):INDIRECT(AT$3&(ROW())))) -> 412303.7852 | AU171: =SUM(INDIRECT(AU$1&AU$2&$A171):INDIRECT(AU$1&AU$3&$A171)) -> 507168.2281 | AV171: -94864.4429 | AW171: 0.8129527095 | AX171: =SUM(INDIRECT(AX$1&AX$2&$C171):INDIRECT(AX$1&AX$3&$C171)) -> 369266.9468 | AY171: 43036.83839 | AZ171: 1.116546685 | BB171: =SUM((INDIRECT(BB$2&(ROW())):INDIRECT(BB$3&(ROW())))) -> 1359300.622 | BC171: =SUM(INDIRECT(BC$1&BC$2&$A171):INDIRECT(BC$1&BC$3&$A171)) -> 1494784.186 | BD171: -135483.5635 | BE171: 0.9093624586 | BF171: =SUM(INDIRECT(BF$1&BF$2&$C171):INDIRECT(BF$1&BF$3&$C171)) -> 1257010.995 | BG171: 102289.6276 | BH171: 1.081375285 | BJ171: =SUM((INDIRECT(BJ$2&(ROW())):INDIRECT(BJ$3&(ROW())))) -> 1359300.622 | BK171: =SUM(INDIRECT(BK$1&BK$2&$A171):INDIRECT(BK$1&BK$3&$A171)) -> 1494784.186 | BL171: -135483.5635 | BM171: 0.9093624586 | BN171: =SUM(INDIRECT(BN$1&BN$2&$C171):INDIRECT(BN$1&BN$3&$C171)) -> 1257010.995 | BO171: 102289.6276 | BP171: 1.081375285
A172: 170 | B172: 1 | C172: 165 | D172: 1 | E172: 1 | F172: 1 | G172: 1 | H172: 1 | I172: 1 | J172: 1 | K172: 1 | U172: Hard | Y172: =CHOOSE(2, "6773000004484", "PL (2) Cost of Sales HW") -> PL (2) Cost of Sales HW | Z172: =Z162-Z191 -> 141253.1552 | AA172: =AA162-AA191 -> 116670.8295 | AB172: 107374.8878 | AC172: =AC162-AC191 -> 133745.3802 | AD172: 127987.2484 | AE172: =AE162-AE191 -> 162541.006 | AF172: 122209.3445 | AG172: 115421.9626 | AH172: 138831.0069 | AI172: 133549.0146 | AJ172: 109143.0675 | AK172: 113406.8105 | AL172: =SUM(Z172,AA172,AB172) -> 365298.8726 | AM172: =SUM(AC172,AD172,AE172) -> 424273.6346 | AN172: =SUM(AF172,AG172,AH172) -> 376462.3141 | AO172: =SUM(AI172,AJ172,AK172) -> 356098.8926 | AP172: =AL172+AM172 -> 789572.5072 | AQ172: =AO172+AN172 -> 732561.2066 | AR172: =AP172+AQ172 -> 1522133.714 | AT172: =SUM((INDIRECT(AT$2&(ROW())):INDIRECT(AT$3&(ROW())))) -> 107374.8878 | AU172: =SUM(INDIRECT(AU$1&AU$2&$A172):INDIRECT(AU$1&AU$3&$A172)) -> 151281.6592 | AV172: -43906.77136 | AW172: 0.7097680473 | AX172: =SUM(INDIRECT(AX$1&AX$2&$C172):INDIRECT(AX$1&AX$3&$C172)) -> 107867.8819 | AY172: -492.9940525 | AZ172: 0.9954296493 | BB172: =SUM((INDIRECT(BB$2&(ROW())):INDIRECT(BB$3&(ROW())))) -> 365298.8726 | BC172: =SUM(INDIRECT(BC$1&BC$2&$A172):INDIRECT(BC$1&BC$3&$A172)) -> 459552.6973 | BD172: -94253.8247 | BE172: 0.7949009433 | BF172: =SUM(INDIRECT(BF$1&BF$2&$C172):INDIRECT(BF$1&BF$3&$C172)) -> 376210.6569 | BG172: -10911.78427 | BH172: 0.9709955471 | BJ172: =SUM((INDIRECT(BJ$2&(ROW())):INDIRECT(BJ$3&(ROW())))) -> 365298.8726 | BK172: =SUM(INDIRECT(BK$1&BK$2&$A172):INDIRECT(BK$1&BK$3&$A172)) -> 459552.6973 | BL172: -94253.8247 | BM172: 0.7949009433 | BN172: =SUM(INDIRECT(BN$1&BN$2&$C172):INDIRECT(BN$1&BN$3&$C172)) -> 376210.6569 | BO172: -10911.78427 | BP172: 0.9709955471
A173: 1 | B173: 1 | C173: 1 | D173: 1 | E173: 1 | F173: 1 | G173: 1 | H173: 1 | I173: 1 | J173: 1 | K173: 1 | N173: New | W173: Material Cost(Machine) | Y173: =CHOOSE(2, "6773000006093", "PL (2) Cost of Sales HW MC(M)") -> PL (2) Cost of Sales HW MC(M) | Z173: =Z172-Z174 -> 141253.1552 | AA173: =AA172-AA174 -> 116670.8295 | AB173: =AB172-AB174 -> 107374.8878 | AC173: 133745.3802 | AD173: =AD172-AD174 -> 127987.2484 | AE173: =AE172-AE174 -> 162541.006 | AF173: 122209.3445 | AG173: 115421.9626 | AH173: 138831.0069 | AI173: 133549.0146 | AJ173: 109143.0675 | AK173: 113406.8105 | AL173: 365298.8726 | AM173: 424273.6346 | AN173: 376462.3141 | AO173: 356098.8926 | AP173: 789572.5072 | AQ173: 732561.2066 | AR173: 1522133.714 | AT173: =SUM((INDIRECT(AT$2&(ROW())):INDIRECT(AT$3&(ROW())))) -> 107374.8878 | AU173: =AU172-AU174 -> 151281.6592 | AV173: -43906.77136 | AW173: 0.7097680473 | AX173: =AX172-AX174 -> 107867.8819 | AY173: -492.9940525 | AZ173: 0.9954296493 | BB173: =SUM((INDIRECT(BB$2&(ROW())):INDIRECT(BB$3&(ROW())))) -> 365298.8726 | BC173: =BC172-BC174 -> 459552.6973 | BD173: -94253.8247 | BE173: 0.7949009433 | BF173: =BF172-BF174 -> 376210.6569 | BG173: -10911.78427 | BH173: 0.9709955471 | BJ173: =SUM((INDIRECT(BJ$2&(ROW())):INDIRECT(BJ$3&(ROW())))) -> 365298.8726 | BK173: =BK172-BK174 -> 459552.6973 | BL173: -94253.8247 | BM173: 0.7949009433 | BN173: =BN172-BN174 -> 376210.6569 | BO173: -10911.78427 | BP173: 0.9709955471
A174: 1 | B174: 1 | C174: 1 | D174: 1 | E174: 1 | F174: 1 | G174: 1 | H174: 1 | I174: 1 | J174: 1 | K174: 1 | N174: New | W174: Field Service Cost(Machine set-up) | Y174: =CHOOSE(2, "6773000006094", "PL (2) Cost of Sales HW Field Service Cost(M)") -> PL (2) Cost of Sales HW Field Service Cost(M) | Z174: =(Z656+Z682)*-1 -> 0 | AA174: =(AA656+AA682)*-1 -> 0 | AB174: =(AB656+AB682)*-1 -> 0 | AC174: 0 | AD174: =(AD656+AD682)*-1 -> 0 | AE174: =(AE656+AE682)*-1 -> 0 | AF174: 0 | AG174: 0 | AH174: 0 | AI174: 0 | AJ174: 0 | AK174: 0 | AL174: 0 | AM174: 0 | AN174: 0 | AO174: 0 | AP174: 0 | AQ174: 0 | AR174: 0 | AT174: =SUM((INDIRECT(AT$2&(ROW())):INDIRECT(AT$3&(ROW())))) -> 0 | AU174: =SUM(INDIRECT(AU$1&AU$2&$A174):INDIRECT(AU$1&AU$3&$A174)) -> 0 | AV174: 0 | AW174: 0 | AX174: =SUM(INDIRECT(AX$1&AX$2&$C174):INDIRECT(AX$1&AX$3&$C174)) -> 0 | AY174: 0 | AZ174: 0 | BB174: =SUM((INDIRECT(BB$2&(ROW())):INDIRECT(BB$3&(ROW())))) -> 0 | BC174: =SUM(INDIRECT(BC$1&BC$2&$A174):INDIRECT(BC$1&BC$3&$A174)) -> 0 | BD174: 0 | BE174: 0 | BF174: =SUM(INDIRECT(BF$1&BF$2&$C174):INDIRECT(BF$1&BF$3&$C174)) -> 0 | BG174: 0 | BH174: 0 | BJ174: =SUM((INDIRECT(BJ$2&(ROW())):INDIRECT(BJ$3&(ROW())))) -> 0 | BK174: =SUM(INDIRECT(BK$1&BK$2&$A174):INDIRECT(BK$1&BK$3&$A174)) -> 0 | BL174: 0 | BM174: 0 | BN174: =SUM(INDIRECT(BN$1&BN$2&$C174):INDIRECT(BN$1&BN$3&$C174)) -> 0 | BO174: 0 | BP174: 0
A175: =A172+1 -> 171 | B175: 1 | C175: =C172+1 -> 166 | D175: 1 | E175: 1 | F175: 1 | G175: 1 | H175: 1 | I175: 1 | J175: 1 | K175: 1 | U175: Non-hard | Y175: =CHOOSE(2, "6773000004485", "PL (2) Cost of Sales NH") -> PL (2) Cost of Sales NH | Z175: =Z163-Z192 -> 358534.519 | AA175: =AA163-AA192 -> 330287.8846 | AB175: 304839.4073 | AC175: =AC163-AC192 -> 301445.2733 | AD175: 290906.9914 | AE175: =AE163-AE192 -> 283427.6245 | AF175: 342371.4917 | AG175: 327649.956 | AH175: 363738.7535 | AI175: 388582.2897 | AJ175: 396491.8342 | AK175: 414547.6561 | AL175: 993661.811 | AM175: 875779.8893 | AN175: 1033760.201 | AO175: 1199621.78 | AP175: 1869441.7 | AQ175: 2233381.981 | AR175: 4102823.681 | AT175: =SUM((INDIRECT(AT$2&(ROW())):INDIRECT(AT$3&(ROW())))) -> 304839.4073 | AU175: =SUM(INDIRECT(AU$1&AU$2&$A175):INDIRECT(AU$1&AU$3&$A175)) -> 355216.5689 | AV175: -50377.16154 | AW175: 0.858179021 | AX175: =SUM(INDIRECT(AX$1&AX$2&$C175):INDIRECT(AX$1&AX$3&$C175)) -> 261399.0649 | AY175: 43440.34245 | AZ175: 1.166184001 | BB175: =SUM((INDIRECT(BB$2&(ROW())):INDIRECT(BB$3&(ROW())))) -> 993661.811 | BC175: =SUM(INDIRECT(BC$1&BC$2&$A175):INDIRECT(BC$1&BC$3&$A175)) -> 1033221.489 | BD175: -39559.67768 | BE175: 0.9617122968 | BF175: =SUM(INDIRECT(BF$1&BF$2&$C175):INDIRECT(BF$1&BF$3&$C175)) -> 880800.338 | BG175: 112861.4729 | BH175: 1.128135138 | BJ175: =SUM((INDIRECT(BJ$2&(ROW())):INDIRECT(BJ$3&(ROW())))) -> 993661.811 | BK175: =SUM(INDIRECT(BK$1&BK$2&$A175):INDIRECT(BK$1&BK$3&$A175)) -> 1033221.489 | BL175: -39559.67768 | BM175: 0.9617122968 | BN175: =SUM(INDIRECT(BN$1&BN$2&$C175):INDIRECT(BN$1&BN$3&$C175)) -> 880800.338 | BO175: 112861.4729 | BP175: 1.128135138
A176: =A175+1 -> 172 | B176: 1 | C176: =C175+1 -> 167 | D176: 1 | E176: 1 | F176: 1 | G176: 1 | H176: 1 | I176: 1 | J176: 1 | K176: 1 | W176: Material Cost(Toner, Parts, Consumable) | Y176: =CHOOSE(2, "6773000004486", "PL (2) Cost of Sales NH MC(T, P, C)") -> PL (2) Cost of Sales NH MC(T, P, C) | AL176: 0 | AM176: 0 | AN176: 0 | AO176: 0 | AP176: 0 | AQ176: 0 | AR176: 0 | AT176: =SUM((INDIRECT(AT$2&(ROW())):INDIRECT(AT$3&(ROW())))) -> 0 | AU176: =SUM(INDIRECT(AU$1&AU$2&$A176):INDIRECT(AU$1&AU$3&$A176)) -> 329835.9853 | AV176: -329835.9853 | AW176: 0 | AX176: =SUM(INDIRECT(AX$1&AX$2&$C176):INDIRECT(AX$1&AX$3&$C176)) -> 243228.9129 | AY176: -243228.9129 | AZ176: 0 | BB176: =SUM((INDIRECT(BB$2&(ROW())):INDIRECT(BB$3&(ROW())))) -> 0 | BC176: =SUM(INDIRECT(BC$1&BC$2&$A176):INDIRECT(BC$1&BC$3&$A176)) -> 957422.0633 | BD176: -957422.0633 | BE176: 0 | BF176: =SUM(INDIRECT(BF$1&BF$2&$C176):INDIRECT(BF$1&BF$3&$C176)) -> 829697.5775 | BG176: -829697.5775 | BH176: 0 | BJ176: =SUM((INDIRECT(BJ$2&(ROW())):INDIRECT(BJ$3&(ROW())))) -> 0 | BK176: =SUM(INDIRECT(BK$1&BK$2&$A176):INDIRECT(BK$1&BK$3&$A176)) -> 957422.0633 | BL176: -957422.0633 | BM176: 0 | BN176: =SUM(INDIRECT(BN$1&BN$2&$C176):INDIRECT(BN$1&BN$3&$C176)) -> 829697.5775 | BO176: -829697.5775 | BP176: 0
A177: 173 | B177: 1 | C177: 168 | D177: 1 | E177: 1 | F177: 1 | G177: 1 | H177: 1 | I177: 1 | J177: 1 | K177: 1 | X177: Direct | Y177: =CHOOSE(2, "6773000004487", "PL (2) Cost of Sales NH MC(T, P, C) Direct") -> PL (2) Cost of Sales NH MC(T, P, C) Direct | AL177: 0 | AM177: 0 | AN177: 0 | AO177: 0 | AP177: 0 | AQ177: 0 | AR177: 0 | AT177: =SUM((INDIRECT(AT$2&(ROW())):INDIRECT(AT$3&(ROW())))) -> 0 | AU177: =SUM(INDIRECT(AU$1&AU$2&$A177):INDIRECT(AU$1&AU$3&$A177)) -> 318468.5463 | AV177: -318468.5463 | AW177: 0 | AX177: =SUM(INDIRECT(AX$1&AX$2&$C177):INDIRECT(AX$1&AX$3&$C177)) -> 210650.5388 | AY177: -210650.5388 | AZ177: 0 | BB177: =SUM((INDIRECT(BB$2&(ROW())):INDIRECT(BB$3&(ROW())))) -> 0 | BC177: =SUM(INDIRECT(BC$1&BC$2&$A177):INDIRECT(BC$1&BC$3&$A177)) -> 909005.6134 | BD177: -909005.6134 | BE177: 0 | BF177: =SUM(INDIRECT(BF$1&BF$2&$C177):INDIRECT(BF$1&BF$3&$C177)) -> 720004.4845 | BG177: -720004.4845 | BH177: 0 | BJ177: =SUM((INDIRECT(BJ$2&(ROW())):INDIRECT(BJ$3&(ROW())))) -> 0 | BK177: =SUM(INDIRECT(BK$1&BK$2&$A177):INDIRECT(BK$1&BK$3&$A177)) -> 909005.6134 | BL177: -909005.6134 | BM177: 0 | BN177: =SUM(INDIRECT(BN$1&BN$2&$C177):INDIRECT(BN$1&BN$3&$C177)) -> 720004.4845 | BO177: -720004.4845 | BP177: 0
A178: 174 | B178: 1 | C178: 169 | D178: 1 | E178: 1 | F178: 1 | G178: 1 | H178: 1 | I178: 1 | J178: 1 | K178: 1 | X178: Indirect | Y178: =CHOOSE(2, "6773000004488", "PL (2) Cost of Sales NH MC(T, P, C) Indirect") -> PL (2) Cost of Sales NH MC(T, P, C) Indirect | Z178: =Z176-Z177 -> 0 | AA178: =AA176-AA177 -> 0 | AB178: =AB176-AB177 -> 0 | AC178: 0 | AD178: =AD176-AD177 -> 0 | AE178: =AE176-AE177 -> 0 | AF178: 0 | AG178: 0 | AH178: 0 | AI178: 0 | AJ178: 0 | AK178: 0 | AL178: =AL176-AL177 -> 0 | AM178: 0 | AN178: 0 | AO178: 0 | AP178: 0 | AQ178: 0 | AR178: 0 | AT178: =SUM((INDIRECT(AT$2&(ROW())):INDIRECT(AT$3&(ROW())))) -> 0 | AU178: =SUM(INDIRECT(AU$1&AU$2&$A178):INDIRECT(AU$1&AU$3&$A178)) -> 11367.43896 | AV178: -11367.43896 | AW178: 0 | AX178: =SUM(INDIRECT(AX$1&AX$2&$C178):INDIRECT(AX$1&AX$3&$C178)) -> 32578.37411 | AY178: -32578.37411 | AZ178: 0 | BB178: =SUM((INDIRECT(BB$2&(ROW())):INDIRECT(BB$3&(ROW())))) -> 0 | BC178: =SUM(INDIRECT(BC$1&BC$2&$A178):INDIRECT(BC$1&BC$3&$A178)) -> 48416.44993 | BD178: -48416.44993 | BE178: 0 | BF178: =SUM(INDIRECT(BF$1&BF$2&$C178):INDIRECT(BF$1&BF$3&$C178)) -> 109693.093 | BG178: -109693.093 | BH178: 0 | BJ178: =SUM((INDIRECT(BJ$2&(ROW())):INDIRECT(BJ$3&(ROW())))) -> 0 | BK178: =SUM(INDIRECT(BK$1&BK$2&$A178):INDIRECT(BK$1&BK$3&$A178)) -> 48416.44993 | BL178: -48416.44993 | BM178: 0 | BN178: =SUM(INDIRECT(BN$1&BN$2&$C178):INDIRECT(BN$1&BN$3&$C178)) -> 109693.093 | BO178: -109693.093 | BP178: 0
A179: 175 | B179: 1 | C179: 170 | D179: 1 | E179: 1 | F179: 1 | G179: 1 | H179: 1 | I179: 1 | J179: 1 | K179: 1 | W179: Field Service Cost | Y179: =CHOOSE(2, "6773000004489", "PL (2) Cost of Sales NH Field Service Cost") -> PL (2) Cost of Sales NH Field Service Cost | Z179: =(Z664+Z690)*-1 -> 0 | AA179: =(AA664+AA690)*-1 -> 0 | AB179: 0 | AC179: =(AC664+AC690)*-1 -> 0 | AD179: 0 | AE179: =(AE664+AE690)*-1 -> 0 | AF179: 0 | AG179: 0 | AH179: 0 | AI179: 0 | AJ179: 0 | AK179: 0 | AL179: =SUM(Z179,AA179,AB179) -> 0 | AM179: =SUM(AC179,AD179,AE179) -> 0 | AN179: =SUM(AF179,AG179,AH179) -> 0 | AO179: =SUM(AI179,AJ179,AK179) -> 0 | AP179: =AL179+AM179 -> 0 | AQ179: =AO179+AN179 -> 0 | AR179: =AP179+AQ179 -> 0 | AT179: =SUM((INDIRECT(AT$2&(ROW())):INDIRECT(AT$3&(ROW())))) -> 0 | AU179: =SUM(INDIRECT(AU$1&AU$2&$A179):INDIRECT(AU$1&AU$3&$A179)) -> 25380.58361 | AV179: -25380.58361 | AW179: 0 | AX179: =SUM(INDIRECT(AX$1&AX$2&$C179):INDIRECT(AX$1&AX$3&$C179)) -> 18170.152 | AY179: -18170.152 | AZ179: 0 | BB179: =SUM((INDIRECT(BB$2&(ROW())):INDIRECT(BB$3&(ROW())))) -> 0 | BC179: =SUM(INDIRECT(BC$1&BC$2&$A179):INDIRECT(BC$1&BC$3&$A179)) -> 75799.42532 | BD179: -75799.42532 | BE179: 0 | BF179: =SUM(INDIRECT(BF$1&BF$2&$C179):INDIRECT(BF$1&BF$3&$C179)) -> 51038.7605 | BG179: -51038.7605 | BH179: 0 | BJ179: =SUM((INDIRECT(BJ$2&(ROW())):INDIRECT(BJ$3&(ROW())))) -> 0 | BK179: =SUM(INDIRECT(BK$1&BK$2&$A179):INDIRECT(BK$1&BK$3&$A179)) -> 75799.42532 | BL179: -75799.42532 | BM179: 0 | BN179: =SUM(INDIRECT(BN$1&BN$2&$C179):INDIRECT(BN$1&BN$3&$C179)) -> 51038.7605 | BO179: -51038.7605 | BP179: 0
A180: 176 | B180: 1 | C180: 171 | D180: 1 | E180: 1 | F180: 1 | G180: 1 | H180: 1 | I180: 1 | J180: 1 | K180: 1 | W180: Service Desk Cost | Y180: =CHOOSE(2, "6773000004490", "PL (2) Cost of Sales NH Service Desk Cost") -> PL (2) Cost of Sales NH Service Desk Cost | Z180: =(Z668+Z694)*-1 -> 0 | AA180: =(AA668+AA694)*-1 -> 0 | AB180: 0 | AC180: =(AC668+AC694)*-1 -> 0 | AD180: 0 | AE180: =(AE668+AE694)*-1 -> 0 | AF180: 0 | AG180: 0 | AH180: 0 | AI180: 0 | AJ180: 0 | AK180: 0 | AL180: 0 | AM180: 0 | AN180: 0 | AO180: 0 | AP180: 0 | AQ180: 0 | AR180: 0 | AT180: =SUM((INDIRECT(AT$2&(ROW())):INDIRECT(AT$3&(ROW())))) -> 0 | AU180: =SUM(INDIRECT(AU$1&AU$2&$A180):INDIRECT(AU$1&AU$3&$A180)) -> 0 | AV180: 0 | AW180: 0 | AX180: =SUM(INDIRECT(AX$1&AX$2&$C180):INDIRECT(AX$1&AX$3&$C180)) -> 0 | AY180: 0 | AZ180: 0 | BB180: =SUM((INDIRECT(BB$2&(ROW())):INDIRECT(BB$3&(ROW())))) -> 0 | BC180: =SUM(INDIRECT(BC$1&BC$2&$A180):INDIRECT(BC$1&BC$3&$A180)) -> 0 | BD180: 0 | BE180: 0 | BF180: =SUM(INDIRECT(BF$1&BF$2&$C180):INDIRECT(BF$1&BF$3&$C180)) -> 0 | BG180: 0 | BH180: 0 | BJ180: =SUM((INDIRECT(BJ$2&(ROW())):INDIRECT(BJ$3&(ROW())))) -> 0 | BK180: =SUM(INDIRECT(BK$1&BK$2&$A180):INDIRECT(BK$1&BK$3&$A180)) -> 0 | BL180: 0 | BM180: 0 | BN180: =SUM(INDIRECT(BN$1&BN$2&$C180):INDIRECT(BN$1&BN$3&$C180)) -> 0 | BO180: 0 | BP180: 0
A181: 177 | B181: 1 | C181: 172 | D181: 1 | E181: 1 | F181: 1 | G181: 1 | H181: 1 | I181: 1 | J181: 1 | K181: 1 | W181: Depreciation & Amortization | Y181: =CHOOSE(2, "6773000004491", "PL (2) Cost of Sales NH D&A") -> PL (2) Cost of Sales NH D&A | Z181: =(Z671+Z697)*-1 -> 0 | AA181: =(AA671+AA697)*-1 -> 0 | AB181: =(AB671+AB697)*-1 -> 0 | AC181: 0 | AD181: =(AD671+AD697)*-1 -> 0 | AE181: =(AE671+AE697)*-1 -> 0 | AF181: 0 | AG181: 0 | AH181: 0 | AI181: 0 | AJ181: 0 | AK181: 0 | AL181: 0 | AM181: 0 | AN181: 0 | AO181: 0 | AP181: 0 | AQ181: 0 | AR181: 0 | AT181: =SUM((INDIRECT(AT$2&(ROW())):INDIRECT(AT$3&(ROW())))) -> 0 | AU181: =SUM(INDIRECT(AU$1&AU$2&$A181):INDIRECT(AU$1&AU$3&$A181)) -> 0 | AV181: 0 | AW181: 0 | AX181: =SUM(INDIRECT(AX$1&AX$2&$C181):INDIRECT(AX$1&AX$3&$C181)) -> 0 | AY181: 0 | AZ181: 0 | BB181: =SUM((INDIRECT(BB$2&(ROW())):INDIRECT(BB$3&(ROW())))) -> 0 | BC181: =SUM(INDIRECT(BC$1&BC$2&$A181):INDIRECT(BC$1&BC$3&$A181)) -> 0 | BD181: 0 | BE181: 0 | BF181: =SUM(INDIRECT(BF$1&BF$2&$C181):INDIRECT(BF$1&BF$3&$C181)) -> 0 | BG181: 0 | BH181: 0 | BJ181: =SUM((INDIRECT(BJ$2&(ROW())):INDIRECT(BJ$3&(ROW())))) -> 0 | BK181: =SUM(INDIRECT(BK$1&BK$2&$A181):INDIRECT(BK$1&BK$3&$A181)) -> 0 | BL181: 0 | BM181: 0 | BN181: =SUM(INDIRECT(BN$1&BN$2&$C181):INDIRECT(BN$1&BN$3&$C181)) -> 0 | BO181: 0 | BP181: 0
A182: 178 | B182: 1 | C182: 173 | D182: 1 | E182: 1 | F182: 1 | G182: 1 | H182: 1 | I182: 1 | J182: 1 | K182: 1 | W182: Others | Y182: =CHOOSE(2, "6773000004492", "PL (2) Cost of Sales NH Others") -> PL (2) Cost of Sales NH Others | Z182: =Z175-Z176-Z179-Z180-Z181 -> 358534.519 | AA182: =AA175-AA176-AA179-AA180-AA181 -> 330287.8846 | AB182: =AB175-AB176-AB179-AB180-AB181 -> 304839.4073 | AC182: 301445.2733 | AD182: =AD175-AD176-AD179-AD180-AD181 -> 290906.9914 | AE182: =AE175-AE176-AE179-AE180-AE181 -> 283427.6245 | AF182: 342371.4917 | AG182: 327649.956 | AH182: 363738.7535 | AI182: 388582.2897 | AJ182: 396491.8342 | AK182: 414547.6561 | AL182: 993661.811 | AM182: 875779.8893 | AN182: 1033760.201 | AO182: 1199621.78 | AP182: 1869441.7 | AQ182: 2233381.981 | AR182: 4102823.681 | AT182: =SUM((INDIRECT(AT$2&(ROW())):INDIRECT(AT$3&(ROW())))) -> 304839.4073 | AU182: =SUM(INDIRECT(AU$1&AU$2&$A182):INDIRECT(AU$1&AU$3&$A182)) -> -3.637978807e-12 | AV182: 304839.4073 | AW182: -8.379361824e+16 | AX182: =SUM(INDIRECT(AX$1&AX$2&$C182):INDIRECT(AX$1&AX$3&$C182)) -> 3.637978807e-12 | AY182: 304839.4073 | AZ182: 8.379361824e+16 | BB182: =SUM((INDIRECT(BB$2&(ROW())):INDIRECT(BB$3&(ROW())))) -> 993661.811 | BC182: =SUM(INDIRECT(BC$1&BC$2&$A182):INDIRECT(BC$1&BC$3&$A182)) -> -7.275957614e-11 | BD182: 993661.811 | BE182: -1.365678394e+16 | BF182: =SUM(INDIRECT(BF$1&BF$2&$C182):INDIRECT(BF$1&BF$3&$C182)) -> 64 | BG182: 993597.811 | BH182: 15525.9658 | BJ182: =SUM((INDIRECT(BJ$2&(ROW())):INDIRECT(BJ$3&(ROW())))) -> 993661.811 | BK182: =SUM(INDIRECT(BK$1&BK$2&$A182):INDIRECT(BK$1&BK$3&$A182)) -> -7.275957614e-11 | BL182: 993661.811 | BM182: -1.365678394e+16 | BN182: =SUM(INDIRECT(BN$1&BN$2&$C182):INDIRECT(BN$1&BN$3&$C182)) -> 64 | BO182: 993597.811 | BP182: 15525.9658
A183: 179 | B183: 1 | C183: 174 | D183: 1 | E183: 1 | F183: 1 | G183: 1 | H183: 1 | I183: 1 | J183: 1 | K183: 1 | U183: Solution | Y183: =CHOOSE(2, "6773000004493", "PL (2) Cost of Sales Solution") -> PL (2) Cost of Sales Solution | Z183: =Z164-Z193 -> 115.18629 | AA183: =AA164-AA193 -> 135.26262 | AB183: 89.49 | AC183: =AC164-AC193 -> 335.51739 | AD183: 141.141 | AE183: =AE164-AE193 -> 328.3 | AF183: 335 | AG183: 670 | AH183: 670 | AI183: 670 | AJ183: 670 | AK183: 670 | AL183: 339.93891 | AM183: 804.95839 | AN183: 1675 | AO183: 2010 | AP183: 1144.8973 | AQ183: 3685 | AR183: 4829.8973 | AT183: =SUM((INDIRECT(AT$2&(ROW())):INDIRECT(AT$3&(ROW())))) -> 89.49 | AU183: =SUM(INDIRECT(AU$1&AU$2&$A183):INDIRECT(AU$1&AU$3&$A183)) -> 670 | AV183: -580.51 | AW183: 0.1335671642 | AX183: =SUM(INDIRECT(AX$1&AX$2&$C183):INDIRECT(AX$1&AX$3&$C183)) -> 0 | AY183: 89.49 | AZ183: 0 | BB183: =SUM((INDIRECT(BB$2&(ROW())):INDIRECT(BB$3&(ROW())))) -> 339.93891 | BC183: =SUM(INDIRECT(BC$1&BC$2&$A183):INDIRECT(BC$1&BC$3&$A183)) -> 2010 | BD183: -1670.06109 | BE183: 0.1691238358 | BF183: =SUM(INDIRECT(BF$1&BF$2&$C183):INDIRECT(BF$1&BF$3&$C183)) -> 0 | BG183: 339.93891 | BH183: 0 | BJ183: =SUM((INDIRECT(BJ$2&(ROW())):INDIRECT(BJ$3&(ROW())))) -> 339.93891 | BK183: =SUM(INDIRECT(BK$1&BK$2&$A183):INDIRECT(BK$1&BK$3&$A183)) -> 2010 | BL183: -1670.06109 | BM183: 0.1691238358 | BN183: =SUM(INDIRECT(BN$1&BN$2&$C183):INDIRECT(BN$1&BN$3&$C183)) -> 0 | BO183: 339.93891 | BP183: 0
A184: 180 | B184: 1 | C184: 175 | D184: 1 | E184: 1 | F184: 1 | G184: 1 | H184: 1 | I184: 1 | J184: 1 | K184: 1 | U184: Others | Y184: =CHOOSE(2, "6773000004494", "PL (2) Cost of Sales Others") -> PL (2) Cost of Sales Others | Z184: 0 | AA184: =AA165-AA194 -> 0 | AB184: 0 | AC184: =AC165-AC194 -> 0 | AD184: 0 | AE184: =AE165-AE194 -> 0 | AF184: 0 | AG184: 0 | AH184: 0 | AI184: 0 | AJ184: 0 | AK184: 0 | AL184: 0 | AM184: 0 | AN184: 0 | AO184: 0 | AP184: 0 | AQ184: 0 | AR184: 0 | AT184: =SUM((INDIRECT(AT$2&(ROW())):INDIRECT(AT$3&(ROW())))) -> 0 | AU184: =SUM(INDIRECT(AU$1&AU$2&$A184):INDIRECT(AU$1&AU$3&$A184)) -> 0 | AV184: 0 | AW184: 0 | AX184: =SUM(INDIRECT(AX$1&AX$2&$C184):INDIRECT(AX$1&AX$3&$C184)) -> 0 | AY184: 0 | AZ184: 0 | BB184: =SUM((INDIRECT(BB$2&(ROW())):INDIRECT(BB$3&(ROW())))) -> 0 | BC184: =SUM(INDIRECT(BC$1&BC$2&$A184):INDIRECT(BC$1&BC$3&$A184)) -> 0 | BD184: 0 | BE184: 0 | BF184: =SUM(INDIRECT(BF$1&BF$2&$C184):INDIRECT(BF$1&BF$3&$C184)) -> 0 | BG184: 0 | BH184: 0 | BJ184: =SUM((INDIRECT(BJ$2&(ROW())):INDIRECT(BJ$3&(ROW())))) -> 0 | BK184: =SUM(INDIRECT(BK$1&BK$2&$A184):INDIRECT(BK$1&BK$3&$A184)) -> 0 | BL184: 0 | BM184: 0 | BN184: =SUM(INDIRECT(BN$1&BN$2&$C184):INDIRECT(BN$1&BN$3&$C184)) -> 0 | BO184: 0 | BP184: 0
A185: 181 | B185: 1 | C185: 176 | D185: 1 | E185: 1 | F185: 1 | G185: 1 | H185: 1 | I185: 1 | J185: 1 | K185: 1 | L185: MTP | M185: RF | Q185: Gross Profit | Y185: =CHOOSE(2, "6773000004495", "PL (2) Gross Profit") -> PL (2) Gross Profit | Z185: =SUM(Z191:Z194) -> 294704.3262 | AA185: =SUM(AA191:AA194) -> 193400.0139 | AB185: =SUM(AB191:AB194) -> 174299.8852 | AC185: 195614.2138 | AD185: =SUM(AD191:AD194) -> 229787.3685 | AE185: =SUM(AE191:AE194) -> 294330.2128 | AF185: 202907.4394 | AG185: 187493.7534 | AH185: 204908.673 | AI185: 199028.7858 | AJ185: 185387.9457 | AK185: 189330.5474 | AL185: 662404.2252 | AM185: 719731.7951 | AN185: 595309.8659 | AO185: 573747.2788 | AP185: =SUM(AP191:AP194) -> 1382136.02 | AQ185: =SUM(AQ191:AQ194) -> 1169057.145 | AR185: =SUM(AR191:AR194) -> 2551193.165 | AT185: =SUM((INDIRECT(AT$2&(ROW())):INDIRECT(AT$3&(ROW())))) -> 174299.8852 | AU185: =SUM(INDIRECT(AU$1&AU$2&$A185):INDIRECT(AU$1&AU$3&$A185)) -> 209547.4459 | AV185: -35247.56075 | AW185: 0.8317919811 | AX185: =SUM(INDIRECT(AX$1&AX$2&$C185):INDIRECT(AX$1&AX$3&$C185)) -> 179487.7794 | AY185: -5187.894195 | AZ185: 0.9710961147 | BB185: =SUM((INDIRECT(BB$2&(ROW())):INDIRECT(BB$3&(ROW())))) -> 662404.2252 | BC185: =SUM(INDIRECT(BC$1&BC$2&$A185):INDIRECT(BC$1&BC$3&$A185)) -> 673946.7175 | BD185: -11542.49225 | BE185: 0.9828732866 | BF185: =SUM(INDIRECT(BF$1&BF$2&$C185):INDIRECT(BF$1&BF$3&$C185)) -> 703604.5613 | BG185: -41200.33609 | BH185: 0.9414439042 | BJ185: =SUM((INDIRECT(BJ$2&(ROW())):INDIRECT(BJ$3&(ROW())))) -> 662404.2252 | BK185: =SUM(INDIRECT(BK$1&BK$2&$A185):INDIRECT(BK$1&BK$3&$A185)) -> 673946.7175 | BL185: -11542.49225 | BM185: 0.9828732866 | BN185: =SUM(INDIRECT(BN$1&BN$2&$C185):INDIRECT(BN$1&BN$3&$C185)) -> 703604.5613 | BO185: -41200.33609 | BP185: 0.9414439042
A186: 182 | B186: 1 | C186: 177 | D186: 1 | E186: 1 | F186: 1 | G186: 1 | H186: 1 | I186: 1 | J186: 1 | K186: 1 | L186: MTP | M186: RF | R186: (%) | W186: (Formula: Gross Profit / Net Sales) | Y186: =CHOOSE(2, "6773000004496", "PL (2) Gross Profit (%)") -> PL (2) Gross Profit (%) | Z186: =IFERROR(Z185/Z161,0) -> 0.3708805195 | AA186: =IFERROR(AA185/AA161,0) -> 0.301954455 | AB186: 0.2971339833 | AC186: =IFERROR(AC185/AC161,0) -> 0.3099377231 | AD186: 0.354160468 | AE186: =IFERROR(AE185/AE161,0) -> 0.3974067322 | AF186: 0.3038340334 | AG186: 0.2970265492 | AH186: 0.2893583652 | AI186: 0.2757280259 | AJ186: 0.2680206198 | AK186: 0.2637080927 | AL186: =IFERROR(AL185/AL161,0) -> 0.3276463555 | AM186: 0.3561987817 | AN186: 0.2965861283 | AO186: 0.269178144 | AP186: 0.3419186323 | AQ186: 0.2824706521 | AR186: 0.3118444272 | AT186: =IFERROR(AT185/AT161,0) -> 0.2971339833 | AU186: =IFERROR(AU185/AU161,0) -> 0.2923717919 | AV186: =AT186-AU186 -> 0.004762191323 | AX186: =IFERROR(AX185/AX161,0) -> 0.3270819745 | AY186: -0.02994799127 | BB186: =IFERROR(BB185/BB161,0) -> 0.3276463555 | BC186: =IFERROR(BC185/BC161,0) -> 0.310756266 | BD186: 0.0168900895 | BF186: =IFERROR(BF185/BF161,0) -> 0.3588692128 | BG186: -0.03122285733 | BJ186: =IFERROR(BJ185/BJ161,0) -> 0.3276463555 | BK186: =IFERROR(BK185/BK161,0) -> 0.310756266 | BL186: 0.0168900895 | BN186: =IFERROR(BN185/BN161,0) -> 0.3588692128 | BO186: -0.03122285733
A187: 183 | B187: 1 | C187: 178 | D187: 1 | E187: 1 | F187: 1 | G187: 1 | H187: 1 | I187: 1 | J187: 1 | K187: 1 | L187: MTP | M187: RF | U187: Hard (%) | Y187: =CHOOSE(2, "6773000004497", "PL (2) Gross Profit HW (%)") -> PL (2) Gross Profit HW (%) | Z187: =IFERROR(Z191/Z162,0) -> 0.347423452 | AA187: =IFERROR(AA191/AA162,0) -> 0.3672648768 | AB187: 0.3819641439 | AC187: =IFERROR(AC191/AC162,0) -> 0.2471867288 | AD187: 0.3381073744 | AE187: =IFERROR(AE191/AE162,0) -> 0.3517351049 | AF187: 0.3474450192 | AG187: 0.3631212739 | AH187: 0.3572768764 | AI187: 0.3411728352 | AJ187: 0.3456213679 | AK187: 0.3419814707 | AL187: =IFERROR(AL191/AL162,0) -> 0.3642348817 | AM187: 0.317623355 | AN187: 0.3559388251 | AO187: 0.3427993809 | AP187: 0.3400100642 | AQ187: 0.349617993 | AR187: 0.3446692808 | AT187: =IFERROR(AT191/AT162,0) -> 0.3819641439 | AU187: 0.3388960108 | AV187: 0.04306813307 | AX187: =IFERROR(AX191/AX162,0) -> 0.3491081329 | AY187: 0.032856011 | BB187: =IFERROR(BB191/BB162,0) -> 0.3642348817 | BC187: 0.3402211778 | BD187: 0.0240137039 | BF187: =IFERROR(BF191/BF162,0) -> 0.3356997607 | BG187: 0.028535121 | BJ187: =IFERROR(BJ191/BJ162,0) -> 0.3642348817 | BK187: 0.3402211778 | BL187: 0.0240137039 | BN187: =IFERROR(BN191/BN162,0) -> 0.3356997607 | BO187: 0.028535121
A188: 184 | B188: 1 | C188: 179 | D188: 1 | E188: 1 | F188: 1 | G188: 1 | H188: 1 | I188: 1 | J188: 1 | K188: 1 | L188: MTP | M188: RF | U188: Non-hard (%) | Y188: =CHOOSE(2, "6773000004498", "PL (2) Gross Profit NH (%)") -> PL (2) Gross Profit NH (%) | Z188: 0.379571025 | AA188: =IFERROR(AA192/AA163,0) -> 0.2754193338 | AB188: 0.261276498 | AC188: =IFERROR(AC192/AC163,0) -> 0.3339059492 | AD188: 0.3608071783 | AE188: =IFERROR(AE192/AE163,0) -> 0.4208727599 | AF188: 0.2867929837 | AG188: 0.2702754768 | AH188: 0.259405163 | AI188: 0.2500190542 | AJ188: 0.243197522 | AK188: 0.2388161296 | AL188: 0.3129969554 | AM188: 0.3731343765 | AN188: 0.2720993524 | AO188: 0.2439212203 | AP188: 0.3425443928 | AQ188: 0.2572303918 | AR188: 0.2986961104 | AT188: 0.261276498 | AU188: 0.2704284621 | AV188: -0.009151964095 | AX188: =IFERROR(AX192/AX163,0) -> 0.3175520922 | AY188: -0.05627559417 | BB188: 0.3129969554 | BC188: 0.2967481576 | BD188: 0.01624879784 | BF188: =IFERROR(BF192/BF163,0) -> 0.3682800779 | BG188: -0.05528312255 | BJ188: 0.3129969554 | BK188: 0.2967481576 | BL188: 0.01624879784 | BN188: =IFERROR(BN192/BN163,0) -> 0.3682800779 | BO188: -0.05528312255
A189: 185 | B189: 1 | C189: 180 | D189: 1 | E189: 1 | F189: 1 | G189: 1 | H189: 1 | I189: 1 | J189: 1 | K189: 1 | L189: MTP | M189: RF | U189: Solution (%) | Y189: =CHOOSE(2, "6773000004499", "PL (2) Gross Profit Solution (%)") -> PL (2) Gross Profit Solution (%) | Z189: 0.5749583395 | AA189: =IFERROR(AA193/AA164,0) -> 0.4982468284 | AB189: 0.5758767773 | AC189: =IFERROR(AC193/AC164,0) -> 0.6364925352 | AD189: 0.5860967742 | AE189: =IFERROR(AE193/AE164,0) -> 0.33 | AF189: 0.33 | AG189: 0.33 | AH189: 0.33 | AI189: 0.33 | AJ189: 0.33 | AK189: 0.33 | AL189: 0.5477009633 | AM189: 0.5410727537 | AN189: 0.33 | AO189: 0.33 | AP189: 0.5430609679 | AQ189: 0.33 | AR189: 0.3966836507 | AT189: 0.5758767773 | AU189: 0.33 | AV189: 0.2458767773 | AX189: =IFERROR(AX193/AX164,0) -> 0 | AY189: 0.5758767773 | BB189: 0.5477009633 | BC189: 0.33 | BD189: 0.2177009633 | BF189: =IFERROR(BF193/BF164,0) -> 0 | BG189: 0.5477009633 | BJ189: 0.5477009633 | BK189: 0.33 | BL189: 0.2177009633 | BN189: =IFERROR(BN193/BN164,0) -> 0 | BO189: 0.5477009633
A190: 186 | B190: 1 | C190: 181 | D190: 1 | E190: 1 | F190: 1 | G190: 1 | H190: 1 | I190: 1 | J190: 1 | K190: 1 | L190: MTP | M190: RF | U190: Others (%) | Y190: =CHOOSE(2, "6773000004500", "PL (2) Gross Profit Others (%)") -> PL (2) Gross Profit Others (%) | Z190: 0 | AA190: =IFERROR(AA194/AA165,0) -> 0 | AB190: 0 | AC190: =IFERROR(AC194/AC165,0) -> 0 | AD190: 0 | AE190: =IFERROR(AE194/AE165,0) -> 0 | AF190: 0 | AG190: 0 | AH190: 0 | AI190: 0 | AJ190: 0 | AK190: 0 | AL190: 0 | AM190: 0 | AN190: 0 | AO190: 0 | AP190: 0 | AQ190: 0 | AR190: 0 | AT190: 0 | AU190: 0 | AV190: 0 | AX190: =IFERROR(AX194/AX165,0) -> 0 | AY190: 0 | BB190: 0 | BC190: 0 | BD190: 0 | BF190: =IFERROR(BF194/BF165,0) -> 0 | BG190: 0 | BJ190: 0 | BK190: 0 | BL190: 0 | BN190: =IFERROR(BN194/BN165,0) -> 0 | BO190: 0
A191: 187 | B191: 1 | C191: 182 | D191: 1 | E191: 1 | F191: 1 | G191: 1 | H191: 1 | I191: 1 | J191: 1 | K191: 1 | L191: MTP | M191: RF | U191: Hard | Y191: =CHOOSE(2, "6773000004501", "PL (2) Gross Profit HW") -> PL (2) Gross Profit HW | Z191: 75201.38279 | AA191: 67720.43508 | AB191: 66360.80529 | AC191: 43915.38286 | AD191: 65378.32698 | AE191: 88191.38323 | AF191: 65068.88968 | AG191: 65808.71426 | AH191: 77173.36856 | AI191: 69158.19261 | AJ191: 57645.7947 | AK191: 58939.11207 | AL191: =SUM(Z191,AA191,AB191) -> 209282.6231 | AM191: =SUM(AC191,AD191,AE191) -> 197485.0931 | AN191: =SUM(AF191,AG191,AH191) -> 208050.9725 | AO191: =SUM(AI191,AJ191,AK191) -> 185743.0994 | AP191: =AL191+AM191 -> 406767.7162 | AQ191: =AO191+AN191 -> 393794.0719 | AR191: =AP191+AQ191 -> 800561.7881 | AT191: =SUM((INDIRECT(AT$2&(ROW())):INDIRECT(AT$3&(ROW())))) -> 66360.80529 | AU191: =SUM(INDIRECT(AU$1&AU$2&$A191):INDIRECT(AU$1&AU$3&$A191)) -> 77550.20639 | AV191: -11189.40111 | AW191: 0.8557141028 | AX191: =SUM(INDIRECT(AX$1&AX$2&$C191):INDIRECT(AX$1&AX$3&$C191)) -> 57855.31629 | AY191: 8505.488993 | AZ191: =IFERROR(AT191/AX191,0) -> 1.147013093 | BB191: =SUM((INDIRECT(BB$2&(ROW())):INDIRECT(BB$3&(ROW())))) -> 209282.6231 | BC191: =SUM(INDIRECT(BC$1&BC$2&$A191):INDIRECT(BC$1&BC$3&$A191)) -> 236972.6864 | BD191: -27690.0633 | BE191: =IFERROR(BB191/BC191,0) -> 0.8831508233 | BF191: =SUM(INDIRECT(BF$1&BF$2&$C191):INDIRECT(BF$1&BF$3&$C191)) -> 190115.5833 | BG191: 19167.03981 | BH191: =IFERROR(BB191/BF191,0) -> 1.100817826 | BJ191: =SUM((INDIRECT(BJ$2&(ROW())):INDIRECT(BJ$3&(ROW())))) -> 209282.6231 | BK191: =SUM(INDIRECT(BK$1&BK$2&$A191):INDIRECT(BK$1&BK$3&$A191)) -> 236972.6864 | BL191: -27690.0633 | BM191: =IFERROR(BJ191/BK191,0) -> 0.8831508233 | BN191: =SUM(INDIRECT(BN$1&BN$2&$C191):INDIRECT(BN$1&BN$3&$C191)) -> 190115.5833 | BO191: 19167.03981 | BP191: =IFERROR(BJ191/BN191,0) -> 1.100817826
A192: 188 | B192: 1 | C192: 183 | D192: 1 | E192: 1 | F192: 1 | G192: 1 | H192: 1 | I192: 1 | J192: 1 | K192: 1 | L192: MTP | M192: RF | U192: Non-hard | Y192: =CHOOSE(2, "6773000004502", "PL (2) Gross Profit NH") -> PL (2) Gross Profit NH | Z192: 219347.1297 | AA192: 125545.2614 | AB192: 107817.5699 | AC192: 151111.3483 | AD192: 164209.1825 | AE192: 205977.1296 | AF192: 137673.5498 | AG192: 121355.0391 | AH192: 127405.3044 | AI192: 129540.5931 | AJ192: 127412.151 | AK192: 130061.4353 | AL192: 452709.961 | AM192: 521297.6604 | AN192: 386433.8933 | AO192: 387014.1794 | AP192: =AL192+AM192 -> 974007.6214 | AQ192: =AO192+AN192 -> 773448.0728 | AR192: =AP192+AQ192 -> 1747455.694 | AT192: =SUM((INDIRECT(AT$2&(ROW())):INDIRECT(AT$3&(ROW())))) -> 107817.5699 | AU192: =SUM(INDIRECT(AU$1&AU$2&$A192):INDIRECT(AU$1&AU$3&$A192)) -> 131667.2395 | AV192: -23849.66964 | AW192: 0.8188640566 | AX192: =SUM(INDIRECT(AX$1&AX$2&$C192):INDIRECT(AX$1&AX$3&$C192)) -> 121632.4631 | AY192: -13814.89319 | AZ192: 0.8864210028 | BB192: =SUM((INDIRECT(BB$2&(ROW())):INDIRECT(BB$3&(ROW())))) -> 452709.961 | BC192: =SUM(INDIRECT(BC$1&BC$2&$A192):INDIRECT(BC$1&BC$3&$A192)) -> 435984.031 | BD192: 16725.92996 | BE192: 1.03836363 | BF192: =SUM(INDIRECT(BF$1&BF$2&$C192):INDIRECT(BF$1&BF$3&$C192)) -> 513488.978 | BG192: -60779.017 | BH192: 0.8816352062 | BJ192: =SUM((INDIRECT(BJ$2&(ROW())):INDIRECT(BJ$3&(ROW())))) -> 452709.961 | BK192: =SUM(INDIRECT(BK$1&BK$2&$A192):INDIRECT(BK$1&BK$3&$A192)) -> 435984.031 | BL192: 16725.92996 | BM192: 1.03836363 | BN192: =SUM(INDIRECT(BN$1&BN$2&$C192):INDIRECT(BN$1&BN$3&$C192)) -> 513488.978 | BO192: -60779.017 | BP192: 0.8816352062
A193: 189 | B193: 1 | C193: 184 | D193: 1 | E193: 1 | F193: 1 | G193: 1 | H193: 1 | I193: 1 | J193: 1 | K193: 1 | L193: MTP | M193: RF | U193: Solution | Y193: =CHOOSE(2, "6773000004503", "PL (2) Gross Profit Solution") -> PL (2) Gross Profit Solution | Z193: 155.81371 | AA193: 134.31738 | AB193: 121.51 | AC193: 587.48261 | AD193: 199.859 | AE193: 161.7 | AF193: 165 | AG193: 330 | AH193: 330 | AI193: 330 | AJ193: 330 | AK193: 330 | AL193: 411.64109 | AM193: 949.04161 | AN193: 825 | AO193: 990 | AP193: =AL193+AM193 -> 1360.6827 | AQ193: =AO193+AN193 -> 1815 | AR193: =AP193+AQ193 -> 3175.6827 | AT193: =SUM((INDIRECT(AT$2&(ROW())):INDIRECT(AT$3&(ROW())))) -> 121.51 | AU193: =SUM(INDIRECT(AU$1&AU$2&$A193):INDIRECT(AU$1&AU$3&$A193)) -> 330 | AV193: -208.49 | AW193: 0.3682121212 | AX193: =SUM(INDIRECT(AX$1&AX$2&$C193):INDIRECT(AX$1&AX$3&$C193)) -> 0 | AY193: 121.51 | AZ193: 0 | BB193: =SUM((INDIRECT(BB$2&(ROW())):INDIRECT(BB$3&(ROW())))) -> 411.64109 | BC193: =SUM(INDIRECT(BC$1&BC$2&$A193):INDIRECT(BC$1&BC$3&$A193)) -> 990 | BD193: -578.35891 | BE193: 0.4157990808 | BF193: =SUM(INDIRECT(BF$1&BF$2&$C193):INDIRECT(BF$1&BF$3&$C193)) -> 0 | BG193: 411.64109 | BH193: 0 | BJ193: =SUM((INDIRECT(BJ$2&(ROW())):INDIRECT(BJ$3&(ROW())))) -> 411.64109 | BK193: =SUM(INDIRECT(BK$1&BK$2&$A193):INDIRECT(BK$1&BK$3&$A193)) -> 990 | BL193: -578.35891 | BM193: 0.4157990808 | BN193: =SUM(INDIRECT(BN$1&BN$2&$C193):INDIRECT(BN$1&BN$3&$C193)) -> 0 | BO193: 411.64109 | BP193: 0
A194: 190 | B194: 1 | C194: 185 | D194: 1 | E194: 1 | F194: 1 | G194: 1 | H194: 1 | I194: 1 | J194: 1 | K194: 1 | L194: MTP | M194: RF | U194: Others | Y194: =CHOOSE(2, "6773000004504", "PL (2) Gross Profit Others") -> PL (2) Gross Profit Others | Z194: 0 | AA194: 0 | AB194: 0 | AC194: 0 | AD194: 0 | AL194: 0 | AM194: 0 | AN194: 0 | AO194: 0 | AP194: =AL194+AM194 -> 0 | AQ194: =AO194+AN194 -> 0 | AR194: =AP194+AQ194 -> 0 | AT194: =SUM((INDIRECT(AT$2&(ROW())):INDIRECT(AT$3&(ROW())))) -> 0 | AU194: =SUM(INDIRECT(AU$1&AU$2&$A194):INDIRECT(AU$1&AU$3&$A194)) -> 0 | AV194: 0 | AW194: 0 | AX194: =SUM(INDIRECT(AX$1&AX$2&$C194):INDIRECT(AX$1&AX$3&$C194)) -> 0 | AY194: 0 | AZ194: 0 | BB194: =SUM((INDIRECT(BB$2&(ROW())):INDIRECT(BB$3&(ROW())))) -> 0 | BC194: =SUM(INDIRECT(BC$1&BC$2&$A194):INDIRECT(BC$1&BC$3&$A194)) -> 0 | BD194: 0 | BE194: 0 | BF194: =SUM(INDIRECT(BF$1&BF$2&$C194):INDIRECT(BF$1&BF$3&$C194)) -> 0 | BG194: 0 | BH194: 0 | BJ194: =SUM((INDIRECT(BJ$2&(ROW())):INDIRECT(BJ$3&(ROW())))) -> 0 | BK194: =SUM(INDIRECT(BK$1&BK$2&$A194):INDIRECT(BK$1&BK$3&$A194)) -> 0 | BL194: 0 | BM194: 0 | BN194: =SUM(INDIRECT(BN$1&BN$2&$C194):INDIRECT(BN$1&BN$3&$C194)) -> 0 | BO194: 0 | BP194: 0
A195: 191 | B195: 1 | C195: 186 | D195: 1 | E195: 1 | F195: 1 | G195: 1 | H195: 1 | I195: 1 | J195: 1 | K195: 1 | L195: MTP | M195: RF | Q195: SGA Expenses | Y195: =CHOOSE(2, "6773000004505", "PL (2) SGA Expenses") -> PL (2) SGA Expenses | Z195: =SUM(Z196:Z198) -> 173896.7921 | AA195: =SUM(AA196:AA198) -> 126036.8124 | AB195: =SUM(AB196:AB198) -> 87255.98405 | AC195: 120887.321 | AD195: =SUM(AD196:AD198) -> 126177.9686 | AE195: =SUM(AE196:AE198) -> 138508.6322 | AF195: 141994.8166 | AG195: 142491.4685 | AH195: 152837.9745 | AI195: 148729.1119 | AJ195: 148660.518 | AK195: 154834.1713 | AL195: 387189.5886 | AM195: 385573.9217 | AN195: 437324.2596 | AO195: 452223.8012 | AP195: =SUM(AP196:AP198) -> 772763.5103 | AQ195: =SUM(AQ196:AQ198) -> 889548.0608 | AR195: =SUM(AR196:AR198) -> 1662311.571 | AT195: =SUM((INDIRECT(AT$2&(ROW())):INDIRECT(AT$3&(ROW())))) -> 87255.98405 | AU195: =SUM(INDIRECT(AU$1&AU$2&$A195):INDIRECT(AU$1&AU$3&$A195)) -> 134297.9944 | AV195: -47042.0103 | AW195: 0.6497191896 | AX195: =SUM(INDIRECT(AX$1&AX$2&$C195):INDIRECT(AX$1&AX$3&$C195)) -> 120725.776 | AY195: -33469.79196 | AZ195: 0.7227618404 | BB195: =SUM((INDIRECT(BB$2&(ROW())):INDIRECT(BB$3&(ROW())))) -> 387189.5886 | BC195: =SUM(INDIRECT(BC$1&BC$2&$A195):INDIRECT(BC$1&BC$3&$A195)) -> 403418.4402 | BD195: -16228.85155 | BE195: 0.9597716665 | BF195: =SUM(INDIRECT(BF$1&BF$2&$C195):INDIRECT(BF$1&BF$3&$C195)) -> 431057.6239 | BG195: -43868.03532 | BH195: 0.8982316218 | BJ195: =SUM((INDIRECT(BJ$2&(ROW())):INDIRECT(BJ$3&(ROW())))) -> 387189.5886 | BK195: =SUM(INDIRECT(BK$1&BK$2&$A195):INDIRECT(BK$1&BK$3&$A195)) -> 403418.4402 | BL195: -16228.85155 | BM195: 0.9597716665 | BN195: =SUM(INDIRECT(BN$1&BN$2&$C195):INDIRECT(BN$1&BN$3&$C195)) -> 431057.6239 | BO195: -43868.03532 | BP195: 0.8982316218
A196: 192 | B196: 1 | C196: 187 | D196: 1 | E196: 1 | F196: 1 | G196: 1 | H196: 1 | I196: 1 | J196: 1 | K196: 1 | L196: MTP | M196: RF | R196: Variable Expenses | Y196: =CHOOSE(2, "6773000004506", "PL (2) SGA Expenses Variable Expenses") -> PL (2) SGA Expenses Variable Expenses | Z196: 37066.13603 | AA196: 32252.1314 | AB196: 29678.40577 | AC196: 31876.65118 | AD196: 34179.23017 | AE196: 52982.77368 | AF196: 58582.77498 | AG196: 58582.77557 | AH196: 67982.77517 | AI196: 63982.77221 | AJ196: 63982.77426 | AK196: 63982.77387 | AL196: 98996.6732 | AM196: 119038.655 | AN196: 185148.3257 | AO196: 191948.3203 | AP196: =AL196+AM196 -> 218035.3282 | AQ196: =AO196+AN196 -> 377096.6461 | AR196: =AP196+AQ196 -> 595131.9743 | AT196: =SUM((INDIRECT(AT$2&(ROW())):INDIRECT(AT$3&(ROW())))) -> 29678.40577 | AU196: =SUM(INDIRECT(AU$1&AU$2&$A196):INDIRECT(AU$1&AU$3&$A196)) -> 51582.77531 | AV196: -21904.36955 | AW196: 0.5753549627 | AX196: =SUM(INDIRECT(AX$1&AX$2&$C196):INDIRECT(AX$1&AX$3&$C196)) -> 72725.74339 | AY196: -43047.33762 | AZ196: 0.4080866607 | BB196: =SUM((INDIRECT(BB$2&(ROW())):INDIRECT(BB$3&(ROW())))) -> 98996.6732 | BC196: =SUM(INDIRECT(BC$1&BC$2&$A196):INDIRECT(BC$1&BC$3&$A196)) -> 154748.3254 | BD196: -55751.65223 | BE196: 0.6397269432 | BF196: =SUM(INDIRECT(BF$1&BF$2&$C196):INDIRECT(BF$1&BF$3&$C196)) -> 165739.9613 | BG196: -66743.28807 | BH196: 0.5973011725 | BJ196: =SUM((INDIRECT(BJ$2&(ROW())):INDIRECT(BJ$3&(ROW())))) -> 98996.6732 | BK196: =SUM(INDIRECT(BK$1&BK$2&$A196):INDIRECT(BK$1&BK$3&$A196)) -> 154748.3254 | BL196: -55751.65223 | BM196: 0.6397269432 | BN196: =SUM(INDIRECT(BN$1&BN$2&$C196):INDIRECT(BN$1&BN$3&$C196)) -> 165739.9613 | BO196: -66743.28807 | BP196: 0.5973011725
A197: 193 | B197: 1 | C197: 188 | D197: 1 | E197: 1 | F197: 1 | G197: 1 | H197: 1 | I197: 1 | J197: 1 | K197: 1 | L197: MTP | M197: RF | R197: Wages & Salaries | Y197: =CHOOSE(2, "6773000004507", "PL (2) SGA Expenses Wages & Salaries") -> PL (2) SGA Expenses Wages & Salaries | Z197: 44102.05427 | AA197: 44406.15395 | AB197: 38235.86328 | AC197: 34905.59832 | AD197: 38986.29261 | AE197: 40996.39442 | AF197: 40309.83746 | AG197: 40085.12673 | AH197: 40251.40608 | AI197: 40281.18629 | AJ197: 40156.34672 | AK197: 40180.00036 | AL197: 126744.0715 | AM197: 114888.2853 | AN197: 120646.3703 | AO197: 120617.5334 | AP197: =AL197+AM197 -> 241632.3568 | AQ197: =AO197+AN197 -> 241263.9036 | AR197: =AP197+AQ197 -> 482896.2605 | AT197: =SUM((INDIRECT(AT$2&(ROW())):INDIRECT(AT$3&(ROW())))) -> 38235.86328 | AU197: =SUM(INDIRECT(AU$1&AU$2&$A197):INDIRECT(AU$1&AU$3&$A197)) -> 40687.84554 | AV197: -2451.982261 | AW197: 0.9397367389 | AX197: =SUM(INDIRECT(AX$1&AX$2&$C197):INDIRECT(AX$1&AX$3&$C197)) -> 37988.82827 | AY197: 247.0350019 | AZ197: 1.006502833 | BB197: =SUM((INDIRECT(BB$2&(ROW())):INDIRECT(BB$3&(ROW())))) -> 126744.0715 | BC197: =SUM(INDIRECT(BC$1&BC$2&$A197):INDIRECT(BC$1&BC$3&$A197)) -> 121992.8742 | BD197: 4751.197275 | BE197: 1.038946515 | BF197: =SUM(INDIRECT(BF$1&BF$2&$C197):INDIRECT(BF$1&BF$3&$C197)) -> 110445.5842 | BG197: 16298.48729 | BH197: 1.147570294 | BJ197: =SUM((INDIRECT(BJ$2&(ROW())):INDIRECT(BJ$3&(ROW())))) -> 126744.0715 | BK197: =SUM(INDIRECT(BK$1&BK$2&$A197):INDIRECT(BK$1&BK$3&$A197)) -> 121992.8742 | BL197: 4751.197275 | BM197: 1.038946515 | BN197: =SUM(INDIRECT(BN$1&BN$2&$C197):INDIRECT(BN$1&BN$3&$C197)) -> 110445.5842 | BO197: 16298.48729 | BP197: 1.147570294
A198: 194 | B198: 1 | C198: 189 | D198: 1 | E198: 1 | F198: 1 | G198: 1 | H198: 1 | I198: 1 | J198: 1 | K198: 1 | L198: MTP | M198: RF | R198: Fixed Expenses | Y198: =CHOOSE(2, "6773000004508", "PL (2) SGA Expenses Fixed Expenses") -> PL (2) SGA Expenses Fixed Expenses | Z198: 92728.60185 | AA198: 49378.52705 | AB198: 19341.71501 | AC198: 54105.07147 | AD198: 53012.44578 | AE198: 44529.46405 | AF198: 43102.20417 | AG198: 43823.56615 | AH198: 44603.79327 | AI198: 44465.15342 | AJ198: 44521.39705 | AK198: 50671.39705 | AL198: 161448.8439 | AM198: 151646.9813 | AN198: 131529.5636 | AO198: 139657.9475 | AP198: =AL198+AM198 -> 313095.8252 | AQ198: =AO198+AN198 -> 271187.5111 | AR198: =AP198+AQ198 -> 584283.3363 | AT198: =SUM((INDIRECT(AT$2&(ROW())):INDIRECT(AT$3&(ROW())))) -> 19341.71501 | AU198: =SUM(INDIRECT(AU$1&AU$2&$A198):INDIRECT(AU$1&AU$3&$A198)) -> 42027.3735 | AV198: -22685.65849 | AW198: 0.4602170776 | AX198: =SUM(INDIRECT(AX$1&AX$2&$C198):INDIRECT(AX$1&AX$3&$C198)) -> 10011.20435 | AY198: 9330.510664 | AZ198: 1.932006814 | BB198: =SUM((INDIRECT(BB$2&(ROW())):INDIRECT(BB$3&(ROW())))) -> 161448.8439 | BC198: =SUM(INDIRECT(BC$1&BC$2&$A198):INDIRECT(BC$1&BC$3&$A198)) -> 126677.2405 | BD198: 34771.60341 | BE198: 1.274489745 | BF198: =SUM(INDIRECT(BF$1&BF$2&$C198):INDIRECT(BF$1&BF$3&$C198)) -> 154872.0784 | BG198: 6576.765467 | BH198: 1.042465792 | BJ198: =SUM((INDIRECT(BJ$2&(ROW())):INDIRECT(BJ$3&(ROW())))) -> 161448.8439 | BK198: =SUM(INDIRECT(BK$1&BK$2&$A198):INDIRECT(BK$1&BK$3&$A198)) -> 126677.2405 | BL198: 34771.60341 | BM198: 1.274489745 | BN198: =SUM(INDIRECT(BN$1&BN$2&$C198):INDIRECT(BN$1&BN$3&$C198)) -> 154872.0784 | BO198: 6576.765467 | BP198: 1.042465792
A199: 195 | B199: 1 | C199: =C210+1 -> 197 | D199: 1 | E199: 1 | F199: 1 | G199: 1 | H199: 1 | I199: 1 | J199: 1 | K199: 1 | M199: RF | S199: SG&A: Direct Cost | Y199: =CHOOSE(2, "6773000006095", "PL (2) SGA Expenses CAR Directly assigned") -> PL (2) SGA Expenses CAR Directly assigned | Z199: =SUM(Z200:Z202) -> 104647.9635 | AA199: =SUM(AA200:AA202) -> 27980.05011 | AB199: =SUM(AB200:AB202) -> 33197.84642 | AC199: =SUM(AC200:AC202) -> 29889.95228 | AD199: 23901.82041 | AE199: 48500 | AF199: 54500 | AG199: 48500 | AH199: 48500 | AI199: 48500 | AJ199: 48500 | AK199: 48500 | AL199: =SUM(AL200:AL202) -> 165825.8601 | AM199: 102291.7727 | AN199: 151500 | AO199: 145500 | AP199: 268117.6327 | AQ199: 297000 | AR199: 565117.6327 | AT199: =SUM((INDIRECT(AT$2&(ROW())):INDIRECT(AT$3&(ROW())))) -> 33197.84642 | AU199: =SUM(INDIRECT(AU$1&AU$2&$A199):INDIRECT(AU$1&AU$3&$A199)) -> 56000 | AV199: -22802.15358 | AW199: 0.5928186861 | AX199: =SUM(INDIRECT(AX$1&AX$2&$C199):INDIRECT(AX$1&AX$3&$C199)) -> 36924.16423 | AY199: -3726.31781 | AZ199: 0.8990818645 | BB199: =SUM((INDIRECT(BB$2&(ROW())):INDIRECT(BB$3&(ROW())))) -> 165825.8601 | BC199: =SUM(INDIRECT(BC$1&BC$2&$A199):INDIRECT(BC$1&BC$3&$A199)) -> 168000 | BD199: -2174.13995 | BE199: 0.9870586908 | BF199: =SUM(INDIRECT(BF$1&BF$2&$C199):INDIRECT(BF$1&BF$3&$C199)) -> 130104.3157 | BG199: 35721.54431 | BH199: 1.274560795 | BJ199: =SUM((INDIRECT(BJ$2&(ROW())):INDIRECT(BJ$3&(ROW())))) -> 165825.8601 | BK199: =SUM(INDIRECT(BK$1&BK$2&$A199):INDIRECT(BK$1&BK$3&$A199)) -> 168000 | BL199: -2174.13995 | BM199: 0.9870586908 | BN199: =SUM(INDIRECT(BN$1&BN$2&$C199):INDIRECT(BN$1&BN$3&$C199)) -> 130104.3157 | BO199: 35721.54431 | BP199: 1.274560795
A200: 196 | B200: 1 | C200: =C199+1 -> 198 | D200: 1 | E200: 1 | F200: 1 | G200: 1 | H200: 1 | I200: 1 | J200: 1 | K200: 1 | M200: RF | T200: Variable Expenses | Y200: =CHOOSE(2, "6773000006096", "PL (2) SGA Expenses CAR Directly assigned VE") -> PL (2) SGA Expenses CAR Directly assigned VE | Z200: 27818.83435 | AA200: 5527.247267 | AB200: 9351.145578 | AC200: 1026.481971 | AD200: 691.0540123 | AE200: 15000 | AF200: 15000 | AG200: 15000 | AH200: 15000 | AI200: 15000 | AJ200: 15000 | AK200: 15000 | AL200: =SUM(Z200,AA200,AB200) -> 42697.22719 | AM200: =SUM(AC200,AD200,AE200) -> 16717.53598 | AN200: =SUM(AF200,AG200,AH200) -> 45000 | AO200: =SUM(AI200,AJ200,AK200) -> 45000 | AP200: =AL200+AM200 -> 59414.76318 | AQ200: =AO200+AN200 -> 90000 | AR200: =AP200+AQ200 -> 149414.7632 | AT200: =SUM((INDIRECT(AT$2&(ROW())):INDIRECT(AT$3&(ROW())))) -> 9351.145578 | AU200: =SUM(INDIRECT(AU$1&AU$2&$A200):INDIRECT(AU$1&AU$3&$A200)) -> 15000 | AV200: -5648.854422 | AX200: =SUM(INDIRECT(AX$1&AX$2&$C200):INDIRECT(AX$1&AX$3&$C200)) -> 12228.27581 | AY200: -2877.13023 | BB200: =SUM((INDIRECT(BB$2&(ROW())):INDIRECT(BB$3&(ROW())))) -> 42697.22719 | BC200: =SUM(INDIRECT(BC$1&BC$2&$A200):INDIRECT(BC$1&BC$3&$A200)) -> 45000 | BD200: -2302.772808 | BF200: =SUM(INDIRECT(BF$1&BF$2&$C200):INDIRECT(BF$1&BF$3&$C200)) -> 49462.49174 | BG200: -6765.264551 | BJ200: =SUM((INDIRECT(BJ$2&(ROW())):INDIRECT(BJ$3&(ROW())))) -> 42697.22719 | BK200: =SUM(INDIRECT(BK$1&BK$2&$A200):INDIRECT(BK$1&BK$3&$A200)) -> 45000 | BL200: -2302.772808 | BN200: =SUM(INDIRECT(BN$1&BN$2&$C200):INDIRECT(BN$1&BN$3&$C200)) -> 49462.49174 | BO200: -6765.264551
... 925 more rows

Sheet FP
C2: =PL!N4 -> FY24 Rolling Forecast ver1.0 | N2: Last Refresh: 2024/04/24 11:24:32 | O2: =SUBSTITUTE(N6,"Sales Company - ","") -> BIN | P2: =N2 -> Last Refresh: 2024/04/24 11:24:32
N3: BT Global Management
N4: data - Plan & Forecast Pkg : Quarterly
H5: =PL!Q6 -> K_INR | I5: (Unit:1,000LC) | N5: for RF FY24 Excel Input | O5: Input fields | P5: =IF(O174="","","Last Send and Refresh:"&TEXT(O174," YYYY/MM/DD HH:MM:SS")) -> 
N6: Sales Company - BIN
H7: 1. Investment | N7: Scenario : 01-1 - Mar-RF (BT-Pkg)
O8: =CHOOSE(2, "5453820365", "FY24") -> FY24 | P8: =CHOOSE(2, "5453820365", "FY24") -> FY24 | Q8: =CHOOSE(2, "5453820365", "FY24") -> FY24 | R8: =CHOOSE(2, "5453820365", "FY24") -> FY24 | S8: =CHOOSE(2, "5453820365", "FY24") -> FY24
O9: =CHOOSE(2, "6806000000001", "previous Q4") -> previous Q4 | P9: =CHOOSE(2, "6806000000002", "Q1") -> Q1 | Q9: =CHOOSE(2, "6806000000003", "Q2") -> Q2 | R9: =CHOOSE(2, "6806000000004", "Q3") -> Q3 | S9: =CHOOSE(2, "6806000000005", "Q4") -> Q4
A10: MTP | B10: RF | D10: 1.投資 | N10: =CHOOSE(2, "6808000000139", "1. Investment") -> 1. Investment | O10: =NOW() -> 2024-10-03T19:37:41.150
A11: MTP | B11: RF | E11: 投資分類 | N11: =CHOOSE(2, "6808000000140", "▷ Blank 0") -> ▷ Blank 0 | P11: =P9 -> Q1 | Q11: =Q9 -> Q2 | R11: =R9 -> Q3 | S11: =S9 -> Q4 | T11: 1st H | U11: 2nd H | V11: Year
A12: MTP | B12: RF | H12: Total | N12: =CHOOSE(2, "6808000000141", "Total") -> Total | O12: 0 | P12: =SUM(P13,P153) -> 45376.94496 | Q12: 85768.62933 | R12: 99452.20608 | S12: 103043.3996 | T12: 131145.5743 | U12: 202495.6057 | V12: 333641.18
A13: MTP | B13: RF | F13: BT事業の投資 | I13: BT Segment | N13: =CHOOSE(2, "6808000000142", "Total BT Segment") -> Total BT Segment | O13: 0 | P13: =SUM(P14,P20,P26) -> 45376.94496 | Q13: 85768.62933 | R13: 99452.20608 | S13: 103043.3996 | T13: 131145.5743 | U13: 202495.6057 | V13: 333641.18
A14: MTP | B14: RF | G14: レンタル資産 | J14: 1) Rental Machinery | N14: =CHOOSE(2, "6808000000143", "Total BT Segment 1) Rental Machinery") -> Total BT Segment 1) Rental Machinery | O14: 0 | P14: =SUM(P15:P19) -> 45376.94496 | Q14: 66568.62933 | R14: 91052.20608 | S14: 98643.39964 | T14: 111945.5743 | U14: 189695.6057 | V14: 301641.18
A15: MTP | B15: RF | M15: a) | N15: =CHOOSE(2, "6808000000144", "Total BT Segment 1) Rental Machinery a)") -> Total BT Segment 1) Rental Machinery a) | O15: Office Products | P15: =45376944.96/1000 -> 45376.94496 | Q15: =66568629.33/1000 -> 66568.62933 | R15: 91052.20608 | S15: 98643.39964 | T15: =SUM(P15,Q15) -> 111945.5743 | U15: =SUM(R15,S15) -> 189695.6057 | V15: =SUM(T15,U15) -> 301641.18 | Z15: 301641.4207
A16: MTP | B16: RF | M16: b) | N16: =CHOOSE(2, "6808000000145", "Total BT Segment 1) Rental Machinery b)") -> Total BT Segment 1) Rental Machinery b) | T16: =SUM(P16,Q16) -> 0 | U16: =SUM(R16,S16) -> 0 | V16: =SUM(T16,U16) -> 0 | Z16: =Z15-V15 -> 0.2406700004
A17: MTP | B17: RF | M17: c) | N17: =CHOOSE(2, "6808000000146", "Total BT Segment 1) Rental Machinery c)") -> Total BT Segment 1) Rental Machinery c) | T17: =SUM(P17,Q17) -> 0 | U17: =SUM(R17,S17) -> 0 | V17: =SUM(T17,U17) -> 0
A18: MTP | B18: RF | M18: d) | N18: =CHOOSE(2, "6808000000231", "Total BT Segment 1) Rental Machinery d)") -> Total BT Segment 1) Rental Machinery d) | T18: =SUM(P18,Q18) -> 0 | U18: =SUM(R18,S18) -> 0 | V18: =SUM(T18,U18) -> 0
A19: MTP | B19: RF | M19: e) | N19: =CHOOSE(2, "6808000000232", "Total BT Segment 1) Rental Machinery e)") -> Total BT Segment 1) Rental Machinery e) | T19: =SUM(P19,Q19) -> 0 | U19: =SUM(R19,S19) -> 0 | V19: =SUM(T19,U19) -> 0
A20: MTP | B20: RF | G20: 買収/投融資 | J20: 2) Merger & Acquisition Acquisition case/ timing(ex. Apr 2021) | N20: =CHOOSE(2, "6808000000147", "Total BT Segment 2) Merger & Acquisition") -> Total BT Segment 2) Merger & Acquisition | O20: 0 | P20: =SUM(P21:P25) -> 0 | Q20: 0 | R20: 0 | S20: 0 | T20: 0 | U20: 0 | V20: 0
A21: MTP | B21: RF | M21: a) | N21: =CHOOSE(2, "6808000000148", "Total BT Segment 2) Merger & Acquisition a)") -> Total BT Segment 2) Merger & Acquisition a) | T21: =SUM(P21,Q21) -> 0 | U21: =SUM(R21,S21) -> 0 | V21: =SUM(T21,U21) -> 0
A22: MTP | B22: RF | M22: b) | N22: =CHOOSE(2, "6808000000149", "Total BT Segment 2) Merger & Acquisition b)") -> Total BT Segment 2) Merger & Acquisition b) | T22: =SUM(P22,Q22) -> 0 | U22: =SUM(R22,S22) -> 0 | V22: =SUM(T22,U22) -> 0
A23: MTP | B23: RF | M23: c) | N23: =CHOOSE(2, "6808000000150", "Total BT Segment 2) Merger & Acquisition c)") -> Total BT Segment 2) Merger & Acquisition c) | T23: =SUM(P23,Q23) -> 0 | U23: =SUM(R23,S23) -> 0 | V23: =SUM(T23,U23) -> 0
A24: MTP | B24: RF | M24: d) | N24: =CHOOSE(2, "6808000000233", "Total BT Segment 2) Merger & Acquisition d)") -> Total BT Segment 2) Merger & Acquisition d) | T24: =SUM(P24,Q24) -> 0 | U24: =SUM(R24,S24) -> 0 | V24: =SUM(T24,U24) -> 0
A25: MTP | B25: RF | M25: e) | N25: =CHOOSE(2, "6808000000234", "Total BT Segment 2) Merger & Acquisition e)") -> Total BT Segment 2) Merger & Acquisition e) | T25: =SUM(P25,Q25) -> 0 | U25: =SUM(R25,S25) -> 0 | V25: =SUM(T25,U25) -> 0
A26: MTP | B26: RF | G26: 設備投資 | J26: 3) Capital Investment | N26: =CHOOSE(2, "6808000000151", "Total BT Segment 3) Capital Investment") -> Total BT Segment 3) Capital Investment | O26: 0 | P26: =SUM(P27,P48,P69,P90,P111,P132) -> 0 | Q26: 19200 | R26: 8400 | S26: 4400 | T26: 19200 | U26: 12800 | V26: 32000 | Z26: 32000
A27: MTP | B27: RF | G27: 1. ソフトウェア(無形) | K27: 1) IT Software Application/IT Project (ex. S/4 HANA) | N27: =CHOOSE(2, "6808000000152", "Total BT Segment 3-1 IT Software") -> Total BT Segment 3-1 IT Software | O27: 0 | P27: =SUM(P28:P47) -> 0 | Q27: 19200 | R27: 0 | S27: 0 | T27: 19200 | U27: 0 | V27: 19200 | Z27: =Z26-V26 -> 0
A28: MTP | B28: RF | M28: a) | N28: =CHOOSE(2, "6808000000153", "Total BT Segment 3-1 IT Software a)") -> Total BT Segment 3-1 IT Software a) | O28: BI Platform Development | Q28: =19200000/1000 -> 19200 | T28: =SUM(P28,Q28) -> 19200 | U28: =SUM(R28,S28) -> 0 | V28: =SUM(T28,U28) -> 19200
A29: MTP | B29: RF | M29: b) | N29: =CHOOSE(2, "6808000000154", "Total BT Segment 3-1 IT Software b)") -> Total BT Segment 3-1 IT Software b) | T29: =SUM(P29,Q29) -> 0 | U29: =SUM(R29,S29) -> 0 | V29: =SUM(T29,U29) -> 0
A30: MTP | B30: RF | M30: c) | N30: =CHOOSE(2, "6808000000155", "Total BT Segment 3-1 IT Software c)") -> Total BT Segment 3-1 IT Software c) | T30: =SUM(P30,Q30) -> 0 | U30: =SUM(R30,S30) -> 0 | V30: =SUM(T30,U30) -> 0
A31: MTP | B31: RF | M31: d) | N31: =CHOOSE(2, "6808000000156", "Total BT Segment 3-1 IT Software d)") -> Total BT Segment 3-1 IT Software d) | T31: =SUM(P31,Q31) -> 0 | U31: =SUM(R31,S31) -> 0 | V31: =SUM(T31,U31) -> 0
A32: MTP | B32: RF | M32: e) | N32: =CHOOSE(2, "6808000000157", "Total BT Segment 3-1 IT Software e)") -> Total BT Segment 3-1 IT Software e) | T32: =SUM(P32,Q32) -> 0 | U32: =SUM(R32,S32) -> 0 | V32: =SUM(T32,U32) -> 0
A33: MTP | B33: RF | M33: f) | N33: =CHOOSE(2, "6808000000235", "Total BT Segment 3-1 IT Software f)") -> Total BT Segment 3-1 IT Software f) | T33: =SUM(P33,Q33) -> 0 | U33: =SUM(R33,S33) -> 0 | V33: =SUM(T33,U33) -> 0
A34: MTP | B34: RF | M34: g) | N34: =CHOOSE(2, "6808000000236", "Total BT Segment 3-1 IT Software g)") -> Total BT Segment 3-1 IT Software g) | T34: 0 | U34: 0 | V34: 0
A35: MTP | B35: RF | M35: h) | N35: =CHOOSE(2, "6808000000237", "Total BT Segment 3-1 IT Software h)") -> Total BT Segment 3-1 IT Software h) | T35: 0 | U35: 0 | V35: 0
A36: MTP | B36: RF | M36: i) | N36: =CHOOSE(2, "6808000000238", "Total BT Segment 3-1 IT Software i)") -> Total BT Segment 3-1 IT Software i) | T36: 0 | U36: 0 | V36: 0
A37: MTP | B37: RF | M37: j) | N37: =CHOOSE(2, "6808000000239", "Total BT Segment 3-1 IT Software j)") -> Total BT Segment 3-1 IT Software j) | T37: 0 | U37: 0 | V37: 0
A38: MTP | B38: RF | M38: k) | N38: =CHOOSE(2, "6808000000240", "Total BT Segment 3-1 IT Software k)") -> Total BT Segment 3-1 IT Software k) | T38: 0 | U38: 0 | V38: 0
A39: MTP | B39: RF | M39: l) | N39: =CHOOSE(2, "6808000000241", "Total BT Segment 3-1 IT Software l)") -> Total BT Segment 3-1 IT Software l) | T39: 0 | U39: 0 | V39: 0
A40: MTP | B40: RF | M40: m) | N40: =CHOOSE(2, "6808000000242", "Total BT Segment 3-1 IT Software m)") -> Total BT Segment 3-1 IT Software m) | T40: 0 | U40: 0 | V40: 0
A41: MTP | B41: RF | M41: n) | N41: =CHOOSE(2, "6808000000243", "Total BT Segment 3-1 IT Software n)") -> Total BT Segment 3-1 IT Software n) | T41: 0 | U41: 0 | V41: 0
A42: MTP | B42: RF | M42: o) | N42: =CHOOSE(2, "6808000000244", "Total BT Segment 3-1 IT Software o)") -> Total BT Segment 3-1 IT Software o) | T42: 0 | U42: 0 | V42: 0
A43: MTP | B43: RF | M43: p) | N43: =CHOOSE(2, "6808000000245", "Total BT Segment 3-1 IT Software p)") -> Total BT Segment 3-1 IT Software p) | T43: 0 | U43: 0 | V43: 0
A44: MTP | B44: RF | M44: q) | N44: =CHOOSE(2, "6808000000246", "Total BT Segment 3-1 IT Software q)") -> Total BT Segment 3-1 IT Software q) | T44: 0 | U44: 0 | V44: 0
A45: MTP | B45: RF | M45: r) | N45: =CHOOSE(2, "6808000000247", "Total BT Segment 3-1 IT Software r)") -> Total BT Segment 3-1 IT Software r) | T45: 0 | U45: 0 | V45: 0
A46: MTP | B46: RF | M46: s) | N46: =CHOOSE(2, "6808000000248", "Total BT Segment 3-1 IT Software s)") -> Total BT Segment 3-1 IT Software s) | T46: 0 | U46: 0 | V46: 0
A47: MTP | B47: RF | M47: t) | N47: =CHOOSE(2, "6808000000249", "Total BT Segment 3-1 IT Software t)") -> Total BT Segment 3-1 IT Software t) | T47: 0 | U47: 0 | V47: 0
A48: MTP | B48: RF | G48: 2. ITﾊｰﾄﾞウェア(有形) | K48: 2) IT Hardware/Others Server/Network/Other IT infrastructures | N48: =CHOOSE(2, "6808000000158", "Total BT Segment 3-2 IT Hardware/Others") -> Total BT Segment 3-2 IT Hardware/Others | O48: 0 | P48: =SUM(P49:P68) -> 0 | Q48: 0 | R48: 0 | S48: 0 | T48: 0 | U48: 0 | V48: 0
A49: MTP | B49: RF | M49: a) | N49: =CHOOSE(2, "6808000000159", "Total BT Segment 3-2 IT Hardware/Others a)") -> Total BT Segment 3-2 IT Hardware/Others a) | T49: =SUM(P49,Q49) -> 0 | U49: =SUM(R49,S49) -> 0 | V49: =SUM(T49,U49) -> 0
A50: MTP | B50: RF | M50: b) | N50: =CHOOSE(2, "6808000000160", "Total BT Segment 3-2 IT Hardware/Others b)") -> Total BT Segment 3-2 IT Hardware/Others b) | T50: =SUM(P50,Q50) -> 0 | U50: =SUM(R50,S50) -> 0 | V50: =SUM(T50,U50) -> 0
A51: MTP | B51: RF | M51: c) | N51: =CHOOSE(2, "6808000000161", "Total BT Segment 3-2 IT Hardware/Others c)") -> Total BT Segment 3-2 IT Hardware/Others c) | T51: =SUM(P51,Q51) -> 0 | U51: =SUM(R51,S51) -> 0 | V51: =SUM(T51,U51) -> 0
A52: MTP | B52: RF | M52: d) | N52: =CHOOSE(2, "6808000000250", "Total BT Segment 3-2 IT Hardware/Others d)") -> Total BT Segment 3-2 IT Hardware/Others d) | T52: =SUM(P52,Q52) -> 0 | U52: =SUM(R52,S52) -> 0 | V52: =SUM(T52,U52) -> 0
A53: MTP | B53: RF | M53: e) | N53: =CHOOSE(2, "6808000000251", "Total BT Segment 3-2 IT Hardware/Others e)") -> Total BT Segment 3-2 IT Hardware/Others e) | T53: 0 | U53: 0 | V53: 0
A54: MTP | B54: RF | M54: f) | N54: =CHOOSE(2, "6808000000252", "Total BT Segment 3-2 IT Hardware/Others f)") -> Total BT Segment 3-2 IT Hardware/Others f) | T54: 0 | U54: 0 | V54: 0
A55: MTP | B55: RF | M55: g) | N55: =CHOOSE(2, "6808000000253", "Total BT Segment 3-2 IT Hardware/Others g)") -> Total BT Segment 3-2 IT Hardware/Others g) | T55: 0 | U55: 0 | V55: 0
A56: MTP | B56: RF | M56: h) | N56: =CHOOSE(2, "6808000000254", "Total BT Segment 3-2 IT Hardware/Others h)") -> Total BT Segment 3-2 IT Hardware/Others h) | T56: 0 | U56: 0 | V56: 0
A57: MTP | B57: RF | M57: i) | N57: =CHOOSE(2, "6808000000255", "Total BT Segment 3-2 IT Hardware/Others i)") -> Total BT Segment 3-2 IT Hardware/Others i) | T57: 0 | U57: 0 | V57: 0
A58: MTP | B58: RF | M58: j) | N58: =CHOOSE(2, "6808000000256", "Total BT Segment 3-2 IT Hardware/Others j)") -> Total BT Segment 3-2 IT Hardware/Others j) | T58: 0 | U58: 0 | V58: 0
A59: MTP | B59: RF | M59: k) | N59: =CHOOSE(2, "6808000000257", "Total BT Segment 3-2 IT Hardware/Others k)") -> Total BT Segment 3-2 IT Hardware/Others k) | T59: 0 | U59: 0 | V59: 0
A60: MTP | B60: RF | M60: l) | N60: =CHOOSE(2, "6808000000258", "Total BT Segment 3-2 IT Hardware/Others l)") -> Total BT Segment 3-2 IT Hardware/Others l) | T60: 0 | U60: 0 | V60: 0
A61: MTP | B61: RF | M61: m) | N61: =CHOOSE(2, "6808000000259", "Total BT Segment 3-2 IT Hardware/Others m)") -> Total BT Segment 3-2 IT Hardware/Others m) | T61: 0 | U61: 0 | V61: 0
A62: MTP | B62: RF | M62: n) | N62: =CHOOSE(2, "6808000000260", "Total BT Segment 3-2 IT Hardware/Others n)") -> Total BT Segment 3-2 IT Hardware/Others n) | T62: 0 | U62: 0 | V62: 0
A63: MTP | B63: RF | M63: o) | N63: =CHOOSE(2, "6808000000261", "Total BT Segment 3-2 IT Hardware/Others o)") -> Total BT Segment 3-2 IT Hardware/Others o) | T63: 0 | U63: 0 | V63: 0
A64: MTP | B64: RF | M64: p) | N64: =CHOOSE(2, "6808000000262", "Total BT Segment 3-2 IT Hardware/Others p)") -> Total BT Segment 3-2 IT Hardware/Others p) | T64: 0 | U64: 0 | V64: 0
A65: MTP | B65: RF | M65: q) | N65: =CHOOSE(2, "6808000000263", "Total BT Segment 3-2 IT Hardware/Others q)") -> Total BT Segment 3-2 IT Hardware/Others q) | T65: 0 | U65: 0 | V65: 0
A66: MTP | B66: RF | M66: r) | N66: =CHOOSE(2, "6808000000264", "Total BT Segment 3-2 IT Hardware/Others r)") -> Total BT Segment 3-2 IT Hardware/Others r) | T66: 0 | U66: 0 | V66: 0
A67: MTP | B67: RF | M67: s) | N67: =CHOOSE(2, "6808000000265", "Total BT Segment 3-2 IT Hardware/Others s)") -> Total BT Segment 3-2 IT Hardware/Others s) | T67: 0 | U67: 0 | V67: 0
A68: MTP | B68: RF | M68: t) | N68: =CHOOSE(2, "6808000000266", "Total BT Segment 3-2 IT Hardware/Others t)") -> Total BT Segment 3-2 IT Hardware/Others t) | T68: 0 | U68: 0 | V68: 0
A69: MTP | B69: RF | G69: 3. オフィス移転/建物修繕(有形) | K69: 3) Office Move/Renovation related to building | N69: =CHOOSE(2, "6808000000162", "Total BT Segment 3-3 Office Move/Renovation") -> Total BT Segment 3-3 Office Move/Renovation | O69: 0 | P69: =SUM(P70:P89) -> 0 | Q69: 0 | R69: 8400 | S69: 4400 | T69: 0 | U69: 12800 | V69: 12800
A70: MTP | B70: RF | M70: a) | N70: =CHOOSE(2, "6808000000163", "Total BT Segment 3-3 Office Move/Renovation a)") -> Total BT Segment 3-3 Office Move/Renovation a) | O70: Branch Consolidation Project | R70: 8400 | S70: 4400 | T70: =SUM(P70,Q70) -> 0 | U70: =SUM(R70,S70) -> 12800 | V70: =SUM(T70,U70) -> 12800
A71: MTP | B71: RF | M71: b) | N71: =CHOOSE(2, "6808000000164", "Total BT Segment 3-3 Office Move/Renovation b)") -> Total BT Segment 3-3 Office Move/Renovation b) | T71: =SUM(P71,Q71) -> 0 | U71: =SUM(R71,S71) -> 0 | V71: =SUM(T71,U71) -> 0
A72: MTP | B72: RF | M72: c) | N72: =CHOOSE(2, "6808000000165", "Total BT Segment 3-3 Office Move/Renovation c)") -> Total BT Segment 3-3 Office Move/Renovation c) | T72: =SUM(P72,Q72) -> 0 | U72: =SUM(R72,S72) -> 0 | V72: =SUM(T72,U72) -> 0
A73: MTP | B73: RF | M73: d) | N73: =CHOOSE(2, "6808000000267", "Total BT Segment 3-3 Office Move/Renovation d)") -> Total BT Segment 3-3 Office Move/Renovation d) | T73: =SUM(P73,Q73) -> 0 | U73: =SUM(R73,S73) -> 0 | V73: =SUM(T73,U73) -> 0
A74: MTP | B74: RF | M74: e) | N74: =CHOOSE(2, "6808000000268", "Total BT Segment 3-3 Office Move/Renovation e)") -> Total BT Segment 3-3 Office Move/Renovation e) | T74: 0 | U74: 0 | V74: 0
A75: MTP | B75: RF | M75: f) | N75: =CHOOSE(2, "6808000000269", "Total BT Segment 3-3 Office Move/Renovation f)") -> Total BT Segment 3-3 Office Move/Renovation f) | T75: 0 | U75: 0 | V75: 0
A76: MTP | B76: RF | M76: g) | N76: =CHOOSE(2, "6808000000270", "Total BT Segment 3-3 Office Move/Renovation g)") -> Total BT Segment 3-3 Office Move/Renovation g) | T76: 0 | U76: 0 | V76: 0
A77: MTP | B77: RF | M77: h) | N77: =CHOOSE(2, "6808000000271", "Total BT Segment 3-3 Office Move/Renovation h)") -> Total BT Segment 3-3 Office Move/Renovation h) | T77: 0 | U77: 0 | V77: 0
A78: MTP | B78: RF | M78: i) | N78: =CHOOSE(2, "6808000000272", "Total BT Segment 3-3 Office Move/Renovation i)") -> Total BT Segment 3-3 Office Move/Renovation i) | T78: 0 | U78: 0 | V78: 0
A79: MTP | B79: RF | M79: j) | N79: =CHOOSE(2, "6808000000273", "Total BT Segment 3-3 Office Move/Renovation j)") -> Total BT Segment 3-3 Office Move/Renovation j) | T79: 0 | U79: 0 | V79: 0
A80: MTP | B80: RF | M80: k) | N80: =CHOOSE(2, "6808000000274", "Total BT Segment 3-3 Office Move/Renovation k)") -> Total BT Segment 3-3 Office Move/Renovation k) | T80: 0 | U80: 0 | V80: 0
A81: MTP | B81: RF | M81: l) | N81: =CHOOSE(2, "6808000000275", "Total BT Segment 3-3 Office Move/Renovation l)") -> Total BT Segment 3-3 Office Move/Renovation l) | T81: 0 | U81: 0 | V81: 0
A82: MTP | B82: RF | M82: m) | N82: =CHOOSE(2, "6808000000276", "Total BT Segment 3-3 Office Move/Renovation m)") -> Total BT Segment 3-3 Office Move/Renovation m) | T82: 0 | U82: 0 | V82: 0
A83: MTP | B83: RF | M83: n) | N83: =CHOOSE(2, "6808000000277", "Total BT Segment 3-3 Office Move/Renovation n)") -> Total BT Segment 3-3 Office Move/Renovation n) | T83: 0 | U83: 0 | V83: 0
A84: MTP | B84: RF | M84: o) | N84: =CHOOSE(2, "6808000000278", "Total BT Segment 3-3 Office Move/Renovation o)") -> Total BT Segment 3-3 Office Move/Renovation o) | T84: 0 | U84: 0 | V84: 0
A85: MTP | B85: RF | M85: p) | N85: =CHOOSE(2, "6808000000279", "Total BT Segment 3-3 Office Move/Renovation p)") -> Total BT Segment 3-3 Office Move/Renovation p) | T85: 0 | U85: 0 | V85: 0
A86: MTP | B86: RF | M86: q) | N86: =CHOOSE(2, "6808000000280", "Total BT Segment 3-3 Office Move/Renovation q)") -> Total BT Segment 3-3 Office Move/Renovation q) | T86: 0 | U86: 0 | V86: 0
A87: MTP | B87: RF | M87: r) | N87: =CHOOSE(2, "6808000000281", "Total BT Segment 3-3 Office Move/Renovation r)") -> Total BT Segment 3-3 Office Move/Renovation r) | T87: 0 | U87: 0 | V87: 0
A88: MTP | B88: RF | M88: s) | N88: =CHOOSE(2, "6808000000282", "Total BT Segment 3-3 Office Move/Renovation s)") -> Total BT Segment 3-3 Office Move/Renovation s) | T88: 0 | U88: 0 | V88: 0
A89: MTP | B89: RF | M89: t) | N89: =CHOOSE(2, "6808000000283", "Total BT Segment 3-3 Office Move/Renovation t)") -> Total BT Segment 3-3 Office Move/Renovation t) | T89: 0 | U89: 0 | V89: 0
A90: MTP | B90: RF | G90: 4.オフィス備品(有形) | K90: 4) Office Fixtures PC/Equipment for internal use | N90: =CHOOSE(2, "6808000000166", "Total BT Segment 3-4 Office Fixtures") -> Total BT Segment 3-4 Office Fixtures | O90: 0 | P90: =SUM(P91:P110) -> 0 | Q90: 0 | R90: 0 | S90: 0 | T90: 0 | U90: 0 | V90: 0
A91: MTP | B91: RF | M91: a) | N91: =CHOOSE(2, "6808000000167", "Total BT Segment 3-4 Office Fixtures a)") -> Total BT Segment 3-4 Office Fixtures a) | T91: =SUM(P91,Q91) -> 0 | U91: =SUM(R91,S91) -> 0 | V91: =SUM(T91,U91) -> 0
A92: MTP | B92: RF | M92: b) | N92: =CHOOSE(2, "6808000000168", "Total BT Segment 3-4 Office Fixtures b)") -> Total BT Segment 3-4 Office Fixtures b) | T92: =SUM(P92,Q92) -> 0 | U92: =SUM(R92,S92) -> 0 | V92: =SUM(T92,U92) -> 0
A93: MTP | B93: RF | M93: c) | N93: =CHOOSE(2, "6808000000169", "Total BT Segment 3-4 Office Fixtures c)") -> Total BT Segment 3-4 Office Fixtures c) | T93: =SUM(P93,Q93) -> 0 | U93: =SUM(R93,S93) -> 0 | V93: =SUM(T93,U93) -> 0
A94: MTP | B94: RF | M94: d) | N94: =CHOOSE(2, "6808000000284", "Total BT Segment 3-4 Office Fixtures d)") -> Total BT Segment 3-4 Office Fixtures d) | T94: =SUM(P94,Q94) -> 0 | U94: =SUM(R94,S94) -> 0 | V94: =SUM(T94,U94) -> 0
A95: MTP | B95: RF | M95: e) | N95: =CHOOSE(2, "6808000000285", "Total BT Segment 3-4 Office Fixtures e)") -> Total BT Segment 3-4 Office Fixtures e) | T95: 0 | U95: 0 | V95: 0
A96: MTP | B96: RF | M96: f) | N96: =CHOOSE(2, "6808000000286", "Total BT Segment 3-4 Office Fixtures f)") -> Total BT Segment 3-4 Office Fixtures f) | T96: 0 | U96: 0 | V96: 0
A97: MTP | B97: RF | M97: g) | N97: =CHOOSE(2, "6808000000287", "Total BT Segment 3-4 Office Fixtures g)") -> Total BT Segment 3-4 Office Fixtures g) | T97: 0 | U97: 0 | V97: 0
A98: MTP | B98: RF | M98: h) | N98: =CHOOSE(2, "6808000000288", "Total BT Segment 3-4 Office Fixtures h)") -> Total BT Segment 3-4 Office Fixtures h) | T98: 0 | U98: 0 | V98: 0
A99: MTP | B99: RF | M99: i) | N99: =CHOOSE(2, "6808000000289", "Total BT Segment 3-4 Office Fixtures i)") -> Total BT Segment 3-4 Office Fixtures i) | T99: 0 | U99: 0 | V99: 0
A100: MTP | B100: RF | M100: j) | N100: =CHOOSE(2, "6808000000290", "Total BT Segment 3-4 Office Fixtures j)") -> Total BT Segment 3-4 Office Fixtures j) | T100: 0 | U100: 0 | V100: 0
A101: MTP | B101: RF | M101: k) | N101: =CHOOSE(2, "6808000000291", "Total BT Segment 3-4 Office Fixtures k)") -> Total BT Segment 3-4 Office Fixtures k) | T101: 0 | U101: 0 | V101: 0
A102: MTP | B102: RF | M102: l) | N102: =CHOOSE(2, "6808000000292", "Total BT Segment 3-4 Office Fixtures l)") -> Total BT Segment 3-4 Office Fixtures l) | T102: 0 | U102: 0 | V102: 0
A103: MTP | B103: RF | M103: m) | N103: =CHOOSE(2, "6808000000293", "Total BT Segment 3-4 Office Fixtures m)") -> Total BT Segment 3-4 Office Fixtures m) | T103: 0 | U103: 0 | V103: 0
A104: MTP | B104: RF | M104: n) | N104: =CHOOSE(2, "6808000000294", "Total BT Segment 3-4 Office Fixtures n)") -> Total BT Segment 3-4 Office Fixtures n) | T104: 0 | U104: 0 | V104: 0
A105: MTP | B105: RF | M105: o) | N105: =CHOOSE(2, "6808000000295", "Total BT Segment 3-4 Office Fixtures o)") -> Total BT Segment 3-4 Office Fixtures o) | T105: 0 | U105: 0 | V105: 0
A106: MTP | B106: RF | M106: p) | N106: =CHOOSE(2, "6808000000296", "Total BT Segment 3-4 Office Fixtures p)") -> Total BT Segment 3-4 Office Fixtures p) | T106: 0 | U106: 0 | V106: 0
